{"text_format":"1","workbook":"xlsx","n_sheets":24,"sheets":["ORIGINAL PHOTO","Technical Sketch","Fabric, Trim, Sheet","Apparel Spec Sheet","Original Sample Photos","Fabrics","1st Fit Sample","1st Fit Photo Comments","Construction Details","Reference Sample bottom","2nd Fit Sample","2nd Fit Photo Comments","3rd Fit Sample","3rd Fit Photo Comments","Grade XS-S-M-L-XL ","Labels","Grade S-M-L-XL","Grade SM - LXL","Grade S-M-L","Grade XXL - XXXL","Pre-Production Sample","PreProduction Photo Comments","Production Comments","Production Photo Comment"],"not_rendered":{"charts":0,"images":15,"macros":1,"external_links":0,"defined_names":24,"comments":0,"pivot_tables":0},"unopened":[],"bounds":{"document_bytes":16777216,"sheet_cells":100000,"rows_first":2000,"rows_last":500,"rows_between":2000,"halvings":0,"cell_chars":16384,"cell_head_chars":4096},"cells_cut":0,"cells_raw":0,"read":"whole","date_system":"1900"}

{"sheet":"ORIGINAL PHOTO","index":0,"n_rows":57,"n_cols":38,"rows_kept":57,"cut":false,"hidden":false,"merged":[[8,1,50,34],[7,1,7,34],[1,16,1,22],[3,16,3,22],[4,16,4,22],[5,16,5,34],[3,30,3,34],[6,1,6,18],[4,29,4,34],[1,29,1,34],[2,23,2,34],[2,16,2,22],[6,19,6,34]]}
[]
[null,null,null,null,null,null,null,null,null,null,null,"Create Date:",null,null,null,null,"MARCH 15/2017",null,null,null,null,null,null,"Main Brand Label :",null,null,null,null,null,"YO & CO"]
[null,null,null,null,null,null,null,null,null,null,null,"Vendor Name:",null,null,null,null,null,null,null,null,null,null,null,"SCREEN PRINT MAIN LABEL "]
[null,null,null,null,null,null,null,null,null,null,null,"Vndr.Item No.:",null,null,null,null,null,null,null,null,null,null,null,null,null,null,"GC Item No.:"]
[null,null,null,null,null,null,null,null,null,null,null,"Size Range:",null,null,null,null,"S-M-L-XL",null,null,null,null,null,null,null,null,null,"Season:",null,null,"Spring Summer 2018"]
[null,null,null,null,null,null,null,null,null,null,null,"Description:",null,null,null,null,"MEN'S LONG SLEEVE ZIP FRONT SCOOP HEM HOODIE WITH LINED HOOD"]
[null,"APPAREL SPEC SHEET --MEN'S  TOP",null,null,null,null,null,null,null,null,null,null,null,null,null,null,null,null,null,"REFERENCE #  YCSS18-6000"]
[null,"PHOTOS OF ORIGINAL SAMPLE"]
[]
[]
[]
[]
[]
[]
[]
[]
[]
[]
[]
[]
[]
[]
[]
[]
[]
[]
[]
[]
[]
[]
[]
[]
[]
[]
[]
[]
[]
[]
[]
[]
[]
[]
[]
[]
[]
[]
[]
[]
[]
[]
[]
[]
[]
[null,null,null,null,null,null,null,null,null,null,null,null,null,null,null,null,null,null,null,null,null,null,null,null,null,null,null,null,null,null,null,null,null,null,null,null,null,"S-M-L "]
[null,null,null,null,null,null,null,null,null,null,null,null,null,null,null,null,null,null,null,null,null,null,null,null,null,null,null,null,null,null,null,null,null,null,null,null,null,"SM-LXL"]
[null,null,null,null,null,null,null,null,null,null,null,null,null,null,null,null,null,null,null,null,null,null,null,null,null,null,null,null,null,null,null,null,null,null,null,null,null,"S-M-L-XL"]
[null,null,null,null,null,null,null,null,null,null,null,null,null,null,null,null,null,null,null,null,null,null,null,null,null,null,null,null,null,null,null,null,null,null,null,null,null,"XXL-XXXL"]

{"sheet":"Technical Sketch","index":1,"n_rows":15,"n_cols":40,"rows_kept":15,"cut":false,"hidden":false,"merged":[[8,1,50,34],[1,16,1,22],[2,16,2,34],[3,16,3,22],[3,30,3,34],[4,16,4,22],[4,29,4,34],[5,16,5,34],[6,1,6,34],[7,1,7,18],[7,19,7,22],[7,23,7,31]]}
[]
[null,null,null,null,null,null,null,null,null,null,null,"Create Date:",null,null,null,null,{"$f":"'ORIGINAL PHOTO'!Q2:W2","v":"MARCH 15/2017"}]
[null,null,null,null,null,null,null,null,null,null,null,"Vendor Name:",null,null,null,null,{"$f":"'ORIGINAL PHOTO'!Q3:AI3","v":0}]
[null,null,null,null,null,null,null,null,null,null,null,"Vndr.Item No.:",null,null,null,null,{"$f":"'ORIGINAL PHOTO'!Q4:W4","v":0},null,null,null,null,null,null,null,null,null,"GC Item No.:",null,null,null,{"$f":"'ORIGINAL PHOTO'!AE4:AI4","v":0}]
[null,null,null,null,null,null,null,null,null,null,null,"Size Range:",null,null,null,null,{"$f":"'ORIGINAL PHOTO'!Q5:W5","v":"S-M-L-XL"},null,null,null,null,null,null,null,null,null,"Season:",null,null,{"$f":"'ORIGINAL PHOTO'!AD5:AI5","v":"Spring Summer 2018"}]
[null,null,null,null,null,null,null,null,null,null,null,"Description:",null,null,null,null,{"$f":"'ORIGINAL PHOTO'!Q6:AI6","v":"MEN'S LONG SLEEVE ZIP FRONT SCOOP HEM HOODIE WITH LINED HOOD"}]
[null,"FIT FOR DEVELOPMENT SAMPLE / PHOTO / SALESMANS SAMPLES ONLY"]
[null,null,null,null,null,null,null,null,null,null,null,null,null,null,null,null,null,null,null,"Date:",null,null,null,null,null,null,null,null,null,null,null,null,null,null,null,null,null,null,null,"L"]
[null,null,null,null,null,null,null,null,null,null,null,null,null,null,null,null,null,null,null,null,null,null,null,null,null,null,null,null,null,null,null,null,null,null,null,null,null,null,null,"LXL"]
[null,null,null,null,null,null,null,null,null,null,null,null,null,null,null,null,null,null,null,null,null,null,null,null,null,null,null,null,null,null,null,null,null,null,null,null,null,null,null,"M"]
[null,null,null,null,null,null,null,null,null,null,null,null,null,null,null,null,null,null,null,null,null,null,null,null,null,null,null,null,null,null,null,null,null,null,null,null,null,null,null,"S"]
[null,null,null,null,null,null,null,null,null,null,null,null,null,null,null,null,null,null,null,null,null,null,null,null,null,null,null,null,null,null,null,null,null,null,null,null,null,null,null,"SM"]
[null,null,null,null,null,null,null,null,null,null,null,null,null,null,null,null,null,null,null,null,null,null,null,null,null,null,null,null,null,null,null,null,null,null,null,null,null,null,null,"XL"]
[null,null,null,null,null,null,null,null,null,null,null,null,null,null,null,null,null,null,null,null,null,null,null,null,null,null,null,null,null,null,null,null,null,null,null,null,null,null,null,"XXL"]
[null,null,null,null,null,null,null,null,null,null,null,null,null,null,null,null,null,null,null,null,null,null,null,null,null,null,null,null,null,null,null,null,null,null,null,null,null,null,null,"XXXL"]

{"sheet":"Fabric, Trim, Sheet","index":2,"n_rows":42,"n_cols":40,"rows_kept":42,"cut":false,"hidden":false,"merged":[[31,28,31,34],[19,1,19,6],[19,28,19,34],[19,24,19,27],[19,7,19,23],[29,24,29,27],[22,28,22,34],[23,28,23,34],[24,28,24,34],[25,28,25,34],[26,28,26,34],[27,28,27,34],[28,28,28,34],[29,28,29,34],[30,28,30,34],[30,1,30,6],[30,24,30,27],[7,1,7,6],[8,28,8,34],[9,28,9,34],[10,28,10,34],[11,28,11,34],[12,28,12,34],[13,28,13,34],[14,28,14,34],[15,28,15,34],[15,14,15,20],[8,21,8,27],[9,21,9,27],[11,7,11,13],[12,7,12,13],[8,14,8,20],[9,14,9,20],[10,14,10,20],[11,14,11,20],[12,14,12,20],[13,14,13,20],[13,7,13,13],[11,21,11,27],[12,21,12,27],[13,21,13,27],[1,16,1,22],[2,16,2,34],[3,16,3,22],[3,30,3,34],[4,16,4,22],[5,16,5,34],[7,7,7,13],[7,14,7,20],[7,21,7,27],[7,28,7,34],[4,29,4,34],[8,7,8,13],[9,7,9,13],[10,7,10,13],[28,1,28,6],[29,1,29,6],[20,1,20,6],[21,1,21,6],[22,1,22,6],[23,1,23,6],[24,1,24,6],[25,1,25,6],[26,1,26,6],[27,1,27,6],[20,7,20,23],[21,7,21,23],[22,7,22,23],[23,7,23,23],[14,7,14,13],[15,7,15,13],[15,21,15,27],[23,24,23,27],[24,24,24,27],[25,24,25,27],[26,24,26,27],[34,1,34,6],[35,1,35,6],[36,1,36,6],[37,1,37,6],[38,1,38,6],[33,1,33,6],[41,1,41,6],[10,21,10,27],[14,14,14,20],[20,24,20,27],[21,24,21,27],[22,24,22,27],[27,24,27,27],[28,24,28,27],[28,7,28,23],[24,7,24,23],[25,7,25,23],[26,7,26,23],[27,7,27,23],[14,21,14,27],[16,7,17,34],[31,1,31,6],[31,7,31,23],[31,24,31,27],[32,1,32,34],[33,7,33,27],[29,7,29,23],[30,7,30,23],[20,28,20,34],[21,28,21,34],[33,28,33,34],[49,1,49,6],[50,1,50,6],[34,7,34,27],[35,7,35,27],[36,7,36,27],[37,7,37,27],[38,7,38,27],[39,7,39,27],[40,7,40,27],[41,7,41,27],[42,7,42,27],[43,7,43,27],[44,7,44,27],[45,7,45,27],[46,7,46,27],[47,7,47,27],[44,1,44,6],[45,1,45,6],[46,1,46,6],[47,1,47,6],[48,1,48,6],[39,1,39,6],[40,1,40,6],[47,28,47,34],[48,28,48,34],[49,28,49,34],[42,1,42,6],[43,1,43,6],[50,28,50,34],[48,7,48,27],[49,7,49,27],[50,7,50,27],[34,28,34,34],[35,28,35,34],[36,28,36,34],[37,28,37,34],[38,28,38,34],[39,28,39,34],[40,28,40,34],[41,28,41,34],[42,28,42,34],[43,28,43,34],[44,28,44,34],[45,28,45,34],[46,28,46,34]]}
[]
[null,null,null,null,null,null,null,null,null,null,null,"Create Date:",null,null,null,null,{"$f":"'ORIGINAL PHOTO'!Q2:W2","v":"MARCH 15/2017"}]
[null,null,null,null,null,null,null,null,null,null,null,"Vendor Name:",null,null,null,null,{"$f":"'ORIGINAL PHOTO'!Q3:AI3","v":0}]
[null,null,null,null,null,null,null,null,null,null,null,"Vndr.Item No.:",null,null,null,null,{"$f":"'ORIGINAL PHOTO'!Q4:W4","v":0},null,null,null,null,null,null,null,null,null,"GC Item No.:",null,null,null,{"$f":"'ORIGINAL PHOTO'!AE4:AI4","v":0}]
[null,null,null,null,null,null,null,null,null,null,null,"Size Range:",null,null,null,null,{"$f":"'ORIGINAL PHOTO'!Q5:W5","v":"S-M-L-XL"},null,null,null,null,null,null,null,null,null,"Season:",null,null,{"$f":"'ORIGINAL PHOTO'!AD5:AI5","v":"Spring Summer 2018"}]
[null,null,null,null,null,null,null,null,null,null,null,"Description:",null,null,null,null,{"$f":"'ORIGINAL PHOTO'!Q6:AI6","v":"MEN'S LONG SLEEVE ZIP FRONT SCOOP HEM HOODIE WITH LINED HOOD"}]
[]
[null,"FABRIC DETAILS:",null,null,null,null,null,"FABRIC 1",null,null,null,null,null,null,"COLOUR 1",null,null,null,null,null,null,"FABRIC 2",null,null,null,null,null,null,"COLOUR 2"]
[null,"Product Component:",null,null,null,null,null,"see front page",null,null,null,null,null,null,"see TECHNICAL  page"]
[null,"Fibre Content:",null,null,null,null,null,"see front page"]
[null,"Description:"]
[null,"Weight:",null,null,null,null,null,"372 GSM - ORGINAL"]
[null,"Construction:"]
[null,"Yarn Count:"]
[null,"Garment Finish:"]
[null,"   (wash, garment dye etc)"]
[null,"Special Requests:"]
[]
[]
[null,"TRIM DETAILS",null,null,null,null,null,"DESCRIPTION",null,null,null,null,null,null,null,null,null,null,null,null,null,null,null,null,"SIZE",null,null,null,"COLOUR"]
[null,"Binding",null,null,null,null,null,"woven back neck tape with logo ",null,null,null,null,null,null,null,null,null,null,null,null,null,null,null,null,"3/8\" wide",null,null,null,"tbc",null,null,null,null,null,null,null,null,null,null,"Binding"]
[null,"Buttons",null,null,null,null,null,null,null,null,null,null,null,null,null,null,null,null,null,null,null,null,null,null,null,null,null,null,null,null,null,null,null,null,null,null,null,null,null,"Buttons"]
[null,"Elastic",null,null,null,null,null,null,null,null,null,null,null,null,null,null,null,null,null,null,null,null,null,null,null,null,null,null,null,null,null,null,null,null,null,null,null,null,null,"Elastic"]
[null,"Fasteners",null,null,null,null,null,null,null,null,null,null,null,null,null,null,null,null,null,null,null,null,null,null,null,null,null,null,null,null,null,null,null,null,null,null,null,null,null,"Fasteners"]
[null,"Mobilon",null,null,null,null,null,null,null,null,null,null,null,null,null,null,null,null,null,null,null,null,null,null,null,null,null,null,null,null,null,null,null,null,null,null,null,null,null,"Mobilon"]
[null,"Piping",null,null,null,null,null,null,null,null,null,null,null,null,null,null,null,null,null,null,null,null,null,null,null,null,null,null,null,null,null,null,null,null,null,null,null,null,null,"Piping"]
[null,"Zipper - Front",null,null,null,null,null,"YKK - # 4  metal separating ",null,null,null,null,null,null,null,null,null,null,null,null,null,null,null,null,null,null,null,null,"black tape",null,null,null,null,null,null,null,null,null,null,"Zipper"]
[null,"Zipper - Pockets",null,null,null,null,null,"REVERED NYLON COIL ",null,null,null,null,null,null,null,null,null,null,null,null,null,null,null,null,null,null,null,null,"black tape"]
[null,"Drawstring"]
[null,"Toggle"]
[null,"Rivets",null,null,null,null,null,"2 - on hood drawcord tunnel opening",null,null,null,null,null,null,null,null,null,null,null,null,null,null,null,null,"11 mm ",null,null,null,"dark metal"]
[]
[null,"GARMENT CONSTRUCTION DETAILS"]
[null,"LOCATION",null,null,null,null,null,"DESCRIPTION",null,null,null,null,null,null,null,null,null,null,null,null,null,null,null,null,null,null,null,null,"ISO STANDARD"]
[null,null,null,null,null,null,null,null,null,null,null,null,null,null,null,null,null,null,null,null,null,null,null,null,null,null,null,null,null,null,null,null,null,null,null,null,null,null,null,"2 Needle Bottom Cover Stitch"]
[null,null,null,null,null,null,null,null,null,null,null,null,null,null,null,null,null,null,null,null,null,null,null,null,null,null,null,null,null,null,null,null,null,null,null,null,null,null,null,"2 Needle, 4 Thread Cover Stitch"]
[null,null,null,null,null,null,null,null,null,null,null,null,null,null,null,null,null,null,null,null,null,null,null,null,null,null,null,null,null,null,null,null,null,null,null,null,null,null,null,"3 Needle Bottom Cover Stitch"]
[null,null,null,null,null,null,null,null,null,null,null,null,null,null,null,null,null,null,null,null,null,null,null,null,null,null,null,null,null,null,null,null,null,null,null,null,null,null,null,"3 Thread OverEdge"]
[null,null,null,null,null,null,null,null,null,null,null,null,null,null,null,null,null,null,null,null,null,null,null,null,null,null,null,null,null,null,null,null,null,null,null,null,null,null,null,"5 Needle, 5 Thread Cover Stitch"]
[null,null,null,null,null,null,null,null,null,null,null,null,null,null,null,null,null,null,null,null,null,null,null,null,null,null,null,null,null,null,null,null,null,null,null,null,null,null,null,"5 Thread Safety Stitch"]
[null,null,null,null,null,null,null,null,null,null,null,null,null,null,null,null,null,null,null,null,null,null,null,null,null,null,null,null,null,null,null,null,null,null,null,null,null,null,null,"Lock Stitch"]
[null,null,null,null,null,null,null,null,null,null,null,null,null,null,null,null,null,null,null,null,null,null,null,null,null,null,null,null,null,null,null,null,null,null,null,null,null,null,null,"ZigZag Lock Stitch"]

{"sheet":"Apparel Spec Sheet","index":3,"n_rows":55,"n_cols":40,"rows_kept":55,"cut":false,"hidden":false,"merged":[[22,15,22,18],[22,19,22,22],[22,23,22,31],[22,32,22,34],[25,1,25,14],[25,15,25,18],[25,19,25,22],[25,23,25,31],[25,32,25,34],[24,32,24,34],[5,16,5,34],[1,16,1,22],[2,16,2,34],[3,16,3,22],[3,30,3,34],[4,16,4,22],[23,32,23,34],[27,32,27,34],[8,32,9,34],[10,32,10,34],[10,23,10,31],[13,32,13,34],[14,19,14,22],[14,23,14,31],[14,32,14,34],[15,15,15,18],[15,19,15,22],[17,19,17,22],[17,23,17,31],[17,32,17,34],[4,29,4,34],[6,1,6,34],[8,1,9,14],[9,15,9,18],[39,32,39,34],[15,23,15,31],[36,23,36,31],[36,32,36,34],[15,32,15,34],[11,1,11,14],[10,19,10,22],[10,15,10,18],[10,1,10,14],[11,15,11,18],[11,19,11,22],[11,23,11,31],[39,1,39,14],[39,15,39,18],[39,19,39,22],[39,23,39,31],[36,1,36,14],[36,15,36,18],[34,1,34,14],[34,15,34,18],[30,1,30,14],[30,15,30,18],[36,19,36,22],[37,1,37,14],[8,15,8,18],[8,19,8,22],[9,19,9,22],[8,23,9,31],[27,1,27,14],[27,15,27,18],[27,19,27,22],[27,23,27,31],[23,1,23,14],[23,15,23,18],[20,1,20,14],[20,15,20,18],[16,1,16,14],[16,15,16,18],[23,23,23,31],[23,19,23,22],[13,1,13,14],[13,15,13,18],[13,19,13,22],[13,23,13,31],[14,1,14,14],[14,15,14,18],[24,1,24,14],[24,15,24,18],[11,32,11,34],[12,1,12,14],[12,15,12,18],[12,19,12,22],[12,23,12,31],[12,32,12,34],[50,1,50,14],[50,15,50,18],[48,1,48,14],[48,15,48,18],[47,1,47,14],[47,15,47,18],[47,19,47,22],[47,23,47,31],[44,1,44,14],[44,15,44,18],[44,19,44,22],[44,23,44,31],[42,1,42,14],[42,15,42,18],[47,32,47,34],[44,32,44,34],[24,19,24,22],[24,23,24,31],[26,15,26,18],[26,19,26,22],[26,23,26,31],[26,32,26,34],[15,1,15,14],[20,19,20,22],[20,23,20,31],[20,32,20,34],[21,1,21,14],[21,15,21,18],[21,19,21,22],[21,23,21,31],[21,32,21,34],[18,1,18,14],[18,15,18,18],[18,19,18,22],[18,23,18,31],[18,32,18,34],[19,1,19,14],[19,15,19,18],[19,19,19,22],[19,23,19,31],[19,32,19,34],[22,1,22,14],[16,19,16,22],[16,23,16,31],[16,32,16,34],[17,1,17,14],[17,15,17,18],[31,15,31,18],[31,19,31,22],[31,23,31,31],[31,32,31,34],[28,1,28,14],[28,15,28,18],[28,19,28,22],[28,23,28,31],[28,32,28,34],[29,1,29,14],[29,15,29,18],[29,19,29,22],[29,23,29,31],[29,32,29,34],[30,19,30,22],[30,23,30,31],[30,32,30,34],[31,1,31,14],[26,1,26,14],[34,19,34,22],[34,23,34,31],[34,32,34,34],[35,1,35,14],[35,15,35,18],[35,19,35,22],[35,23,35,31],[35,32,35,34],[32,1,32,14],[32,15,32,18],[32,19,32,22],[32,23,32,31],[32,32,32,34],[33,1,33,14],[33,15,33,18],[33,19,33,22],[33,23,33,31],[33,32,33,34],[37,15,37,18],[37,19,37,22],[37,23,37,31],[37,32,37,34],[38,1,38,14],[38,15,38,18],[38,19,38,22],[38,23,38,31],[38,32,38,34],[40,32,40,34],[41,1,41,14],[41,15,41,18],[41,19,41,22],[41,23,41,31],[41,32,41,34],[40,19,40,22],[40,23,40,31],[40,1,40,14],[40,15,40,18],[45,19,45,22],[45,23,45,31],[45,32,45,34],[46,1,46,14],[46,15,46,18],[46,19,46,22],[46,23,46,31],[46,32,46,34],[42,19,42,22],[42,23,42,31],[42,32,42,34],[43,1,43,14],[43,15,43,18],[43,19,43,22],[43,23,43,31],[43,32,43,34],[52,1,52,14],[52,15,52,18],[52,19,52,22],[52,23,52,31],[52,32,52,34],[51,1,51,34],[53,15,53,34],[54,1,54,34],[7,19,7,22],[7,23,7,31],[7,1,7,18],[50,19,50,22],[50,23,50,31],[50,32,50,34],[48,19,48,22],[48,23,48,31],[48,32,48,34],[49,1,49,14],[49,15,49,18],[49,19,49,22],[49,23,49,31],[49,32,49,34],[45,1,45,14],[45,15,45,18]]}
[]
[null,null,null,null,null,null,null,null,null,null,null,"Create Date:",null,null,null,null,{"$f":"'ORIGINAL PHOTO'!Q2:W2","v":"MARCH 15/2017"}]
[null,null,null,null,null,null,null,null,null,null,null,"Vendor Name:",null,null,null,null,{"$f":"'ORIGINAL PHOTO'!Q3:AI3","v":0}]
[null,null,null,null,null,null,null,null,null,null,null,"Vndr.Item No.:",null,null,null,null,{"$f":"'ORIGINAL PHOTO'!Q4:W4","v":0},null,null,null,null,null,null,null,null,null,"GC Item No.:",null,null,null,{"$f":"'ORIGINAL PHOTO'!AE4:AI4","v":0}]
[null,null,null,null,null,null,null,null,null,null,null,"Size Range:",null,null,null,null,{"$f":"'ORIGINAL PHOTO'!Q5:W5","v":"S-M-L-XL"},null,null,null,null,null,null,null,null,null,"Season:",null,null,{"$f":"'ORIGINAL PHOTO'!AD5:AI5","v":"Spring Summer 2018"}]
[null,null,null,null,null,null,null,null,null,null,null,"Description:",null,null,null,null,{"$f":"'ORIGINAL PHOTO'!Q6:AI6","v":"MEN'S LONG SLEEVE ZIP FRONT SCOOP HEM HOODIE WITH LINED HOOD"}]
[null,"FIT FOR DEVELOPMENT SAMPLE / PHOTO / SALESMANS SAMPLES ONLY- SIZE S OR SM"]
[null,"APPAREL SPEC SHEET --MEN'S  TOP",null,null,null,null,null,null,null,null,null,null,null,null,null,null,null,null,null,"Date:",null,null,null,"NOV 10/2016",null,null,null,null,null,null,null,null,null,null,null,null,null,null,null,"L"]
[null,"(Measurements on flat / inches)",null,null,null,null,null,null,null,null,null,null,null,null,null,"Original Sample",null,null,null,"Required Spec",null,null,null,"Comments",null,null,null,null,null,null,null,null,"Tolerance\n+ / -\n(on flat)",null,null,null,null,null,null,"LXL"]
[null,null,null,null,null,null,null,null,null,null,null,null,null,null,null,"L",null,null,null,"L",null,null,null,null,null,null,null,null,null,null,null,null,null,null,null,null,null,null,null,"M"]
[null,"BACK LENGTH FROM HSP ( TO LOWEST C.B.LEVEL)",null,null,null,null,null,null,null,null,null,null,null,null,null,28,null,null,null,31.5,null,null,null,"LENGTHEN",null,null,null,null,null,null,null,null,0.375,null,null,null,null,null,null,"S"]
[null,"FRONT LENGTH FROM HSP  (TO LOWEST C.F. LEVEL)",null,null,null,null,null,null,null,null,null,null,null,null,null,28,null,null,null,31.5,null,null,null,"LENGTHEN",null,null,null,null,null,null,null,null,0.375,null,null,null,null,null,null,"SM"]
[null,"ACROSS FRONT AT MID ARMHOLE",null,null,null,null,null,null,null,null,null,null,null,null,null,16,null,null,null,16,null,null,null,null,null,null,null,null,null,null,null,null,0.375,null,null,null,null,null,null,"XL"]
[null,"ACROSS BACK AT MID ARMHOLE",null,null,null,null,null,null,null,null,null,null,null,null,null,17.25,null,null,null,17.25,null,null,null,null,null,null,null,null,null,null,null,null,0.25,null,null,null,null,null,null,"XXL"]
[null,"ACROSS SHOULDER",null,null,null,null,null,null,null,null,null,null,null,null,null,18.75,null,null,null,18.75,null,null,null,null,null,null,null,null,null,null,null,null,0.375,null,null,null,null,null,null,"XXXL"]
[null,"SHOULDER SLOPE DROP",null,null,null,null,null,null,null,null,null,null,null,null,null,null,null,null,null,null,null,null,null,null,null,null,null,null,null,null,null,null,0.125]
[null,"BODY WIDTH OPTIONS"]
[null,"CHEST  - 1\" BELOW ARMHOLE",null,null,null,null,null,null,null,null,null,null,null,null,null,23.5,null,null,null,23.5,null,null,null,null,null,null,null,null,null,null,null,null,0.375]
[null,"SWEEP ( HEM STRAIGHT)",null,null,null,null,null,null,null,null,null,null,null,null,null,22,null,null,null,22,null,null,null,null,null,null,null,null,null,null,null,null,0.375]
[null,"SWEEP HEM HEIGHT",null,null,null,null,null,null,null,null,null,null,null,null,null,"3",null,null,null,"2 1/2",null,null,null,"REDUCE",null,null,null,null,null,null,null,null,0.375]
[null,"SHORT SLEEVE OPTIONS"]
[null,"SLEEVE LENGTH FROM C.B. NECK",null,null,null,null,null,null,null,null,null,null,null,null,null,36.375,null,null,null,36.375,null,null,null,null,null,null,null,null,null,null,null,null,0.5]
[null,"SLEEVE LENGTH ( TOP SLEEVE TO HEM)",null,null,null,null,null,null,null,null,null,null,null,null,null,27,null,null,null,27,null,null,null,null,null,null,null,null,null,null,null,null,0.375]
[null,"ARMHOLE STRAIGHT",null,null,null,null,null,null,null,null,null,null,null,null,null,9.75,null,null,null,9.75,null,null,null,null,null,null,null,null,null,null,null,null,0.25]
[null,"BICEP  - 1\" BELOW ARMHOLE",null,null,null,null,null,null,null,null,null,null,null,null,null,8.375,null,null,null,8.375,null,null,null,null,null,null,null,null,null,null,null,null,0.25]
[null,"ELBOW ( MID SLEEVE )",null,null,null,null,null,null,null,null,null,null,null,null,null,6.875,null,null,null,6.875,null,null,null,null,null,null,null,null,null,null,null,null,0.25]
[null,"SLEEVE OPENING",null,null,null,null,null,null,null,null,null,null,null,null,null,4,null,null,null,4,null,null,null,null,null,null,null,null,null,null,null,null,0.25]
[null,"SLEEVE HEM HEIGHT",null,null,null,null,null,null,null,null,null,null,null,null,null,"3",null,null,null,"3",null,null,null,null,null,null,null,null,null,null,null,null,0]
[null,"NECK OPTIONS"]
[null,"FRONT NECK DROP FROM HSP TO NECK SEAM",null,null,null,null,null,null,null,null,null,null,null,null,null,4.75,null,null,null,4.75,null,null,null,null,null,null,null,null,null,null,null,null,0.25]
[null,"BACK NECK DROP FROM HSP TO NECK SEAM",null,null,null,null,null,null,null,null,null,null,null,null,null,0.875,null,null,null,0.875,null,null,null,null,null,null,null,null,null,null,null,null,0.25]
[null,"BACK NECK WIDTH - SEAM TO SEAM",null,null,null,null,null,null,null,null,null,null,null,null,null,8,null,null,null,8,null,null,null,null,null,null,null,null,null,null,null,null,0.25]
[null,"NECK TRIM HEIGHT",null,null,null,null,null,null,null,null,null,null,null,null,null,null,null,null,null,null,null,null,null,null,null,null,null,null,null,null,null,null,0]
[null,"NECK STRETCH ( MINIMUM EXTENDED ) 12 OR 24 FULL",null,null,null,null,null,null,null,null,null,null,null,null,null,null,null,null,null,null,null,null,null,null,null,null,null,null,null,null,null,null,0.375]
[null,"ZIPPER LENGTH",null,null,null,null,null,null,null,null,null,null,null,null,null,26.5,null,null,null,30,null,null,null,"LENGTHEN"]
[]
[null,"SHIRT TAIL DEPTH",null,null,null,null,null,null,null,null,null,null,null,null,null,null,null,null,null,2.25,null,null,null,"RESHAPE TO SHIRT TAIL HEM"]
[]
[null,"FRONT SIDE SLIT LENGTH",null,null,null,null,null,null,null,null,null,null,null,null,null,6,null,null,null,6,null,null,null,null,null,null,null,null,null,null,null,null,0]
[null,"BACK SIDE SLIT LENGTH",null,null,null,null,null,null,null,null,null,null,null,null,null,6,null,null,null,6,null,null,null,null,null,null,null,null,null,null,null,null,0]
[null,"HOOD OPTIONS"]
[null,"HOOD HEIGHT AT FACE ( TOP HEAD TO TOP ZIPPER )",null,null,null,null,null,null,null,null,null,null,null,null,null,10.5,null,null,null,10.5,null,null,null,null,null,null,null,null,null,null,null,null,0.25]
[null,"HOOD HEIGHT @ HSP TO TOP",null,null,null,null,null,null,null,null,null,null,null,null,null,13,null,null,null,13,null,null,null,null,null,null,null,null,null,null,null,null,0.25]
[null,"HOOD WIDTH @ 6\" BELOW TOP",null,null,null,null,null,null,null,null,null,null,null,null,null,10,null,null,null,10,null,null,null,null,null,null,null,null,null,null,null,null,0.25]
[null,"HOOD CORD LENGTH ( TOTAL) X 1/8- 3/16\" ROUND",null,null,null,null,null,null,null,null,null,null,null,null,null,49,null,null,null,49,null,null,null,null,null,null,null,null,null,null,null,null,1]
[null,"HOOD NECK DEPTH AT C.F.",null,null,null,null,null,null,null,null,null,null,null,null,null,3.5,null,null,null,3.5,null,null,null,null,null,null,null,null,null,null,null,null,0.125]
[null,"HOOD GARAGE WIDTH",null,null,null,null,null,null,null,null,null,null,null,null,null,"3/4",null,null,null,"3/4",null,null,null,null,null,null,null,null,null,null,null,null,0]
[null,"POCKET OPTIONS"]
[null,"POCKET LENGTH ON FRONT",null,null,null,null,null,null,null,null,null,null,null,null,null,7,null,null,null,7,null,null,null,null,null,null,null,null,null,null,null,null,0.125]
[]
[]
[null,"PLEASE MAKE SAMPLE TO REQUIRED SPECS."]
[]
[null,"Sample Approved?"]
[null,"If sample is NOT approved, then submit 1st Fit Sample. If sample is APPROVED, then submit Pre-Production Samples."]

{"sheet":"Original Sample Photos","index":4,"n_rows":15,"n_cols":40,"rows_kept":15,"cut":false,"hidden":false,"merged":[[5,16,5,34],[7,1,7,18],[7,19,7,22],[7,23,7,31],[1,16,1,22],[2,16,2,34],[3,16,3,22],[3,30,3,34],[4,16,4,22],[4,29,4,34],[6,1,6,34]]}
[]
[null,null,null,null,null,null,null,null,null,null,null,"Create Date:",null,null,null,null,{"$f":"'ORIGINAL PHOTO'!Q2:W2","v":"MARCH 15/2017"}]
[null,null,null,null,null,null,null,null,null,null,null,"Vendor Name:",null,null,null,null,{"$f":"'ORIGINAL PHOTO'!Q3:AI3","v":0}]
[null,null,null,null,null,null,null,null,null,null,null,"Vndr.Item No.:",null,null,null,null,{"$f":"'ORIGINAL PHOTO'!Q4:W4","v":0},null,null,null,null,null,null,null,null,null,"GC Item No.:",null,null,null,{"$f":"'ORIGINAL PHOTO'!AE4:AI4","v":0}]
[null,null,null,null,null,null,null,null,null,null,null,"Size Range:",null,null,null,null,{"$f":"'ORIGINAL PHOTO'!Q5:W5","v":"S-M-L-XL"},null,null,null,null,null,null,null,null,null,"Season:",null,null,{"$f":"'ORIGINAL PHOTO'!AD5:AI5","v":"Spring Summer 2018"}]
[null,null,null,null,null,null,null,null,null,null,null,"Description:",null,null,null,null,{"$f":"'ORIGINAL PHOTO'!Q6:AI6","v":"MEN'S LONG SLEEVE ZIP FRONT SCOOP HEM HOODIE WITH LINED HOOD"}]
[null,"FIT FOR DEVELOPMENT SAMPLE / PHOTO / SALESMANS SAMPLES ONLY"]
[null,"ORIGINAL  COMMENTS--MEN'S TOP",null,null,null,null,null,null,null,null,null,null,null,null,null,null,null,null,null,"Date:",null,null,null,"MAR 15/2017",null,null,null,null,null,null,null,null,null,null,null,null,null,null,null,"L"]
[null,null,null,null,null,null,null,null,null,null,null,null,null,null,null,null,null,null,null,null,null,null,null,null,null,null,null,null,null,null,null,null,null,null,null,null,null,null,null,"LXL"]
[null,null,null,null,null,null,null,null,null,null,null,null,null,null,null,null,null,null,null,null,null,null,null,null,null,null,null,null,null,null,null,null,null,null,null,null,null,null,null,"M"]
[null,null,null,null,null,null,null,null,null,null,null,null,null,null,null,null,null,null,null,null,null,null,null,null,null,null,null,null,null,null,null,null,null,null,null,null,null,null,null,"S"]
[null,null,null,null,null,null,null,null,null,null,null,null,null,null,null,null,null,null,null,null,null,null,null,null,null,null,null,null,null,null,null,null,null,null,null,null,null,null,null,"SM"]
[null,null,null,null,null,null,null,null,null,null,null,null,null,null,null,null,null,null,null,null,null,null,null,null,null,null,null,null,null,null,null,null,null,null,null,null,null,null,null,"XL"]
[null,null,null,null,null,null,null,null,null,null,null,null,null,null,null,null,null,null,null,null,null,null,null,null,null,null,null,null,null,null,null,null,null,null,null,null,null,null,null,"XXL"]
[null,null,null,null,null,null,null,null,null,null,null,null,null,null,null,null,null,null,null,null,null,null,null,null,null,null,null,null,null,null,null,null,null,null,null,null,null,null,null,"XXXL"]

{"sheet":"Fabrics","index":5,"n_rows":15,"n_cols":40,"rows_kept":15,"cut":false,"hidden":true,"merged":[[5,16,5,34],[6,1,6,34],[7,1,7,18],[7,19,7,22],[7,23,7,31],[1,16,1,22],[2,16,2,34],[3,16,3,22],[3,30,3,34],[4,16,4,22],[4,29,4,34]]}
[]
[null,null,null,null,null,null,null,null,null,null,null,"Create Date:",null,null,null,null,{"$f":"'ORIGINAL PHOTO'!Q2:W2","v":"MARCH 15/2017"}]
[null,null,null,null,null,null,null,null,null,null,null,"Vendor Name:",null,null,null,null,{"$f":"'ORIGINAL PHOTO'!Q3:AI3","v":0}]
[null,null,null,null,null,null,null,null,null,null,null,"Vndr.Item No.:",null,null,null,null,{"$f":"'ORIGINAL PHOTO'!Q4:W4","v":0},null,null,null,null,null,null,null,null,null,"GC Item No.:",null,null,null,{"$f":"'ORIGINAL PHOTO'!AE4:AI4","v":0}]
[null,null,null,null,null,null,null,null,null,null,null,"Size Range:",null,null,null,null,{"$f":"'ORIGINAL PHOTO'!Q5:W5","v":"S-M-L-XL"},null,null,null,null,null,null,null,null,null,"Season:",null,null,{"$f":"'ORIGINAL PHOTO'!AD5:AI5","v":"Spring Summer 2018"}]
[null,null,null,null,null,null,null,null,null,null,null,"Description:",null,null,null,null,{"$f":"'ORIGINAL PHOTO'!Q6:AI6","v":"MEN'S LONG SLEEVE ZIP FRONT SCOOP HEM HOODIE WITH LINED HOOD"}]
[]
[null,"FABRICS / SRIKE OFFS / LAB DIPS",null,null,null,null,null,null,null,null,null,null,null,null,null,null,null,null,null,"Date:",null,null,null,null,null,null,null,null,null,null,null,null,null,null,null,null,null,null,null,"L"]
[null,null,null,null,null,null,null,null,null,null,null,null,null,null,null,null,null,null,null,null,null,null,null,null,null,null,null,null,null,null,null,null,null,null,null,null,null,null,null,"LXL"]
[null,null,null,null,null,null,null,null,null,null,null,null,null,null,null,null,null,null,null,null,null,null,null,null,null,null,null,null,null,null,null,null,null,null,null,null,null,null,null,"M"]
[null,null,null,null,null,null,null,null,null,null,null,null,null,null,null,null,null,null,null,null,null,null,null,null,null,null,null,null,null,null,null,null,null,null,null,null,null,null,null,"S"]
[null,null,null,null,null,null,null,null,null,null,null,null,null,null,null,null,null,null,null,null,null,null,null,null,null,null,null,null,null,null,null,null,null,null,null,null,null,null,null,"SM"]
[null,null,null,null,null,null,null,null,null,null,null,null,null,null,null,null,null,null,null,null,null,null,null,null,null,null,null,null,null,null,null,null,null,null,null,null,null,null,null,"XL"]
[null,null,null,null,null,null,null,null,null,null,null,null,null,null,null,null,null,null,null,null,null,null,null,null,null,null,null,null,null,null,null,null,null,null,null,null,null,null,null,"XXL"]
[null,null,null,null,null,null,null,null,null,null,null,null,null,null,null,null,null,null,null,null,null,null,null,null,null,null,null,null,null,null,null,null,null,null,null,null,null,null,null,"XXXL"]

{"sheet":"1st Fit Sample","index":6,"n_rows":53,"n_cols":40,"rows_kept":53,"cut":false,"hidden":true,"merged":[[27,1,27,14],[27,15,27,18],[27,19,27,22],[27,23,27,31],[27,32,27,34],[28,1,28,14],[28,15,28,18],[26,1,26,14],[22,1,22,14],[22,15,22,18],[22,19,22,22],[22,23,22,31],[22,32,22,34],[26,15,26,18],[26,19,26,22],[26,23,26,31],[26,32,26,34],[25,1,25,14],[25,15,25,18],[25,19,25,22],[25,23,25,31],[25,32,25,34],[28,19,28,22],[28,23,28,31],[4,29,4,34],[52,1,52,34],[1,16,1,22],[2,16,2,34],[3,16,3,22],[3,30,3,34],[4,16,4,22],[9,19,9,22],[10,1,10,14],[10,15,10,18],[10,19,10,22],[10,23,10,31],[10,32,10,34],[5,16,5,34],[7,1,7,18],[7,19,7,22],[7,23,7,31],[8,1,9,14],[8,15,8,18],[8,19,8,22],[8,23,9,31],[8,32,9,34],[9,15,9,18],[11,1,11,14],[11,15,11,18],[11,19,11,22],[11,23,11,31],[11,32,11,34],[12,1,12,14],[12,15,12,18],[12,19,12,22],[12,23,12,31],[12,32,12,34],[13,1,13,14],[13,15,13,18],[13,19,13,22],[13,23,13,31],[13,32,13,34],[14,1,14,14],[14,15,14,18],[14,19,14,22],[14,23,14,31],[14,32,14,34],[15,1,15,14],[15,15,15,18],[15,19,15,22],[15,23,15,31],[15,32,15,34],[16,1,16,14],[16,15,16,18],[16,19,16,22],[16,23,16,31],[16,32,16,34],[17,1,17,14],[17,15,17,18],[17,19,17,22],[17,23,17,31],[17,32,17,34],[18,1,18,14],[18,15,18,18],[18,19,18,22],[18,23,18,31],[18,32,18,34],[19,1,19,14],[19,15,19,18],[19,19,19,22],[19,23,19,31],[19,32,19,34],[20,1,20,14],[20,15,20,18],[20,19,20,22],[20,23,20,31],[20,32,20,34],[21,1,21,14],[21,15,21,18],[21,19,21,22],[21,23,21,31],[21,32,21,34],[24,1,24,14],[24,15,24,18],[24,19,24,22],[24,23,24,31],[24,32,24,34],[23,1,23,14],[23,15,23,18],[23,19,23,22],[23,23,23,31],[23,32,23,34],[28,32,28,34],[29,1,29,14],[29,15,29,18],[29,19,29,22],[29,23,29,31],[29,32,29,34],[30,1,30,14],[30,15,30,18],[30,19,30,22],[30,23,30,31],[30,32,30,34],[31,1,31,14],[31,15,31,18],[31,19,31,22],[31,23,31,31],[31,32,31,34],[32,1,32,14],[32,15,32,18],[32,19,32,22],[32,23,32,31],[32,32,32,34],[33,1,33,14],[33,15,33,18],[33,19,33,22],[33,23,33,31],[33,32,33,34],[34,1,34,14],[34,15,34,18],[34,19,34,22],[34,23,34,31],[34,32,34,34],[35,1,35,14],[35,15,35,18],[35,19,35,22],[35,23,35,31],[35,32,35,34],[36,1,36,14],[36,15,36,18],[36,19,36,22],[36,23,36,31],[36,32,36,34],[37,1,37,14],[37,15,37,18],[37,19,37,22],[37,23,37,31],[37,32,37,34],[38,1,38,14],[38,15,38,18],[38,19,38,22],[38,23,38,31],[38,32,38,34],[39,1,39,14],[39,15,39,18],[39,19,39,22],[39,23,39,31],[39,32,39,34],[40,1,40,14],[40,15,40,18],[40,19,40,22],[40,23,40,31],[40,32,40,34],[41,1,41,14],[41,15,41,18],[41,19,41,22],[41,23,41,31],[41,32,41,34],[42,1,42,14],[42,15,42,18],[42,19,42,22],[42,23,42,31],[42,32,42,34],[43,1,43,14],[43,15,43,18],[43,19,43,22],[43,23,43,31],[43,32,43,34],[44,1,44,14],[44,15,44,18],[44,19,44,22],[44,23,44,31],[44,32,44,34],[51,15,51,34],[49,1,49,34],[47,1,47,14],[47,15,47,18],[47,19,47,22],[47,23,47,31],[47,32,47,34],[45,1,45,14],[45,15,45,18],[45,19,45,22],[45,23,45,31],[45,32,45,34],[46,1,46,14],[46,15,46,18],[46,19,46,22],[46,23,46,31],[46,32,46,34],[48,1,48,34],[50,1,50,34]]}
[]
[null,null,null,null,null,null,null,null,null,null,null,"Create Date:",null,null,null,null,{"$f":"'ORIGINAL PHOTO'!Q2:W2","v":"MARCH 15/2017"}]
[null,null,null,null,null,null,null,null,null,null,null,"Vendor Name:",null,null,null,null,{"$f":"'ORIGINAL PHOTO'!Q3:AI3","v":0}]
[null,null,null,null,null,null,null,null,null,null,null,"Vndr.Item No.:",null,null,null,null,{"$f":"'ORIGINAL PHOTO'!Q4:W4","v":0},null,null,null,null,null,null,null,null,null,"GC Item No.:",null,null,null,{"$f":"'ORIGINAL PHOTO'!AE4:AI4","v":0}]
[null,null,null,null,null,null,null,null,null,null,null,"Size Range:",null,null,null,null,{"$f":"'ORIGINAL PHOTO'!Q5:W5","v":"S-M-L-XL"},null,null,null,null,null,null,null,null,null,"Season:",null,null,{"$f":"'ORIGINAL PHOTO'!AD5:AI5","v":"Spring Summer 2018"}]
[null,null,null,null,null,null,null,null,null,null,null,"Description:",null,null,null,null,{"$f":"'ORIGINAL PHOTO'!Q6:AI6","v":"MEN'S LONG SLEEVE ZIP FRONT SCOOP HEM HOODIE WITH LINED HOOD"}]
[]
[null,"APPAREL SPEC SHEET -- MEN'S TOP",null,null,null,null,null,null,null,null,null,null,null,null,null,null,null,null,null,"Date:",null,null,null,"JAN 4/2017",null,null,null,null,null,null,null,null,null,null,null,null,null,null,null,"L"]
[null,"(Measurements on flat / inches)",null,null,null,null,null,null,null,null,null,null,null,null,null,"1st Fit Sample",null,null,null,"Required Spec",null,null,null,"Comments",null,null,null,null,null,null,null,null,"Tolerance\n+ / -\n(on flat)",null,null,null,null,null,null,"LXL"]
[null,null,null,null,null,null,null,null,null,null,null,null,null,null,null,"XL",null,null,null,"M",null,null,null,null,null,null,null,null,null,null,null,null,null,null,null,null,null,null,null,"M"]
[null,"BACK LENGTH FROM HSP",null,null,null,null,null,null,null,null,null,null,null,null,null,null,null,null,null,null,null,null,null,null,null,null,null,null,null,null,null,null,0.375,null,null,null,null,null,null,"S"]
[null,"FRONT LENGTH FROM HSP",null,null,null,null,null,null,null,null,null,null,null,null,null,null,null,null,null,null,null,null,null,null,null,null,null,null,null,null,null,null,0.375,null,null,null,null,null,null,"SM"]
[null,"ACROSS FRONT AT MID ARMHOLE",null,null,null,null,null,null,null,null,null,null,null,null,null,null,null,null,null,null,null,null,null,null,null,null,null,null,null,null,null,null,0.375,null,null,null,null,null,null,"XL"]
[null,"ACROSS BACK AT MID ARMHOLE",null,null,null,null,null,null,null,null,null,null,null,null,null,null,null,null,null,null,null,null,null,null,null,null,null,null,null,null,null,null,0.25,null,null,null,null,null,null,"XXL"]
[null,"ACROSS SHOULDER",null,null,null,null,null,null,null,null,null,null,null,null,null,null,null,null,null,null,null,null,null,null,null,null,null,null,null,null,null,null,0.375,null,null,null,null,null,null,"XXXL"]
[null,"SHOULDER SLOPE DROP",null,null,null,null,null,null,null,null,null,null,null,null,null,null,null,null,null,null,null,null,null,null,null,null,null,null,null,null,null,null,0.125]
[null,"BODY WIDTH OPTIONS"]
[null,"CHEST  - 1\" BELOW ARMHOLE",null,null,null,null,null,null,null,null,null,null,null,null,null,null,null,null,null,null,null,null,null,null,null,null,null,null,null,null,null,null,0.375]
[null,"SWEEP ( HEM STRAIGHT)",null,null,null,null,null,null,null,null,null,null,null,null,null,null,null,null,null,null,null,null,null,null,null,null,null,null,null,null,null,null,0.375]
[null,"SWEEP HEM HEIGHT",null,null,null,null,null,null,null,null,null,null,null,null,null,null,null,null,null,null,null,null,null,null,null,null,null,null,null,null,null,null,0.375]
[null,"SHORT SLEEVE OPTIONS"]
[null,"SLEEVE LENGTH FROM C.B. NECK",null,null,null,null,null,null,null,null,null,null,null,null,null,null,null,null,null,null,null,null,null,null,null,null,null,null,null,null,null,null,0.375]
[null,"SLEEVE LENGTH ( SHOULDER SLEEVE SEAM TO HEM)",null,null,null,null,null,null,null,null,null,null,null,null,null,null,null,null,null,null,null,null,null,null,null,null,null,null,null,null,null,null,0.375]
[null,"ARMHOLE STRAIGHT",null,null,null,null,null,null,null,null,null,null,null,null,null,null,null,null,null,null,null,null,null,null,null,null,null,null,null,null,null,null,0.25]
[null,"BICEP  - 1\" BELOW ARMHOLE",null,null,null,null,null,null,null,null,null,null,null,null,null,null,null,null,null,null,null,null,null,null,null,null,null,null,null,null,null,null,0.25]
[null,"SLEEVE OPENING",null,null,null,null,null,null,null,null,null,null,null,null,null,null,null,null,null,null,null,null,null,null,null,null,null,null,null,null,null,null,0.25]
[null,"SLEEVE CAP HEIGHT",null,null,null,null,null,null,null,null,null,null,null,null,null,null,null,null,null,null,null,null,null,null,null,null,null,null,null,null,null,null,0.125]
[null,"SLEEVE HEM HEIGHT",null,null,null,null,null,null,null,null,null,null,null,null,null,null,null,null,null,null,null,null,null,null,null,null,null,null,null,null,null,null,0]
[null,"NECK OPTIONS"]
[null,"FRONT NECK DROP FROM HSP TO NECK SEAM",null,null,null,null,null,null,null,null,null,null,null,null,null,null,null,null,null,null,null,null,null,null,null,null,null,null,null,null,null,null,0.25]
[null,"BACK NECK DROP FROM HSP TO NECK SEAM",null,null,null,null,null,null,null,null,null,null,null,null,null,null,null,null,null,null,null,null,null,null,null,null,null,null,null,null,null,null,0.25]
[null,"BACK NECK WIDTH - SEAM TO SEAM",null,null,null,null,null,null,null,null,null,null,null,null,null,null,null,null,null,null,null,null,null,null,null,null,null,null,null,null,null,null,0.25]
[null,"NECK TRIM HEIGHT",null,null,null,null,null,null,null,null,null,null,null,null,null,null,null,null,null,null,null,null,null,null,null,null,null,null,null,null,null,null,0]
[null,"NECK STRETCH ( MINIMUM EXTENDED ) 12 OR 24 FULL",null,null,null,null,null,null,null,null,null,null,null,null,null,null,null,null,null,null,null,null,null,null,null,null,null,null,null,null,null,null,0.375]
[]
[null,"LOGO SIZE"]
[null,"LOGO PLACEMENT"]
[]
[null,"FRONT SIDE SLIT LENGTH",null,null,null,null,null,null,null,null,null,null,null,null,null,null,null,null,null,null,null,null,null,null,null,null,null,null,null,null,null,null,0]
[null,"BACK SIDE SLIT LENGTH",null,null,null,null,null,null,null,null,null,null,null,null,null,null,null,null,null,null,null,null,null,null,null,null,null,null,null,null,null,null,0]
[]
[]
[]
[]
[]
[]
[]
[]
[]
[]
[]
[null,"Sample Approved?"]
[null,"If sample is NOT approved, then submit 2nd Fit Sample. If sample is APPROVED, then submit Pre-Production Samples."]

{"sheet":"1st Fit Photo Comments","index":7,"n_rows":15,"n_cols":40,"rows_kept":15,"cut":false,"hidden":true,"merged":[[5,16,5,34],[7,1,7,18],[7,19,7,22],[7,23,7,31],[1,16,1,22],[2,16,2,34],[3,16,3,22],[3,30,3,34],[4,16,4,22],[4,29,4,34]]}
[]
[null,null,null,null,null,null,null,null,null,null,null,"Create Date:",null,null,null,null,{"$f":"'ORIGINAL PHOTO'!Q2:W2","v":"MARCH 15/2017"}]
[null,null,null,null,null,null,null,null,null,null,null,"Vendor Name:",null,null,null,null,{"$f":"'ORIGINAL PHOTO'!Q3:AI3","v":0}]
[null,null,null,null,null,null,null,null,null,null,null,"Vndr.Item No.:",null,null,null,null,{"$f":"'ORIGINAL PHOTO'!Q4:W4","v":0},null,null,null,null,null,null,null,null,null,"GC Item No.:",null,null,null,{"$f":"'ORIGINAL PHOTO'!AE4:AI4","v":0}]
[null,null,null,null,null,null,null,null,null,null,null,"Size Range:",null,null,null,null,{"$f":"'ORIGINAL PHOTO'!Q5:W5","v":"S-M-L-XL"},null,null,null,null,null,null,null,null,null,"Season:",null,null,{"$f":"'ORIGINAL PHOTO'!AD5:AI5","v":"Spring Summer 2018"}]
[null,null,null,null,null,null,null,null,null,null,null,"Description:",null,null,null,null,{"$f":"'ORIGINAL PHOTO'!Q6:AI6","v":"MEN'S LONG SLEEVE ZIP FRONT SCOOP HEM HOODIE WITH LINED HOOD"}]
[]
[null,"1ST FIT PHOTO COMMENTS-- MEN'S TOP",null,null,null,null,null,null,null,null,null,null,null,null,null,null,null,null,null,"Date:",null,null,null,null,null,null,null,null,null,null,null,null,null,null,null,null,null,null,null,"L"]
[null,null,null,null,null,null,null,null,null,null,null,null,null,null,null,null,null,null,null,null,null,null,null,null,null,null,null,null,null,null,null,null,null,null,null,null,null,null,null,"LXL"]
[null,null,null,null,null,null,null,null,null,null,null,null,null,null,null,null,null,null,null,null,null,null,null,null,null,null,null,null,null,null,null,null,null,null,null,null,null,null,null,"M"]
[null,null,null,null,null,null,null,null,null,null,null,null,null,null,null,null,null,null,null,null,null,null,null,null,null,null,null,null,null,null,null,null,null,null,null,null,null,null,null,"S"]
[null,null,null,null,null,null,null,null,null,null,null,null,null,null,null,null,null,null,null,null,null,null,null,null,null,null,null,null,null,null,null,null,null,null,null,null,null,null,null,"SM"]
[null,null,null,null,null,null,null,null,null,null,null,null,null,null,null,null,null,null,null,null,null,null,null,null,null,null,null,null,null,null,null,null,null,null,null,null,null,null,null,"XL"]
[null,null,null,null,null,null,null,null,null,null,null,null,null,null,null,null,null,null,null,null,null,null,null,null,null,null,null,null,null,null,null,null,null,null,null,null,null,null,null,"XXL"]
[null,null,null,null,null,null,null,null,null,null,null,null,null,null,null,null,null,null,null,null,null,null,null,null,null,null,null,null,null,null,null,null,null,null,null,null,null,null,null,"XXXL"]

{"sheet":"Construction Details","index":8,"n_rows":15,"n_cols":40,"rows_kept":15,"cut":false,"hidden":false,"merged":[[5,16,5,34],[7,1,7,18],[7,19,7,22],[7,23,7,31],[1,16,1,22],[2,16,2,34],[3,16,3,22],[3,30,3,34],[4,16,4,22],[4,29,4,34]]}
[]
[null,null,null,null,null,null,null,null,null,null,null,"Create Date:",null,null,null,null,{"$f":"'ORIGINAL PHOTO'!Q2:W2","v":"MARCH 15/2017"}]
[null,null,null,null,null,null,null,null,null,null,null,"Vendor Name:",null,null,null,null,{"$f":"'ORIGINAL PHOTO'!Q3:AI3","v":0}]
[null,null,null,null,null,null,null,null,null,null,null,"Vndr.Item No.:",null,null,null,null,{"$f":"'ORIGINAL PHOTO'!Q4:W4","v":0},null,null,null,null,null,null,null,null,null,"GC Item No.:",null,null,null,{"$f":"'ORIGINAL PHOTO'!AE4:AI4","v":0}]
[null,null,null,null,null,null,null,null,null,null,null,"Size Range:",null,null,null,null,{"$f":"'ORIGINAL PHOTO'!Q5:W5","v":"S-M-L-XL"},null,null,null,null,null,null,null,null,null,"Season:",null,null,{"$f":"'ORIGINAL PHOTO'!AD5:AI5","v":"Spring Summer 2018"}]
[null,null,null,null,null,null,null,null,null,null,null,"Description:",null,null,null,null,{"$f":"'ORIGINAL PHOTO'!Q6:AI6","v":"MEN'S LONG SLEEVE ZIP FRONT SCOOP HEM HOODIE WITH LINED HOOD"}]
[]
[null,"1ST FIT PHOTO COMMENTS-- MEN'S TOP",null,null,null,null,null,null,null,null,null,null,null,null,null,null,null,null,null,"Date:",null,null,null,"MAR 15/2017",null,null,null,null,null,null,null,null,null,null,null,null,null,null,null,"L"]
[null,null,null,null,null,null,null,null,null,null,null,null,null,null,null,null,null,null,null,null,null,null,null,null,null,null,null,null,null,null,null,null,null,null,null,null,null,null,null,"LXL"]
[null,null,null,null,null,null,null,null,null,null,null,null,null,null,null,null,null,null,null,null,null,null,null,null,null,null,null,null,null,null,null,null,null,null,null,null,null,null,null,"M"]
[null,null,null,null,null,null,null,null,null,null,null,null,null,null,null,null,null,null,null,null,null,null,null,null,null,null,null,null,null,null,null,null,null,null,null,null,null,null,null,"S"]
[null,null,null,null,null,null,null,null,null,null,null,null,null,null,null,null,null,null,null,null,null,null,null,null,null,null,null,null,null,null,null,null,null,null,null,null,null,null,null,"SM"]
[null,null,null,null,null,null,null,null,null,null,null,null,null,null,null,null,null,null,null,null,null,null,null,null,null,null,null,null,null,null,null,null,null,null,null,null,null,null,null,"XL"]
[null,null,null,null,null,null,null,null,null,null,null,null,null,null,null,null,null,null,null,null,null,null,null,null,null,null,null,null,null,null,null,null,null,null,null,null,null,null,null,"XXL"]
[null,null,null,null,null,null,null,null,null,null,null,null,null,null,null,null,null,null,null,null,null,null,null,null,null,null,null,null,null,null,null,null,null,null,null,null,null,null,null,"XXXL"]

{"sheet":"Reference Sample bottom","index":9,"n_rows":15,"n_cols":40,"rows_kept":15,"cut":false,"hidden":true,"merged":[[5,16,5,34],[7,1,7,18],[7,19,7,22],[7,23,7,31],[1,16,1,22],[2,16,2,34],[3,16,3,22],[3,30,3,34],[4,16,4,22],[4,29,4,34]]}
[]
[null,null,null,null,null,null,null,null,null,null,null,"Create Date:",null,null,null,null,{"$f":"'ORIGINAL PHOTO'!Q2:W2","v":"MARCH 15/2017"}]
[null,null,null,null,null,null,null,null,null,null,null,"Vendor Name:",null,null,null,null,{"$f":"'ORIGINAL PHOTO'!Q3:AI3","v":0}]
[null,null,null,null,null,null,null,null,null,null,null,"Vndr.Item No.:",null,null,null,null,{"$f":"'ORIGINAL PHOTO'!Q4:W4","v":0},null,null,null,null,null,null,null,null,null,"GC Item No.:",null,null,null,{"$f":"'ORIGINAL PHOTO'!AE4:AI4","v":0}]
[null,null,null,null,null,null,null,null,null,null,null,"Size Range:",null,null,null,null,{"$f":"'ORIGINAL PHOTO'!Q5:W5","v":"S-M-L-XL"},null,null,null,null,null,null,null,null,null,"Season:",null,null,{"$f":"'ORIGINAL PHOTO'!AD5:AI5","v":"Spring Summer 2018"}]
[null,null,null,null,null,null,null,null,null,null,null,"Description:",null,null,null,null,{"$f":"'ORIGINAL PHOTO'!Q6:AI6","v":"MEN'S LONG SLEEVE ZIP FRONT SCOOP HEM HOODIE WITH LINED HOOD"}]
[]
[null,"1ST FIT PHOTO COMMENTS-- MEN'S TOP",null,null,null,null,null,null,null,null,null,null,null,null,null,null,null,null,null,"Date:",null,null,null,"MAR 15/2017",null,null,null,null,null,null,null,null,null,null,null,null,null,null,null,"L"]
[null,null,null,null,null,null,null,null,null,null,null,null,null,null,null,null,null,null,null,null,null,null,null,null,null,null,null,null,null,null,null,null,null,null,null,null,null,null,null,"LXL"]
[null,null,null,null,null,null,null,null,null,null,null,null,null,null,null,null,null,null,null,null,null,null,null,null,null,null,null,null,null,null,null,null,null,null,null,null,null,null,null,"M"]
[null,null,null,null,null,null,null,null,null,null,null,null,null,null,null,null,null,null,null,null,null,null,null,null,null,null,null,null,null,null,null,null,null,null,null,null,null,null,null,"S"]
[null,null,null,null,null,null,null,null,null,null,null,null,null,null,null,null,null,null,null,null,null,null,null,null,null,null,null,null,null,null,null,null,null,null,null,null,null,null,null,"SM"]
[null,null,null,null,null,null,null,null,null,null,null,null,null,null,null,null,null,null,null,null,null,null,null,null,null,null,null,null,null,null,null,null,null,null,null,null,null,null,null,"XL"]
[null,null,null,null,null,null,null,null,null,null,null,null,null,null,null,null,null,null,null,null,null,null,null,null,null,null,null,null,null,null,null,null,null,null,null,null,null,null,null,"XXL"]
[null,null,null,null,null,null,null,null,null,null,null,null,null,null,null,null,null,null,null,null,null,null,null,null,null,null,null,null,null,null,null,null,null,null,null,null,null,null,null,"XXXL"]

{"sheet":"2nd Fit Sample","index":10,"n_rows":53,"n_cols":40,"rows_kept":53,"cut":false,"hidden":true,"merged":[[4,29,4,34],[52,1,52,34],[1,16,1,22],[2,16,2,34],[3,16,3,22],[3,30,3,34],[4,16,4,22],[9,19,9,22],[10,1,10,14],[10,15,10,18],[10,19,10,22],[10,23,10,31],[10,32,10,34],[5,16,5,34],[7,1,7,18],[7,19,7,22],[7,23,7,31],[8,1,9,14],[8,15,8,18],[8,19,8,22],[8,23,9,31],[8,32,9,34],[9,15,9,18],[11,1,11,14],[11,15,11,18],[11,19,11,22],[11,23,11,31],[11,32,11,34],[12,1,12,14],[12,15,12,18],[12,19,12,22],[12,23,12,31],[12,32,12,34],[13,1,13,14],[13,15,13,18],[13,19,13,22],[13,23,13,31],[13,32,13,34],[14,1,14,14],[14,15,14,18],[14,19,14,22],[14,23,14,31],[14,32,14,34],[15,1,15,14],[15,15,15,18],[15,19,15,22],[15,23,15,31],[15,32,15,34],[16,1,16,14],[16,15,16,18],[16,19,16,22],[16,23,16,31],[16,32,16,34],[17,1,17,14],[17,15,17,18],[17,19,17,22],[17,23,17,31],[17,32,17,34],[18,1,18,14],[18,15,18,18],[18,19,18,22],[18,23,18,31],[18,32,18,34],[19,1,19,14],[19,15,19,18],[19,19,19,22],[19,23,19,31],[19,32,19,34],[20,1,20,14],[20,15,20,18],[20,19,20,22],[20,23,20,31],[20,32,20,34],[21,1,21,14],[21,15,21,18],[21,19,21,22],[21,23,21,31],[21,32,21,34],[22,1,22,14],[22,15,22,18],[22,19,22,22],[22,23,22,31],[22,32,22,34],[23,1,23,14],[23,15,23,18],[23,19,23,22],[23,23,23,31],[23,32,23,34],[24,1,24,14],[24,15,24,18],[24,19,24,22],[24,23,24,31],[24,32,24,34],[25,1,25,14],[25,15,25,18],[25,19,25,22],[25,23,25,31],[25,32,25,34],[26,1,26,14],[26,15,26,18],[26,19,26,22],[26,23,26,31],[26,32,26,34],[27,1,27,14],[27,15,27,18],[27,19,27,22],[27,23,27,31],[27,32,27,34],[28,1,28,14],[28,15,28,18],[28,19,28,22],[28,23,28,31],[28,32,28,34],[29,1,29,14],[29,15,29,18],[29,19,29,22],[29,23,29,31],[29,32,29,34],[30,1,30,14],[30,15,30,18],[30,19,30,22],[30,23,30,31],[30,32,30,34],[31,1,31,14],[31,15,31,18],[31,19,31,22],[31,23,31,31],[31,32,31,34],[32,1,32,14],[32,15,32,18],[32,19,32,22],[32,23,32,31],[32,32,32,34],[33,1,33,14],[33,15,33,18],[33,19,33,22],[33,23,33,31],[33,32,33,34],[34,1,34,14],[34,15,34,18],[34,19,34,22],[34,23,34,31],[34,32,34,34],[35,1,35,14],[35,15,35,18],[35,19,35,22],[35,23,35,31],[35,32,35,34],[36,1,36,14],[36,15,36,18],[36,19,36,22],[36,23,36,31],[36,32,36,34],[37,1,37,14],[37,15,37,18],[37,19,37,22],[37,23,37,31],[37,32,37,34],[38,1,38,14],[38,15,38,18],[38,19,38,22],[38,23,38,31],[38,32,38,34],[39,1,39,14],[39,15,39,18],[39,19,39,22],[39,23,39,31],[39,32,39,34],[40,1,40,14],[40,15,40,18],[40,19,40,22],[40,23,40,31],[40,32,40,34],[41,1,41,14],[41,15,41,18],[41,19,41,22],[41,23,41,31],[41,32,41,34],[42,1,42,14],[42,15,42,18],[42,19,42,22],[42,23,42,31],[42,32,42,34],[43,1,43,14],[43,15,43,18],[43,19,43,22],[43,23,43,31],[43,32,43,34],[44,1,44,14],[44,15,44,18],[44,19,44,22],[44,23,44,31],[44,32,44,34],[45,1,45,14],[45,15,45,18],[45,19,45,22],[45,23,45,31],[45,32,45,34],[46,1,46,14],[46,15,46,18],[46,19,46,22],[46,23,46,31],[46,32,46,34],[51,15,51,34],[49,1,49,34],[50,1,50,14],[50,15,50,18],[50,19,50,22],[50,23,50,31],[50,32,50,34],[47,1,47,14],[47,15,47,18],[47,19,47,22],[47,23,47,31],[47,32,47,34],[48,1,48,14],[48,15,48,18],[48,19,48,22],[48,23,48,31],[48,32,48,34]]}
[]
[null,null,null,null,null,null,null,null,null,null,null,"Create Date:",null,null,null,null,{"$f":"'ORIGINAL PHOTO'!Q2:W2","v":"MARCH 15/2017"}]
[null,null,null,null,null,null,null,null,null,null,null,"Vendor Name:",null,null,null,null,{"$f":"'ORIGINAL PHOTO'!Q3:AI3","v":0}]
[null,null,null,null,null,null,null,null,null,null,null,"Vndr.Item No.:",null,null,null,null,{"$f":"'ORIGINAL PHOTO'!Q4:W4","v":0},null,null,null,null,null,null,null,null,null,"GC Item No.:",null,null,null,{"$f":"'ORIGINAL PHOTO'!AE4:AI4","v":0}]
[null,null,null,null,null,null,null,null,null,null,null,"Size Range:",null,null,null,null,{"$f":"'ORIGINAL PHOTO'!Q5:W5","v":"S-M-L-XL"},null,null,null,null,null,null,null,null,null,"Season:",null,null,{"$f":"'ORIGINAL PHOTO'!AD5:AI5","v":"Spring Summer 2018"}]
[null,null,null,null,null,null,null,null,null,null,null,"Description:",null,null,null,null,{"$f":"'ORIGINAL PHOTO'!Q6:AI6","v":"MEN'S LONG SLEEVE ZIP FRONT SCOOP HEM HOODIE WITH LINED HOOD"}]
[]
[null,"APPAREL SPEC SHEET -- MEN'S TOP",null,null,null,null,null,null,null,null,null,null,null,null,null,null,null,null,null,"Date:",null,null,null,null,null,null,null,null,null,null,null,null,null,null,null,null,null,null,null,"L"]
[null,"(Measurements on flat / inches)",null,null,null,null,null,null,null,null,null,null,null,null,null,"2nd Fit Sample",null,null,null,"Required Spec",null,null,null,"Comments",null,null,null,null,null,null,null,null,"Tolerance\n+ / -\n(on flat)",null,null,null,null,null,null,"LXL"]
[null,null,null,null,null,null,null,null,null,null,null,null,null,null,null,"S",null,null,null,"S",null,null,null,null,null,null,null,null,null,null,null,null,null,null,null,null,null,null,null,"M"]
[null,"BACK LENGTH FROM (HIGH SHOULDER POINT)","BACK LENGTH FROM (HIGH SHOULDER POINT)","BACK LENGTH FROM (HIGH SHOULDER POINT)","BACK LENGTH FROM (HIGH SHOULDER POINT)","BACK LENGTH FROM (HIGH SHOULDER POINT)","BACK LENGTH FROM (HIGH SHOULDER POINT)","BACK LENGTH FROM (HIGH SHOULDER POINT)","BACK LENGTH FROM (HIGH SHOULDER POINT)","BACK LENGTH FROM (HIGH SHOULDER POINT)","BACK LENGTH FROM (HIGH SHOULDER POINT)","BACK LENGTH FROM (HIGH SHOULDER POINT)","BACK LENGTH FROM (HIGH SHOULDER POINT)","BACK LENGTH FROM (HIGH SHOULDER POINT)","BACK LENGTH FROM (HIGH SHOULDER POINT)",null,null,null,null,null,null,null,null,null,null,null,null,null,null,null,null,null,0.375,null,null,null,null,null,null,"S"]
[null,"CENTER BACK LENGTH ( FROM NECK TO HEM )","CENTER BACK LENGTH ( FROM NECK TO HEM )","CENTER BACK LENGTH ( FROM NECK TO HEM )","CENTER BACK LENGTH ( FROM NECK TO HEM )","CENTER BACK LENGTH ( FROM NECK TO HEM )","CENTER BACK LENGTH ( FROM NECK TO HEM )","CENTER BACK LENGTH ( FROM NECK TO HEM )","CENTER BACK LENGTH ( FROM NECK TO HEM )","CENTER BACK LENGTH ( FROM NECK TO HEM )","CENTER BACK LENGTH ( FROM NECK TO HEM )","CENTER BACK LENGTH ( FROM NECK TO HEM )","CENTER BACK LENGTH ( FROM NECK TO HEM )","CENTER BACK LENGTH ( FROM NECK TO HEM )","CENTER BACK LENGTH ( FROM NECK TO HEM )",null,null,null,null,null,null,null,null,null,null,null,null,null,null,null,null,null,0.375,null,null,null,null,null,null,"SM"]
[null,"FRONT LENGTH FROM (HIGH SHOULDER POINT)","FRONT LENGTH FROM (HIGH SHOULDER POINT)","FRONT LENGTH FROM (HIGH SHOULDER POINT)","FRONT LENGTH FROM (HIGH SHOULDER POINT)","FRONT LENGTH FROM (HIGH SHOULDER POINT)","FRONT LENGTH FROM (HIGH SHOULDER POINT)","FRONT LENGTH FROM (HIGH SHOULDER POINT)","FRONT LENGTH FROM (HIGH SHOULDER POINT)","FRONT LENGTH FROM (HIGH SHOULDER POINT)","FRONT LENGTH FROM (HIGH SHOULDER POINT)","FRONT LENGTH FROM (HIGH SHOULDER POINT)","FRONT LENGTH FROM (HIGH SHOULDER POINT)","FRONT LENGTH FROM (HIGH SHOULDER POINT)","FRONT LENGTH FROM (HIGH SHOULDER POINT)",null,null,null,null,null,null,null,null,null,null,null,null,null,null,null,null,null,0.375,null,null,null,null,null,null,"XL"]
[null,"FRONT LENGTH (FROM CENTRE FRONT NECK TO HEM)","FRONT LENGTH (FROM CENTRE FRONT NECK TO HEM)","FRONT LENGTH (FROM CENTRE FRONT NECK TO HEM)","FRONT LENGTH (FROM CENTRE FRONT NECK TO HEM)","FRONT LENGTH (FROM CENTRE FRONT NECK TO HEM)","FRONT LENGTH (FROM CENTRE FRONT NECK TO HEM)","FRONT LENGTH (FROM CENTRE FRONT NECK TO HEM)","FRONT LENGTH (FROM CENTRE FRONT NECK TO HEM)","FRONT LENGTH (FROM CENTRE FRONT NECK TO HEM)","FRONT LENGTH (FROM CENTRE FRONT NECK TO HEM)","FRONT LENGTH (FROM CENTRE FRONT NECK TO HEM)","FRONT LENGTH (FROM CENTRE FRONT NECK TO HEM)","FRONT LENGTH (FROM CENTRE FRONT NECK TO HEM)","FRONT LENGTH (FROM CENTRE FRONT NECK TO HEM)",null,null,null,null,null,null,null,null,null,null,null,null,null,null,null,null,null,0.375,null,null,null,null,null,null,"XXL"]
[null,"CHEST (1\" BELOW ARMHOLE)","CHEST (1\" BELOW ARMHOLE)","CHEST (1\" BELOW ARMHOLE)","CHEST (1\" BELOW ARMHOLE)","CHEST (1\" BELOW ARMHOLE)","CHEST (1\" BELOW ARMHOLE)","CHEST (1\" BELOW ARMHOLE)","CHEST (1\" BELOW ARMHOLE)","CHEST (1\" BELOW ARMHOLE)","CHEST (1\" BELOW ARMHOLE)","CHEST (1\" BELOW ARMHOLE)","CHEST (1\" BELOW ARMHOLE)","CHEST (1\" BELOW ARMHOLE)","CHEST (1\" BELOW ARMHOLE)",null,null,null,null,null,null,null,null,null,null,null,null,null,null,null,null,null,0.375,null,null,null,null,null,null,"XXXL"]
[null,"WAIST (16 1/2\" BELOW HIGH SHOULDER POINT)","WAIST (16 1/2\" BELOW HIGH SHOULDER POINT)","WAIST (16 1/2\" BELOW HIGH SHOULDER POINT)","WAIST (16 1/2\" BELOW HIGH SHOULDER POINT)","WAIST (16 1/2\" BELOW HIGH SHOULDER POINT)","WAIST (16 1/2\" BELOW HIGH SHOULDER POINT)","WAIST (16 1/2\" BELOW HIGH SHOULDER POINT)","WAIST (16 1/2\" BELOW HIGH SHOULDER POINT)","WAIST (16 1/2\" BELOW HIGH SHOULDER POINT)","WAIST (16 1/2\" BELOW HIGH SHOULDER POINT)","WAIST (16 1/2\" BELOW HIGH SHOULDER POINT)","WAIST (16 1/2\" BELOW HIGH SHOULDER POINT)","WAIST (16 1/2\" BELOW HIGH SHOULDER POINT)","WAIST (16 1/2\" BELOW HIGH SHOULDER POINT)",null,null,null,null,null,null,null,null,null,null,null,null,null,null,null,null,null,0.375]
[null,"TOP HIP ( 3\" BELOW WAIST )","TOP HIP ( 3\" BELOW WAIST )","TOP HIP ( 3\" BELOW WAIST )","TOP HIP ( 3\" BELOW WAIST )","TOP HIP ( 3\" BELOW WAIST )","TOP HIP ( 3\" BELOW WAIST )","TOP HIP ( 3\" BELOW WAIST )","TOP HIP ( 3\" BELOW WAIST )","TOP HIP ( 3\" BELOW WAIST )","TOP HIP ( 3\" BELOW WAIST )","TOP HIP ( 3\" BELOW WAIST )","TOP HIP ( 3\" BELOW WAIST )","TOP HIP ( 3\" BELOW WAIST )","TOP HIP ( 3\" BELOW WAIST )",null,null,null,null,null,null,null,null,null,null,null,null,null,null,null,null,null,0.375]
[null,"LOW HIP ( 8\" BELOW WAIST)","LOW HIP ( 8\" BELOW WAIST)","LOW HIP ( 8\" BELOW WAIST)","LOW HIP ( 8\" BELOW WAIST)","LOW HIP ( 8\" BELOW WAIST)","LOW HIP ( 8\" BELOW WAIST)","LOW HIP ( 8\" BELOW WAIST)","LOW HIP ( 8\" BELOW WAIST)","LOW HIP ( 8\" BELOW WAIST)","LOW HIP ( 8\" BELOW WAIST)","LOW HIP ( 8\" BELOW WAIST)","LOW HIP ( 8\" BELOW WAIST)","LOW HIP ( 8\" BELOW WAIST)","LOW HIP ( 8\" BELOW WAIST)",null,null,null,null,null,null,null,null,null,null,null,null,null,null,null,null,null,0.375]
[null,"HEM STRAIGHT","HEM STRAIGHT","HEM STRAIGHT","HEM STRAIGHT","HEM STRAIGHT","HEM STRAIGHT","HEM STRAIGHT","HEM STRAIGHT","HEM STRAIGHT","HEM STRAIGHT","HEM STRAIGHT","HEM STRAIGHT","HEM STRAIGHT","HEM STRAIGHT",null,null,null,null,null,null,null,null,null,null,null,null,null,null,null,null,null,0.375]
[null,"HEM CURVE (FOLLOW)","HEM CURVE (FOLLOW)","HEM CURVE (FOLLOW)","HEM CURVE (FOLLOW)","HEM CURVE (FOLLOW)","HEM CURVE (FOLLOW)","HEM CURVE (FOLLOW)","HEM CURVE (FOLLOW)","HEM CURVE (FOLLOW)","HEM CURVE (FOLLOW)","HEM CURVE (FOLLOW)","HEM CURVE (FOLLOW)","HEM CURVE (FOLLOW)","HEM CURVE (FOLLOW)",null,null,null,null,null,null,null,null,null,null,null,null,null,null,null,null,null,0.375]
[null,"ACROSS SHOULDERS ( TOTAL )","ACROSS SHOULDERS ( TOTAL )","ACROSS SHOULDERS ( TOTAL )","ACROSS SHOULDERS ( TOTAL )","ACROSS SHOULDERS ( TOTAL )","ACROSS SHOULDERS ( TOTAL )","ACROSS SHOULDERS ( TOTAL )","ACROSS SHOULDERS ( TOTAL )","ACROSS SHOULDERS ( TOTAL )","ACROSS SHOULDERS ( TOTAL )","ACROSS SHOULDERS ( TOTAL )","ACROSS SHOULDERS ( TOTAL )","ACROSS SHOULDERS ( TOTAL )","ACROSS SHOULDERS ( TOTAL )",null,null,null,null,null,null,null,null,null,null,null,null,null,null,null,null,null,0.375]
[null,"SHOULDER LENGTH AT SEAM","SHOULDER LENGTH AT SEAM","SHOULDER LENGTH AT SEAM","SHOULDER LENGTH AT SEAM","SHOULDER LENGTH AT SEAM","SHOULDER LENGTH AT SEAM","SHOULDER LENGTH AT SEAM","SHOULDER LENGTH AT SEAM","SHOULDER LENGTH AT SEAM","SHOULDER LENGTH AT SEAM","SHOULDER LENGTH AT SEAM","SHOULDER LENGTH AT SEAM","SHOULDER LENGTH AT SEAM","SHOULDER LENGTH AT SEAM",null,null,null,null,null,null,null,null,null,null,null,null,null,null,null,null,null,0.375]
[null,"ACROSS FRONT (5\" BELOW HIGH SHOULDER POINT)","ACROSS FRONT (5\" BELOW HIGH SHOULDER POINT)","ACROSS FRONT (5\" BELOW HIGH SHOULDER POINT)","ACROSS FRONT (5\" BELOW HIGH SHOULDER POINT)","ACROSS FRONT (5\" BELOW HIGH SHOULDER POINT)","ACROSS FRONT (5\" BELOW HIGH SHOULDER POINT)","ACROSS FRONT (5\" BELOW HIGH SHOULDER POINT)","ACROSS FRONT (5\" BELOW HIGH SHOULDER POINT)","ACROSS FRONT (5\" BELOW HIGH SHOULDER POINT)","ACROSS FRONT (5\" BELOW HIGH SHOULDER POINT)","ACROSS FRONT (5\" BELOW HIGH SHOULDER POINT)","ACROSS FRONT (5\" BELOW HIGH SHOULDER POINT)","ACROSS FRONT (5\" BELOW HIGH SHOULDER POINT)","ACROSS FRONT (5\" BELOW HIGH SHOULDER POINT)",null,null,null,null,null,null,null,null,null,null,null,null,null,null,null,null,null,0.375]
[null,"ACROSS BACK (5\" BELOW HIGH SHOULDER POINT)","ACROSS BACK (5\" BELOW HIGH SHOULDER POINT)","ACROSS BACK (5\" BELOW HIGH SHOULDER POINT)","ACROSS BACK (5\" BELOW HIGH SHOULDER POINT)","ACROSS BACK (5\" BELOW HIGH SHOULDER POINT)","ACROSS BACK (5\" BELOW HIGH SHOULDER POINT)","ACROSS BACK (5\" BELOW HIGH SHOULDER POINT)","ACROSS BACK (5\" BELOW HIGH SHOULDER POINT)","ACROSS BACK (5\" BELOW HIGH SHOULDER POINT)","ACROSS BACK (5\" BELOW HIGH SHOULDER POINT)","ACROSS BACK (5\" BELOW HIGH SHOULDER POINT)","ACROSS BACK (5\" BELOW HIGH SHOULDER POINT)","ACROSS BACK (5\" BELOW HIGH SHOULDER POINT)","ACROSS BACK (5\" BELOW HIGH SHOULDER POINT)",null,null,null,null,null,null,null,null,null,null,null,null,null,null,null,null,null,0.25]
[null,"OVERARM (FROM SLEEVE CAP TO HEM)-SHORT SLEEVE","OVERARM (FROM SLEEVE CAP TO HEM)-SHORT SLEEVE","OVERARM (FROM SLEEVE CAP TO HEM)-SHORT SLEEVE","OVERARM (FROM SLEEVE CAP TO HEM)-SHORT SLEEVE","OVERARM (FROM SLEEVE CAP TO HEM)-SHORT SLEEVE","OVERARM (FROM SLEEVE CAP TO HEM)-SHORT SLEEVE","OVERARM (FROM SLEEVE CAP TO HEM)-SHORT SLEEVE","OVERARM (FROM SLEEVE CAP TO HEM)-SHORT SLEEVE","OVERARM (FROM SLEEVE CAP TO HEM)-SHORT SLEEVE","OVERARM (FROM SLEEVE CAP TO HEM)-SHORT SLEEVE","OVERARM (FROM SLEEVE CAP TO HEM)-SHORT SLEEVE","OVERARM (FROM SLEEVE CAP TO HEM)-SHORT SLEEVE","OVERARM (FROM SLEEVE CAP TO HEM)-SHORT SLEEVE","OVERARM (FROM SLEEVE CAP TO HEM)-SHORT SLEEVE",null,null,null,null,null,null,null,null,null,null,null,null,null,null,null,null,null,0.25]
[null,"OVERARM (FROM SLEEVE CAP TO HEM)- 3/4 SLEEVE","OVERARM (FROM SLEEVE CAP TO HEM)- 3/4 SLEEVE","OVERARM (FROM SLEEVE CAP TO HEM)- 3/4 SLEEVE","OVERARM (FROM SLEEVE CAP TO HEM)- 3/4 SLEEVE","OVERARM (FROM SLEEVE CAP TO HEM)- 3/4 SLEEVE","OVERARM (FROM SLEEVE CAP TO HEM)- 3/4 SLEEVE","OVERARM (FROM SLEEVE CAP TO HEM)- 3/4 SLEEVE","OVERARM (FROM SLEEVE CAP TO HEM)- 3/4 SLEEVE","OVERARM (FROM SLEEVE CAP TO HEM)- 3/4 SLEEVE","OVERARM (FROM SLEEVE CAP TO HEM)- 3/4 SLEEVE","OVERARM (FROM SLEEVE CAP TO HEM)- 3/4 SLEEVE","OVERARM (FROM SLEEVE CAP TO HEM)- 3/4 SLEEVE","OVERARM (FROM SLEEVE CAP TO HEM)- 3/4 SLEEVE","OVERARM (FROM SLEEVE CAP TO HEM)- 3/4 SLEEVE",null,null,null,null,null,null,null,null,null,null,null,null,null,null,null,null,null,0.375]
[null,"OVERARM (FROM SLEEVE CAP TO HEM)- LONG SLEEVE","OVERARM (FROM SLEEVE CAP TO HEM)- LONG SLEEVE","OVERARM (FROM SLEEVE CAP TO HEM)- LONG SLEEVE","OVERARM (FROM SLEEVE CAP TO HEM)- LONG SLEEVE","OVERARM (FROM SLEEVE CAP TO HEM)- LONG SLEEVE","OVERARM (FROM SLEEVE CAP TO HEM)- LONG SLEEVE","OVERARM (FROM SLEEVE CAP TO HEM)- LONG SLEEVE","OVERARM (FROM SLEEVE CAP TO HEM)- LONG SLEEVE","OVERARM (FROM SLEEVE CAP TO HEM)- LONG SLEEVE","OVERARM (FROM SLEEVE CAP TO HEM)- LONG SLEEVE","OVERARM (FROM SLEEVE CAP TO HEM)- LONG SLEEVE","OVERARM (FROM SLEEVE CAP TO HEM)- LONG SLEEVE","OVERARM (FROM SLEEVE CAP TO HEM)- LONG SLEEVE","OVERARM (FROM SLEEVE CAP TO HEM)- LONG SLEEVE",null,null,null,null,null,null,null,null,null,null,null,null,null,null,null,null,null,0.25]
[null,"1/2 ARMHOLE STRAIGHT","1/2 ARMHOLE STRAIGHT","1/2 ARMHOLE STRAIGHT","1/2 ARMHOLE STRAIGHT","1/2 ARMHOLE STRAIGHT","1/2 ARMHOLE STRAIGHT","1/2 ARMHOLE STRAIGHT","1/2 ARMHOLE STRAIGHT","1/2 ARMHOLE STRAIGHT","1/2 ARMHOLE STRAIGHT","1/2 ARMHOLE STRAIGHT","1/2 ARMHOLE STRAIGHT","1/2 ARMHOLE STRAIGHT","1/2 ARMHOLE STRAIGHT",null,null,null,null,null,null,null,null,null,null,null,null,null,null,null,null,null,0.25]
[null,"BICEP (1\" BELOW ARMHOLE)","BICEP (1\" BELOW ARMHOLE)","BICEP (1\" BELOW ARMHOLE)","BICEP (1\" BELOW ARMHOLE)","BICEP (1\" BELOW ARMHOLE)","BICEP (1\" BELOW ARMHOLE)","BICEP (1\" BELOW ARMHOLE)","BICEP (1\" BELOW ARMHOLE)","BICEP (1\" BELOW ARMHOLE)","BICEP (1\" BELOW ARMHOLE)","BICEP (1\" BELOW ARMHOLE)","BICEP (1\" BELOW ARMHOLE)","BICEP (1\" BELOW ARMHOLE)","BICEP (1\" BELOW ARMHOLE)",null,null,null,null,null,null,null,null,null,null,null,null,null,null,null,null,null,0.25]
[null,"ELBOW (8 1/2\" BELOW ARMHOLE)","ELBOW (8 1/2\" BELOW ARMHOLE)","ELBOW (8 1/2\" BELOW ARMHOLE)","ELBOW (8 1/2\" BELOW ARMHOLE)","ELBOW (8 1/2\" BELOW ARMHOLE)","ELBOW (8 1/2\" BELOW ARMHOLE)","ELBOW (8 1/2\" BELOW ARMHOLE)","ELBOW (8 1/2\" BELOW ARMHOLE)","ELBOW (8 1/2\" BELOW ARMHOLE)","ELBOW (8 1/2\" BELOW ARMHOLE)","ELBOW (8 1/2\" BELOW ARMHOLE)","ELBOW (8 1/2\" BELOW ARMHOLE)","ELBOW (8 1/2\" BELOW ARMHOLE)","ELBOW (8 1/2\" BELOW ARMHOLE)",null,null,null,null,null,null,null,null,null,null,null,null,null,null,null,null,null,0.25]
[null,"SHORT SLEEVE OPENING","SHORT SLEEVE OPENING","SHORT SLEEVE OPENING","SHORT SLEEVE OPENING","SHORT SLEEVE OPENING","SHORT SLEEVE OPENING","SHORT SLEEVE OPENING","SHORT SLEEVE OPENING","SHORT SLEEVE OPENING","SHORT SLEEVE OPENING","SHORT SLEEVE OPENING","SHORT SLEEVE OPENING","SHORT SLEEVE OPENING","SHORT SLEEVE OPENING",null,null,null,null,null,null,null,null,null,null,null,null,null,null,null,null,null,0.25]
[null,"3/4 SLEEVE OPENING","3/4 SLEEVE OPENING","3/4 SLEEVE OPENING","3/4 SLEEVE OPENING","3/4 SLEEVE OPENING","3/4 SLEEVE OPENING","3/4 SLEEVE OPENING","3/4 SLEEVE OPENING","3/4 SLEEVE OPENING","3/4 SLEEVE OPENING","3/4 SLEEVE OPENING","3/4 SLEEVE OPENING","3/4 SLEEVE OPENING","3/4 SLEEVE OPENING",null,null,null,null,null,null,null,null,null,null,null,null,null,null,null,null,null,0.25]
[null,"LONG SLEEVE OPENING","LONG SLEEVE OPENING","LONG SLEEVE OPENING","LONG SLEEVE OPENING","LONG SLEEVE OPENING","LONG SLEEVE OPENING","LONG SLEEVE OPENING","LONG SLEEVE OPENING","LONG SLEEVE OPENING","LONG SLEEVE OPENING","LONG SLEEVE OPENING","LONG SLEEVE OPENING","LONG SLEEVE OPENING","LONG SLEEVE OPENING",null,null,null,null,null,null,null,null,null,null,null,null,null,null,null,null,null,"1/4"]
[null,"SLEEVE CAP HEIGHT ( FROM TOP OF SLEEVE TO UNDERARM )","SLEEVE CAP HEIGHT ( FROM TOP OF SLEEVE TO UNDERARM )","SLEEVE CAP HEIGHT ( FROM TOP OF SLEEVE TO UNDERARM )","SLEEVE CAP HEIGHT ( FROM TOP OF SLEEVE TO UNDERARM )","SLEEVE CAP HEIGHT ( FROM TOP OF SLEEVE TO UNDERARM )","SLEEVE CAP HEIGHT ( FROM TOP OF SLEEVE TO UNDERARM )","SLEEVE CAP HEIGHT ( FROM TOP OF SLEEVE TO UNDERARM )","SLEEVE CAP HEIGHT ( FROM TOP OF SLEEVE TO UNDERARM )","SLEEVE CAP HEIGHT ( FROM TOP OF SLEEVE TO UNDERARM )","SLEEVE CAP HEIGHT ( FROM TOP OF SLEEVE TO UNDERARM )","SLEEVE CAP HEIGHT ( FROM TOP OF SLEEVE TO UNDERARM )","SLEEVE CAP HEIGHT ( FROM TOP OF SLEEVE TO UNDERARM )","SLEEVE CAP HEIGHT ( FROM TOP OF SLEEVE TO UNDERARM )","SLEEVE CAP HEIGHT ( FROM TOP OF SLEEVE TO UNDERARM )",null,null,null,null,null,null,null,null,null,null,null,null,null,null,null,null,null,0]
[null,"SHOULDER SLOPE ( HSP TO SHOULDER ARMHOLE SEAM )","SHOULDER SLOPE ( HSP TO SHOULDER ARMHOLE SEAM )","SHOULDER SLOPE ( HSP TO SHOULDER ARMHOLE SEAM )","SHOULDER SLOPE ( HSP TO SHOULDER ARMHOLE SEAM )","SHOULDER SLOPE ( HSP TO SHOULDER ARMHOLE SEAM )","SHOULDER SLOPE ( HSP TO SHOULDER ARMHOLE SEAM )","SHOULDER SLOPE ( HSP TO SHOULDER ARMHOLE SEAM )","SHOULDER SLOPE ( HSP TO SHOULDER ARMHOLE SEAM )","SHOULDER SLOPE ( HSP TO SHOULDER ARMHOLE SEAM )","SHOULDER SLOPE ( HSP TO SHOULDER ARMHOLE SEAM )","SHOULDER SLOPE ( HSP TO SHOULDER ARMHOLE SEAM )","SHOULDER SLOPE ( HSP TO SHOULDER ARMHOLE SEAM )","SHOULDER SLOPE ( HSP TO SHOULDER ARMHOLE SEAM )","SHOULDER SLOPE ( HSP TO SHOULDER ARMHOLE SEAM )",null,null,null,null,null,null,null,null,null,null,null,null,null,null,null,null,null,0.25]
[null,"NECK WIDTH (HSP TO HSP) ON BACK","NECK WIDTH (HSP TO HSP) ON BACK","NECK WIDTH (HSP TO HSP) ON BACK","NECK WIDTH (HSP TO HSP) ON BACK","NECK WIDTH (HSP TO HSP) ON BACK","NECK WIDTH (HSP TO HSP) ON BACK","NECK WIDTH (HSP TO HSP) ON BACK","NECK WIDTH (HSP TO HSP) ON BACK","NECK WIDTH (HSP TO HSP) ON BACK","NECK WIDTH (HSP TO HSP) ON BACK","NECK WIDTH (HSP TO HSP) ON BACK","NECK WIDTH (HSP TO HSP) ON BACK","NECK WIDTH (HSP TO HSP) ON BACK","NECK WIDTH (HSP TO HSP) ON BACK",null,null,null,null,null,null,null,null,null,null,null,null,null,null,null,null,null,0.25]
[null,"FRONT NECK DROP ( FROM HSP TO CENTER FRONT NECK EDGE OR SEAM )","FRONT NECK DROP ( FROM HSP TO CENTER FRONT NECK EDGE OR SEAM )","FRONT NECK DROP ( FROM HSP TO CENTER FRONT NECK EDGE OR SEAM )","FRONT NECK DROP ( FROM HSP TO CENTER FRONT NECK EDGE OR SEAM )","FRONT NECK DROP ( FROM HSP TO CENTER FRONT NECK EDGE OR SEAM )","FRONT NECK DROP ( FROM HSP TO CENTER FRONT NECK EDGE OR SEAM )","FRONT NECK DROP ( FROM HSP TO CENTER FRONT NECK EDGE OR SEAM )","FRONT NECK DROP ( FROM HSP TO CENTER FRONT NECK EDGE OR SEAM )","FRONT NECK DROP ( FROM HSP TO CENTER FRONT NECK EDGE OR SEAM )","FRONT NECK DROP ( FROM HSP TO CENTER FRONT NECK EDGE OR SEAM )","FRONT NECK DROP ( FROM HSP TO CENTER FRONT NECK EDGE OR SEAM )","FRONT NECK DROP ( FROM HSP TO CENTER FRONT NECK EDGE OR SEAM )","FRONT NECK DROP ( FROM HSP TO CENTER FRONT NECK EDGE OR SEAM )","FRONT NECK DROP ( FROM HSP TO CENTER FRONT NECK EDGE OR SEAM )",null,null,null,null,null,null,null,null,null,null,null,null,null,null,null,null,null,0.25]
[null,"BACK NECK DROP ( FROM HSP TO CENTER BACK NECK EDGE OR SEAM )","BACK NECK DROP ( FROM HSP TO CENTER BACK NECK EDGE OR SEAM )","BACK NECK DROP ( FROM HSP TO CENTER BACK NECK EDGE OR SEAM )","BACK NECK DROP ( FROM HSP TO CENTER BACK NECK EDGE OR SEAM )","BACK NECK DROP ( FROM HSP TO CENTER BACK NECK EDGE OR SEAM )","BACK NECK DROP ( FROM HSP TO CENTER BACK NECK EDGE OR SEAM )","BACK NECK DROP ( FROM HSP TO CENTER BACK NECK EDGE OR SEAM )","BACK NECK DROP ( FROM HSP TO CENTER BACK NECK EDGE OR SEAM )","BACK NECK DROP ( FROM HSP TO CENTER BACK NECK EDGE OR SEAM )","BACK NECK DROP ( FROM HSP TO CENTER BACK NECK EDGE OR SEAM )","BACK NECK DROP ( FROM HSP TO CENTER BACK NECK EDGE OR SEAM )","BACK NECK DROP ( FROM HSP TO CENTER BACK NECK EDGE OR SEAM )","BACK NECK DROP ( FROM HSP TO CENTER BACK NECK EDGE OR SEAM )","BACK NECK DROP ( FROM HSP TO CENTER BACK NECK EDGE OR SEAM )",null,null,null,null,null,null,null,null,null,null,null,null,null,null,null,null,null,0.25]
[null,"1/2 NECK CIRCUMFERENCE","1/2 NECK CIRCUMFERENCE","1/2 NECK CIRCUMFERENCE","1/2 NECK CIRCUMFERENCE","1/2 NECK CIRCUMFERENCE","1/2 NECK CIRCUMFERENCE","1/2 NECK CIRCUMFERENCE","1/2 NECK CIRCUMFERENCE","1/2 NECK CIRCUMFERENCE","1/2 NECK CIRCUMFERENCE","1/2 NECK CIRCUMFERENCE","1/2 NECK CIRCUMFERENCE","1/2 NECK CIRCUMFERENCE","1/2 NECK CIRCUMFERENCE",null,null,null,null,null,null,null,null,null,null,null,null,null,null,null,null,null,0]
[null,"COLLAR DEPTH ( AT C.B. NECK )","COLLAR DEPTH ( AT C.B. NECK )","COLLAR DEPTH ( AT C.B. NECK )","COLLAR DEPTH ( AT C.B. NECK )","COLLAR DEPTH ( AT C.B. NECK )","COLLAR DEPTH ( AT C.B. NECK )","COLLAR DEPTH ( AT C.B. NECK )","COLLAR DEPTH ( AT C.B. NECK )","COLLAR DEPTH ( AT C.B. NECK )","COLLAR DEPTH ( AT C.B. NECK )","COLLAR DEPTH ( AT C.B. NECK )","COLLAR DEPTH ( AT C.B. NECK )","COLLAR DEPTH ( AT C.B. NECK )","COLLAR DEPTH ( AT C.B. NECK )",null,null,null,null,null,null,null,null,null,null,null,null,null,null,null,null,null,0]
[null,"STAND DEPTH","STAND DEPTH","STAND DEPTH","STAND DEPTH","STAND DEPTH","STAND DEPTH","STAND DEPTH","STAND DEPTH","STAND DEPTH","STAND DEPTH","STAND DEPTH","STAND DEPTH","STAND DEPTH","STAND DEPTH",null,null,null,null,null,null,null,null,null,null,null,null,null,null,null,null,null,0.25]
[null,"COLLAR LENGTH","COLLAR LENGTH","COLLAR LENGTH","COLLAR LENGTH","COLLAR LENGTH","COLLAR LENGTH","COLLAR LENGTH","COLLAR LENGTH","COLLAR LENGTH","COLLAR LENGTH","COLLAR LENGTH","COLLAR LENGTH","COLLAR LENGTH","COLLAR LENGTH",null,null,null,null,null,null,null,null,null,null,null,null,null,null,null,null,null,0]
[null,"NECK TRIM DEPTH","NECK TRIM DEPTH","NECK TRIM DEPTH","NECK TRIM DEPTH","NECK TRIM DEPTH","NECK TRIM DEPTH","NECK TRIM DEPTH","NECK TRIM DEPTH","NECK TRIM DEPTH","NECK TRIM DEPTH","NECK TRIM DEPTH","NECK TRIM DEPTH","NECK TRIM DEPTH","NECK TRIM DEPTH",null,null,null,null,null,null,null,null,null,null,null,null,null,null,null,null,null,0]
[null,"CUFF DEPTH","CUFF DEPTH","CUFF DEPTH","CUFF DEPTH","CUFF DEPTH","CUFF DEPTH","CUFF DEPTH","CUFF DEPTH","CUFF DEPTH","CUFF DEPTH","CUFF DEPTH","CUFF DEPTH","CUFF DEPTH","CUFF DEPTH",null,null,null,null,null,null,null,null,null,null,null,null,null,null,null,null,null,0]
[null,"SLEEVE HEM DEPTH","SLEEVE HEM DEPTH","SLEEVE HEM DEPTH","SLEEVE HEM DEPTH","SLEEVE HEM DEPTH","SLEEVE HEM DEPTH","SLEEVE HEM DEPTH","SLEEVE HEM DEPTH","SLEEVE HEM DEPTH","SLEEVE HEM DEPTH","SLEEVE HEM DEPTH","SLEEVE HEM DEPTH","SLEEVE HEM DEPTH","SLEEVE HEM DEPTH",null,null,null,null,null,null,null,null,null,null,null,null,null,null,null,null,null,0]
[null,"BOTTOM HEM DEPTH","BOTTOM HEM DEPTH","BOTTOM HEM DEPTH","BOTTOM HEM DEPTH","BOTTOM HEM DEPTH","BOTTOM HEM DEPTH","BOTTOM HEM DEPTH","BOTTOM HEM DEPTH","BOTTOM HEM DEPTH","BOTTOM HEM DEPTH","BOTTOM HEM DEPTH","BOTTOM HEM DEPTH","BOTTOM HEM DEPTH","BOTTOM HEM DEPTH",null,null,null,null,null,null,null,null,null,null,null,null,null,null,null,null,null,0.375]
[null,"HSP TO BUST POINT","HSP TO BUST POINT","HSP TO BUST POINT","HSP TO BUST POINT","HSP TO BUST POINT","HSP TO BUST POINT","HSP TO BUST POINT","HSP TO BUST POINT","HSP TO BUST POINT","HSP TO BUST POINT","HSP TO BUST POINT","HSP TO BUST POINT","HSP TO BUST POINT","HSP TO BUST POINT"]
[]
[]
[]
[]
[null,"Sample Approved?"]
[null,"If sample is NOT approved, then submit 3rd Fit Sample. If sample is APPROVED, then submit Pre-Production Samples."]

{"sheet":"2nd Fit Photo Comments","index":11,"n_rows":15,"n_cols":40,"rows_kept":15,"cut":false,"hidden":true,"merged":[[5,16,5,34],[7,1,7,18],[7,19,7,22],[7,23,7,31],[1,16,1,22],[2,16,2,34],[3,16,3,22],[3,30,3,34],[4,16,4,22],[4,29,4,34]]}
[]
[null,null,null,null,null,null,null,null,null,null,null,"Create Date:",null,null,null,null,{"$f":"'ORIGINAL PHOTO'!Q2:W2","v":"MARCH 15/2017"}]
[null,null,null,null,null,null,null,null,null,null,null,"Vendor Name:",null,null,null,null,{"$f":"'ORIGINAL PHOTO'!Q3:AI3","v":0}]
[null,null,null,null,null,null,null,null,null,null,null,"Vndr.Item No.:",null,null,null,null,{"$f":"'ORIGINAL PHOTO'!Q4:W4","v":0},null,null,null,null,null,null,null,null,null,"GC Item No.:",null,null,null,{"$f":"'ORIGINAL PHOTO'!AE4:AI4","v":0}]
[null,null,null,null,null,null,null,null,null,null,null,"Size Range:",null,null,null,null,{"$f":"'ORIGINAL PHOTO'!Q5:W5","v":"S-M-L-XL"},null,null,null,null,null,null,null,null,null,"Season:",null,null,{"$f":"'ORIGINAL PHOTO'!AD5:AI5","v":"Spring Summer 2018"}]
[null,null,null,null,null,null,null,null,null,null,null,"Description:",null,null,null,null,{"$f":"'ORIGINAL PHOTO'!Q6:AI6","v":"MEN'S LONG SLEEVE ZIP FRONT SCOOP HEM HOODIE WITH LINED HOOD"}]
[]
[null,"2ND FIT PHOTO COMMENTS-- MEN'S TOP",null,null,null,null,null,null,null,null,null,null,null,null,null,null,null,null,null,"Date:",null,null,null,null,null,null,null,null,null,null,null,null,null,null,null,null,null,null,null,"L"]
[null,null,null,null,null,null,null,null,null,null,null,null,null,null,null,null,null,null,null,null,null,null,null,null,null,null,null,null,null,null,null,null,null,null,null,null,null,null,null,"LXL"]
[null,null,null,null,null,null,null,null,null,null,null,null,null,null,null,null,null,null,null,null,null,null,null,null,null,null,null,null,null,null,null,null,null,null,null,null,null,null,null,"M"]
[null,null,null,null,null,null,null,null,null,null,null,null,null,null,null,null,null,null,null,null,null,null,null,null,null,null,null,null,null,null,null,null,null,null,null,null,null,null,null,"S"]
[null,null,null,null,null,null,null,null,null,null,null,null,null,null,null,null,null,null,null,null,null,null,null,null,null,null,null,null,null,null,null,null,null,null,null,null,null,null,null,"SM"]
[null,null,null,null,null,null,null,null,null,null,null,null,null,null,null,null,null,null,null,null,null,null,null,null,null,null,null,null,null,null,null,null,null,null,null,null,null,null,null,"XL"]
[null,null,null,null,null,null,null,null,null,null,null,null,null,null,null,null,null,null,null,null,null,null,null,null,null,null,null,null,null,null,null,null,null,null,null,null,null,null,null,"XXL"]
[null,null,null,null,null,null,null,null,null,null,null,null,null,null,null,null,null,null,null,null,null,null,null,null,null,null,null,null,null,null,null,null,null,null,null,null,null,null,null,"XXXL"]

{"sheet":"3rd Fit Sample","index":12,"n_rows":53,"n_cols":40,"rows_kept":53,"cut":false,"hidden":true,"merged":[[4,29,4,34],[52,1,52,34],[1,16,1,22],[2,16,2,34],[3,16,3,22],[3,30,3,34],[4,16,4,22],[9,19,9,22],[10,1,10,14],[10,15,10,18],[10,19,10,22],[10,23,10,31],[10,32,10,34],[5,16,5,34],[7,1,7,18],[7,19,7,22],[7,23,7,31],[8,1,9,14],[8,15,8,18],[8,19,8,22],[8,23,9,31],[8,32,9,34],[9,15,9,18],[11,1,11,14],[11,15,11,18],[11,19,11,22],[11,23,11,31],[11,32,11,34],[12,1,12,14],[12,15,12,18],[12,19,12,22],[12,23,12,31],[12,32,12,34],[13,1,13,14],[13,15,13,18],[13,19,13,22],[13,23,13,31],[13,32,13,34],[14,1,14,14],[14,15,14,18],[14,19,14,22],[14,23,14,31],[14,32,14,34],[15,1,15,14],[15,15,15,18],[15,19,15,22],[15,23,15,31],[15,32,15,34],[16,1,16,14],[16,15,16,18],[16,19,16,22],[16,23,16,31],[16,32,16,34],[17,1,17,14],[17,15,17,18],[17,19,17,22],[17,23,17,31],[17,32,17,34],[18,1,18,14],[18,15,18,18],[18,19,18,22],[18,23,18,31],[18,32,18,34],[19,1,19,14],[19,15,19,18],[19,19,19,22],[19,23,19,31],[19,32,19,34],[20,1,20,14],[20,15,20,18],[20,19,20,22],[20,23,20,31],[20,32,20,34],[21,1,21,14],[21,15,21,18],[21,19,21,22],[21,23,21,31],[21,32,21,34],[22,1,22,14],[22,15,22,18],[22,19,22,22],[22,23,22,31],[22,32,22,34],[23,1,23,14],[23,15,23,18],[23,19,23,22],[23,23,23,31],[23,32,23,34],[24,1,24,14],[24,15,24,18],[24,19,24,22],[24,23,24,31],[24,32,24,34],[25,1,25,14],[25,15,25,18],[25,19,25,22],[25,23,25,31],[25,32,25,34],[26,1,26,14],[26,15,26,18],[26,19,26,22],[26,23,26,31],[26,32,26,34],[27,1,27,14],[27,15,27,18],[27,19,27,22],[27,23,27,31],[27,32,27,34],[28,1,28,14],[28,15,28,18],[28,19,28,22],[28,23,28,31],[28,32,28,34],[29,1,29,14],[29,15,29,18],[29,19,29,22],[29,23,29,31],[29,32,29,34],[30,1,30,14],[30,15,30,18],[30,19,30,22],[30,23,30,31],[30,32,30,34],[31,1,31,14],[31,15,31,18],[31,19,31,22],[31,23,31,31],[31,32,31,34],[32,1,32,14],[32,15,32,18],[32,19,32,22],[32,23,32,31],[32,32,32,34],[33,1,33,14],[33,15,33,18],[33,19,33,22],[33,23,33,31],[33,32,33,34],[34,1,34,14],[34,15,34,18],[34,19,34,22],[34,23,34,31],[34,32,34,34],[35,1,35,14],[35,15,35,18],[35,19,35,22],[35,23,35,31],[35,32,35,34],[36,1,36,14],[36,15,36,18],[36,19,36,22],[36,23,36,31],[36,32,36,34],[37,1,37,14],[37,15,37,18],[37,19,37,22],[37,23,37,31],[37,32,37,34],[38,1,38,14],[38,15,38,18],[38,19,38,22],[38,23,38,31],[38,32,38,34],[39,1,39,14],[39,15,39,18],[39,19,39,22],[39,23,39,31],[39,32,39,34],[40,1,40,14],[40,15,40,18],[40,19,40,22],[40,23,40,31],[40,32,40,34],[41,1,41,14],[41,15,41,18],[41,19,41,22],[41,23,41,31],[41,32,41,34],[42,1,42,14],[42,15,42,18],[42,19,42,22],[42,23,42,31],[42,32,42,34],[43,1,43,14],[43,15,43,18],[43,19,43,22],[43,23,43,31],[43,32,43,34],[44,1,44,14],[44,15,44,18],[44,19,44,22],[44,23,44,31],[44,32,44,34],[45,1,45,14],[45,15,45,18],[45,19,45,22],[45,23,45,31],[45,32,45,34],[46,1,46,14],[46,15,46,18],[46,19,46,22],[46,23,46,31],[46,32,46,34],[51,15,51,34],[49,1,49,34],[50,1,50,14],[50,15,50,18],[50,19,50,22],[50,23,50,31],[50,32,50,34],[47,1,47,14],[47,15,47,18],[47,19,47,22],[47,23,47,31],[47,32,47,34],[48,1,48,14],[48,15,48,18],[48,19,48,22],[48,23,48,31],[48,32,48,34]]}
[]
[null,null,null,null,null,null,null,null,null,null,null,"Create Date:",null,null,null,null,{"$f":"'ORIGINAL PHOTO'!Q2:W2","v":"MARCH 15/2017"}]
[null,null,null,null,null,null,null,null,null,null,null,"Vendor Name:",null,null,null,null,{"$f":"'ORIGINAL PHOTO'!Q3:AI3","v":0}]
[null,null,null,null,null,null,null,null,null,null,null,"Vndr.Item No.:",null,null,null,null,{"$f":"'ORIGINAL PHOTO'!Q4:W4","v":0},null,null,null,null,null,null,null,null,null,"GC Item No.:",null,null,null,{"$f":"'ORIGINAL PHOTO'!AE4:AI4","v":0}]
[null,null,null,null,null,null,null,null,null,null,null,"Size Range:",null,null,null,null,{"$f":"'ORIGINAL PHOTO'!Q5:W5","v":"S-M-L-XL"},null,null,null,null,null,null,null,null,null,"Season:",null,null,{"$f":"'ORIGINAL PHOTO'!AD5:AI5","v":"Spring Summer 2018"}]
[null,null,null,null,null,null,null,null,null,null,null,"Description:",null,null,null,null,{"$f":"'ORIGINAL PHOTO'!Q6:AI6","v":"MEN'S LONG SLEEVE ZIP FRONT SCOOP HEM HOODIE WITH LINED HOOD"}]
[]
[null,"APPAREL SPEC SHEET -- COAT",null,null,null,null,null,null,null,null,null,null,null,null,null,null,null,null,null,"Date:",null,null,null,null,null,null,null,null,null,null,null,null,null,null,null,null,null,null,null,"L"]
[null,"(Measurements on flat / inches)",null,null,null,null,null,null,null,null,null,null,null,null,null,"3rd Fit Sample",null,null,null,"Required Spec",null,null,null,"Comments",null,null,null,null,null,null,null,null,"Tolerance\n+ / -\n(on flat)",null,null,null,null,null,null,"LXL"]
[null,null,null,null,null,null,null,null,null,null,null,null,null,null,null,"S",null,null,null,"S",null,null,null,null,null,null,null,null,null,null,null,null,null,null,null,null,null,null,null,"M"]
[null,"BACK LENGTH FROM (HIGH SHOULDER POINT)","BACK LENGTH FROM (HIGH SHOULDER POINT)","BACK LENGTH FROM (HIGH SHOULDER POINT)","BACK LENGTH FROM (HIGH SHOULDER POINT)","BACK LENGTH FROM (HIGH SHOULDER POINT)","BACK LENGTH FROM (HIGH SHOULDER POINT)","BACK LENGTH FROM (HIGH SHOULDER POINT)","BACK LENGTH FROM (HIGH SHOULDER POINT)","BACK LENGTH FROM (HIGH SHOULDER POINT)","BACK LENGTH FROM (HIGH SHOULDER POINT)","BACK LENGTH FROM (HIGH SHOULDER POINT)","BACK LENGTH FROM (HIGH SHOULDER POINT)","BACK LENGTH FROM (HIGH SHOULDER POINT)","BACK LENGTH FROM (HIGH SHOULDER POINT)",null,null,null,null,null,null,null,null,null,null,null,null,null,null,null,null,null,0.375,null,null,null,null,null,null,"S"]
[null,"CENTER BACK LENGTH ( FROM NECK TO HEM )","CENTER BACK LENGTH ( FROM NECK TO HEM )","CENTER BACK LENGTH ( FROM NECK TO HEM )","CENTER BACK LENGTH ( FROM NECK TO HEM )","CENTER BACK LENGTH ( FROM NECK TO HEM )","CENTER BACK LENGTH ( FROM NECK TO HEM )","CENTER BACK LENGTH ( FROM NECK TO HEM )","CENTER BACK LENGTH ( FROM NECK TO HEM )","CENTER BACK LENGTH ( FROM NECK TO HEM )","CENTER BACK LENGTH ( FROM NECK TO HEM )","CENTER BACK LENGTH ( FROM NECK TO HEM )","CENTER BACK LENGTH ( FROM NECK TO HEM )","CENTER BACK LENGTH ( FROM NECK TO HEM )","CENTER BACK LENGTH ( FROM NECK TO HEM )",null,null,null,null,null,null,null,null,null,null,null,null,null,null,null,null,null,0.375,null,null,null,null,null,null,"SM"]
[null,"FRONT LENGTH FROM (HIGH SHOULDER POINT)","FRONT LENGTH FROM (HIGH SHOULDER POINT)","FRONT LENGTH FROM (HIGH SHOULDER POINT)","FRONT LENGTH FROM (HIGH SHOULDER POINT)","FRONT LENGTH FROM (HIGH SHOULDER POINT)","FRONT LENGTH FROM (HIGH SHOULDER POINT)","FRONT LENGTH FROM (HIGH SHOULDER POINT)","FRONT LENGTH FROM (HIGH SHOULDER POINT)","FRONT LENGTH FROM (HIGH SHOULDER POINT)","FRONT LENGTH FROM (HIGH SHOULDER POINT)","FRONT LENGTH FROM (HIGH SHOULDER POINT)","FRONT LENGTH FROM (HIGH SHOULDER POINT)","FRONT LENGTH FROM (HIGH SHOULDER POINT)","FRONT LENGTH FROM (HIGH SHOULDER POINT)",null,null,null,null,null,null,null,null,null,null,null,null,null,null,null,null,null,0.375,null,null,null,null,null,null,"XL"]
[null,"FRONT LENGTH (FROM CENTRE FRONT NECK TO HEM)","FRONT LENGTH (FROM CENTRE FRONT NECK TO HEM)","FRONT LENGTH (FROM CENTRE FRONT NECK TO HEM)","FRONT LENGTH (FROM CENTRE FRONT NECK TO HEM)","FRONT LENGTH (FROM CENTRE FRONT NECK TO HEM)","FRONT LENGTH (FROM CENTRE FRONT NECK TO HEM)","FRONT LENGTH (FROM CENTRE FRONT NECK TO HEM)","FRONT LENGTH (FROM CENTRE FRONT NECK TO HEM)","FRONT LENGTH (FROM CENTRE FRONT NECK TO HEM)","FRONT LENGTH (FROM CENTRE FRONT NECK TO HEM)","FRONT LENGTH (FROM CENTRE FRONT NECK TO HEM)","FRONT LENGTH (FROM CENTRE FRONT NECK TO HEM)","FRONT LENGTH (FROM CENTRE FRONT NECK TO HEM)","FRONT LENGTH (FROM CENTRE FRONT NECK TO HEM)",null,null,null,null,null,null,null,null,null,null,null,null,null,null,null,null,null,0.375,null,null,null,null,null,null,"XXL"]
[null,"CHEST (1\" BELOW ARMHOLE)","CHEST (1\" BELOW ARMHOLE)","CHEST (1\" BELOW ARMHOLE)","CHEST (1\" BELOW ARMHOLE)","CHEST (1\" BELOW ARMHOLE)","CHEST (1\" BELOW ARMHOLE)","CHEST (1\" BELOW ARMHOLE)","CHEST (1\" BELOW ARMHOLE)","CHEST (1\" BELOW ARMHOLE)","CHEST (1\" BELOW ARMHOLE)","CHEST (1\" BELOW ARMHOLE)","CHEST (1\" BELOW ARMHOLE)","CHEST (1\" BELOW ARMHOLE)","CHEST (1\" BELOW ARMHOLE)",null,null,null,null,null,null,null,null,null,null,null,null,null,null,null,null,null,0.375,null,null,null,null,null,null,"XXXL"]
[null,"WAIST (16 1/2\" BELOW HIGH SHOULDER POINT)","WAIST (16 1/2\" BELOW HIGH SHOULDER POINT)","WAIST (16 1/2\" BELOW HIGH SHOULDER POINT)","WAIST (16 1/2\" BELOW HIGH SHOULDER POINT)","WAIST (16 1/2\" BELOW HIGH SHOULDER POINT)","WAIST (16 1/2\" BELOW HIGH SHOULDER POINT)","WAIST (16 1/2\" BELOW HIGH SHOULDER POINT)","WAIST (16 1/2\" BELOW HIGH SHOULDER POINT)","WAIST (16 1/2\" BELOW HIGH SHOULDER POINT)","WAIST (16 1/2\" BELOW HIGH SHOULDER POINT)","WAIST (16 1/2\" BELOW HIGH SHOULDER POINT)","WAIST (16 1/2\" BELOW HIGH SHOULDER POINT)","WAIST (16 1/2\" BELOW HIGH SHOULDER POINT)","WAIST (16 1/2\" BELOW HIGH SHOULDER POINT)",null,null,null,null,null,null,null,null,null,null,null,null,null,null,null,null,null,0.375]
[null,"TOP HIP ( 3\" BELOW WAIST )","TOP HIP ( 3\" BELOW WAIST )","TOP HIP ( 3\" BELOW WAIST )","TOP HIP ( 3\" BELOW WAIST )","TOP HIP ( 3\" BELOW WAIST )","TOP HIP ( 3\" BELOW WAIST )","TOP HIP ( 3\" BELOW WAIST )","TOP HIP ( 3\" BELOW WAIST )","TOP HIP ( 3\" BELOW WAIST )","TOP HIP ( 3\" BELOW WAIST )","TOP HIP ( 3\" BELOW WAIST )","TOP HIP ( 3\" BELOW WAIST )","TOP HIP ( 3\" BELOW WAIST )","TOP HIP ( 3\" BELOW WAIST )",null,null,null,null,null,null,null,null,null,null,null,null,null,null,null,null,null,0.375]
[null,"LOW HIP ( 8\" BELOW WAIST)","LOW HIP ( 8\" BELOW WAIST)","LOW HIP ( 8\" BELOW WAIST)","LOW HIP ( 8\" BELOW WAIST)","LOW HIP ( 8\" BELOW WAIST)","LOW HIP ( 8\" BELOW WAIST)","LOW HIP ( 8\" BELOW WAIST)","LOW HIP ( 8\" BELOW WAIST)","LOW HIP ( 8\" BELOW WAIST)","LOW HIP ( 8\" BELOW WAIST)","LOW HIP ( 8\" BELOW WAIST)","LOW HIP ( 8\" BELOW WAIST)","LOW HIP ( 8\" BELOW WAIST)","LOW HIP ( 8\" BELOW WAIST)",null,null,null,null,null,null,null,null,null,null,null,null,null,null,null,null,null,0.375]
[null,"HEM STRAIGHT","HEM STRAIGHT","HEM STRAIGHT","HEM STRAIGHT","HEM STRAIGHT","HEM STRAIGHT","HEM STRAIGHT","HEM STRAIGHT","HEM STRAIGHT","HEM STRAIGHT","HEM STRAIGHT","HEM STRAIGHT","HEM STRAIGHT","HEM STRAIGHT",null,null,null,null,null,null,null,null,null,null,null,null,null,null,null,null,null,0.375]
[null,"HEM CURVE (FOLLOW)","HEM CURVE (FOLLOW)","HEM CURVE (FOLLOW)","HEM CURVE (FOLLOW)","HEM CURVE (FOLLOW)","HEM CURVE (FOLLOW)","HEM CURVE (FOLLOW)","HEM CURVE (FOLLOW)","HEM CURVE (FOLLOW)","HEM CURVE (FOLLOW)","HEM CURVE (FOLLOW)","HEM CURVE (FOLLOW)","HEM CURVE (FOLLOW)","HEM CURVE (FOLLOW)",null,null,null,null,null,null,null,null,null,null,null,null,null,null,null,null,null,0.375]
[null,"ACROSS SHOULDERS ( TOTAL )","ACROSS SHOULDERS ( TOTAL )","ACROSS SHOULDERS ( TOTAL )","ACROSS SHOULDERS ( TOTAL )","ACROSS SHOULDERS ( TOTAL )","ACROSS SHOULDERS ( TOTAL )","ACROSS SHOULDERS ( TOTAL )","ACROSS SHOULDERS ( TOTAL )","ACROSS SHOULDERS ( TOTAL )","ACROSS SHOULDERS ( TOTAL )","ACROSS SHOULDERS ( TOTAL )","ACROSS SHOULDERS ( TOTAL )","ACROSS SHOULDERS ( TOTAL )","ACROSS SHOULDERS ( TOTAL )",null,null,null,null,null,null,null,null,null,null,null,null,null,null,null,null,null,0.375]
[null,"SHOULDER LENGTH AT SEAM","SHOULDER LENGTH AT SEAM","SHOULDER LENGTH AT SEAM","SHOULDER LENGTH AT SEAM","SHOULDER LENGTH AT SEAM","SHOULDER LENGTH AT SEAM","SHOULDER LENGTH AT SEAM","SHOULDER LENGTH AT SEAM","SHOULDER LENGTH AT SEAM","SHOULDER LENGTH AT SEAM","SHOULDER LENGTH AT SEAM","SHOULDER LENGTH AT SEAM","SHOULDER LENGTH AT SEAM","SHOULDER LENGTH AT SEAM",null,null,null,null,null,null,null,null,null,null,null,null,null,null,null,null,null,0.375]
[null,"ACROSS FRONT (5\" BELOW HIGH SHOULDER POINT)","ACROSS FRONT (5\" BELOW HIGH SHOULDER POINT)","ACROSS FRONT (5\" BELOW HIGH SHOULDER POINT)","ACROSS FRONT (5\" BELOW HIGH SHOULDER POINT)","ACROSS FRONT (5\" BELOW HIGH SHOULDER POINT)","ACROSS FRONT (5\" BELOW HIGH SHOULDER POINT)","ACROSS FRONT (5\" BELOW HIGH SHOULDER POINT)","ACROSS FRONT (5\" BELOW HIGH SHOULDER POINT)","ACROSS FRONT (5\" BELOW HIGH SHOULDER POINT)","ACROSS FRONT (5\" BELOW HIGH SHOULDER POINT)","ACROSS FRONT (5\" BELOW HIGH SHOULDER POINT)","ACROSS FRONT (5\" BELOW HIGH SHOULDER POINT)","ACROSS FRONT (5\" BELOW HIGH SHOULDER POINT)","ACROSS FRONT (5\" BELOW HIGH SHOULDER POINT)",null,null,null,null,null,null,null,null,null,null,null,null,null,null,null,null,null,0.375]
[null,"ACROSS BACK (5\" BELOW HIGH SHOULDER POINT)","ACROSS BACK (5\" BELOW HIGH SHOULDER POINT)","ACROSS BACK (5\" BELOW HIGH SHOULDER POINT)","ACROSS BACK (5\" BELOW HIGH SHOULDER POINT)","ACROSS BACK (5\" BELOW HIGH SHOULDER POINT)","ACROSS BACK (5\" BELOW HIGH SHOULDER POINT)","ACROSS BACK (5\" BELOW HIGH SHOULDER POINT)","ACROSS BACK (5\" BELOW HIGH SHOULDER POINT)","ACROSS BACK (5\" BELOW HIGH SHOULDER POINT)","ACROSS BACK (5\" BELOW HIGH SHOULDER POINT)","ACROSS BACK (5\" BELOW HIGH SHOULDER POINT)","ACROSS BACK (5\" BELOW HIGH SHOULDER POINT)","ACROSS BACK (5\" BELOW HIGH SHOULDER POINT)","ACROSS BACK (5\" BELOW HIGH SHOULDER POINT)",null,null,null,null,null,null,null,null,null,null,null,null,null,null,null,null,null,0.25]
[null,"OVERARM (FROM SLEEVE CAP TO HEM)-SHORT SLEEVE","OVERARM (FROM SLEEVE CAP TO HEM)-SHORT SLEEVE","OVERARM (FROM SLEEVE CAP TO HEM)-SHORT SLEEVE","OVERARM (FROM SLEEVE CAP TO HEM)-SHORT SLEEVE","OVERARM (FROM SLEEVE CAP TO HEM)-SHORT SLEEVE","OVERARM (FROM SLEEVE CAP TO HEM)-SHORT SLEEVE","OVERARM (FROM SLEEVE CAP TO HEM)-SHORT SLEEVE","OVERARM (FROM SLEEVE CAP TO HEM)-SHORT SLEEVE","OVERARM (FROM SLEEVE CAP TO HEM)-SHORT SLEEVE","OVERARM (FROM SLEEVE CAP TO HEM)-SHORT SLEEVE","OVERARM (FROM SLEEVE CAP TO HEM)-SHORT SLEEVE","OVERARM (FROM SLEEVE CAP TO HEM)-SHORT SLEEVE","OVERARM (FROM SLEEVE CAP TO HEM)-SHORT SLEEVE","OVERARM (FROM SLEEVE CAP TO HEM)-SHORT SLEEVE",null,null,null,null,null,null,null,null,null,null,null,null,null,null,null,null,null,0.25]
[null,"OVERARM (FROM SLEEVE CAP TO HEM)- 3/4 SLEEVE","OVERARM (FROM SLEEVE CAP TO HEM)- 3/4 SLEEVE","OVERARM (FROM SLEEVE CAP TO HEM)- 3/4 SLEEVE","OVERARM (FROM SLEEVE CAP TO HEM)- 3/4 SLEEVE","OVERARM (FROM SLEEVE CAP TO HEM)- 3/4 SLEEVE","OVERARM (FROM SLEEVE CAP TO HEM)- 3/4 SLEEVE","OVERARM (FROM SLEEVE CAP TO HEM)- 3/4 SLEEVE","OVERARM (FROM SLEEVE CAP TO HEM)- 3/4 SLEEVE","OVERARM (FROM SLEEVE CAP TO HEM)- 3/4 SLEEVE","OVERARM (FROM SLEEVE CAP TO HEM)- 3/4 SLEEVE","OVERARM (FROM SLEEVE CAP TO HEM)- 3/4 SLEEVE","OVERARM (FROM SLEEVE CAP TO HEM)- 3/4 SLEEVE","OVERARM (FROM SLEEVE CAP TO HEM)- 3/4 SLEEVE","OVERARM (FROM SLEEVE CAP TO HEM)- 3/4 SLEEVE",null,null,null,null,null,null,null,null,null,null,null,null,null,null,null,null,null,0.375]
[null,"OVERARM (FROM SLEEVE CAP TO HEM)- LONG SLEEVE","OVERARM (FROM SLEEVE CAP TO HEM)- LONG SLEEVE","OVERARM (FROM SLEEVE CAP TO HEM)- LONG SLEEVE","OVERARM (FROM SLEEVE CAP TO HEM)- LONG SLEEVE","OVERARM (FROM SLEEVE CAP TO HEM)- LONG SLEEVE","OVERARM (FROM SLEEVE CAP TO HEM)- LONG SLEEVE","OVERARM (FROM SLEEVE CAP TO HEM)- LONG SLEEVE","OVERARM (FROM SLEEVE CAP TO HEM)- LONG SLEEVE","OVERARM (FROM SLEEVE CAP TO HEM)- LONG SLEEVE","OVERARM (FROM SLEEVE CAP TO HEM)- LONG SLEEVE","OVERARM (FROM SLEEVE CAP TO HEM)- LONG SLEEVE","OVERARM (FROM SLEEVE CAP TO HEM)- LONG SLEEVE","OVERARM (FROM SLEEVE CAP TO HEM)- LONG SLEEVE","OVERARM (FROM SLEEVE CAP TO HEM)- LONG SLEEVE",null,null,null,null,null,null,null,null,null,null,null,null,null,null,null,null,null,0.25]
[null,"1/2 ARMHOLE STRAIGHT","1/2 ARMHOLE STRAIGHT","1/2 ARMHOLE STRAIGHT","1/2 ARMHOLE STRAIGHT","1/2 ARMHOLE STRAIGHT","1/2 ARMHOLE STRAIGHT","1/2 ARMHOLE STRAIGHT","1/2 ARMHOLE STRAIGHT","1/2 ARMHOLE STRAIGHT","1/2 ARMHOLE STRAIGHT","1/2 ARMHOLE STRAIGHT","1/2 ARMHOLE STRAIGHT","1/2 ARMHOLE STRAIGHT","1/2 ARMHOLE STRAIGHT",null,null,null,null,null,null,null,null,null,null,null,null,null,null,null,null,null,0.25]
[null,"BICEP (1\" BELOW ARMHOLE)","BICEP (1\" BELOW ARMHOLE)","BICEP (1\" BELOW ARMHOLE)","BICEP (1\" BELOW ARMHOLE)","BICEP (1\" BELOW ARMHOLE)","BICEP (1\" BELOW ARMHOLE)","BICEP (1\" BELOW ARMHOLE)","BICEP (1\" BELOW ARMHOLE)","BICEP (1\" BELOW ARMHOLE)","BICEP (1\" BELOW ARMHOLE)","BICEP (1\" BELOW ARMHOLE)","BICEP (1\" BELOW ARMHOLE)","BICEP (1\" BELOW ARMHOLE)","BICEP (1\" BELOW ARMHOLE)",null,null,null,null,null,null,null,null,null,null,null,null,null,null,null,null,null,0.25]
[null,"ELBOW (8 1/2\" BELOW ARMHOLE)","ELBOW (8 1/2\" BELOW ARMHOLE)","ELBOW (8 1/2\" BELOW ARMHOLE)","ELBOW (8 1/2\" BELOW ARMHOLE)","ELBOW (8 1/2\" BELOW ARMHOLE)","ELBOW (8 1/2\" BELOW ARMHOLE)","ELBOW (8 1/2\" BELOW ARMHOLE)","ELBOW (8 1/2\" BELOW ARMHOLE)","ELBOW (8 1/2\" BELOW ARMHOLE)","ELBOW (8 1/2\" BELOW ARMHOLE)","ELBOW (8 1/2\" BELOW ARMHOLE)","ELBOW (8 1/2\" BELOW ARMHOLE)","ELBOW (8 1/2\" BELOW ARMHOLE)","ELBOW (8 1/2\" BELOW ARMHOLE)",null,null,null,null,null,null,null,null,null,null,null,null,null,null,null,null,null,0.25]
[null,"SHORT SLEEVE OPENING","SHORT SLEEVE OPENING","SHORT SLEEVE OPENING","SHORT SLEEVE OPENING","SHORT SLEEVE OPENING","SHORT SLEEVE OPENING","SHORT SLEEVE OPENING","SHORT SLEEVE OPENING","SHORT SLEEVE OPENING","SHORT SLEEVE OPENING","SHORT SLEEVE OPENING","SHORT SLEEVE OPENING","SHORT SLEEVE OPENING","SHORT SLEEVE OPENING",null,null,null,null,null,null,null,null,null,null,null,null,null,null,null,null,null,0.25]
[null,"3/4 SLEEVE OPENING","3/4 SLEEVE OPENING","3/4 SLEEVE OPENING","3/4 SLEEVE OPENING","3/4 SLEEVE OPENING","3/4 SLEEVE OPENING","3/4 SLEEVE OPENING","3/4 SLEEVE OPENING","3/4 SLEEVE OPENING","3/4 SLEEVE OPENING","3/4 SLEEVE OPENING","3/4 SLEEVE OPENING","3/4 SLEEVE OPENING","3/4 SLEEVE OPENING",null,null,null,null,null,null,null,null,null,null,null,null,null,null,null,null,null,0.25]
[null,"LONG SLEEVE OPENING","LONG SLEEVE OPENING","LONG SLEEVE OPENING","LONG SLEEVE OPENING","LONG SLEEVE OPENING","LONG SLEEVE OPENING","LONG SLEEVE OPENING","LONG SLEEVE OPENING","LONG SLEEVE OPENING","LONG SLEEVE OPENING","LONG SLEEVE OPENING","LONG SLEEVE OPENING","LONG SLEEVE OPENING","LONG SLEEVE OPENING",null,null,null,null,null,null,null,null,null,null,null,null,null,null,null,null,null,"1/4"]
[null,"SLEEVE CAP HEIGHT ( FROM TOP OF SLEEVE TO UNDERARM )","SLEEVE CAP HEIGHT ( FROM TOP OF SLEEVE TO UNDERARM )","SLEEVE CAP HEIGHT ( FROM TOP OF SLEEVE TO UNDERARM )","SLEEVE CAP HEIGHT ( FROM TOP OF SLEEVE TO UNDERARM )","SLEEVE CAP HEIGHT ( FROM TOP OF SLEEVE TO UNDERARM )","SLEEVE CAP HEIGHT ( FROM TOP OF SLEEVE TO UNDERARM )","SLEEVE CAP HEIGHT ( FROM TOP OF SLEEVE TO UNDERARM )","SLEEVE CAP HEIGHT ( FROM TOP OF SLEEVE TO UNDERARM )","SLEEVE CAP HEIGHT ( FROM TOP OF SLEEVE TO UNDERARM )","SLEEVE CAP HEIGHT ( FROM TOP OF SLEEVE TO UNDERARM )","SLEEVE CAP HEIGHT ( FROM TOP OF SLEEVE TO UNDERARM )","SLEEVE CAP HEIGHT ( FROM TOP OF SLEEVE TO UNDERARM )","SLEEVE CAP HEIGHT ( FROM TOP OF SLEEVE TO UNDERARM )","SLEEVE CAP HEIGHT ( FROM TOP OF SLEEVE TO UNDERARM )",null,null,null,null,null,null,null,null,null,null,null,null,null,null,null,null,null,0]
[null,"SHOULDER SLOPE ( HSP TO SHOULDER ARMHOLE SEAM )","SHOULDER SLOPE ( HSP TO SHOULDER ARMHOLE SEAM )","SHOULDER SLOPE ( HSP TO SHOULDER ARMHOLE SEAM )","SHOULDER SLOPE ( HSP TO SHOULDER ARMHOLE SEAM )","SHOULDER SLOPE ( HSP TO SHOULDER ARMHOLE SEAM )","SHOULDER SLOPE ( HSP TO SHOULDER ARMHOLE SEAM )","SHOULDER SLOPE ( HSP TO SHOULDER ARMHOLE SEAM )","SHOULDER SLOPE ( HSP TO SHOULDER ARMHOLE SEAM )","SHOULDER SLOPE ( HSP TO SHOULDER ARMHOLE SEAM )","SHOULDER SLOPE ( HSP TO SHOULDER ARMHOLE SEAM )","SHOULDER SLOPE ( HSP TO SHOULDER ARMHOLE SEAM )","SHOULDER SLOPE ( HSP TO SHOULDER ARMHOLE SEAM )","SHOULDER SLOPE ( HSP TO SHOULDER ARMHOLE SEAM )","SHOULDER SLOPE ( HSP TO SHOULDER ARMHOLE SEAM )",null,null,null,null,null,null,null,null,null,null,null,null,null,null,null,null,null,0.25]
[null,"NECK WIDTH (HSP TO HSP) ON BACK","NECK WIDTH (HSP TO HSP) ON BACK","NECK WIDTH (HSP TO HSP) ON BACK","NECK WIDTH (HSP TO HSP) ON BACK","NECK WIDTH (HSP TO HSP) ON BACK","NECK WIDTH (HSP TO HSP) ON BACK","NECK WIDTH (HSP TO HSP) ON BACK","NECK WIDTH (HSP TO HSP) ON BACK","NECK WIDTH (HSP TO HSP) ON BACK","NECK WIDTH (HSP TO HSP) ON BACK","NECK WIDTH (HSP TO HSP) ON BACK","NECK WIDTH (HSP TO HSP) ON BACK","NECK WIDTH (HSP TO HSP) ON BACK","NECK WIDTH (HSP TO HSP) ON BACK",null,null,null,null,null,null,null,null,null,null,null,null,null,null,null,null,null,0.25]
[null,"FRONT NECK DROP ( FROM HSP TO CENTER FRONT NECK EDGE OR SEAM )","FRONT NECK DROP ( FROM HSP TO CENTER FRONT NECK EDGE OR SEAM )","FRONT NECK DROP ( FROM HSP TO CENTER FRONT NECK EDGE OR SEAM )","FRONT NECK DROP ( FROM HSP TO CENTER FRONT NECK EDGE OR SEAM )","FRONT NECK DROP ( FROM HSP TO CENTER FRONT NECK EDGE OR SEAM )","FRONT NECK DROP ( FROM HSP TO CENTER FRONT NECK EDGE OR SEAM )","FRONT NECK DROP ( FROM HSP TO CENTER FRONT NECK EDGE OR SEAM )","FRONT NECK DROP ( FROM HSP TO CENTER FRONT NECK EDGE OR SEAM )","FRONT NECK DROP ( FROM HSP TO CENTER FRONT NECK EDGE OR SEAM )","FRONT NECK DROP ( FROM HSP TO CENTER FRONT NECK EDGE OR SEAM )","FRONT NECK DROP ( FROM HSP TO CENTER FRONT NECK EDGE OR SEAM )","FRONT NECK DROP ( FROM HSP TO CENTER FRONT NECK EDGE OR SEAM )","FRONT NECK DROP ( FROM HSP TO CENTER FRONT NECK EDGE OR SEAM )","FRONT NECK DROP ( FROM HSP TO CENTER FRONT NECK EDGE OR SEAM )",null,null,null,null,null,null,null,null,null,null,null,null,null,null,null,null,null,0.25]
[null,"BACK NECK DROP ( FROM HSP TO CENTER BACK NECK EDGE OR SEAM )","BACK NECK DROP ( FROM HSP TO CENTER BACK NECK EDGE OR SEAM )","BACK NECK DROP ( FROM HSP TO CENTER BACK NECK EDGE OR SEAM )","BACK NECK DROP ( FROM HSP TO CENTER BACK NECK EDGE OR SEAM )","BACK NECK DROP ( FROM HSP TO CENTER BACK NECK EDGE OR SEAM )","BACK NECK DROP ( FROM HSP TO CENTER BACK NECK EDGE OR SEAM )","BACK NECK DROP ( FROM HSP TO CENTER BACK NECK EDGE OR SEAM )","BACK NECK DROP ( FROM HSP TO CENTER BACK NECK EDGE OR SEAM )","BACK NECK DROP ( FROM HSP TO CENTER BACK NECK EDGE OR SEAM )","BACK NECK DROP ( FROM HSP TO CENTER BACK NECK EDGE OR SEAM )","BACK NECK DROP ( FROM HSP TO CENTER BACK NECK EDGE OR SEAM )","BACK NECK DROP ( FROM HSP TO CENTER BACK NECK EDGE OR SEAM )","BACK NECK DROP ( FROM HSP TO CENTER BACK NECK EDGE OR SEAM )","BACK NECK DROP ( FROM HSP TO CENTER BACK NECK EDGE OR SEAM )",null,null,null,null,null,null,null,null,null,null,null,null,null,null,null,null,null,0.25]
[null,"1/2 NECK CIRCUMFERENCE","1/2 NECK CIRCUMFERENCE","1/2 NECK CIRCUMFERENCE","1/2 NECK CIRCUMFERENCE","1/2 NECK CIRCUMFERENCE","1/2 NECK CIRCUMFERENCE","1/2 NECK CIRCUMFERENCE","1/2 NECK CIRCUMFERENCE","1/2 NECK CIRCUMFERENCE","1/2 NECK CIRCUMFERENCE","1/2 NECK CIRCUMFERENCE","1/2 NECK CIRCUMFERENCE","1/2 NECK CIRCUMFERENCE","1/2 NECK CIRCUMFERENCE",null,null,null,null,null,null,null,null,null,null,null,null,null,null,null,null,null,0]
[null,"COLLAR DEPTH ( AT C.B. NECK )","COLLAR DEPTH ( AT C.B. NECK )","COLLAR DEPTH ( AT C.B. NECK )","COLLAR DEPTH ( AT C.B. NECK )","COLLAR DEPTH ( AT C.B. NECK )","COLLAR DEPTH ( AT C.B. NECK )","COLLAR DEPTH ( AT C.B. NECK )","COLLAR DEPTH ( AT C.B. NECK )","COLLAR DEPTH ( AT C.B. NECK )","COLLAR DEPTH ( AT C.B. NECK )","COLLAR DEPTH ( AT C.B. NECK )","COLLAR DEPTH ( AT C.B. NECK )","COLLAR DEPTH ( AT C.B. NECK )","COLLAR DEPTH ( AT C.B. NECK )",null,null,null,null,null,null,null,null,null,null,null,null,null,null,null,null,null,0]
[null,"STAND DEPTH","STAND DEPTH","STAND DEPTH","STAND DEPTH","STAND DEPTH","STAND DEPTH","STAND DEPTH","STAND DEPTH","STAND DEPTH","STAND DEPTH","STAND DEPTH","STAND DEPTH","STAND DEPTH","STAND DEPTH",null,null,null,null,null,null,null,null,null,null,null,null,null,null,null,null,null,0.25]
[null,"COLLAR LENGTH","COLLAR LENGTH","COLLAR LENGTH","COLLAR LENGTH","COLLAR LENGTH","COLLAR LENGTH","COLLAR LENGTH","COLLAR LENGTH","COLLAR LENGTH","COLLAR LENGTH","COLLAR LENGTH","COLLAR LENGTH","COLLAR LENGTH","COLLAR LENGTH",null,null,null,null,null,null,null,null,null,null,null,null,null,null,null,null,null,0]
[null,"NECK TRIM DEPTH","NECK TRIM DEPTH","NECK TRIM DEPTH","NECK TRIM DEPTH","NECK TRIM DEPTH","NECK TRIM DEPTH","NECK TRIM DEPTH","NECK TRIM DEPTH","NECK TRIM DEPTH","NECK TRIM DEPTH","NECK TRIM DEPTH","NECK TRIM DEPTH","NECK TRIM DEPTH","NECK TRIM DEPTH",null,null,null,null,null,null,null,null,null,null,null,null,null,null,null,null,null,0]
[null,"CUFF DEPTH","CUFF DEPTH","CUFF DEPTH","CUFF DEPTH","CUFF DEPTH","CUFF DEPTH","CUFF DEPTH","CUFF DEPTH","CUFF DEPTH","CUFF DEPTH","CUFF DEPTH","CUFF DEPTH","CUFF DEPTH","CUFF DEPTH",null,null,null,null,null,null,null,null,null,null,null,null,null,null,null,null,null,0]
[null,"SLEEVE HEM DEPTH","SLEEVE HEM DEPTH","SLEEVE HEM DEPTH","SLEEVE HEM DEPTH","SLEEVE HEM DEPTH","SLEEVE HEM DEPTH","SLEEVE HEM DEPTH","SLEEVE HEM DEPTH","SLEEVE HEM DEPTH","SLEEVE HEM DEPTH","SLEEVE HEM DEPTH","SLEEVE HEM DEPTH","SLEEVE HEM DEPTH","SLEEVE HEM DEPTH",null,null,null,null,null,null,null,null,null,null,null,null,null,null,null,null,null,0]
[null,"BOTTOM HEM DEPTH","BOTTOM HEM DEPTH","BOTTOM HEM DEPTH","BOTTOM HEM DEPTH","BOTTOM HEM DEPTH","BOTTOM HEM DEPTH","BOTTOM HEM DEPTH","BOTTOM HEM DEPTH","BOTTOM HEM DEPTH","BOTTOM HEM DEPTH","BOTTOM HEM DEPTH","BOTTOM HEM DEPTH","BOTTOM HEM DEPTH","BOTTOM HEM DEPTH",null,null,null,null,null,null,null,null,null,null,null,null,null,null,null,null,null,0.375]
[null,"HSP TO BUST POINT","HSP TO BUST POINT","HSP TO BUST POINT","HSP TO BUST POINT","HSP TO BUST POINT","HSP TO BUST POINT","HSP TO BUST POINT","HSP TO BUST POINT","HSP TO BUST POINT","HSP TO BUST POINT","HSP TO BUST POINT","HSP TO BUST POINT","HSP TO BUST POINT","HSP TO BUST POINT"]
[]
[]
[]
[]
[null,"Sample Approved?"]
[null,"If sample is NOT approved, then submit 4th Fit Sample. If sample is APPROVED, then submit Pre-Production Samples."]

{"sheet":"3rd Fit Photo Comments","index":13,"n_rows":15,"n_cols":40,"rows_kept":15,"cut":false,"hidden":true,"merged":[[5,16,5,34],[7,1,7,18],[7,19,7,22],[7,23,7,31],[1,16,1,22],[2,16,2,34],[3,16,3,22],[3,30,3,34],[4,16,4,22],[4,29,4,34]]}
[]
[null,null,null,null,null,null,null,null,null,null,null,"Create Date:",null,null,null,null,{"$f":"'ORIGINAL PHOTO'!Q2:W2","v":"MARCH 15/2017"}]
[null,null,null,null,null,null,null,null,null,null,null,"Vendor Name:",null,null,null,null,{"$f":"'ORIGINAL PHOTO'!Q3:AI3","v":0}]
[null,null,null,null,null,null,null,null,null,null,null,"Vndr.Item No.:",null,null,null,null,{"$f":"'ORIGINAL PHOTO'!Q4:W4","v":0},null,null,null,null,null,null,null,null,null,"GC Item No.:",null,null,null,{"$f":"'ORIGINAL PHOTO'!AE4:AI4","v":0}]
[null,null,null,null,null,null,null,null,null,null,null,"Size Range:",null,null,null,null,{"$f":"'ORIGINAL PHOTO'!Q5:W5","v":"S-M-L-XL"},null,null,null,null,null,null,null,null,null,"Season:",null,null,{"$f":"'ORIGINAL PHOTO'!AD5:AI5","v":"Spring Summer 2018"}]
[null,null,null,null,null,null,null,null,null,null,null,"Description:",null,null,null,null,{"$f":"'ORIGINAL PHOTO'!Q6:AI6","v":"MEN'S LONG SLEEVE ZIP FRONT SCOOP HEM HOODIE WITH LINED HOOD"}]
[]
[null,"3RD FIT PHOTO COMMENTS-- COAT",null,null,null,null,null,null,null,null,null,null,null,null,null,null,null,null,null,"Date:",null,null,null,null,null,null,null,null,null,null,null,null,null,null,null,null,null,null,null,"L"]
[null,null,null,null,null,null,null,null,null,null,null,null,null,null,null,null,null,null,null,null,null,null,null,null,null,null,null,null,null,null,null,null,null,null,null,null,null,null,null,"LXL"]
[null,null,null,null,null,null,null,null,null,null,null,null,null,null,null,null,null,null,null,null,null,null,null,null,null,null,null,null,null,null,null,null,null,null,null,null,null,null,null,"M"]
[null,null,null,null,null,null,null,null,null,null,null,null,null,null,null,null,null,null,null,null,null,null,null,null,null,null,null,null,null,null,null,null,null,null,null,null,null,null,null,"S"]
[null,null,null,null,null,null,null,null,null,null,null,null,null,null,null,null,null,null,null,null,null,null,null,null,null,null,null,null,null,null,null,null,null,null,null,null,null,null,null,"SM"]
[null,null,null,null,null,null,null,null,null,null,null,null,null,null,null,null,null,null,null,null,null,null,null,null,null,null,null,null,null,null,null,null,null,null,null,null,null,null,null,"XL"]
[null,null,null,null,null,null,null,null,null,null,null,null,null,null,null,null,null,null,null,null,null,null,null,null,null,null,null,null,null,null,null,null,null,null,null,null,null,null,null,"XXL"]
[null,null,null,null,null,null,null,null,null,null,null,null,null,null,null,null,null,null,null,null,null,null,null,null,null,null,null,null,null,null,null,null,null,null,null,null,null,null,null,"XXXL"]

{"sheet":"Grade XS-S-M-L-XL ","index":14,"n_rows":53,"n_cols":40,"rows_kept":53,"cut":false,"hidden":true,"merged":[[1,16,1,22],[2,16,2,34],[3,16,3,22],[3,30,3,34],[4,16,4,22],[4,29,4,34],[5,16,5,34],[7,1,7,18],[7,19,7,22],[7,23,7,31],[8,32,9,34],[10,1,10,14],[10,15,10,16],[10,17,10,18],[10,19,10,20],[10,21,10,22],[10,23,10,24],[10,25,10,26],[10,27,10,28],[10,29,10,30],[10,32,10,34],[8,1,9,14],[8,15,9,16],[8,17,9,18],[8,19,9,20],[8,21,9,22],[8,23,9,24],[8,25,9,26],[8,27,9,28],[8,29,9,30],[11,32,11,34],[12,1,12,14],[12,15,12,16],[12,17,12,18],[12,19,12,20],[12,21,12,22],[12,23,12,24],[12,25,12,26],[12,27,12,28],[12,29,12,30],[12,32,12,34],[11,1,11,14],[11,15,11,16],[11,17,11,18],[11,19,11,20],[11,21,11,22],[11,23,11,24],[11,25,11,26],[11,27,11,28],[11,29,11,30],[13,32,13,34],[14,1,14,14],[14,15,14,16],[14,17,14,18],[14,19,14,20],[14,21,14,22],[14,23,14,24],[14,25,14,26],[14,27,14,28],[14,29,14,30],[14,32,14,34],[13,1,13,14],[13,15,13,16],[13,17,13,18],[13,19,13,20],[13,21,13,22],[13,23,13,24],[13,25,13,26],[13,27,13,28],[13,29,13,30],[15,32,15,34],[16,1,16,14],[16,15,16,16],[16,17,16,18],[16,19,16,20],[16,21,16,22],[16,23,16,24],[16,25,16,26],[16,27,16,28],[16,29,16,30],[16,32,16,34],[15,1,15,14],[15,15,15,16],[15,17,15,18],[15,19,15,20],[15,21,15,22],[15,23,15,24],[15,25,15,26],[15,27,15,28],[15,29,15,30],[17,32,17,34],[18,1,18,14],[18,15,18,16],[18,17,18,18],[18,19,18,20],[18,21,18,22],[18,23,18,24],[18,25,18,26],[18,27,18,28],[18,29,18,30],[18,32,18,34],[17,1,17,14],[17,15,17,16],[17,17,17,18],[17,19,17,20],[17,21,17,22],[17,23,17,24],[17,25,17,26],[17,27,17,28],[17,29,17,30],[19,32,19,34],[20,1,20,14],[20,15,20,16],[20,17,20,18],[20,19,20,20],[20,21,20,22],[20,23,20,24],[20,25,20,26],[20,27,20,28],[20,29,20,30],[20,32,20,34],[19,1,19,14],[19,15,19,16],[19,17,19,18],[19,19,19,20],[19,21,19,22],[19,23,19,24],[19,25,19,26],[19,27,19,28],[19,29,19,30],[21,32,21,34],[22,1,22,14],[22,15,22,16],[22,17,22,18],[22,19,22,20],[22,21,22,22],[22,23,22,24],[22,25,22,26],[22,27,22,28],[22,29,22,30],[22,32,22,34],[21,1,21,14],[21,15,21,16],[21,17,21,18],[21,19,21,20],[21,21,21,22],[21,23,21,24],[21,25,21,26],[21,27,21,28],[21,29,21,30],[23,32,23,34],[24,1,24,14],[24,15,24,16],[24,17,24,18],[24,19,24,20],[24,21,24,22],[24,23,24,24],[24,25,24,26],[24,27,24,28],[24,29,24,30],[24,32,24,34],[23,1,23,14],[23,15,23,16],[23,17,23,18],[23,19,23,20],[23,21,23,22],[23,23,23,24],[23,25,23,26],[23,27,23,28],[23,29,23,30],[25,32,25,34],[26,1,26,14],[26,15,26,16],[26,17,26,18],[26,19,26,20],[26,21,26,22],[26,23,26,24],[26,25,26,26],[26,27,26,28],[26,29,26,30],[26,32,26,34],[25,1,25,14],[25,15,25,16],[25,17,25,18],[25,19,25,20],[25,21,25,22],[25,23,25,24],[25,25,25,26],[25,27,25,28],[25,29,25,30],[27,32,27,34],[28,1,28,14],[28,15,28,16],[28,17,28,18],[28,19,28,20],[28,21,28,22],[28,23,28,24],[28,25,28,26],[28,27,28,28],[28,29,28,30],[28,32,28,34],[27,1,27,14],[27,15,27,16],[27,17,27,18],[27,19,27,20],[27,21,27,22],[27,23,27,24],[27,25,27,26],[27,27,27,28],[27,29,27,30],[29,32,29,34],[30,1,30,14],[30,15,30,16],[30,17,30,18],[30,19,30,20],[30,21,30,22],[30,23,30,24],[30,25,30,26],[30,27,30,28],[30,29,30,30],[30,32,30,34],[29,1,29,14],[29,15,29,16],[29,17,29,18],[29,19,29,20],[29,21,29,22],[29,23,29,24],[29,25,29,26],[29,27,29,28],[29,29,29,30],[31,32,31,34],[32,1,32,14],[32,15,32,16],[32,17,32,18],[32,19,32,20],[32,21,32,22],[32,23,32,24],[32,25,32,26],[32,27,32,28],[32,29,32,30],[32,32,32,34],[31,1,31,14],[31,15,31,16],[31,17,31,18],[31,19,31,20],[31,21,31,22],[31,23,31,24],[31,25,31,26],[31,27,31,28],[31,29,31,30],[33,32,33,34],[34,1,34,14],[34,15,34,16],[34,17,34,18],[34,19,34,20],[34,21,34,22],[34,23,34,24],[34,25,34,26],[34,27,34,28],[34,29,34,30],[34,32,34,34],[33,1,33,14],[33,15,33,16],[33,17,33,18],[33,19,33,20],[33,21,33,22],[33,23,33,24],[33,25,33,26],[33,27,33,28],[33,29,33,30],[35,32,35,34],[36,1,36,14],[36,15,36,16],[36,17,36,18],[36,19,36,20],[36,21,36,22],[36,23,36,24],[36,25,36,26],[36,27,36,28],[36,29,36,30],[36,32,36,34],[35,1,35,14],[35,15,35,16],[35,17,35,18],[35,19,35,20],[35,21,35,22],[35,23,35,24],[35,25,35,26],[35,27,35,28],[35,29,35,30],[37,32,37,34],[38,1,38,14],[38,15,38,16],[38,17,38,18],[38,19,38,20],[38,21,38,22],[38,23,38,24],[38,25,38,26],[38,27,38,28],[38,29,38,30],[38,32,38,34],[37,1,37,14],[37,15,37,16],[37,17,37,18],[37,19,37,20],[37,21,37,22],[37,23,37,24],[37,25,37,26],[37,27,37,28],[37,29,37,30],[39,32,39,34],[40,1,40,14],[40,15,40,16],[40,17,40,18],[40,19,40,20],[40,21,40,22],[40,23,40,24],[40,25,40,26],[40,27,40,28],[40,29,40,30],[40,32,40,34],[39,1,39,14],[39,15,39,16],[39,17,39,18],[39,19,39,20],[39,21,39,22],[39,23,39,24],[39,25,39,26],[39,27,39,28],[39,29,39,30],[41,32,41,34],[42,1,42,14],[42,15,42,16],[42,17,42,18],[42,19,42,20],[42,21,42,22],[42,23,42,24],[42,25,42,26],[42,27,42,28],[42,29,42,30],[42,32,42,34],[41,1,41,14],[41,15,41,16],[41,17,41,18],[41,19,41,20],[41,21,41,22],[41,23,41,24],[41,25,41,26],[41,27,41,28],[41,29,41,30],[43,32,43,34],[44,1,44,14],[44,15,44,16],[44,17,44,18],[44,19,44,20],[44,21,44,22],[44,23,44,24],[44,25,44,26],[44,27,44,28],[44,29,44,30],[44,32,44,34],[43,1,43,14],[43,15,43,16],[43,17,43,18],[43,19,43,20],[43,21,43,22],[43,23,43,24],[43,25,43,26],[43,27,43,28],[43,29,43,30],[45,32,45,34],[46,1,46,14],[46,15,46,16],[46,17,46,18],[46,19,46,20],[46,21,46,22],[46,23,46,24],[46,25,46,26],[46,27,46,28],[46,29,46,30],[46,32,46,34],[45,1,45,14],[45,15,45,16],[45,17,45,18],[45,19,45,20],[45,21,45,22],[45,23,45,24],[45,25,45,26],[45,27,45,28],[45,29,45,30],[47,32,47,34],[48,1,48,14],[48,15,48,16],[48,17,48,18],[48,19,48,20],[48,21,48,22],[48,23,48,24],[48,25,48,26],[48,27,48,28],[48,29,48,30],[48,32,48,34],[47,1,47,14],[47,15,47,16],[47,17,47,18],[47,19,47,20],[47,21,47,22],[47,23,47,24],[47,25,47,26],[47,27,47,28],[47,29,47,30],[50,32,50,34],[52,1,52,34],[49,25,49,26],[49,27,49,28],[49,29,49,30],[49,32,49,34],[50,1,50,14],[50,15,50,16],[50,17,50,18],[50,19,50,20],[50,21,50,22],[50,23,50,24],[49,1,49,14],[49,15,49,16],[49,17,49,18],[49,19,49,20],[49,21,49,22],[49,23,49,24],[50,25,50,26],[50,27,50,28],[50,29,50,30]]}
[]
[null,null,null,null,null,null,null,null,null,null,null,"Create Date:",null,null,null,null,{"$f":"'ORIGINAL PHOTO'!Q2:W2","v":"MARCH 15/2017"}]
[null,null,null,null,null,null,null,null,null,null,null,"Vendor Name:",null,null,null,null,{"$f":"'ORIGINAL PHOTO'!Q3:AI3","v":0}]
[null,null,null,null,null,null,null,null,null,null,null,"Vndr.Item No.:",null,null,null,null,{"$f":"'ORIGINAL PHOTO'!Q4:W4","v":0},null,null,null,null,null,null,null,null,null,"GC Item No.:",null,null,null,{"$f":"'ORIGINAL PHOTO'!AE4:AI4","v":0}]
[null,null,null,null,null,null,null,null,null,null,null,"Size Range:",null,null,null,null,{"$f":"'ORIGINAL PHOTO'!Q5:W5","v":"S-M-L-XL"},null,null,null,null,null,null,null,null,null,"Season:",null,null,{"$f":"'ORIGINAL PHOTO'!AD5:AI5","v":"Spring Summer 2018"}]
[null,null,null,null,null,null,null,null,null,null,null,"Description:",null,null,null,null,{"$f":"'ORIGINAL PHOTO'!Q6:AI6","v":"MEN'S LONG SLEEVE ZIP FRONT SCOOP HEM HOODIE WITH LINED HOOD"}]
[]
[null,"GRADE SHEET -- COAT",null,null,null,null,null,null,null,null,null,null,null,null,null,null,null,null,null,"Date:",null,null,null,null,null,null,null,null,null,null,null,null,null,null,null,null,null,null,null,"L"]
[null,"(Measurements on flat / inches)",null,null,null,null,null,null,null,null,null,null,null,null,null,"XS",null,null,null,"S",null,null,null,"M",null,null,null,"L",null,"XL",null,null,"Tolerance\n+ / -\n(on flat)",null,null,null,null,null,null,"LXL"]
[null,null,null,null,null,null,null,null,null,null,null,null,null,null,null,null,null,null,null,null,null,null,null,null,null,null,null,null,null,null,null,null,null,null,null,null,null,null,null,"M"]
[null,"BACK LENGTH FROM (HIGH SHOULDER POINT)","BACK LENGTH FROM (HIGH SHOULDER POINT)","BACK LENGTH FROM (HIGH SHOULDER POINT)","BACK LENGTH FROM (HIGH SHOULDER POINT)","BACK LENGTH FROM (HIGH SHOULDER POINT)","BACK LENGTH FROM (HIGH SHOULDER POINT)","BACK LENGTH FROM (HIGH SHOULDER POINT)","BACK LENGTH FROM (HIGH SHOULDER POINT)","BACK LENGTH FROM (HIGH SHOULDER POINT)","BACK LENGTH FROM (HIGH SHOULDER POINT)","BACK LENGTH FROM (HIGH SHOULDER POINT)","BACK LENGTH FROM (HIGH SHOULDER POINT)","BACK LENGTH FROM (HIGH SHOULDER POINT)","BACK LENGTH FROM (HIGH SHOULDER POINT)",{"$f":"X11-1/2","v":-0.5},null,null,null,{"$f":"X11-1/4","v":-0.25},null,null,null,0,null,null,null,{"$f":"X11+0.375","v":0.375},null,{"$f":"X11+0.75","v":0.75},null,null,0.375,null,null,null,null,null,null,"S"]
[null,"CENTER BACK LENGTH ( FROM NECK TO HEM )","CENTER BACK LENGTH ( FROM NECK TO HEM )","CENTER BACK LENGTH ( FROM NECK TO HEM )","CENTER BACK LENGTH ( FROM NECK TO HEM )","CENTER BACK LENGTH ( FROM NECK TO HEM )","CENTER BACK LENGTH ( FROM NECK TO HEM )","CENTER BACK LENGTH ( FROM NECK TO HEM )","CENTER BACK LENGTH ( FROM NECK TO HEM )","CENTER BACK LENGTH ( FROM NECK TO HEM )","CENTER BACK LENGTH ( FROM NECK TO HEM )","CENTER BACK LENGTH ( FROM NECK TO HEM )","CENTER BACK LENGTH ( FROM NECK TO HEM )","CENTER BACK LENGTH ( FROM NECK TO HEM )","CENTER BACK LENGTH ( FROM NECK TO HEM )",null,null,null,null,null,null,null,null,0,null,null,null,null,null,null,null,null,0.375,null,null,null,null,null,null,"SM"]
[null,"FRONT LENGTH FROM (HIGH SHOULDER POINT)","FRONT LENGTH FROM (HIGH SHOULDER POINT)","FRONT LENGTH FROM (HIGH SHOULDER POINT)","FRONT LENGTH FROM (HIGH SHOULDER POINT)","FRONT LENGTH FROM (HIGH SHOULDER POINT)","FRONT LENGTH FROM (HIGH SHOULDER POINT)","FRONT LENGTH FROM (HIGH SHOULDER POINT)","FRONT LENGTH FROM (HIGH SHOULDER POINT)","FRONT LENGTH FROM (HIGH SHOULDER POINT)","FRONT LENGTH FROM (HIGH SHOULDER POINT)","FRONT LENGTH FROM (HIGH SHOULDER POINT)","FRONT LENGTH FROM (HIGH SHOULDER POINT)","FRONT LENGTH FROM (HIGH SHOULDER POINT)","FRONT LENGTH FROM (HIGH SHOULDER POINT)",{"$f":"X13-0.5","v":-0.5},null,null,null,{"$f":"X13-1/4","v":-0.25},null,null,null,0,null,null,null,{"$f":"X13+0.375","v":0.375},null,{"$f":"X13+0.75","v":0.75},null,null,0.375,null,null,null,null,null,null,"XL"]
[null,"FRONT LENGTH (FROM CENTRE FRONT NECK TO HEM)","FRONT LENGTH (FROM CENTRE FRONT NECK TO HEM)","FRONT LENGTH (FROM CENTRE FRONT NECK TO HEM)","FRONT LENGTH (FROM CENTRE FRONT NECK TO HEM)","FRONT LENGTH (FROM CENTRE FRONT NECK TO HEM)","FRONT LENGTH (FROM CENTRE FRONT NECK TO HEM)","FRONT LENGTH (FROM CENTRE FRONT NECK TO HEM)","FRONT LENGTH (FROM CENTRE FRONT NECK TO HEM)","FRONT LENGTH (FROM CENTRE FRONT NECK TO HEM)","FRONT LENGTH (FROM CENTRE FRONT NECK TO HEM)","FRONT LENGTH (FROM CENTRE FRONT NECK TO HEM)","FRONT LENGTH (FROM CENTRE FRONT NECK TO HEM)","FRONT LENGTH (FROM CENTRE FRONT NECK TO HEM)","FRONT LENGTH (FROM CENTRE FRONT NECK TO HEM)",null,null,null,null,null,null,null,null,0,null,null,null,null,null,null,null,null,0.375,null,null,null,null,null,null,"XXL"]
[null,"CHEST (1\" BELOW ARMHOLE)","CHEST (1\" BELOW ARMHOLE)","CHEST (1\" BELOW ARMHOLE)","CHEST (1\" BELOW ARMHOLE)","CHEST (1\" BELOW ARMHOLE)","CHEST (1\" BELOW ARMHOLE)","CHEST (1\" BELOW ARMHOLE)","CHEST (1\" BELOW ARMHOLE)","CHEST (1\" BELOW ARMHOLE)","CHEST (1\" BELOW ARMHOLE)","CHEST (1\" BELOW ARMHOLE)","CHEST (1\" BELOW ARMHOLE)","CHEST (1\" BELOW ARMHOLE)","CHEST (1\" BELOW ARMHOLE)",{"$f":"X15-2","v":-2},null,null,null,{"$f":"X15-1","v":-1},null,null,null,0,null,null,null,{"$f":"X15+1.5","v":1.5},null,{"$f":"X15+3","v":3},null,null,0.375,null,null,null,null,null,null,"XXXL"]
[null,"WAIST (16 1/2\" BELOW HIGH SHOULDER POINT)","WAIST (16 1/2\" BELOW HIGH SHOULDER POINT)","WAIST (16 1/2\" BELOW HIGH SHOULDER POINT)","WAIST (16 1/2\" BELOW HIGH SHOULDER POINT)","WAIST (16 1/2\" BELOW HIGH SHOULDER POINT)","WAIST (16 1/2\" BELOW HIGH SHOULDER POINT)","WAIST (16 1/2\" BELOW HIGH SHOULDER POINT)","WAIST (16 1/2\" BELOW HIGH SHOULDER POINT)","WAIST (16 1/2\" BELOW HIGH SHOULDER POINT)","WAIST (16 1/2\" BELOW HIGH SHOULDER POINT)","WAIST (16 1/2\" BELOW HIGH SHOULDER POINT)","WAIST (16 1/2\" BELOW HIGH SHOULDER POINT)","WAIST (16 1/2\" BELOW HIGH SHOULDER POINT)","WAIST (16 1/2\" BELOW HIGH SHOULDER POINT)",{"$f":"X16-2","v":-2},null,null,null,-1,null,null,null,0,null,null,null,1.5,null,3,null,null,0.375]
[null,"TOP HIP ( 3\" BELOW WAIST )","TOP HIP ( 3\" BELOW WAIST )","TOP HIP ( 3\" BELOW WAIST )","TOP HIP ( 3\" BELOW WAIST )","TOP HIP ( 3\" BELOW WAIST )","TOP HIP ( 3\" BELOW WAIST )","TOP HIP ( 3\" BELOW WAIST )","TOP HIP ( 3\" BELOW WAIST )","TOP HIP ( 3\" BELOW WAIST )","TOP HIP ( 3\" BELOW WAIST )","TOP HIP ( 3\" BELOW WAIST )","TOP HIP ( 3\" BELOW WAIST )","TOP HIP ( 3\" BELOW WAIST )","TOP HIP ( 3\" BELOW WAIST )",{"$f":"X17-2","v":-2},null,null,null,-1,null,null,null,0,null,null,null,1.5,null,3,null,null,0.375]
[null,"LOW HIP ( 8\" BELOW WAIST)","LOW HIP ( 8\" BELOW WAIST)","LOW HIP ( 8\" BELOW WAIST)","LOW HIP ( 8\" BELOW WAIST)","LOW HIP ( 8\" BELOW WAIST)","LOW HIP ( 8\" BELOW WAIST)","LOW HIP ( 8\" BELOW WAIST)","LOW HIP ( 8\" BELOW WAIST)","LOW HIP ( 8\" BELOW WAIST)","LOW HIP ( 8\" BELOW WAIST)","LOW HIP ( 8\" BELOW WAIST)","LOW HIP ( 8\" BELOW WAIST)","LOW HIP ( 8\" BELOW WAIST)","LOW HIP ( 8\" BELOW WAIST)",{"$f":"X18-2","v":-2},null,null,null,-1,null,null,null,0,null,null,null,1.5,null,3,null,null,0.375]
[null,"HEM STRAIGHT","HEM STRAIGHT","HEM STRAIGHT","HEM STRAIGHT","HEM STRAIGHT","HEM STRAIGHT","HEM STRAIGHT","HEM STRAIGHT","HEM STRAIGHT","HEM STRAIGHT","HEM STRAIGHT","HEM STRAIGHT","HEM STRAIGHT","HEM STRAIGHT",{"$f":"X10-2","v":-2},null,null,null,-1,null,null,null,0,null,null,null,1.5,null,3,null,null,0.375]
[null,"HEM CURVE (FOLLOW)","HEM CURVE (FOLLOW)","HEM CURVE (FOLLOW)","HEM CURVE (FOLLOW)","HEM CURVE (FOLLOW)","HEM CURVE (FOLLOW)","HEM CURVE (FOLLOW)","HEM CURVE (FOLLOW)","HEM CURVE (FOLLOW)","HEM CURVE (FOLLOW)","HEM CURVE (FOLLOW)","HEM CURVE (FOLLOW)","HEM CURVE (FOLLOW)","HEM CURVE (FOLLOW)",{"$f":"X20-2","v":-2},null,null,null,-1,null,null,null,0,null,null,null,1.5,null,3,null,null,0.375]
[null,"ACROSS SHOULDERS ( TOTAL )","ACROSS SHOULDERS ( TOTAL )","ACROSS SHOULDERS ( TOTAL )","ACROSS SHOULDERS ( TOTAL )","ACROSS SHOULDERS ( TOTAL )","ACROSS SHOULDERS ( TOTAL )","ACROSS SHOULDERS ( TOTAL )","ACROSS SHOULDERS ( TOTAL )","ACROSS SHOULDERS ( TOTAL )","ACROSS SHOULDERS ( TOTAL )","ACROSS SHOULDERS ( TOTAL )","ACROSS SHOULDERS ( TOTAL )","ACROSS SHOULDERS ( TOTAL )","ACROSS SHOULDERS ( TOTAL )",{"$f":"X21-1","v":-1},null,null,null,{"$f":"X21-0.5","v":-0.5},null,null,null,0,null,null,null,{"$f":"X21+0.75","v":0.75},null,{"$f":"X21+1.5","v":1.5},null,null,0.375]
[null,"SHOULDER LENGTH AT SEAM","SHOULDER LENGTH AT SEAM","SHOULDER LENGTH AT SEAM","SHOULDER LENGTH AT SEAM","SHOULDER LENGTH AT SEAM","SHOULDER LENGTH AT SEAM","SHOULDER LENGTH AT SEAM","SHOULDER LENGTH AT SEAM","SHOULDER LENGTH AT SEAM","SHOULDER LENGTH AT SEAM","SHOULDER LENGTH AT SEAM","SHOULDER LENGTH AT SEAM","SHOULDER LENGTH AT SEAM","SHOULDER LENGTH AT SEAM",null,null,null,null,null,null,null,null,0,null,null,null,null,null,null,null,null,0.375]
[null,"ACROSS FRONT (5\" BELOW HIGH SHOULDER POINT)","ACROSS FRONT (5\" BELOW HIGH SHOULDER POINT)","ACROSS FRONT (5\" BELOW HIGH SHOULDER POINT)","ACROSS FRONT (5\" BELOW HIGH SHOULDER POINT)","ACROSS FRONT (5\" BELOW HIGH SHOULDER POINT)","ACROSS FRONT (5\" BELOW HIGH SHOULDER POINT)","ACROSS FRONT (5\" BELOW HIGH SHOULDER POINT)","ACROSS FRONT (5\" BELOW HIGH SHOULDER POINT)","ACROSS FRONT (5\" BELOW HIGH SHOULDER POINT)","ACROSS FRONT (5\" BELOW HIGH SHOULDER POINT)","ACROSS FRONT (5\" BELOW HIGH SHOULDER POINT)","ACROSS FRONT (5\" BELOW HIGH SHOULDER POINT)","ACROSS FRONT (5\" BELOW HIGH SHOULDER POINT)","ACROSS FRONT (5\" BELOW HIGH SHOULDER POINT)",{"$f":"X23-1","v":-1},null,null,null,{"$f":"X23-0.5","v":-0.5},null,null,null,0,null,null,null,{"$f":"X23+0.75","v":0.75},null,{"$f":"X23+1.5","v":1.5},null,null,0.375]
[null,"ACROSS BACK (5\" BELOW HIGH SHOULDER POINT)","ACROSS BACK (5\" BELOW HIGH SHOULDER POINT)","ACROSS BACK (5\" BELOW HIGH SHOULDER POINT)","ACROSS BACK (5\" BELOW HIGH SHOULDER POINT)","ACROSS BACK (5\" BELOW HIGH SHOULDER POINT)","ACROSS BACK (5\" BELOW HIGH SHOULDER POINT)","ACROSS BACK (5\" BELOW HIGH SHOULDER POINT)","ACROSS BACK (5\" BELOW HIGH SHOULDER POINT)","ACROSS BACK (5\" BELOW HIGH SHOULDER POINT)","ACROSS BACK (5\" BELOW HIGH SHOULDER POINT)","ACROSS BACK (5\" BELOW HIGH SHOULDER POINT)","ACROSS BACK (5\" BELOW HIGH SHOULDER POINT)","ACROSS BACK (5\" BELOW HIGH SHOULDER POINT)","ACROSS BACK (5\" BELOW HIGH SHOULDER POINT)",{"$f":"X24-1","v":-1},null,null,null,{"$f":"X24-0.5","v":-0.5},null,null,null,0,null,null,null,{"$f":"X24+0.75","v":0.75},null,{"$f":"X24+1.5","v":1.5},null,null,0.25]
[null,"OVERARM (FROM SLEEVE CAP TO HEM)-SHORT SLEEVE","OVERARM (FROM SLEEVE CAP TO HEM)-SHORT SLEEVE","OVERARM (FROM SLEEVE CAP TO HEM)-SHORT SLEEVE","OVERARM (FROM SLEEVE CAP TO HEM)-SHORT SLEEVE","OVERARM (FROM SLEEVE CAP TO HEM)-SHORT SLEEVE","OVERARM (FROM SLEEVE CAP TO HEM)-SHORT SLEEVE","OVERARM (FROM SLEEVE CAP TO HEM)-SHORT SLEEVE","OVERARM (FROM SLEEVE CAP TO HEM)-SHORT SLEEVE","OVERARM (FROM SLEEVE CAP TO HEM)-SHORT SLEEVE","OVERARM (FROM SLEEVE CAP TO HEM)-SHORT SLEEVE","OVERARM (FROM SLEEVE CAP TO HEM)-SHORT SLEEVE","OVERARM (FROM SLEEVE CAP TO HEM)-SHORT SLEEVE","OVERARM (FROM SLEEVE CAP TO HEM)-SHORT SLEEVE","OVERARM (FROM SLEEVE CAP TO HEM)-SHORT SLEEVE",{"$f":"X25-0.25","v":-0.25},null,null,null,{"$f":"X25-0.125","v":-0.125},null,null,null,0,null,null,null,{"$f":"X25+0.25","v":0.25},null,{"$f":"X25+0.5","v":0.5},null,null,0.25]
[null,"OVERARM (FROM SLEEVE CAP TO HEM)- 3/4 SLEEVE","OVERARM (FROM SLEEVE CAP TO HEM)- 3/4 SLEEVE","OVERARM (FROM SLEEVE CAP TO HEM)- 3/4 SLEEVE","OVERARM (FROM SLEEVE CAP TO HEM)- 3/4 SLEEVE","OVERARM (FROM SLEEVE CAP TO HEM)- 3/4 SLEEVE","OVERARM (FROM SLEEVE CAP TO HEM)- 3/4 SLEEVE","OVERARM (FROM SLEEVE CAP TO HEM)- 3/4 SLEEVE","OVERARM (FROM SLEEVE CAP TO HEM)- 3/4 SLEEVE","OVERARM (FROM SLEEVE CAP TO HEM)- 3/4 SLEEVE","OVERARM (FROM SLEEVE CAP TO HEM)- 3/4 SLEEVE","OVERARM (FROM SLEEVE CAP TO HEM)- 3/4 SLEEVE","OVERARM (FROM SLEEVE CAP TO HEM)- 3/4 SLEEVE","OVERARM (FROM SLEEVE CAP TO HEM)- 3/4 SLEEVE","OVERARM (FROM SLEEVE CAP TO HEM)- 3/4 SLEEVE",{"$f":"X26-0.25","v":-0.25},null,null,null,{"$f":"X26-0.125","v":-0.125},null,null,null,0,null,null,null,{"$f":"X26+0.25","v":0.25},null,{"$f":"X26+0.5","v":0.5},null,null,0.375]
[null,"OVERARM (FROM SLEEVE CAP TO HEM)- LONG SLEEVE","OVERARM (FROM SLEEVE CAP TO HEM)- LONG SLEEVE","OVERARM (FROM SLEEVE CAP TO HEM)- LONG SLEEVE","OVERARM (FROM SLEEVE CAP TO HEM)- LONG SLEEVE","OVERARM (FROM SLEEVE CAP TO HEM)- LONG SLEEVE","OVERARM (FROM SLEEVE CAP TO HEM)- LONG SLEEVE","OVERARM (FROM SLEEVE CAP TO HEM)- LONG SLEEVE","OVERARM (FROM SLEEVE CAP TO HEM)- LONG SLEEVE","OVERARM (FROM SLEEVE CAP TO HEM)- LONG SLEEVE","OVERARM (FROM SLEEVE CAP TO HEM)- LONG SLEEVE","OVERARM (FROM SLEEVE CAP TO HEM)- LONG SLEEVE","OVERARM (FROM SLEEVE CAP TO HEM)- LONG SLEEVE","OVERARM (FROM SLEEVE CAP TO HEM)- LONG SLEEVE","OVERARM (FROM SLEEVE CAP TO HEM)- LONG SLEEVE",{"$f":"X27-0.75","v":-0.75},null,null,null,{"$f":"X27-0.375","v":-0.375},null,null,null,0,null,null,null,{"$f":"X27+0.625","v":0.625},null,{"$f":"X27+1.25","v":1.25},null,null,0.25]
[null,"1/2 ARMHOLE STRAIGHT","1/2 ARMHOLE STRAIGHT","1/2 ARMHOLE STRAIGHT","1/2 ARMHOLE STRAIGHT","1/2 ARMHOLE STRAIGHT","1/2 ARMHOLE STRAIGHT","1/2 ARMHOLE STRAIGHT","1/2 ARMHOLE STRAIGHT","1/2 ARMHOLE STRAIGHT","1/2 ARMHOLE STRAIGHT","1/2 ARMHOLE STRAIGHT","1/2 ARMHOLE STRAIGHT","1/2 ARMHOLE STRAIGHT","1/2 ARMHOLE STRAIGHT",{"$f":"X28-0.5","v":-0.5},null,null,null,{"$f":"X28-0.25","v":-0.25},null,null,null,0,null,null,null,{"$f":"X28+0.5","v":0.5},null,{"$f":"X28+1","v":1},null,null,0.25]
[null,"BICEP (1\" BELOW ARMHOLE)","BICEP (1\" BELOW ARMHOLE)","BICEP (1\" BELOW ARMHOLE)","BICEP (1\" BELOW ARMHOLE)","BICEP (1\" BELOW ARMHOLE)","BICEP (1\" BELOW ARMHOLE)","BICEP (1\" BELOW ARMHOLE)","BICEP (1\" BELOW ARMHOLE)","BICEP (1\" BELOW ARMHOLE)","BICEP (1\" BELOW ARMHOLE)","BICEP (1\" BELOW ARMHOLE)","BICEP (1\" BELOW ARMHOLE)","BICEP (1\" BELOW ARMHOLE)","BICEP (1\" BELOW ARMHOLE)",null,null,null,null,null,null,null,null,0,null,null,null,null,null,null,null,null,0.25]
[null,"ELBOW (8 1/2\" BELOW ARMHOLE)","ELBOW (8 1/2\" BELOW ARMHOLE)","ELBOW (8 1/2\" BELOW ARMHOLE)","ELBOW (8 1/2\" BELOW ARMHOLE)","ELBOW (8 1/2\" BELOW ARMHOLE)","ELBOW (8 1/2\" BELOW ARMHOLE)","ELBOW (8 1/2\" BELOW ARMHOLE)","ELBOW (8 1/2\" BELOW ARMHOLE)","ELBOW (8 1/2\" BELOW ARMHOLE)","ELBOW (8 1/2\" BELOW ARMHOLE)","ELBOW (8 1/2\" BELOW ARMHOLE)","ELBOW (8 1/2\" BELOW ARMHOLE)","ELBOW (8 1/2\" BELOW ARMHOLE)","ELBOW (8 1/2\" BELOW ARMHOLE)",{"$f":"X30-0.5","v":-0.5},null,null,null,{"$f":"X30-0.25","v":-0.25},null,null,null,0,null,null,null,{"$f":"X30+0.5","v":0.5},null,{"$f":"X30+1","v":1},null,null,0.25]
[null,"SHORT SLEEVE OPENING","SHORT SLEEVE OPENING","SHORT SLEEVE OPENING","SHORT SLEEVE OPENING","SHORT SLEEVE OPENING","SHORT SLEEVE OPENING","SHORT SLEEVE OPENING","SHORT SLEEVE OPENING","SHORT SLEEVE OPENING","SHORT SLEEVE OPENING","SHORT SLEEVE OPENING","SHORT SLEEVE OPENING","SHORT SLEEVE OPENING","SHORT SLEEVE OPENING",null,null,null,null,null,null,null,null,0,null,null,null,null,null,null,null,null,0.25]
[null,"3/4 SLEEVE OPENING","3/4 SLEEVE OPENING","3/4 SLEEVE OPENING","3/4 SLEEVE OPENING","3/4 SLEEVE OPENING","3/4 SLEEVE OPENING","3/4 SLEEVE OPENING","3/4 SLEEVE OPENING","3/4 SLEEVE OPENING","3/4 SLEEVE OPENING","3/4 SLEEVE OPENING","3/4 SLEEVE OPENING","3/4 SLEEVE OPENING","3/4 SLEEVE OPENING",{"$f":"X32-0.25","v":-0.25},null,null,null,{"$f":"X32-0.125","v":-0.125},null,null,null,0,null,null,null,{"$f":"X32+0.25","v":0.25},null,{"$f":"X32+0.5","v":0.5},null,null,0.25]
[null,"LONG SLEEVE OPENING","LONG SLEEVE OPENING","LONG SLEEVE OPENING","LONG SLEEVE OPENING","LONG SLEEVE OPENING","LONG SLEEVE OPENING","LONG SLEEVE OPENING","LONG SLEEVE OPENING","LONG SLEEVE OPENING","LONG SLEEVE OPENING","LONG SLEEVE OPENING","LONG SLEEVE OPENING","LONG SLEEVE OPENING","LONG SLEEVE OPENING",{"$f":"X33-0.25","v":-0.25},null,null,null,{"$f":"X33-0.125","v":-0.125},null,null,null,0,null,null,null,{"$f":"X33+0.25","v":0.25},null,{"$f":"X33+0.5","v":0.5},null,null,"1/4"]
[null,"SLEEVE CAP HEIGHT ( FROM TOP OF SLEEVE TO UNDERARM )","SLEEVE CAP HEIGHT ( FROM TOP OF SLEEVE TO UNDERARM )","SLEEVE CAP HEIGHT ( FROM TOP OF SLEEVE TO UNDERARM )","SLEEVE CAP HEIGHT ( FROM TOP OF SLEEVE TO UNDERARM )","SLEEVE CAP HEIGHT ( FROM TOP OF SLEEVE TO UNDERARM )","SLEEVE CAP HEIGHT ( FROM TOP OF SLEEVE TO UNDERARM )","SLEEVE CAP HEIGHT ( FROM TOP OF SLEEVE TO UNDERARM )","SLEEVE CAP HEIGHT ( FROM TOP OF SLEEVE TO UNDERARM )","SLEEVE CAP HEIGHT ( FROM TOP OF SLEEVE TO UNDERARM )","SLEEVE CAP HEIGHT ( FROM TOP OF SLEEVE TO UNDERARM )","SLEEVE CAP HEIGHT ( FROM TOP OF SLEEVE TO UNDERARM )","SLEEVE CAP HEIGHT ( FROM TOP OF SLEEVE TO UNDERARM )","SLEEVE CAP HEIGHT ( FROM TOP OF SLEEVE TO UNDERARM )","SLEEVE CAP HEIGHT ( FROM TOP OF SLEEVE TO UNDERARM )",{"$f":"X34-0.25","v":-0.25},null,null,null,{"$f":"X34-0.125","v":-0.125},null,null,null,0,null,null,null,{"$f":"X34+0.25","v":0.25},null,{"$f":"X34+0.5","v":0.5},null,null,0]
[null,"SHOULDER SLOPE ( HSP TO SHOULDER ARMHOLE SEAM )","SHOULDER SLOPE ( HSP TO SHOULDER ARMHOLE SEAM )","SHOULDER SLOPE ( HSP TO SHOULDER ARMHOLE SEAM )","SHOULDER SLOPE ( HSP TO SHOULDER ARMHOLE SEAM )","SHOULDER SLOPE ( HSP TO SHOULDER ARMHOLE SEAM )","SHOULDER SLOPE ( HSP TO SHOULDER ARMHOLE SEAM )","SHOULDER SLOPE ( HSP TO SHOULDER ARMHOLE SEAM )","SHOULDER SLOPE ( HSP TO SHOULDER ARMHOLE SEAM )","SHOULDER SLOPE ( HSP TO SHOULDER ARMHOLE SEAM )","SHOULDER SLOPE ( HSP TO SHOULDER ARMHOLE SEAM )","SHOULDER SLOPE ( HSP TO SHOULDER ARMHOLE SEAM )","SHOULDER SLOPE ( HSP TO SHOULDER ARMHOLE SEAM )","SHOULDER SLOPE ( HSP TO SHOULDER ARMHOLE SEAM )","SHOULDER SLOPE ( HSP TO SHOULDER ARMHOLE SEAM )",{"$f":"X35-0","v":0},null,null,null,{"$f":"X35-0","v":0},null,null,null,0,null,null,null,{"$f":"X35+0","v":0},null,{"$f":"X35+0","v":0},null,null,0]
[null,"NECK WIDTH (HSP TO HSP) ON BACK","NECK WIDTH (HSP TO HSP) ON BACK","NECK WIDTH (HSP TO HSP) ON BACK","NECK WIDTH (HSP TO HSP) ON BACK","NECK WIDTH (HSP TO HSP) ON BACK","NECK WIDTH (HSP TO HSP) ON BACK","NECK WIDTH (HSP TO HSP) ON BACK","NECK WIDTH (HSP TO HSP) ON BACK","NECK WIDTH (HSP TO HSP) ON BACK","NECK WIDTH (HSP TO HSP) ON BACK","NECK WIDTH (HSP TO HSP) ON BACK","NECK WIDTH (HSP TO HSP) ON BACK","NECK WIDTH (HSP TO HSP) ON BACK","NECK WIDTH (HSP TO HSP) ON BACK",{"$f":"X36-0.5","v":-0.5},null,null,null,{"$f":"X36-0.25","v":-0.25},null,null,null,0,null,null,null,{"$f":"X36+0.375","v":0.375},null,{"$f":"X36+0.75","v":0.75},null,null,0.25]
[null,"FRONT NECK DROP ( FROM HSP TO CENTER FRONT NECK EDGE OR SEAM )","FRONT NECK DROP ( FROM HSP TO CENTER FRONT NECK EDGE OR SEAM )","FRONT NECK DROP ( FROM HSP TO CENTER FRONT NECK EDGE OR SEAM )","FRONT NECK DROP ( FROM HSP TO CENTER FRONT NECK EDGE OR SEAM )","FRONT NECK DROP ( FROM HSP TO CENTER FRONT NECK EDGE OR SEAM )","FRONT NECK DROP ( FROM HSP TO CENTER FRONT NECK EDGE OR SEAM )","FRONT NECK DROP ( FROM HSP TO CENTER FRONT NECK EDGE OR SEAM )","FRONT NECK DROP ( FROM HSP TO CENTER FRONT NECK EDGE OR SEAM )","FRONT NECK DROP ( FROM HSP TO CENTER FRONT NECK EDGE OR SEAM )","FRONT NECK DROP ( FROM HSP TO CENTER FRONT NECK EDGE OR SEAM )","FRONT NECK DROP ( FROM HSP TO CENTER FRONT NECK EDGE OR SEAM )","FRONT NECK DROP ( FROM HSP TO CENTER FRONT NECK EDGE OR SEAM )","FRONT NECK DROP ( FROM HSP TO CENTER FRONT NECK EDGE OR SEAM )","FRONT NECK DROP ( FROM HSP TO CENTER FRONT NECK EDGE OR SEAM )",{"$f":"X37-0.25","v":-0.25},null,null,null,{"$f":"X37-0.125","v":-0.125},null,null,null,0,null,null,null,{"$f":"X37+0.25","v":0.25},null,{"$f":"X37+0.5","v":0.5},null,null,0.25]
[null,"BACK NECK DROP ( FROM HSP TO CENTER BACK NECK EDGE OR SEAM )","BACK NECK DROP ( FROM HSP TO CENTER BACK NECK EDGE OR SEAM )","BACK NECK DROP ( FROM HSP TO CENTER BACK NECK EDGE OR SEAM )","BACK NECK DROP ( FROM HSP TO CENTER BACK NECK EDGE OR SEAM )","BACK NECK DROP ( FROM HSP TO CENTER BACK NECK EDGE OR SEAM )","BACK NECK DROP ( FROM HSP TO CENTER BACK NECK EDGE OR SEAM )","BACK NECK DROP ( FROM HSP TO CENTER BACK NECK EDGE OR SEAM )","BACK NECK DROP ( FROM HSP TO CENTER BACK NECK EDGE OR SEAM )","BACK NECK DROP ( FROM HSP TO CENTER BACK NECK EDGE OR SEAM )","BACK NECK DROP ( FROM HSP TO CENTER BACK NECK EDGE OR SEAM )","BACK NECK DROP ( FROM HSP TO CENTER BACK NECK EDGE OR SEAM )","BACK NECK DROP ( FROM HSP TO CENTER BACK NECK EDGE OR SEAM )","BACK NECK DROP ( FROM HSP TO CENTER BACK NECK EDGE OR SEAM )","BACK NECK DROP ( FROM HSP TO CENTER BACK NECK EDGE OR SEAM )",null,null,null,null,null,null,null,null,0,null,null,null,null,null,null,null,null,0.25]
[null,"1/2 NECK CIRCUMFERENCE","1/2 NECK CIRCUMFERENCE","1/2 NECK CIRCUMFERENCE","1/2 NECK CIRCUMFERENCE","1/2 NECK CIRCUMFERENCE","1/2 NECK CIRCUMFERENCE","1/2 NECK CIRCUMFERENCE","1/2 NECK CIRCUMFERENCE","1/2 NECK CIRCUMFERENCE","1/2 NECK CIRCUMFERENCE","1/2 NECK CIRCUMFERENCE","1/2 NECK CIRCUMFERENCE","1/2 NECK CIRCUMFERENCE","1/2 NECK CIRCUMFERENCE",{"$f":"X39-0","v":0},null,null,null,{"$f":"X39-0","v":0},null,null,null,0,null,null,null,{"$f":"X39+0","v":0},null,{"$f":"X39+0","v":0},null,null,0.25]
[null,"COLLAR DEPTH ( AT C.B. NECK )","COLLAR DEPTH ( AT C.B. NECK )","COLLAR DEPTH ( AT C.B. NECK )","COLLAR DEPTH ( AT C.B. NECK )","COLLAR DEPTH ( AT C.B. NECK )","COLLAR DEPTH ( AT C.B. NECK )","COLLAR DEPTH ( AT C.B. NECK )","COLLAR DEPTH ( AT C.B. NECK )","COLLAR DEPTH ( AT C.B. NECK )","COLLAR DEPTH ( AT C.B. NECK )","COLLAR DEPTH ( AT C.B. NECK )","COLLAR DEPTH ( AT C.B. NECK )","COLLAR DEPTH ( AT C.B. NECK )","COLLAR DEPTH ( AT C.B. NECK )",{"$f":"X40-0","v":0},null,null,null,{"$f":"X40-0","v":0},null,null,null,0,null,null,null,{"$f":"X40+0","v":0},null,{"$f":"X40+0","v":0},null,null,0]
[null,"STAND DEPTH","STAND DEPTH","STAND DEPTH","STAND DEPTH","STAND DEPTH","STAND DEPTH","STAND DEPTH","STAND DEPTH","STAND DEPTH","STAND DEPTH","STAND DEPTH","STAND DEPTH","STAND DEPTH","STAND DEPTH",null,null,null,null,null,null,null,null,0,null,null,null,null,null,null,null,null,0]
[null,"COLLAR LENGTH","COLLAR LENGTH","COLLAR LENGTH","COLLAR LENGTH","COLLAR LENGTH","COLLAR LENGTH","COLLAR LENGTH","COLLAR LENGTH","COLLAR LENGTH","COLLAR LENGTH","COLLAR LENGTH","COLLAR LENGTH","COLLAR LENGTH","COLLAR LENGTH",{"$f":"X42-0","v":0},null,null,null,{"$f":"X42-0","v":0},null,null,null,0,null,null,null,{"$f":"X42+0","v":0},null,{"$f":"X42+0","v":0},null,null,0.25]
[null,"NECK TRIM DEPTH","NECK TRIM DEPTH","NECK TRIM DEPTH","NECK TRIM DEPTH","NECK TRIM DEPTH","NECK TRIM DEPTH","NECK TRIM DEPTH","NECK TRIM DEPTH","NECK TRIM DEPTH","NECK TRIM DEPTH","NECK TRIM DEPTH","NECK TRIM DEPTH","NECK TRIM DEPTH","NECK TRIM DEPTH",{"$f":"X43-0","v":0},null,null,null,{"$f":"X43-0","v":0},null,null,null,0,null,null,null,{"$f":"X43+0","v":0},null,{"$f":"X43+0","v":0},null,null,0]
[null,"CUFF DEPTH","CUFF DEPTH","CUFF DEPTH","CUFF DEPTH","CUFF DEPTH","CUFF DEPTH","CUFF DEPTH","CUFF DEPTH","CUFF DEPTH","CUFF DEPTH","CUFF DEPTH","CUFF DEPTH","CUFF DEPTH","CUFF DEPTH",{"$f":"X44-0","v":0},null,null,null,{"$f":"X44-0","v":0},null,null,null,0,null,null,null,{"$f":"X44+0","v":0},null,{"$f":"X44+0","v":0},null,null,0]
[null,"SLEEVE HEM DEPTH","SLEEVE HEM DEPTH","SLEEVE HEM DEPTH","SLEEVE HEM DEPTH","SLEEVE HEM DEPTH","SLEEVE HEM DEPTH","SLEEVE HEM DEPTH","SLEEVE HEM DEPTH","SLEEVE HEM DEPTH","SLEEVE HEM DEPTH","SLEEVE HEM DEPTH","SLEEVE HEM DEPTH","SLEEVE HEM DEPTH","SLEEVE HEM DEPTH",{"$f":"X45-0","v":0},null,null,null,{"$f":"X45-0","v":0},null,null,null,0,null,null,null,{"$f":"X45+0","v":0},null,{"$f":"X45+0","v":0},null,null,0]
[null,"BOTTOM HEM DEPTH","BOTTOM HEM DEPTH","BOTTOM HEM DEPTH","BOTTOM HEM DEPTH","BOTTOM HEM DEPTH","BOTTOM HEM DEPTH","BOTTOM HEM DEPTH","BOTTOM HEM DEPTH","BOTTOM HEM DEPTH","BOTTOM HEM DEPTH","BOTTOM HEM DEPTH","BOTTOM HEM DEPTH","BOTTOM HEM DEPTH","BOTTOM HEM DEPTH",{"$f":"X46-0","v":0},null,null,null,{"$f":"X46-0","v":0},null,null,null,0,null,null,null,{"$f":"X46+0","v":0},null,{"$f":"X46+0","v":0},null,null,0]
[null,"HSP TO BUST POINT","HSP TO BUST POINT","HSP TO BUST POINT","HSP TO BUST POINT","HSP TO BUST POINT","HSP TO BUST POINT","HSP TO BUST POINT","HSP TO BUST POINT","HSP TO BUST POINT","HSP TO BUST POINT","HSP TO BUST POINT","HSP TO BUST POINT","HSP TO BUST POINT","HSP TO BUST POINT",null,null,null,null,null,null,null,null,0,null,null,null,null,null,null,null,null,0]
[null,null,null,null,null,null,null,null,null,null,null,null,null,null,null,{"$f":"X48-0.75","v":-0.75},null,null,null,{"$f":"X48-0.375","v":-0.375},null,null,null,0,null,null,null,{"$f":"X48+0.375","v":0.375},null,{"$f":"X48+0.75","v":0.75}]
[null,null,null,null,null,null,null,null,null,null,null,null,null,null,null,{"$f":"X49-0.75","v":-0.75},null,null,null,{"$f":"X49-0.375","v":-0.375},null,null,null,0,null,null,null,{"$f":"X49+0.375","v":0.375},null,{"$f":"X49+0.75","v":0.75}]
[null,null,null,null,null,null,null,null,null,null,null,null,null,null,null,{"$f":"X50-0.5","v":-0.5},null,null,null,{"$f":"X50-0.25","v":-0.25},null,null,null,0,null,null,null,{"$f":"X50+0.25","v":0.25},null,{"$f":"X50+0.5","v":0.5}]
[null,null,null,null,null,null,null,null,null,null,null,null,null,null,null,{"$f":"X51-1.25","v":-1.25},null,null,null,{"$f":"X51-0.625","v":-0.625},null,null,null,0,null,null,null,{"$f":"X51+0.625","v":0.625},null,{"$f":"X51+1.25","v":1.25}]
[null,"Sample Approved?"]
[null,"If sample is NOT approved, then submit 2nd Pre-Production Samples. If sample is APPROVED, then submit Production Samples."]

{"sheet":"Labels","index":15,"n_rows":15,"n_cols":40,"rows_kept":15,"cut":false,"hidden":true,"merged":[[1,16,1,22],[2,16,2,34],[3,16,3,22],[3,30,3,34],[4,16,4,22],[4,29,4,34],[5,16,5,34],[6,1,6,34],[7,1,7,18],[7,19,7,22],[7,23,7,31]]}
[]
[null,null,null,null,null,null,null,null,null,null,null,"Create Date:",null,null,null,null,{"$f":"'ORIGINAL PHOTO'!Q2:W2","v":"MARCH 15/2017"}]
[null,null,null,null,null,null,null,null,null,null,null,"Vendor Name:",null,null,null,null,{"$f":"'ORIGINAL PHOTO'!Q3:AI3","v":0}]
[null,null,null,null,null,null,null,null,null,null,null,"Vndr.Item No.:",null,null,null,null,{"$f":"'ORIGINAL PHOTO'!Q4:W4","v":0},null,null,null,null,null,null,null,null,null,"GC Item No.:",null,null,null,{"$f":"'ORIGINAL PHOTO'!AE4:AI4","v":0}]
[null,null,null,null,null,null,null,null,null,null,null,"Size Range:",null,null,null,null,{"$f":"'ORIGINAL PHOTO'!Q5:W5","v":"S-M-L-XL"},null,null,null,null,null,null,null,null,null,"Season:",null,null,{"$f":"'ORIGINAL PHOTO'!AD5:AI5","v":"Spring Summer 2018"}]
[null,null,null,null,null,null,null,null,null,null,null,"Description:",null,null,null,null,{"$f":"'ORIGINAL PHOTO'!Q6:AI6","v":"MEN'S LONG SLEEVE ZIP FRONT SCOOP HEM HOODIE WITH LINED HOOD"}]
[]
[null,"LABELS",null,null,null,null,null,null,null,null,null,null,null,null,null,null,null,null,null,"Date:",null,null,null,null,null,null,null,null,null,null,null,null,null,null,null,null,null,null,null,"L"]
[null,null,null,null,null,null,null,null,null,null,null,null,null,null,null,null,null,null,null,null,null,null,null,null,null,null,null,null,null,null,null,null,null,null,null,null,null,null,null,"LXL"]
[null,null,null,null,null,null,null,null,null,null,null,null,null,null,null,null,null,null,null,null,null,null,null,null,null,null,null,null,null,null,null,null,null,null,null,null,null,null,null,"M"]
[null,null,null,null,null,null,null,null,null,null,null,null,null,null,null,null,null,null,null,null,null,null,null,null,null,null,null,null,null,null,null,null,null,null,null,null,null,null,null,"S"]
[null,null,null,null,null,null,null,null,null,null,null,null,null,null,null,null,null,null,null,null,null,null,null,null,null,null,null,null,null,null,null,null,null,null,null,null,null,null,null,"SM"]
[null,null,null,null,null,null,null,null,null,null,null,null,null,null,null,null,null,null,null,null,null,null,null,null,null,null,null,null,null,null,null,null,null,null,null,null,null,null,null,"XL"]
[null,null,null,null,null,null,null,null,null,null,null,null,null,null,null,null,null,null,null,null,null,null,null,null,null,null,null,null,null,null,null,null,null,null,null,null,null,null,null,"XXL"]
[null,null,null,null,null,null,null,null,null,null,null,null,null,null,null,null,null,null,null,null,null,null,null,null,null,null,null,null,null,null,null,null,null,null,null,null,null,null,null,"XXXL"]

{"sheet":"Grade S-M-L-XL","index":16,"n_rows":53,"n_cols":40,"rows_kept":53,"cut":false,"hidden":true,"merged":[[1,16,1,22],[2,16,2,34],[3,16,3,22],[3,30,3,34],[4,16,4,22],[8,25,9,26],[8,27,9,28],[8,29,9,30],[8,32,9,34],[4,29,4,34],[10,1,10,14],[10,32,10,34],[5,16,5,34],[7,1,7,18],[7,19,7,22],[7,23,7,31],[8,1,9,14],[8,15,9,16],[8,17,9,18],[8,19,9,20],[8,21,9,22],[8,23,9,24],[10,15,10,16],[10,17,10,18],[10,19,10,20],[10,21,10,22],[10,23,10,24],[10,25,10,26],[10,27,10,28],[10,29,10,30],[14,1,14,14],[14,32,14,34],[15,1,15,14],[15,32,15,34],[16,1,16,14],[16,32,16,34],[11,1,11,14],[11,32,11,34],[12,1,12,14],[12,32,12,34],[13,1,13,14],[13,32,13,34],[11,15,11,16],[11,17,11,18],[11,19,11,20],[11,21,11,22],[11,23,11,24],[11,25,11,26],[11,27,11,28],[11,29,11,30],[12,15,12,16],[12,17,12,18],[12,19,12,20],[12,21,12,22],[20,1,20,14],[20,32,20,34],[21,1,21,14],[21,32,21,34],[22,1,22,14],[22,32,22,34],[17,1,17,14],[17,32,17,34],[18,1,18,14],[18,32,18,34],[19,1,19,14],[19,32,19,34],[18,15,18,16],[18,17,18,18],[18,19,18,20],[18,21,18,22],[18,23,18,24],[18,25,18,26],[18,27,18,28],[18,29,18,30],[19,15,19,16],[19,17,19,18],[19,19,19,20],[19,21,19,22],[26,1,26,14],[26,32,26,34],[27,1,27,14],[27,32,27,34],[28,1,28,14],[28,32,28,34],[23,1,23,14],[23,32,23,34],[24,1,24,14],[24,32,24,34],[25,1,25,14],[25,32,25,34],[23,15,23,16],[23,17,23,18],[23,19,23,20],[23,21,23,22],[23,23,23,24],[23,25,23,26],[23,27,23,28],[23,29,23,30],[24,15,24,16],[24,17,24,18],[24,19,24,20],[24,21,24,22],[32,1,32,14],[32,32,32,34],[33,1,33,14],[33,32,33,34],[34,1,34,14],[34,32,34,34],[29,1,29,14],[29,32,29,34],[30,1,30,14],[30,32,30,34],[31,1,31,14],[31,32,31,34],[30,15,30,16],[30,17,30,18],[30,19,30,20],[30,21,30,22],[30,23,30,24],[30,25,30,26],[30,27,30,28],[30,29,30,30],[31,15,31,16],[31,17,31,18],[31,19,31,20],[31,21,31,22],[38,1,38,14],[38,32,38,34],[39,1,39,14],[39,32,39,34],[40,1,40,14],[40,32,40,34],[35,1,35,14],[35,32,35,34],[36,1,36,14],[36,32,36,34],[37,1,37,14],[37,32,37,34],[35,15,35,16],[35,17,35,18],[35,19,35,20],[35,21,35,22],[35,23,35,24],[35,25,35,26],[35,27,35,28],[35,29,35,30],[36,15,36,16],[36,17,36,18],[36,19,36,20],[36,21,36,22],[44,1,44,14],[44,32,44,34],[45,1,45,14],[45,32,45,34],[46,1,46,14],[46,32,46,34],[41,1,41,14],[41,32,41,34],[42,1,42,14],[42,32,42,34],[43,1,43,14],[43,32,43,34],[42,15,42,16],[42,17,42,18],[42,19,42,20],[42,21,42,22],[42,23,42,24],[42,25,42,26],[42,27,42,28],[42,29,42,30],[43,15,43,16],[43,17,43,18],[43,19,43,20],[43,21,43,22],[50,1,50,14],[50,32,50,34],[52,1,52,34],[47,1,47,14],[47,32,47,34],[48,1,48,14],[48,32,48,34],[49,1,49,14],[49,32,49,34],[47,15,47,16],[47,17,47,18],[47,19,47,20],[47,21,47,22],[47,23,47,24],[47,25,47,26],[47,27,47,28],[47,29,47,30],[48,15,48,16],[48,17,48,18],[48,19,48,20],[48,21,48,22],[48,23,48,24],[48,25,48,26],[48,27,48,28],[12,23,12,24],[12,25,12,26],[12,27,12,28],[12,29,12,30],[13,15,13,16],[13,17,13,18],[13,19,13,20],[13,21,13,22],[13,23,13,24],[13,25,13,26],[13,27,13,28],[13,29,13,30],[14,15,14,16],[14,17,14,18],[14,19,14,20],[14,21,14,22],[14,23,14,24],[14,25,14,26],[14,27,14,28],[14,29,14,30],[15,15,15,16],[15,17,15,18],[15,19,15,20],[15,21,15,22],[15,23,15,24],[15,25,15,26],[15,27,15,28],[15,29,15,30],[16,15,16,16],[16,17,16,18],[16,19,16,20],[16,21,16,22],[16,23,16,24],[16,25,16,26],[16,27,16,28],[16,29,16,30],[17,15,17,16],[17,17,17,18],[17,19,17,20],[17,21,17,22],[17,23,17,24],[17,25,17,26],[17,27,17,28],[17,29,17,30],[19,23,19,24],[19,25,19,26],[19,27,19,28],[19,29,19,30],[20,15,20,16],[20,17,20,18],[20,19,20,20],[20,21,20,22],[20,23,20,24],[20,25,20,26],[20,27,20,28],[20,29,20,30],[21,15,21,16],[21,17,21,18],[21,19,21,20],[21,21,21,22],[21,23,21,24],[21,25,21,26],[21,27,21,28],[21,29,21,30],[22,15,22,16],[22,17,22,18],[22,19,22,20],[22,21,22,22],[22,23,22,24],[22,25,22,26],[22,27,22,28],[22,29,22,30],[24,23,24,24],[24,25,24,26],[24,27,24,28],[24,29,24,30],[25,15,25,16],[25,17,25,18],[25,19,25,20],[25,21,25,22],[25,23,25,24],[25,25,25,26],[25,27,25,28],[25,29,25,30],[26,15,26,16],[26,17,26,18],[26,19,26,20],[26,21,26,22],[26,23,26,24],[26,25,26,26],[26,27,26,28],[26,29,26,30],[27,15,27,16],[27,17,27,18],[27,19,27,20],[27,21,27,22],[27,23,27,24],[27,25,27,26],[27,27,27,28],[27,29,27,30],[28,15,28,16],[28,17,28,18],[28,19,28,20],[28,21,28,22],[28,23,28,24],[28,25,28,26],[28,27,28,28],[28,29,28,30],[29,15,29,16],[29,17,29,18],[29,19,29,20],[29,21,29,22],[29,23,29,24],[29,25,29,26],[29,27,29,28],[29,29,29,30],[31,23,31,24],[31,25,31,26],[31,27,31,28],[31,29,31,30],[32,15,32,16],[32,17,32,18],[32,19,32,20],[32,21,32,22],[32,23,32,24],[32,25,32,26],[32,27,32,28],[32,29,32,30],[33,15,33,16],[33,17,33,18],[33,19,33,20],[33,21,33,22],[33,23,33,24],[33,25,33,26],[33,27,33,28],[33,29,33,30],[34,15,34,16],[34,17,34,18],[34,19,34,20],[34,21,34,22],[34,23,34,24],[34,25,34,26],[34,27,34,28],[34,29,34,30],[36,23,36,24],[36,25,36,26],[36,27,36,28],[36,29,36,30],[37,15,37,16],[37,17,37,18],[37,19,37,20],[37,21,37,22],[37,23,37,24],[37,25,37,26],[37,27,37,28],[37,29,37,30],[38,15,38,16],[38,17,38,18],[38,19,38,20],[38,21,38,22],[38,23,38,24],[38,25,38,26],[38,27,38,28],[38,29,38,30],[39,15,39,16],[39,17,39,18],[39,19,39,20],[39,21,39,22],[39,23,39,24],[39,25,39,26],[39,27,39,28],[39,29,39,30],[40,15,40,16],[40,17,40,18],[40,19,40,20],[40,21,40,22],[40,23,40,24],[40,25,40,26],[40,27,40,28],[40,29,40,30],[41,15,41,16],[41,17,41,18],[41,19,41,20],[41,21,41,22],[41,23,41,24],[41,25,41,26],[41,27,41,28],[41,29,41,30],[43,23,43,24],[43,25,43,26],[43,27,43,28],[43,29,43,30],[44,15,44,16],[44,17,44,18],[44,19,44,20],[44,21,44,22],[44,23,44,24],[44,25,44,26],[44,27,44,28],[44,29,44,30],[45,15,45,16],[45,17,45,18],[45,19,45,20],[45,21,45,22],[45,23,45,24],[45,25,45,26],[45,27,45,28],[45,29,45,30],[46,15,46,16],[46,17,46,18],[46,19,46,20],[46,21,46,22],[46,23,46,24],[46,25,46,26],[46,27,46,28],[46,29,46,30],[50,15,50,16],[50,17,50,18],[50,19,50,20],[50,21,50,22],[50,23,50,24],[50,25,50,26],[50,27,50,28],[50,29,50,30],[48,29,48,30],[49,15,49,16],[49,17,49,18],[49,19,49,20],[49,21,49,22],[49,23,49,24],[49,25,49,26],[49,27,49,28],[49,29,49,30]]}
[]
[null,null,null,null,null,null,null,null,null,null,null,"Create Date:",null,null,null,null,{"$f":"'ORIGINAL PHOTO'!Q2:W2","v":"MARCH 15/2017"}]
[null,null,null,null,null,null,null,null,null,null,null,"Vendor Name:",null,null,null,null,{"$f":"'ORIGINAL PHOTO'!Q3:AI3","v":0}]
[null,null,null,null,null,null,null,null,null,null,null,"Vndr.Item No.:",null,null,null,null,{"$f":"'ORIGINAL PHOTO'!Q4:W4","v":0},null,null,null,null,null,null,null,null,null,"GC Item No.:",null,null,null,{"$f":"'ORIGINAL PHOTO'!AE4:AI4","v":0}]
[null,null,null,null,null,null,null,null,null,null,null,"Size Range:",null,null,null,null,{"$f":"'ORIGINAL PHOTO'!Q5:W5","v":"S-M-L-XL"},null,null,null,null,null,null,null,null,null,"Season:",null,null,{"$f":"'ORIGINAL PHOTO'!AD5:AI5","v":"Spring Summer 2018"}]
[null,null,null,null,null,null,null,null,null,null,null,"Description:",null,null,null,null,{"$f":"'ORIGINAL PHOTO'!Q6:AI6","v":"MEN'S LONG SLEEVE ZIP FRONT SCOOP HEM HOODIE WITH LINED HOOD"}]
[]
[null,"GRADE SHEET -- MEN'S TOP",null,null,null,null,null,null,null,null,null,null,null,null,null,null,null,null,null,"Date:",null,null,null,null,null,null,null,null,null,null,null,null,null,null,null,null,null,null,null,"L"]
[null,"(Measurements on flat / inches)",null,null,null,null,null,null,null,null,null,null,null,null,null,"S",null,null,null,"M",null,null,null,"L",null,null,null,"XL",null,null,null,null,"Tolerance\n+ / -\n(on flat)",null,null,null,null,null,null,"LXL"]
[null,null,null,null,null,null,null,null,null,null,null,null,null,null,null,null,null,null,null,null,null,null,null,null,null,null,null,null,null,null,null,null,null,null,null,null,null,null,null,"M"]
[null,"BACK LENGTH FROM HSP",null,null,null,null,null,null,null,null,null,null,null,null,null,null,null,null,null,null,null,null,null,null,null,null,null,null,null,null,null,null,null,null,null,null,null,null,null,"S"]
[null,"FRONT LENGTH FROM HSP",null,null,null,null,null,null,null,null,null,null,null,null,null,null,null,null,null,null,null,null,null,null,null,null,null,null,null,null,null,null,null,null,null,null,null,null,null,"SM"]
[null,"ACROSS FRONT AT MID ARMHOLE",null,null,null,null,null,null,null,null,null,null,null,null,null,null,null,null,null,null,null,null,null,null,null,null,null,null,null,null,null,null,null,null,null,null,null,null,null,"XL"]
[null,"ACROSS BACK AT MID ARMHOLE",null,null,null,null,null,null,null,null,null,null,null,null,null,null,null,null,null,null,null,null,null,null,null,null,null,null,null,null,null,null,null,null,null,null,null,null,null,"XXL"]
[null,"ACROSS SHOULDER",null,null,null,null,null,null,null,null,null,null,null,null,null,null,null,null,null,null,null,null,null,null,null,null,null,null,null,null,null,null,null,null,null,null,null,null,null,"XXXL"]
[null,"SHOULDER SLOPE DROP"]
[null,"BODY WIDTH OPTIONS"]
[null,"CHEST  - 1\" BELOW ARMHOLE"]
[null,"SWEEP ( HEM STRAIGHT)"]
[null,"SWEEP HEM HEIGHT"]
[null,"SHORT SLEEVE OPTIONS"]
[null,"SLEEVE LENGTH FROM C.B. NECK"]
[null,"SLEEVE LENGTH ( SHOULDER SLEEVE SEAM TO HEM)"]
[null,"ARMHOLE STRAIGHT"]
[null,"BICEP  - 1\" BELOW ARMHOLE"]
[null,"SLEEVE OPENING"]
[null,"SLEEVE CAP HEIGHT"]
[null,"SLEEVE HEM HEIGHT"]
[null,"NECK OPTIONS"]
[null,"FRONT NECK DROP FROM HSP TO NECK SEAM"]
[null,"BACK NECK DROP FROM HSP TO NECK SEAM"]
[null,"BACK NECK WIDTH - SEAM TO SEAM"]
[null,"NECK TRIM HEIGHT"]
[null,"NECK STRETCH ( MINIMUM EXTENDED ) 12 OR 24 FULL"]
[]
[null,"LOGO SIZE"]
[null,"LOGO PLACEMENT"]
[]
[null,"FRONT SIDE SLIT LENGTH"]
[null,"BACK SIDE SLIT LENGTH"]
[]
[]
[]
[]
[]
[]
[]
[]
[]
[]
[]
[null,"Sample Approved?"]
[null,"If sample is NOT approved, then submit 2nd Pre-Production Samples. If sample is APPROVED, then submit Production Samples."]

{"sheet":"Grade SM - LXL","index":17,"n_rows":53,"n_cols":40,"rows_kept":53,"cut":false,"hidden":true,"merged":[[1,16,1,22],[2,16,2,34],[3,16,3,22],[3,30,3,34],[4,16,4,22],[5,16,5,34],[7,1,7,18],[7,19,7,22],[7,23,7,31],[4,29,4,34],[8,32,9,34],[10,1,10,14],[10,15,10,16],[10,17,10,18],[10,19,10,20],[10,21,10,22],[10,23,10,24],[10,25,10,26],[10,27,10,28],[10,29,10,30],[10,32,10,34],[8,1,9,14],[8,15,9,16],[8,17,9,18],[8,19,9,20],[8,21,9,22],[8,23,9,24],[8,25,9,26],[8,27,9,28],[8,29,9,30],[11,32,11,34],[12,1,12,14],[12,15,12,16],[12,17,12,18],[12,19,12,20],[12,21,12,22],[12,23,12,24],[12,25,12,26],[12,27,12,28],[12,29,12,30],[12,32,12,34],[11,1,11,14],[11,15,11,16],[11,17,11,18],[11,19,11,20],[11,21,11,22],[11,23,11,24],[11,25,11,26],[11,27,11,28],[11,29,11,30],[13,32,13,34],[14,1,14,14],[14,15,14,16],[14,17,14,18],[14,19,14,20],[14,21,14,22],[14,23,14,24],[14,25,14,26],[14,27,14,28],[14,29,14,30],[14,32,14,34],[13,1,13,14],[13,15,13,16],[13,17,13,18],[13,19,13,20],[13,21,13,22],[13,23,13,24],[13,25,13,26],[13,27,13,28],[13,29,13,30],[15,32,15,34],[16,1,16,14],[16,15,16,16],[16,17,16,18],[16,19,16,20],[16,21,16,22],[16,23,16,24],[16,25,16,26],[16,27,16,28],[16,29,16,30],[16,32,16,34],[15,1,15,14],[15,15,15,16],[15,17,15,18],[15,19,15,20],[15,21,15,22],[15,23,15,24],[15,25,15,26],[15,27,15,28],[15,29,15,30],[17,32,17,34],[18,1,18,14],[18,15,18,16],[18,17,18,18],[18,19,18,20],[18,21,18,22],[18,23,18,24],[18,25,18,26],[18,27,18,28],[18,29,18,30],[18,32,18,34],[17,1,17,14],[17,15,17,16],[17,17,17,18],[17,19,17,20],[17,21,17,22],[17,23,17,24],[17,25,17,26],[17,27,17,28],[17,29,17,30],[19,32,19,34],[20,1,20,14],[20,15,20,16],[20,17,20,18],[20,19,20,20],[20,21,20,22],[20,23,20,24],[20,25,20,26],[20,27,20,28],[20,29,20,30],[20,32,20,34],[19,1,19,14],[19,15,19,16],[19,17,19,18],[19,19,19,20],[19,21,19,22],[19,23,19,24],[19,25,19,26],[19,27,19,28],[19,29,19,30],[21,32,21,34],[22,1,22,14],[22,15,22,16],[22,17,22,18],[22,19,22,20],[22,21,22,22],[22,23,22,24],[22,25,22,26],[22,27,22,28],[22,29,22,30],[22,32,22,34],[21,1,21,14],[21,15,21,16],[21,17,21,18],[21,19,21,20],[21,21,21,22],[21,23,21,24],[21,25,21,26],[21,27,21,28],[21,29,21,30],[23,32,23,34],[24,1,24,14],[24,15,24,16],[24,17,24,18],[24,19,24,20],[24,21,24,22],[24,23,24,24],[24,25,24,26],[24,27,24,28],[24,29,24,30],[24,32,24,34],[23,1,23,14],[23,15,23,16],[23,17,23,18],[23,19,23,20],[23,21,23,22],[23,23,23,24],[23,25,23,26],[23,27,23,28],[23,29,23,30],[25,32,25,34],[26,1,26,14],[26,15,26,16],[26,17,26,18],[26,19,26,20],[26,21,26,22],[26,23,26,24],[26,25,26,26],[26,27,26,28],[26,29,26,30],[26,32,26,34],[25,1,25,14],[25,15,25,16],[25,17,25,18],[25,19,25,20],[25,21,25,22],[25,23,25,24],[25,25,25,26],[25,27,25,28],[25,29,25,30],[27,32,27,34],[28,1,28,14],[28,15,28,16],[28,17,28,18],[28,19,28,20],[28,21,28,22],[28,23,28,24],[28,25,28,26],[28,27,28,28],[28,29,28,30],[28,32,28,34],[27,1,27,14],[27,15,27,16],[27,17,27,18],[27,19,27,20],[27,21,27,22],[27,23,27,24],[27,25,27,26],[27,27,27,28],[27,29,27,30],[29,32,29,34],[30,1,30,14],[30,15,30,16],[30,17,30,18],[30,19,30,20],[30,21,30,22],[30,23,30,24],[30,25,30,26],[30,27,30,28],[30,29,30,30],[30,32,30,34],[29,1,29,14],[29,15,29,16],[29,17,29,18],[29,19,29,20],[29,21,29,22],[29,23,29,24],[29,25,29,26],[29,27,29,28],[29,29,29,30],[31,32,31,34],[32,1,32,14],[32,15,32,16],[32,17,32,18],[32,19,32,20],[32,21,32,22],[32,23,32,24],[32,25,32,26],[32,27,32,28],[32,29,32,30],[32,32,32,34],[31,1,31,14],[31,15,31,16],[31,17,31,18],[31,19,31,20],[31,21,31,22],[31,23,31,24],[31,25,31,26],[31,27,31,28],[31,29,31,30],[33,32,33,34],[34,1,34,14],[34,15,34,16],[34,17,34,18],[34,19,34,20],[34,21,34,22],[34,23,34,24],[34,25,34,26],[34,27,34,28],[34,29,34,30],[34,32,34,34],[33,1,33,14],[33,15,33,16],[33,17,33,18],[33,19,33,20],[33,21,33,22],[33,23,33,24],[33,25,33,26],[33,27,33,28],[33,29,33,30],[35,32,35,34],[36,1,36,14],[36,15,36,16],[36,17,36,18],[36,19,36,20],[36,21,36,22],[36,23,36,24],[36,25,36,26],[36,27,36,28],[36,29,36,30],[36,32,36,34],[35,1,35,14],[35,15,35,16],[35,17,35,18],[35,19,35,20],[35,21,35,22],[35,23,35,24],[35,25,35,26],[35,27,35,28],[35,29,35,30],[37,32,37,34],[38,1,38,14],[38,15,38,16],[38,17,38,18],[38,19,38,20],[38,21,38,22],[38,23,38,24],[38,25,38,26],[38,27,38,28],[38,29,38,30],[38,32,38,34],[37,1,37,14],[37,15,37,16],[37,17,37,18],[37,19,37,20],[37,21,37,22],[37,23,37,24],[37,25,37,26],[37,27,37,28],[37,29,37,30],[39,32,39,34],[40,1,40,14],[40,15,40,16],[40,17,40,18],[40,19,40,20],[40,21,40,22],[40,23,40,24],[40,25,40,26],[40,27,40,28],[40,29,40,30],[40,32,40,34],[39,1,39,14],[39,15,39,16],[39,17,39,18],[39,19,39,20],[39,21,39,22],[39,23,39,24],[39,25,39,26],[39,27,39,28],[39,29,39,30],[41,32,41,34],[42,1,42,14],[42,15,42,16],[42,17,42,18],[42,19,42,20],[42,21,42,22],[42,23,42,24],[42,25,42,26],[42,27,42,28],[42,29,42,30],[42,32,42,34],[41,1,41,14],[41,15,41,16],[41,17,41,18],[41,19,41,20],[41,21,41,22],[41,23,41,24],[41,25,41,26],[41,27,41,28],[41,29,41,30],[43,32,43,34],[44,1,44,14],[44,15,44,16],[44,17,44,18],[44,19,44,20],[44,21,44,22],[44,23,44,24],[44,25,44,26],[44,27,44,28],[44,29,44,30],[44,32,44,34],[43,1,43,14],[43,15,43,16],[43,17,43,18],[43,19,43,20],[43,21,43,22],[43,23,43,24],[43,25,43,26],[43,27,43,28],[43,29,43,30],[45,32,45,34],[46,1,46,14],[46,15,46,16],[46,17,46,18],[46,19,46,20],[46,21,46,22],[46,23,46,24],[46,25,46,26],[46,27,46,28],[46,29,46,30],[46,32,46,34],[45,1,45,14],[45,15,45,16],[45,17,45,18],[45,19,45,20],[45,21,45,22],[45,23,45,24],[45,25,45,26],[45,27,45,28],[45,29,45,30],[47,32,47,34],[48,1,48,14],[48,15,48,16],[48,17,48,18],[48,19,48,20],[48,21,48,22],[48,23,48,24],[48,25,48,26],[48,27,48,28],[48,29,48,30],[48,32,48,34],[47,1,47,14],[47,15,47,16],[47,17,47,18],[47,19,47,20],[47,21,47,22],[47,23,47,24],[47,25,47,26],[47,27,47,28],[47,29,47,30],[50,32,50,34],[52,1,52,34],[49,25,49,26],[49,27,49,28],[49,29,49,30],[49,32,49,34],[50,1,50,14],[50,15,50,16],[50,17,50,18],[50,19,50,20],[50,21,50,22],[50,23,50,24],[49,1,49,14],[49,15,49,16],[49,17,49,18],[49,19,49,20],[49,21,49,22],[49,23,49,24],[50,25,50,26],[50,27,50,28],[50,29,50,30]]}
[]
[null,null,null,null,null,null,null,null,null,null,null,"Create Date:",null,null,null,null,{"$f":"'ORIGINAL PHOTO'!Q2:W2","v":"MARCH 15/2017"}]
[null,null,null,null,null,null,null,null,null,null,null,"Vendor Name:",null,null,null,null,{"$f":"'ORIGINAL PHOTO'!Q3:AI3","v":0}]
[null,null,null,null,null,null,null,null,null,null,null,"Vndr.Item No.:",null,null,null,null,{"$f":"'ORIGINAL PHOTO'!Q4:W4","v":0},null,null,null,null,null,null,null,null,null,"GC Item No.:",null,null,null,{"$f":"'ORIGINAL PHOTO'!AE4:AI4","v":0}]
[null,null,null,null,null,null,null,null,null,null,null,"Size Range:",null,null,null,null,{"$f":"'ORIGINAL PHOTO'!Q5:W5","v":"S-M-L-XL"},null,null,null,null,null,null,null,null,null,"Season:",null,null,{"$f":"'ORIGINAL PHOTO'!AD5:AI5","v":"Spring Summer 2018"}]
[null,null,null,null,null,null,null,null,null,null,null,"Description:",null,null,null,null,{"$f":"'ORIGINAL PHOTO'!Q6:AI6","v":"MEN'S LONG SLEEVE ZIP FRONT SCOOP HEM HOODIE WITH LINED HOOD"}]
[]
[null,"GRADE SHEET -- COAT",null,null,null,null,null,null,null,null,null,null,null,null,null,null,null,null,null,"Date:",null,null,null,null,null,null,null,null,null,null,null,null,null,null,null,null,null,null,null,"L"]
[null,"(Measurements on flat / inches)",null,null,null,null,null,null,null,null,null,null,null,null,null,null,null,null,null,"SM",null,null,null,"LXL",null,null,null,null,null,null,null,null,"Tolerance\n+ / -\n(on flat)",null,null,null,null,null,null,"LXL"]
[null,null,null,null,null,null,null,null,null,null,null,null,null,null,null,null,null,null,null,null,null,null,null,null,null,null,null,null,null,null,null,null,null,null,null,null,null,null,null,"M"]
[null,"BACK LENGTH FROM (HIGH SHOULDER POINT)","BACK LENGTH FROM (HIGH SHOULDER POINT)","BACK LENGTH FROM (HIGH SHOULDER POINT)","BACK LENGTH FROM (HIGH SHOULDER POINT)","BACK LENGTH FROM (HIGH SHOULDER POINT)","BACK LENGTH FROM (HIGH SHOULDER POINT)","BACK LENGTH FROM (HIGH SHOULDER POINT)","BACK LENGTH FROM (HIGH SHOULDER POINT)","BACK LENGTH FROM (HIGH SHOULDER POINT)","BACK LENGTH FROM (HIGH SHOULDER POINT)","BACK LENGTH FROM (HIGH SHOULDER POINT)","BACK LENGTH FROM (HIGH SHOULDER POINT)","BACK LENGTH FROM (HIGH SHOULDER POINT)","BACK LENGTH FROM (HIGH SHOULDER POINT)",null,null,null,null,0,null,null,null,{"$f":"T11+0.625","v":0.625},null,null,null,null,null,null,null,null,0.375,null,null,null,null,null,null,"S"]
[null,"CENTER BACK LENGTH ( FROM NECK TO HEM )","CENTER BACK LENGTH ( FROM NECK TO HEM )","CENTER BACK LENGTH ( FROM NECK TO HEM )","CENTER BACK LENGTH ( FROM NECK TO HEM )","CENTER BACK LENGTH ( FROM NECK TO HEM )","CENTER BACK LENGTH ( FROM NECK TO HEM )","CENTER BACK LENGTH ( FROM NECK TO HEM )","CENTER BACK LENGTH ( FROM NECK TO HEM )","CENTER BACK LENGTH ( FROM NECK TO HEM )","CENTER BACK LENGTH ( FROM NECK TO HEM )","CENTER BACK LENGTH ( FROM NECK TO HEM )","CENTER BACK LENGTH ( FROM NECK TO HEM )","CENTER BACK LENGTH ( FROM NECK TO HEM )","CENTER BACK LENGTH ( FROM NECK TO HEM )",null,null,null,null,0,null,null,null,null,null,null,null,null,null,null,null,null,0.375,null,null,null,null,null,null,"SM"]
[null,"FRONT LENGTH FROM (HIGH SHOULDER POINT)","FRONT LENGTH FROM (HIGH SHOULDER POINT)","FRONT LENGTH FROM (HIGH SHOULDER POINT)","FRONT LENGTH FROM (HIGH SHOULDER POINT)","FRONT LENGTH FROM (HIGH SHOULDER POINT)","FRONT LENGTH FROM (HIGH SHOULDER POINT)","FRONT LENGTH FROM (HIGH SHOULDER POINT)","FRONT LENGTH FROM (HIGH SHOULDER POINT)","FRONT LENGTH FROM (HIGH SHOULDER POINT)","FRONT LENGTH FROM (HIGH SHOULDER POINT)","FRONT LENGTH FROM (HIGH SHOULDER POINT)","FRONT LENGTH FROM (HIGH SHOULDER POINT)","FRONT LENGTH FROM (HIGH SHOULDER POINT)","FRONT LENGTH FROM (HIGH SHOULDER POINT)",null,null,null,null,0,null,null,null,{"$f":"T13+0.625","v":0.625},null,null,null,null,null,null,null,null,0.375,null,null,null,null,null,null,"XL"]
[null,"FRONT LENGTH (FROM CENTRE FRONT NECK TO HEM)","FRONT LENGTH (FROM CENTRE FRONT NECK TO HEM)","FRONT LENGTH (FROM CENTRE FRONT NECK TO HEM)","FRONT LENGTH (FROM CENTRE FRONT NECK TO HEM)","FRONT LENGTH (FROM CENTRE FRONT NECK TO HEM)","FRONT LENGTH (FROM CENTRE FRONT NECK TO HEM)","FRONT LENGTH (FROM CENTRE FRONT NECK TO HEM)","FRONT LENGTH (FROM CENTRE FRONT NECK TO HEM)","FRONT LENGTH (FROM CENTRE FRONT NECK TO HEM)","FRONT LENGTH (FROM CENTRE FRONT NECK TO HEM)","FRONT LENGTH (FROM CENTRE FRONT NECK TO HEM)","FRONT LENGTH (FROM CENTRE FRONT NECK TO HEM)","FRONT LENGTH (FROM CENTRE FRONT NECK TO HEM)","FRONT LENGTH (FROM CENTRE FRONT NECK TO HEM)",null,null,null,null,0,null,null,null,null,null,null,null,null,null,null,null,null,0.375,null,null,null,null,null,null,"XXL"]
[null,"CHEST (1\" BELOW ARMHOLE)","CHEST (1\" BELOW ARMHOLE)","CHEST (1\" BELOW ARMHOLE)","CHEST (1\" BELOW ARMHOLE)","CHEST (1\" BELOW ARMHOLE)","CHEST (1\" BELOW ARMHOLE)","CHEST (1\" BELOW ARMHOLE)","CHEST (1\" BELOW ARMHOLE)","CHEST (1\" BELOW ARMHOLE)","CHEST (1\" BELOW ARMHOLE)","CHEST (1\" BELOW ARMHOLE)","CHEST (1\" BELOW ARMHOLE)","CHEST (1\" BELOW ARMHOLE)","CHEST (1\" BELOW ARMHOLE)",null,null,null,null,0,null,null,null,{"$f":"T15+2.5","v":2.5},null,null,null,null,null,null,null,null,0.375,null,null,null,null,null,null,"XXXL"]
[null,"WAIST (16 1/2\" BELOW HIGH SHOULDER POINT)","WAIST (16 1/2\" BELOW HIGH SHOULDER POINT)","WAIST (16 1/2\" BELOW HIGH SHOULDER POINT)","WAIST (16 1/2\" BELOW HIGH SHOULDER POINT)","WAIST (16 1/2\" BELOW HIGH SHOULDER POINT)","WAIST (16 1/2\" BELOW HIGH SHOULDER POINT)","WAIST (16 1/2\" BELOW HIGH SHOULDER POINT)","WAIST (16 1/2\" BELOW HIGH SHOULDER POINT)","WAIST (16 1/2\" BELOW HIGH SHOULDER POINT)","WAIST (16 1/2\" BELOW HIGH SHOULDER POINT)","WAIST (16 1/2\" BELOW HIGH SHOULDER POINT)","WAIST (16 1/2\" BELOW HIGH SHOULDER POINT)","WAIST (16 1/2\" BELOW HIGH SHOULDER POINT)","WAIST (16 1/2\" BELOW HIGH SHOULDER POINT)",null,null,null,null,0,null,null,null,{"$f":"T16+2.5","v":2.5},null,null,null,null,null,null,null,null,0.375]
[null,"TOP HIP ( 3\" BELOW WAIST )","TOP HIP ( 3\" BELOW WAIST )","TOP HIP ( 3\" BELOW WAIST )","TOP HIP ( 3\" BELOW WAIST )","TOP HIP ( 3\" BELOW WAIST )","TOP HIP ( 3\" BELOW WAIST )","TOP HIP ( 3\" BELOW WAIST )","TOP HIP ( 3\" BELOW WAIST )","TOP HIP ( 3\" BELOW WAIST )","TOP HIP ( 3\" BELOW WAIST )","TOP HIP ( 3\" BELOW WAIST )","TOP HIP ( 3\" BELOW WAIST )","TOP HIP ( 3\" BELOW WAIST )","TOP HIP ( 3\" BELOW WAIST )",null,null,null,null,0,null,null,null,{"$f":"T17+2.5","v":2.5},null,null,null,null,null,null,null,null,0.375]
[null,"LOW HIP ( 8\" BELOW WAIST)","LOW HIP ( 8\" BELOW WAIST)","LOW HIP ( 8\" BELOW WAIST)","LOW HIP ( 8\" BELOW WAIST)","LOW HIP ( 8\" BELOW WAIST)","LOW HIP ( 8\" BELOW WAIST)","LOW HIP ( 8\" BELOW WAIST)","LOW HIP ( 8\" BELOW WAIST)","LOW HIP ( 8\" BELOW WAIST)","LOW HIP ( 8\" BELOW WAIST)","LOW HIP ( 8\" BELOW WAIST)","LOW HIP ( 8\" BELOW WAIST)","LOW HIP ( 8\" BELOW WAIST)","LOW HIP ( 8\" BELOW WAIST)",null,null,null,null,0,null,null,null,{"$f":"T18+2.5","v":2.5},null,null,null,null,null,null,null,null,0.375]
[null,"HEM STRAIGHT","HEM STRAIGHT","HEM STRAIGHT","HEM STRAIGHT","HEM STRAIGHT","HEM STRAIGHT","HEM STRAIGHT","HEM STRAIGHT","HEM STRAIGHT","HEM STRAIGHT","HEM STRAIGHT","HEM STRAIGHT","HEM STRAIGHT","HEM STRAIGHT",null,null,null,null,0,null,null,null,{"$f":"T19+2.5","v":2.5},null,null,null,null,null,null,null,null,0.375]
[null,"HEM CURVE (FOLLOW)","HEM CURVE (FOLLOW)","HEM CURVE (FOLLOW)","HEM CURVE (FOLLOW)","HEM CURVE (FOLLOW)","HEM CURVE (FOLLOW)","HEM CURVE (FOLLOW)","HEM CURVE (FOLLOW)","HEM CURVE (FOLLOW)","HEM CURVE (FOLLOW)","HEM CURVE (FOLLOW)","HEM CURVE (FOLLOW)","HEM CURVE (FOLLOW)","HEM CURVE (FOLLOW)",null,null,null,null,0,null,null,null,null,null,null,null,null,null,null,null,null,0.375]
[null,"ACROSS SHOULDERS ( TOTAL )","ACROSS SHOULDERS ( TOTAL )","ACROSS SHOULDERS ( TOTAL )","ACROSS SHOULDERS ( TOTAL )","ACROSS SHOULDERS ( TOTAL )","ACROSS SHOULDERS ( TOTAL )","ACROSS SHOULDERS ( TOTAL )","ACROSS SHOULDERS ( TOTAL )","ACROSS SHOULDERS ( TOTAL )","ACROSS SHOULDERS ( TOTAL )","ACROSS SHOULDERS ( TOTAL )","ACROSS SHOULDERS ( TOTAL )","ACROSS SHOULDERS ( TOTAL )","ACROSS SHOULDERS ( TOTAL )",null,null,null,null,0,null,null,null,{"$f":"T21+1.25","v":1.25},null,null,null,null,null,null,null,null,0.375]
[null,"SHOULDER LENGTH AT SEAM","SHOULDER LENGTH AT SEAM","SHOULDER LENGTH AT SEAM","SHOULDER LENGTH AT SEAM","SHOULDER LENGTH AT SEAM","SHOULDER LENGTH AT SEAM","SHOULDER LENGTH AT SEAM","SHOULDER LENGTH AT SEAM","SHOULDER LENGTH AT SEAM","SHOULDER LENGTH AT SEAM","SHOULDER LENGTH AT SEAM","SHOULDER LENGTH AT SEAM","SHOULDER LENGTH AT SEAM","SHOULDER LENGTH AT SEAM",null,null,null,null,0,null,null,null,null,null,null,null,null,null,null,null,null,0.375]
[null,"ACROSS FRONT (5\" BELOW HIGH SHOULDER POINT)","ACROSS FRONT (5\" BELOW HIGH SHOULDER POINT)","ACROSS FRONT (5\" BELOW HIGH SHOULDER POINT)","ACROSS FRONT (5\" BELOW HIGH SHOULDER POINT)","ACROSS FRONT (5\" BELOW HIGH SHOULDER POINT)","ACROSS FRONT (5\" BELOW HIGH SHOULDER POINT)","ACROSS FRONT (5\" BELOW HIGH SHOULDER POINT)","ACROSS FRONT (5\" BELOW HIGH SHOULDER POINT)","ACROSS FRONT (5\" BELOW HIGH SHOULDER POINT)","ACROSS FRONT (5\" BELOW HIGH SHOULDER POINT)","ACROSS FRONT (5\" BELOW HIGH SHOULDER POINT)","ACROSS FRONT (5\" BELOW HIGH SHOULDER POINT)","ACROSS FRONT (5\" BELOW HIGH SHOULDER POINT)","ACROSS FRONT (5\" BELOW HIGH SHOULDER POINT)",null,null,null,null,0,null,null,null,{"$f":"T23+1.25","v":1.25},null,null,null,null,null,null,null,null,0.375]
[null,"ACROSS BACK (5\" BELOW HIGH SHOULDER POINT)","ACROSS BACK (5\" BELOW HIGH SHOULDER POINT)","ACROSS BACK (5\" BELOW HIGH SHOULDER POINT)","ACROSS BACK (5\" BELOW HIGH SHOULDER POINT)","ACROSS BACK (5\" BELOW HIGH SHOULDER POINT)","ACROSS BACK (5\" BELOW HIGH SHOULDER POINT)","ACROSS BACK (5\" BELOW HIGH SHOULDER POINT)","ACROSS BACK (5\" BELOW HIGH SHOULDER POINT)","ACROSS BACK (5\" BELOW HIGH SHOULDER POINT)","ACROSS BACK (5\" BELOW HIGH SHOULDER POINT)","ACROSS BACK (5\" BELOW HIGH SHOULDER POINT)","ACROSS BACK (5\" BELOW HIGH SHOULDER POINT)","ACROSS BACK (5\" BELOW HIGH SHOULDER POINT)","ACROSS BACK (5\" BELOW HIGH SHOULDER POINT)",null,null,null,null,0,null,null,null,{"$f":"T24+1.25","v":1.25},null,null,null,null,null,null,null,null,0.375]
[null,"OVERARM (FROM SLEEVE CAP TO HEM)-SHORT SLEEVE","OVERARM (FROM SLEEVE CAP TO HEM)-SHORT SLEEVE","OVERARM (FROM SLEEVE CAP TO HEM)-SHORT SLEEVE","OVERARM (FROM SLEEVE CAP TO HEM)-SHORT SLEEVE","OVERARM (FROM SLEEVE CAP TO HEM)-SHORT SLEEVE","OVERARM (FROM SLEEVE CAP TO HEM)-SHORT SLEEVE","OVERARM (FROM SLEEVE CAP TO HEM)-SHORT SLEEVE","OVERARM (FROM SLEEVE CAP TO HEM)-SHORT SLEEVE","OVERARM (FROM SLEEVE CAP TO HEM)-SHORT SLEEVE","OVERARM (FROM SLEEVE CAP TO HEM)-SHORT SLEEVE","OVERARM (FROM SLEEVE CAP TO HEM)-SHORT SLEEVE","OVERARM (FROM SLEEVE CAP TO HEM)-SHORT SLEEVE","OVERARM (FROM SLEEVE CAP TO HEM)-SHORT SLEEVE","OVERARM (FROM SLEEVE CAP TO HEM)-SHORT SLEEVE",null,null,null,null,0,null,null,null,{"$f":"T25+0.375","v":0.375},null,null,null,null,null,null,null,null,0.25]
[null,"OVERARM (FROM SLEEVE CAP TO HEM)- 3/4 SLEEVE","OVERARM (FROM SLEEVE CAP TO HEM)- 3/4 SLEEVE","OVERARM (FROM SLEEVE CAP TO HEM)- 3/4 SLEEVE","OVERARM (FROM SLEEVE CAP TO HEM)- 3/4 SLEEVE","OVERARM (FROM SLEEVE CAP TO HEM)- 3/4 SLEEVE","OVERARM (FROM SLEEVE CAP TO HEM)- 3/4 SLEEVE","OVERARM (FROM SLEEVE CAP TO HEM)- 3/4 SLEEVE","OVERARM (FROM SLEEVE CAP TO HEM)- 3/4 SLEEVE","OVERARM (FROM SLEEVE CAP TO HEM)- 3/4 SLEEVE","OVERARM (FROM SLEEVE CAP TO HEM)- 3/4 SLEEVE","OVERARM (FROM SLEEVE CAP TO HEM)- 3/4 SLEEVE","OVERARM (FROM SLEEVE CAP TO HEM)- 3/4 SLEEVE","OVERARM (FROM SLEEVE CAP TO HEM)- 3/4 SLEEVE","OVERARM (FROM SLEEVE CAP TO HEM)- 3/4 SLEEVE",null,null,null,null,0,null,null,null,{"$f":"T26+0.375","v":0.375},null,null,null,null,null,null,null,null,0.25]
[null,"OVERARM (FROM SLEEVE CAP TO HEM)- LONG SLEEVE","OVERARM (FROM SLEEVE CAP TO HEM)- LONG SLEEVE","OVERARM (FROM SLEEVE CAP TO HEM)- LONG SLEEVE","OVERARM (FROM SLEEVE CAP TO HEM)- LONG SLEEVE","OVERARM (FROM SLEEVE CAP TO HEM)- LONG SLEEVE","OVERARM (FROM SLEEVE CAP TO HEM)- LONG SLEEVE","OVERARM (FROM SLEEVE CAP TO HEM)- LONG SLEEVE","OVERARM (FROM SLEEVE CAP TO HEM)- LONG SLEEVE","OVERARM (FROM SLEEVE CAP TO HEM)- LONG SLEEVE","OVERARM (FROM SLEEVE CAP TO HEM)- LONG SLEEVE","OVERARM (FROM SLEEVE CAP TO HEM)- LONG SLEEVE","OVERARM (FROM SLEEVE CAP TO HEM)- LONG SLEEVE","OVERARM (FROM SLEEVE CAP TO HEM)- LONG SLEEVE","OVERARM (FROM SLEEVE CAP TO HEM)- LONG SLEEVE",null,null,null,null,0,null,null,null,{"$f":"T27+0.375","v":0.375},null,null,null,null,null,null,null,null,0.375]
[null,"1/2 ARMHOLE STRAIGHT","1/2 ARMHOLE STRAIGHT","1/2 ARMHOLE STRAIGHT","1/2 ARMHOLE STRAIGHT","1/2 ARMHOLE STRAIGHT","1/2 ARMHOLE STRAIGHT","1/2 ARMHOLE STRAIGHT","1/2 ARMHOLE STRAIGHT","1/2 ARMHOLE STRAIGHT","1/2 ARMHOLE STRAIGHT","1/2 ARMHOLE STRAIGHT","1/2 ARMHOLE STRAIGHT","1/2 ARMHOLE STRAIGHT","1/2 ARMHOLE STRAIGHT",null,null,null,null,0,null,null,null,{"$f":"T28+1","v":1},null,null,null,null,null,null,null,null,0.25]
[null,"BICEP (1\" BELOW ARMHOLE)","BICEP (1\" BELOW ARMHOLE)","BICEP (1\" BELOW ARMHOLE)","BICEP (1\" BELOW ARMHOLE)","BICEP (1\" BELOW ARMHOLE)","BICEP (1\" BELOW ARMHOLE)","BICEP (1\" BELOW ARMHOLE)","BICEP (1\" BELOW ARMHOLE)","BICEP (1\" BELOW ARMHOLE)","BICEP (1\" BELOW ARMHOLE)","BICEP (1\" BELOW ARMHOLE)","BICEP (1\" BELOW ARMHOLE)","BICEP (1\" BELOW ARMHOLE)","BICEP (1\" BELOW ARMHOLE)",null,null,null,null,0,null,null,null,{"$f":"T29+0.75","v":0.75},null,null,null,null,null,null,null,null,0.25]
[null,"ELBOW (8 1/2\" BELOW ARMHOLE)","ELBOW (8 1/2\" BELOW ARMHOLE)","ELBOW (8 1/2\" BELOW ARMHOLE)","ELBOW (8 1/2\" BELOW ARMHOLE)","ELBOW (8 1/2\" BELOW ARMHOLE)","ELBOW (8 1/2\" BELOW ARMHOLE)","ELBOW (8 1/2\" BELOW ARMHOLE)","ELBOW (8 1/2\" BELOW ARMHOLE)","ELBOW (8 1/2\" BELOW ARMHOLE)","ELBOW (8 1/2\" BELOW ARMHOLE)","ELBOW (8 1/2\" BELOW ARMHOLE)","ELBOW (8 1/2\" BELOW ARMHOLE)","ELBOW (8 1/2\" BELOW ARMHOLE)","ELBOW (8 1/2\" BELOW ARMHOLE)",null,null,null,null,0,null,null,null,{"$f":"T30+0.625","v":0.625},null,null,null,null,null,null,null,null,0.25]
[null,"SHORT SLEEVE OPENING","SHORT SLEEVE OPENING","SHORT SLEEVE OPENING","SHORT SLEEVE OPENING","SHORT SLEEVE OPENING","SHORT SLEEVE OPENING","SHORT SLEEVE OPENING","SHORT SLEEVE OPENING","SHORT SLEEVE OPENING","SHORT SLEEVE OPENING","SHORT SLEEVE OPENING","SHORT SLEEVE OPENING","SHORT SLEEVE OPENING","SHORT SLEEVE OPENING",null,null,null,null,0,null,null,null,{"$f":"T31+0.75","v":0.75},null,null,null,null,null,null,null,null,0.25]
[null,"3/4 SLEEVE OPENING","3/4 SLEEVE OPENING","3/4 SLEEVE OPENING","3/4 SLEEVE OPENING","3/4 SLEEVE OPENING","3/4 SLEEVE OPENING","3/4 SLEEVE OPENING","3/4 SLEEVE OPENING","3/4 SLEEVE OPENING","3/4 SLEEVE OPENING","3/4 SLEEVE OPENING","3/4 SLEEVE OPENING","3/4 SLEEVE OPENING","3/4 SLEEVE OPENING",null,null,null,null,0,null,null,null,{"$f":"T32+0.5","v":0.5},null,null,null,null,null,null,null,null,0.25]
[null,"LONG SLEEVE OPENING","LONG SLEEVE OPENING","LONG SLEEVE OPENING","LONG SLEEVE OPENING","LONG SLEEVE OPENING","LONG SLEEVE OPENING","LONG SLEEVE OPENING","LONG SLEEVE OPENING","LONG SLEEVE OPENING","LONG SLEEVE OPENING","LONG SLEEVE OPENING","LONG SLEEVE OPENING","LONG SLEEVE OPENING","LONG SLEEVE OPENING",null,null,null,null,0,null,null,null,{"$f":"T33+0.375","v":0.375},null,null,null,null,null,null,null,null,"1/4"]
[null,"SLEEVE CAP HEIGHT ( FROM TOP OF SLEEVE TO UNDERARM )","SLEEVE CAP HEIGHT ( FROM TOP OF SLEEVE TO UNDERARM )","SLEEVE CAP HEIGHT ( FROM TOP OF SLEEVE TO UNDERARM )","SLEEVE CAP HEIGHT ( FROM TOP OF SLEEVE TO UNDERARM )","SLEEVE CAP HEIGHT ( FROM TOP OF SLEEVE TO UNDERARM )","SLEEVE CAP HEIGHT ( FROM TOP OF SLEEVE TO UNDERARM )","SLEEVE CAP HEIGHT ( FROM TOP OF SLEEVE TO UNDERARM )","SLEEVE CAP HEIGHT ( FROM TOP OF SLEEVE TO UNDERARM )","SLEEVE CAP HEIGHT ( FROM TOP OF SLEEVE TO UNDERARM )","SLEEVE CAP HEIGHT ( FROM TOP OF SLEEVE TO UNDERARM )","SLEEVE CAP HEIGHT ( FROM TOP OF SLEEVE TO UNDERARM )","SLEEVE CAP HEIGHT ( FROM TOP OF SLEEVE TO UNDERARM )","SLEEVE CAP HEIGHT ( FROM TOP OF SLEEVE TO UNDERARM )","SLEEVE CAP HEIGHT ( FROM TOP OF SLEEVE TO UNDERARM )",null,null,null,null,0,null,null,null,{"$f":"T34+0.375","v":0.375},null,null,null,null,null,null,null,null,0]
[null,"SHOULDER SLOPE ( HSP TO SHOULDER ARMHOLE SEAM )","SHOULDER SLOPE ( HSP TO SHOULDER ARMHOLE SEAM )","SHOULDER SLOPE ( HSP TO SHOULDER ARMHOLE SEAM )","SHOULDER SLOPE ( HSP TO SHOULDER ARMHOLE SEAM )","SHOULDER SLOPE ( HSP TO SHOULDER ARMHOLE SEAM )","SHOULDER SLOPE ( HSP TO SHOULDER ARMHOLE SEAM )","SHOULDER SLOPE ( HSP TO SHOULDER ARMHOLE SEAM )","SHOULDER SLOPE ( HSP TO SHOULDER ARMHOLE SEAM )","SHOULDER SLOPE ( HSP TO SHOULDER ARMHOLE SEAM )","SHOULDER SLOPE ( HSP TO SHOULDER ARMHOLE SEAM )","SHOULDER SLOPE ( HSP TO SHOULDER ARMHOLE SEAM )","SHOULDER SLOPE ( HSP TO SHOULDER ARMHOLE SEAM )","SHOULDER SLOPE ( HSP TO SHOULDER ARMHOLE SEAM )","SHOULDER SLOPE ( HSP TO SHOULDER ARMHOLE SEAM )",null,null,null,null,0,null,null,null,{"$f":"T35+0","v":0},null,null,null,null,null,null,null,null,0]
[null,"NECK WIDTH (HSP TO HSP) ON BACK","NECK WIDTH (HSP TO HSP) ON BACK","NECK WIDTH (HSP TO HSP) ON BACK","NECK WIDTH (HSP TO HSP) ON BACK","NECK WIDTH (HSP TO HSP) ON BACK","NECK WIDTH (HSP TO HSP) ON BACK","NECK WIDTH (HSP TO HSP) ON BACK","NECK WIDTH (HSP TO HSP) ON BACK","NECK WIDTH (HSP TO HSP) ON BACK","NECK WIDTH (HSP TO HSP) ON BACK","NECK WIDTH (HSP TO HSP) ON BACK","NECK WIDTH (HSP TO HSP) ON BACK","NECK WIDTH (HSP TO HSP) ON BACK","NECK WIDTH (HSP TO HSP) ON BACK",null,null,null,null,0,null,null,null,{"$f":"T36+0.625","v":0.625},null,null,null,null,null,null,null,null,0.25]
[null,"FRONT NECK DROP ( FROM HSP TO CENTER FRONT NECK EDGE OR SEAM )","FRONT NECK DROP ( FROM HSP TO CENTER FRONT NECK EDGE OR SEAM )","FRONT NECK DROP ( FROM HSP TO CENTER FRONT NECK EDGE OR SEAM )","FRONT NECK DROP ( FROM HSP TO CENTER FRONT NECK EDGE OR SEAM )","FRONT NECK DROP ( FROM HSP TO CENTER FRONT NECK EDGE OR SEAM )","FRONT NECK DROP ( FROM HSP TO CENTER FRONT NECK EDGE OR SEAM )","FRONT NECK DROP ( FROM HSP TO CENTER FRONT NECK EDGE OR SEAM )","FRONT NECK DROP ( FROM HSP TO CENTER FRONT NECK EDGE OR SEAM )","FRONT NECK DROP ( FROM HSP TO CENTER FRONT NECK EDGE OR SEAM )","FRONT NECK DROP ( FROM HSP TO CENTER FRONT NECK EDGE OR SEAM )","FRONT NECK DROP ( FROM HSP TO CENTER FRONT NECK EDGE OR SEAM )","FRONT NECK DROP ( FROM HSP TO CENTER FRONT NECK EDGE OR SEAM )","FRONT NECK DROP ( FROM HSP TO CENTER FRONT NECK EDGE OR SEAM )","FRONT NECK DROP ( FROM HSP TO CENTER FRONT NECK EDGE OR SEAM )",null,null,null,null,0,null,null,null,{"$f":"T37+0.375","v":0.375},null,null,null,null,null,null,null,null,0.25]
[null,"BACK NECK DROP ( FROM HSP TO CENTER BACK NECK EDGE OR SEAM )","BACK NECK DROP ( FROM HSP TO CENTER BACK NECK EDGE OR SEAM )","BACK NECK DROP ( FROM HSP TO CENTER BACK NECK EDGE OR SEAM )","BACK NECK DROP ( FROM HSP TO CENTER BACK NECK EDGE OR SEAM )","BACK NECK DROP ( FROM HSP TO CENTER BACK NECK EDGE OR SEAM )","BACK NECK DROP ( FROM HSP TO CENTER BACK NECK EDGE OR SEAM )","BACK NECK DROP ( FROM HSP TO CENTER BACK NECK EDGE OR SEAM )","BACK NECK DROP ( FROM HSP TO CENTER BACK NECK EDGE OR SEAM )","BACK NECK DROP ( FROM HSP TO CENTER BACK NECK EDGE OR SEAM )","BACK NECK DROP ( FROM HSP TO CENTER BACK NECK EDGE OR SEAM )","BACK NECK DROP ( FROM HSP TO CENTER BACK NECK EDGE OR SEAM )","BACK NECK DROP ( FROM HSP TO CENTER BACK NECK EDGE OR SEAM )","BACK NECK DROP ( FROM HSP TO CENTER BACK NECK EDGE OR SEAM )","BACK NECK DROP ( FROM HSP TO CENTER BACK NECK EDGE OR SEAM )",null,null,null,null,0,null,null,null,{"$f":"T38+0","v":0},null,null,null,null,null,null,null,null,0.25]
[null,"1/2 NECK CIRCUMFERENCE","1/2 NECK CIRCUMFERENCE","1/2 NECK CIRCUMFERENCE","1/2 NECK CIRCUMFERENCE","1/2 NECK CIRCUMFERENCE","1/2 NECK CIRCUMFERENCE","1/2 NECK CIRCUMFERENCE","1/2 NECK CIRCUMFERENCE","1/2 NECK CIRCUMFERENCE","1/2 NECK CIRCUMFERENCE","1/2 NECK CIRCUMFERENCE","1/2 NECK CIRCUMFERENCE","1/2 NECK CIRCUMFERENCE","1/2 NECK CIRCUMFERENCE",null,null,null,null,0,null,null,null,null,null,null,null,null,null,null,null,null,0.25]
[null,"COLLAR DEPTH ( AT C.B. NECK )","COLLAR DEPTH ( AT C.B. NECK )","COLLAR DEPTH ( AT C.B. NECK )","COLLAR DEPTH ( AT C.B. NECK )","COLLAR DEPTH ( AT C.B. NECK )","COLLAR DEPTH ( AT C.B. NECK )","COLLAR DEPTH ( AT C.B. NECK )","COLLAR DEPTH ( AT C.B. NECK )","COLLAR DEPTH ( AT C.B. NECK )","COLLAR DEPTH ( AT C.B. NECK )","COLLAR DEPTH ( AT C.B. NECK )","COLLAR DEPTH ( AT C.B. NECK )","COLLAR DEPTH ( AT C.B. NECK )","COLLAR DEPTH ( AT C.B. NECK )",null,null,null,null,0,null,null,null,{"$f":"T40+0","v":0},null,null,null,null,null,null,null,null,0]
[null,"STAND DEPTH","STAND DEPTH","STAND DEPTH","STAND DEPTH","STAND DEPTH","STAND DEPTH","STAND DEPTH","STAND DEPTH","STAND DEPTH","STAND DEPTH","STAND DEPTH","STAND DEPTH","STAND DEPTH","STAND DEPTH",null,null,null,null,0,null,null,null,null,null,null,null,null,null,null,null,null,0]
[null,"COLLAR LENGTH","COLLAR LENGTH","COLLAR LENGTH","COLLAR LENGTH","COLLAR LENGTH","COLLAR LENGTH","COLLAR LENGTH","COLLAR LENGTH","COLLAR LENGTH","COLLAR LENGTH","COLLAR LENGTH","COLLAR LENGTH","COLLAR LENGTH","COLLAR LENGTH",null,null,null,null,0,null,null,null,{"$f":"T42+0","v":0},null,null,null,null,null,null,null,null,0.25]
[null,"NECK TRIM DEPTH","NECK TRIM DEPTH","NECK TRIM DEPTH","NECK TRIM DEPTH","NECK TRIM DEPTH","NECK TRIM DEPTH","NECK TRIM DEPTH","NECK TRIM DEPTH","NECK TRIM DEPTH","NECK TRIM DEPTH","NECK TRIM DEPTH","NECK TRIM DEPTH","NECK TRIM DEPTH","NECK TRIM DEPTH",null,null,null,null,0,null,null,null,{"$f":"T43+0","v":0},null,null,null,null,null,null,null,null,0]
[null,"CUFF DEPTH","CUFF DEPTH","CUFF DEPTH","CUFF DEPTH","CUFF DEPTH","CUFF DEPTH","CUFF DEPTH","CUFF DEPTH","CUFF DEPTH","CUFF DEPTH","CUFF DEPTH","CUFF DEPTH","CUFF DEPTH","CUFF DEPTH",null,null,null,null,0,null,null,null,{"$f":"T44+0","v":0},null,null,null,null,null,null,null,null,0]
[null,"SLEEVE HEM DEPTH","SLEEVE HEM DEPTH","SLEEVE HEM DEPTH","SLEEVE HEM DEPTH","SLEEVE HEM DEPTH","SLEEVE HEM DEPTH","SLEEVE HEM DEPTH","SLEEVE HEM DEPTH","SLEEVE HEM DEPTH","SLEEVE HEM DEPTH","SLEEVE HEM DEPTH","SLEEVE HEM DEPTH","SLEEVE HEM DEPTH","SLEEVE HEM DEPTH",null,null,null,null,0,null,null,null,{"$f":"T45+0","v":0},null,null,null,null,null,null,null,null,0]
[null,"BOTTOM HEM DEPTH","BOTTOM HEM DEPTH","BOTTOM HEM DEPTH","BOTTOM HEM DEPTH","BOTTOM HEM DEPTH","BOTTOM HEM DEPTH","BOTTOM HEM DEPTH","BOTTOM HEM DEPTH","BOTTOM HEM DEPTH","BOTTOM HEM DEPTH","BOTTOM HEM DEPTH","BOTTOM HEM DEPTH","BOTTOM HEM DEPTH","BOTTOM HEM DEPTH",null,null,null,null,0,null,null,null,{"$f":"T46+2.5","v":2.5},null,null,null,null,null,null,null,null,0]
[null,"HSP TO BUST POINT","HSP TO BUST POINT","HSP TO BUST POINT","HSP TO BUST POINT","HSP TO BUST POINT","HSP TO BUST POINT","HSP TO BUST POINT","HSP TO BUST POINT","HSP TO BUST POINT","HSP TO BUST POINT","HSP TO BUST POINT","HSP TO BUST POINT","HSP TO BUST POINT","HSP TO BUST POINT",null,null,null,null,0,null,null,null,{"$f":"T47+0.5","v":0.5},null,null,null,null,null,null,null,null,0]
[]
[]
[]
[]
[null,"Sample Approved?"]
[null,"If sample is NOT approved, then submit 2nd Pre-Production Samples. If sample is APPROVED, then submit Production Samples."]

{"sheet":"Grade S-M-L","index":18,"n_rows":53,"n_cols":40,"rows_kept":53,"cut":false,"hidden":true,"merged":[[1,16,1,22],[2,16,2,34],[3,16,3,22],[3,30,3,34],[4,16,4,22],[5,16,5,34],[7,1,7,18],[7,19,7,22],[7,23,7,31],[4,29,4,34],[8,32,9,34],[10,1,10,14],[10,15,10,16],[10,17,10,18],[10,19,10,20],[10,21,10,22],[10,23,10,24],[10,25,10,26],[10,27,10,28],[10,29,10,30],[10,32,10,34],[8,1,9,14],[8,15,9,16],[8,17,9,18],[8,19,9,20],[8,21,9,22],[8,23,9,24],[8,25,9,26],[8,27,9,28],[8,29,9,30],[11,32,11,34],[12,1,12,14],[12,15,12,16],[12,17,12,18],[12,19,12,20],[12,21,12,22],[12,23,12,24],[12,25,12,26],[12,27,12,28],[12,29,12,30],[12,32,12,34],[11,1,11,14],[11,15,11,16],[11,17,11,18],[11,19,11,20],[11,21,11,22],[11,23,11,24],[11,25,11,26],[11,27,11,28],[11,29,11,30],[13,32,13,34],[14,1,14,14],[14,15,14,16],[14,17,14,18],[14,19,14,20],[14,21,14,22],[14,23,14,24],[14,25,14,26],[14,27,14,28],[14,29,14,30],[14,32,14,34],[13,1,13,14],[13,15,13,16],[13,17,13,18],[13,19,13,20],[13,21,13,22],[13,23,13,24],[13,25,13,26],[13,27,13,28],[13,29,13,30],[15,32,15,34],[16,1,16,14],[16,15,16,16],[16,17,16,18],[16,19,16,20],[16,21,16,22],[16,23,16,24],[16,25,16,26],[16,27,16,28],[16,29,16,30],[16,32,16,34],[15,1,15,14],[15,15,15,16],[15,17,15,18],[15,19,15,20],[15,21,15,22],[15,23,15,24],[15,25,15,26],[15,27,15,28],[15,29,15,30],[17,32,17,34],[18,1,18,14],[18,15,18,16],[18,17,18,18],[18,19,18,20],[18,21,18,22],[18,23,18,24],[18,25,18,26],[18,27,18,28],[18,29,18,30],[18,32,18,34],[17,1,17,14],[17,15,17,16],[17,17,17,18],[17,19,17,20],[17,21,17,22],[17,23,17,24],[17,25,17,26],[17,27,17,28],[17,29,17,30],[19,32,19,34],[20,1,20,14],[20,15,20,16],[20,17,20,18],[20,19,20,20],[20,21,20,22],[20,23,20,24],[20,25,20,26],[20,27,20,28],[20,29,20,30],[20,32,20,34],[19,1,19,14],[19,15,19,16],[19,17,19,18],[19,19,19,20],[19,21,19,22],[19,23,19,24],[19,25,19,26],[19,27,19,28],[19,29,19,30],[21,32,21,34],[22,1,22,14],[22,15,22,16],[22,17,22,18],[22,19,22,20],[22,21,22,22],[22,23,22,24],[22,25,22,26],[22,27,22,28],[22,29,22,30],[22,32,22,34],[21,1,21,14],[21,15,21,16],[21,17,21,18],[21,19,21,20],[21,21,21,22],[21,23,21,24],[21,25,21,26],[21,27,21,28],[21,29,21,30],[23,32,23,34],[24,1,24,14],[24,15,24,16],[24,17,24,18],[24,19,24,20],[24,21,24,22],[24,23,24,24],[24,25,24,26],[24,27,24,28],[24,29,24,30],[24,32,24,34],[23,1,23,14],[23,15,23,16],[23,17,23,18],[23,19,23,20],[23,21,23,22],[23,23,23,24],[23,25,23,26],[23,27,23,28],[23,29,23,30],[25,32,25,34],[26,1,26,14],[26,15,26,16],[26,17,26,18],[26,19,26,20],[26,21,26,22],[26,23,26,24],[26,25,26,26],[26,27,26,28],[26,29,26,30],[26,32,26,34],[25,1,25,14],[25,15,25,16],[25,17,25,18],[25,19,25,20],[25,21,25,22],[25,23,25,24],[25,25,25,26],[25,27,25,28],[25,29,25,30],[27,32,27,34],[28,1,28,14],[28,15,28,16],[28,17,28,18],[28,19,28,20],[28,21,28,22],[28,23,28,24],[28,25,28,26],[28,27,28,28],[28,29,28,30],[28,32,28,34],[27,1,27,14],[27,15,27,16],[27,17,27,18],[27,19,27,20],[27,21,27,22],[27,23,27,24],[27,25,27,26],[27,27,27,28],[27,29,27,30],[29,32,29,34],[30,1,30,14],[30,15,30,16],[30,17,30,18],[30,19,30,20],[30,21,30,22],[30,23,30,24],[30,25,30,26],[30,27,30,28],[30,29,30,30],[30,32,30,34],[29,1,29,14],[29,15,29,16],[29,17,29,18],[29,19,29,20],[29,21,29,22],[29,23,29,24],[29,25,29,26],[29,27,29,28],[29,29,29,30],[31,32,31,34],[32,1,32,14],[32,15,32,16],[32,17,32,18],[32,19,32,20],[32,21,32,22],[32,23,32,24],[32,25,32,26],[32,27,32,28],[32,29,32,30],[32,32,32,34],[31,1,31,14],[31,15,31,16],[31,17,31,18],[31,19,31,20],[31,21,31,22],[31,23,31,24],[31,25,31,26],[31,27,31,28],[31,29,31,30],[33,32,33,34],[34,1,34,14],[34,15,34,16],[34,17,34,18],[34,19,34,20],[34,21,34,22],[34,23,34,24],[34,25,34,26],[34,27,34,28],[34,29,34,30],[34,32,34,34],[33,1,33,14],[33,15,33,16],[33,17,33,18],[33,19,33,20],[33,21,33,22],[33,23,33,24],[33,25,33,26],[33,27,33,28],[33,29,33,30],[35,32,35,34],[36,1,36,14],[36,15,36,16],[36,17,36,18],[36,19,36,20],[36,21,36,22],[36,23,36,24],[36,25,36,26],[36,27,36,28],[36,29,36,30],[36,32,36,34],[35,1,35,14],[35,15,35,16],[35,17,35,18],[35,19,35,20],[35,21,35,22],[35,23,35,24],[35,25,35,26],[35,27,35,28],[35,29,35,30],[37,32,37,34],[38,1,38,14],[38,15,38,16],[38,17,38,18],[38,19,38,20],[38,21,38,22],[38,23,38,24],[38,25,38,26],[38,27,38,28],[38,29,38,30],[38,32,38,34],[37,1,37,14],[37,15,37,16],[37,17,37,18],[37,19,37,20],[37,21,37,22],[37,23,37,24],[37,25,37,26],[37,27,37,28],[37,29,37,30],[39,32,39,34],[40,1,40,14],[40,15,40,16],[40,17,40,18],[40,19,40,20],[40,21,40,22],[40,23,40,24],[40,25,40,26],[40,27,40,28],[40,29,40,30],[40,32,40,34],[39,1,39,14],[39,15,39,16],[39,17,39,18],[39,19,39,20],[39,21,39,22],[39,23,39,24],[39,25,39,26],[39,27,39,28],[39,29,39,30],[41,32,41,34],[42,1,42,14],[42,15,42,16],[42,17,42,18],[42,19,42,20],[42,21,42,22],[42,23,42,24],[42,25,42,26],[42,27,42,28],[42,29,42,30],[42,32,42,34],[41,1,41,14],[41,15,41,16],[41,17,41,18],[41,19,41,20],[41,21,41,22],[41,23,41,24],[41,25,41,26],[41,27,41,28],[41,29,41,30],[43,32,43,34],[44,1,44,14],[44,15,44,16],[44,17,44,18],[44,19,44,20],[44,21,44,22],[44,23,44,24],[44,25,44,26],[44,27,44,28],[44,29,44,30],[44,32,44,34],[43,1,43,14],[43,15,43,16],[43,17,43,18],[43,19,43,20],[43,21,43,22],[43,23,43,24],[43,25,43,26],[43,27,43,28],[43,29,43,30],[45,32,45,34],[46,1,46,14],[46,15,46,16],[46,17,46,18],[46,19,46,20],[46,21,46,22],[46,23,46,24],[46,25,46,26],[46,27,46,28],[46,29,46,30],[46,32,46,34],[45,1,45,14],[45,15,45,16],[45,17,45,18],[45,19,45,20],[45,21,45,22],[45,23,45,24],[45,25,45,26],[45,27,45,28],[45,29,45,30],[47,32,47,34],[48,1,48,14],[48,15,48,16],[48,17,48,18],[48,19,48,20],[48,21,48,22],[48,23,48,24],[48,25,48,26],[48,27,48,28],[48,29,48,30],[48,32,48,34],[47,1,47,14],[47,15,47,16],[47,17,47,18],[47,19,47,20],[47,21,47,22],[47,23,47,24],[47,25,47,26],[47,27,47,28],[47,29,47,30],[50,32,50,34],[52,1,52,34],[49,25,49,26],[49,27,49,28],[49,29,49,30],[49,32,49,34],[50,1,50,14],[50,15,50,16],[50,17,50,18],[50,19,50,20],[50,21,50,22],[50,23,50,24],[49,1,49,14],[49,15,49,16],[49,17,49,18],[49,19,49,20],[49,21,49,22],[49,23,49,24],[50,25,50,26],[50,27,50,28],[50,29,50,30]]}
[]
[null,null,null,null,null,null,null,null,null,null,null,"Create Date:",null,null,null,null,{"$f":"'ORIGINAL PHOTO'!Q2:W2","v":"MARCH 15/2017"}]
[null,null,null,null,null,null,null,null,null,null,null,"Vendor Name:",null,null,null,null,{"$f":"'ORIGINAL PHOTO'!Q3:AI3","v":0}]
[null,null,null,null,null,null,null,null,null,null,null,"Vndr.Item No.:",null,null,null,null,{"$f":"'ORIGINAL PHOTO'!Q4:W4","v":0},null,null,null,null,null,null,null,null,null,"GC Item No.:",null,null,null,{"$f":"'ORIGINAL PHOTO'!AE4:AI4","v":0}]
[null,null,null,null,null,null,null,null,null,null,null,"Size Range:",null,null,null,null,{"$f":"'ORIGINAL PHOTO'!Q5:W5","v":"S-M-L-XL"},null,null,null,null,null,null,null,null,null,"Season:",null,null,{"$f":"'ORIGINAL PHOTO'!AD5:AI5","v":"Spring Summer 2018"}]
[null,null,null,null,null,null,null,null,null,null,null,"Description:",null,null,null,null,{"$f":"'ORIGINAL PHOTO'!Q6:AI6","v":"MEN'S LONG SLEEVE ZIP FRONT SCOOP HEM HOODIE WITH LINED HOOD"}]
[]
[null,"GRADE SHEET -- COAT",null,null,null,null,null,null,null,null,null,null,null,null,null,null,null,null,null,"Date:",null,null,null,null,null,null,null,null,null,null,null,null,null,null,null,null,null,null,null,"L"]
[null,"(Measurements on flat / inches)",null,null,null,null,null,null,null,null,null,null,null,null,null,"S",null,null,null,"M",null,null,null,"L",null,null,null,null,null,null,null,null,"Tolerance\n+ / -\n(on flat)",null,null,null,null,null,null,"LXL"]
[null,null,null,null,null,null,null,null,null,null,null,null,null,null,null,null,null,null,null,null,null,null,null,null,null,null,null,null,null,null,null,null,null,null,null,null,null,null,null,"M"]
[null,"BACK LENGTH FROM (HIGH SHOULDER POINT)","BACK LENGTH FROM (HIGH SHOULDER POINT)","BACK LENGTH FROM (HIGH SHOULDER POINT)","BACK LENGTH FROM (HIGH SHOULDER POINT)","BACK LENGTH FROM (HIGH SHOULDER POINT)","BACK LENGTH FROM (HIGH SHOULDER POINT)","BACK LENGTH FROM (HIGH SHOULDER POINT)","BACK LENGTH FROM (HIGH SHOULDER POINT)","BACK LENGTH FROM (HIGH SHOULDER POINT)","BACK LENGTH FROM (HIGH SHOULDER POINT)","BACK LENGTH FROM (HIGH SHOULDER POINT)","BACK LENGTH FROM (HIGH SHOULDER POINT)","BACK LENGTH FROM (HIGH SHOULDER POINT)","BACK LENGTH FROM (HIGH SHOULDER POINT)",{"$f":"T11-0.375","v":-0.375},null,null,null,0,null,null,null,{"$f":"T11+0.5","v":0.5},null,null,null,null,null,null,null,null,0.375,null,null,null,null,null,null,"S"]
[null,"CENTER BACK LENGTH ( FROM NECK TO HEM )","CENTER BACK LENGTH ( FROM NECK TO HEM )","CENTER BACK LENGTH ( FROM NECK TO HEM )","CENTER BACK LENGTH ( FROM NECK TO HEM )","CENTER BACK LENGTH ( FROM NECK TO HEM )","CENTER BACK LENGTH ( FROM NECK TO HEM )","CENTER BACK LENGTH ( FROM NECK TO HEM )","CENTER BACK LENGTH ( FROM NECK TO HEM )","CENTER BACK LENGTH ( FROM NECK TO HEM )","CENTER BACK LENGTH ( FROM NECK TO HEM )","CENTER BACK LENGTH ( FROM NECK TO HEM )","CENTER BACK LENGTH ( FROM NECK TO HEM )","CENTER BACK LENGTH ( FROM NECK TO HEM )","CENTER BACK LENGTH ( FROM NECK TO HEM )",null,null,null,null,0,null,null,null,null,null,null,null,null,null,null,null,null,0.375,null,null,null,null,null,null,"SM"]
[null,"FRONT LENGTH FROM (HIGH SHOULDER POINT)","FRONT LENGTH FROM (HIGH SHOULDER POINT)","FRONT LENGTH FROM (HIGH SHOULDER POINT)","FRONT LENGTH FROM (HIGH SHOULDER POINT)","FRONT LENGTH FROM (HIGH SHOULDER POINT)","FRONT LENGTH FROM (HIGH SHOULDER POINT)","FRONT LENGTH FROM (HIGH SHOULDER POINT)","FRONT LENGTH FROM (HIGH SHOULDER POINT)","FRONT LENGTH FROM (HIGH SHOULDER POINT)","FRONT LENGTH FROM (HIGH SHOULDER POINT)","FRONT LENGTH FROM (HIGH SHOULDER POINT)","FRONT LENGTH FROM (HIGH SHOULDER POINT)","FRONT LENGTH FROM (HIGH SHOULDER POINT)","FRONT LENGTH FROM (HIGH SHOULDER POINT)",{"$f":"T13-0.375","v":-0.375},null,null,null,0,null,null,null,{"$f":"T13+0.5","v":0.5},null,null,null,null,null,null,null,null,0.375,null,null,null,null,null,null,"XL"]
[null,"FRONT LENGTH (FROM CENTRE FRONT NECK TO HEM)","FRONT LENGTH (FROM CENTRE FRONT NECK TO HEM)","FRONT LENGTH (FROM CENTRE FRONT NECK TO HEM)","FRONT LENGTH (FROM CENTRE FRONT NECK TO HEM)","FRONT LENGTH (FROM CENTRE FRONT NECK TO HEM)","FRONT LENGTH (FROM CENTRE FRONT NECK TO HEM)","FRONT LENGTH (FROM CENTRE FRONT NECK TO HEM)","FRONT LENGTH (FROM CENTRE FRONT NECK TO HEM)","FRONT LENGTH (FROM CENTRE FRONT NECK TO HEM)","FRONT LENGTH (FROM CENTRE FRONT NECK TO HEM)","FRONT LENGTH (FROM CENTRE FRONT NECK TO HEM)","FRONT LENGTH (FROM CENTRE FRONT NECK TO HEM)","FRONT LENGTH (FROM CENTRE FRONT NECK TO HEM)","FRONT LENGTH (FROM CENTRE FRONT NECK TO HEM)",null,null,null,null,0,null,null,null,null,null,null,null,null,null,null,null,null,0.375,null,null,null,null,null,null,"XXL"]
[null,"CHEST (1\" BELOW ARMHOLE)","CHEST (1\" BELOW ARMHOLE)","CHEST (1\" BELOW ARMHOLE)","CHEST (1\" BELOW ARMHOLE)","CHEST (1\" BELOW ARMHOLE)","CHEST (1\" BELOW ARMHOLE)","CHEST (1\" BELOW ARMHOLE)","CHEST (1\" BELOW ARMHOLE)","CHEST (1\" BELOW ARMHOLE)","CHEST (1\" BELOW ARMHOLE)","CHEST (1\" BELOW ARMHOLE)","CHEST (1\" BELOW ARMHOLE)","CHEST (1\" BELOW ARMHOLE)","CHEST (1\" BELOW ARMHOLE)",{"$f":"T15-1.5","v":-1.5},null,null,null,0,null,null,null,{"$f":"T15+2","v":2},null,null,null,null,null,null,null,null,0.375,null,null,null,null,null,null,"XXXL"]
[null,"WAIST (16 1/2\" BELOW HIGH SHOULDER POINT)","WAIST (16 1/2\" BELOW HIGH SHOULDER POINT)","WAIST (16 1/2\" BELOW HIGH SHOULDER POINT)","WAIST (16 1/2\" BELOW HIGH SHOULDER POINT)","WAIST (16 1/2\" BELOW HIGH SHOULDER POINT)","WAIST (16 1/2\" BELOW HIGH SHOULDER POINT)","WAIST (16 1/2\" BELOW HIGH SHOULDER POINT)","WAIST (16 1/2\" BELOW HIGH SHOULDER POINT)","WAIST (16 1/2\" BELOW HIGH SHOULDER POINT)","WAIST (16 1/2\" BELOW HIGH SHOULDER POINT)","WAIST (16 1/2\" BELOW HIGH SHOULDER POINT)","WAIST (16 1/2\" BELOW HIGH SHOULDER POINT)","WAIST (16 1/2\" BELOW HIGH SHOULDER POINT)","WAIST (16 1/2\" BELOW HIGH SHOULDER POINT)",{"$f":"T16-1.5","v":-1.5},null,null,null,0,null,null,null,{"$f":"T16+2","v":2},null,null,null,null,null,null,null,null,0.375]
[null,"TOP HIP ( 3\" BELOW WAIST )","TOP HIP ( 3\" BELOW WAIST )","TOP HIP ( 3\" BELOW WAIST )","TOP HIP ( 3\" BELOW WAIST )","TOP HIP ( 3\" BELOW WAIST )","TOP HIP ( 3\" BELOW WAIST )","TOP HIP ( 3\" BELOW WAIST )","TOP HIP ( 3\" BELOW WAIST )","TOP HIP ( 3\" BELOW WAIST )","TOP HIP ( 3\" BELOW WAIST )","TOP HIP ( 3\" BELOW WAIST )","TOP HIP ( 3\" BELOW WAIST )","TOP HIP ( 3\" BELOW WAIST )","TOP HIP ( 3\" BELOW WAIST )",{"$f":"T17-1.5","v":-1.5},null,null,null,0,null,null,null,{"$f":"T17+2","v":2},null,null,null,null,null,null,null,null,0.375]
[null,"LOW HIP ( 8\" BELOW WAIST)","LOW HIP ( 8\" BELOW WAIST)","LOW HIP ( 8\" BELOW WAIST)","LOW HIP ( 8\" BELOW WAIST)","LOW HIP ( 8\" BELOW WAIST)","LOW HIP ( 8\" BELOW WAIST)","LOW HIP ( 8\" BELOW WAIST)","LOW HIP ( 8\" BELOW WAIST)","LOW HIP ( 8\" BELOW WAIST)","LOW HIP ( 8\" BELOW WAIST)","LOW HIP ( 8\" BELOW WAIST)","LOW HIP ( 8\" BELOW WAIST)","LOW HIP ( 8\" BELOW WAIST)","LOW HIP ( 8\" BELOW WAIST)",{"$f":"T18-1.5","v":-1.5},null,null,null,0,null,null,null,{"$f":"T18+2","v":2},null,null,null,null,null,null,null,null,0.375]
[null,"HEM STRAIGHT","HEM STRAIGHT","HEM STRAIGHT","HEM STRAIGHT","HEM STRAIGHT","HEM STRAIGHT","HEM STRAIGHT","HEM STRAIGHT","HEM STRAIGHT","HEM STRAIGHT","HEM STRAIGHT","HEM STRAIGHT","HEM STRAIGHT","HEM STRAIGHT",{"$f":"T19-1.5","v":-1.5},null,null,null,0,null,null,null,{"$f":"T19+2","v":2},null,null,null,null,null,null,null,null,0.375]
[null,"HEM CURVE (FOLLOW)","HEM CURVE (FOLLOW)","HEM CURVE (FOLLOW)","HEM CURVE (FOLLOW)","HEM CURVE (FOLLOW)","HEM CURVE (FOLLOW)","HEM CURVE (FOLLOW)","HEM CURVE (FOLLOW)","HEM CURVE (FOLLOW)","HEM CURVE (FOLLOW)","HEM CURVE (FOLLOW)","HEM CURVE (FOLLOW)","HEM CURVE (FOLLOW)","HEM CURVE (FOLLOW)",null,null,null,null,0,null,null,null,null,null,null,null,null,null,null,null,null,0.375]
[null,"ACROSS SHOULDERS ( TOTAL )","ACROSS SHOULDERS ( TOTAL )","ACROSS SHOULDERS ( TOTAL )","ACROSS SHOULDERS ( TOTAL )","ACROSS SHOULDERS ( TOTAL )","ACROSS SHOULDERS ( TOTAL )","ACROSS SHOULDERS ( TOTAL )","ACROSS SHOULDERS ( TOTAL )","ACROSS SHOULDERS ( TOTAL )","ACROSS SHOULDERS ( TOTAL )","ACROSS SHOULDERS ( TOTAL )","ACROSS SHOULDERS ( TOTAL )","ACROSS SHOULDERS ( TOTAL )","ACROSS SHOULDERS ( TOTAL )",{"$f":"T21-0.75","v":-0.75},null,null,null,0,null,null,null,{"$f":"T21+1","v":1},null,null,null,null,null,null,null,null,0.375]
[null,"SHOULDER LENGTH AT SEAM","SHOULDER LENGTH AT SEAM","SHOULDER LENGTH AT SEAM","SHOULDER LENGTH AT SEAM","SHOULDER LENGTH AT SEAM","SHOULDER LENGTH AT SEAM","SHOULDER LENGTH AT SEAM","SHOULDER LENGTH AT SEAM","SHOULDER LENGTH AT SEAM","SHOULDER LENGTH AT SEAM","SHOULDER LENGTH AT SEAM","SHOULDER LENGTH AT SEAM","SHOULDER LENGTH AT SEAM","SHOULDER LENGTH AT SEAM",null,null,null,null,0,null,null,null,null,null,null,null,null,null,null,null,null,0.375]
[null,"ACROSS FRONT (5\" BELOW HIGH SHOULDER POINT)","ACROSS FRONT (5\" BELOW HIGH SHOULDER POINT)","ACROSS FRONT (5\" BELOW HIGH SHOULDER POINT)","ACROSS FRONT (5\" BELOW HIGH SHOULDER POINT)","ACROSS FRONT (5\" BELOW HIGH SHOULDER POINT)","ACROSS FRONT (5\" BELOW HIGH SHOULDER POINT)","ACROSS FRONT (5\" BELOW HIGH SHOULDER POINT)","ACROSS FRONT (5\" BELOW HIGH SHOULDER POINT)","ACROSS FRONT (5\" BELOW HIGH SHOULDER POINT)","ACROSS FRONT (5\" BELOW HIGH SHOULDER POINT)","ACROSS FRONT (5\" BELOW HIGH SHOULDER POINT)","ACROSS FRONT (5\" BELOW HIGH SHOULDER POINT)","ACROSS FRONT (5\" BELOW HIGH SHOULDER POINT)","ACROSS FRONT (5\" BELOW HIGH SHOULDER POINT)",{"$f":"T23-0.75","v":-0.75},null,null,null,0,null,null,null,{"$f":"T23+1","v":1},null,null,null,null,null,null,null,null,0.375]
[null,"ACROSS BACK (5\" BELOW HIGH SHOULDER POINT)","ACROSS BACK (5\" BELOW HIGH SHOULDER POINT)","ACROSS BACK (5\" BELOW HIGH SHOULDER POINT)","ACROSS BACK (5\" BELOW HIGH SHOULDER POINT)","ACROSS BACK (5\" BELOW HIGH SHOULDER POINT)","ACROSS BACK (5\" BELOW HIGH SHOULDER POINT)","ACROSS BACK (5\" BELOW HIGH SHOULDER POINT)","ACROSS BACK (5\" BELOW HIGH SHOULDER POINT)","ACROSS BACK (5\" BELOW HIGH SHOULDER POINT)","ACROSS BACK (5\" BELOW HIGH SHOULDER POINT)","ACROSS BACK (5\" BELOW HIGH SHOULDER POINT)","ACROSS BACK (5\" BELOW HIGH SHOULDER POINT)","ACROSS BACK (5\" BELOW HIGH SHOULDER POINT)","ACROSS BACK (5\" BELOW HIGH SHOULDER POINT)",{"$f":"T24-0.75","v":-0.75},null,null,null,0,null,null,null,{"$f":"T24+1","v":1},null,null,null,null,null,null,null,null,0.375]
[null,"OVERARM (FROM SLEEVE CAP TO HEM)-SHORT SLEEVE","OVERARM (FROM SLEEVE CAP TO HEM)-SHORT SLEEVE","OVERARM (FROM SLEEVE CAP TO HEM)-SHORT SLEEVE","OVERARM (FROM SLEEVE CAP TO HEM)-SHORT SLEEVE","OVERARM (FROM SLEEVE CAP TO HEM)-SHORT SLEEVE","OVERARM (FROM SLEEVE CAP TO HEM)-SHORT SLEEVE","OVERARM (FROM SLEEVE CAP TO HEM)-SHORT SLEEVE","OVERARM (FROM SLEEVE CAP TO HEM)-SHORT SLEEVE","OVERARM (FROM SLEEVE CAP TO HEM)-SHORT SLEEVE","OVERARM (FROM SLEEVE CAP TO HEM)-SHORT SLEEVE","OVERARM (FROM SLEEVE CAP TO HEM)-SHORT SLEEVE","OVERARM (FROM SLEEVE CAP TO HEM)-SHORT SLEEVE","OVERARM (FROM SLEEVE CAP TO HEM)-SHORT SLEEVE","OVERARM (FROM SLEEVE CAP TO HEM)-SHORT SLEEVE",{"$f":"T25-0.25","v":-0.25},null,null,null,0,null,null,null,{"$f":"T25+0.25","v":0.25},null,null,null,null,null,null,null,null,0.25]
[null,"OVERARM (FROM SLEEVE CAP TO HEM)- 3/4 SLEEVE","OVERARM (FROM SLEEVE CAP TO HEM)- 3/4 SLEEVE","OVERARM (FROM SLEEVE CAP TO HEM)- 3/4 SLEEVE","OVERARM (FROM SLEEVE CAP TO HEM)- 3/4 SLEEVE","OVERARM (FROM SLEEVE CAP TO HEM)- 3/4 SLEEVE","OVERARM (FROM SLEEVE CAP TO HEM)- 3/4 SLEEVE","OVERARM (FROM SLEEVE CAP TO HEM)- 3/4 SLEEVE","OVERARM (FROM SLEEVE CAP TO HEM)- 3/4 SLEEVE","OVERARM (FROM SLEEVE CAP TO HEM)- 3/4 SLEEVE","OVERARM (FROM SLEEVE CAP TO HEM)- 3/4 SLEEVE","OVERARM (FROM SLEEVE CAP TO HEM)- 3/4 SLEEVE","OVERARM (FROM SLEEVE CAP TO HEM)- 3/4 SLEEVE","OVERARM (FROM SLEEVE CAP TO HEM)- 3/4 SLEEVE","OVERARM (FROM SLEEVE CAP TO HEM)- 3/4 SLEEVE",{"$f":"T26-0.25","v":-0.25},null,null,null,0,null,null,null,{"$f":"T26+0.25","v":0.25},null,null,null,null,null,null,null,null,0.25]
[null,"OVERARM (FROM SLEEVE CAP TO HEM)- LONG SLEEVE","OVERARM (FROM SLEEVE CAP TO HEM)- LONG SLEEVE","OVERARM (FROM SLEEVE CAP TO HEM)- LONG SLEEVE","OVERARM (FROM SLEEVE CAP TO HEM)- LONG SLEEVE","OVERARM (FROM SLEEVE CAP TO HEM)- LONG SLEEVE","OVERARM (FROM SLEEVE CAP TO HEM)- LONG SLEEVE","OVERARM (FROM SLEEVE CAP TO HEM)- LONG SLEEVE","OVERARM (FROM SLEEVE CAP TO HEM)- LONG SLEEVE","OVERARM (FROM SLEEVE CAP TO HEM)- LONG SLEEVE","OVERARM (FROM SLEEVE CAP TO HEM)- LONG SLEEVE","OVERARM (FROM SLEEVE CAP TO HEM)- LONG SLEEVE","OVERARM (FROM SLEEVE CAP TO HEM)- LONG SLEEVE","OVERARM (FROM SLEEVE CAP TO HEM)- LONG SLEEVE","OVERARM (FROM SLEEVE CAP TO HEM)- LONG SLEEVE",{"$f":"T27-0.25","v":-0.25},null,null,null,0,null,null,null,{"$f":"T27+0.25","v":0.25},null,null,null,null,null,null,null,null,0.375]
[null,"1/2 ARMHOLE STRAIGHT","1/2 ARMHOLE STRAIGHT","1/2 ARMHOLE STRAIGHT","1/2 ARMHOLE STRAIGHT","1/2 ARMHOLE STRAIGHT","1/2 ARMHOLE STRAIGHT","1/2 ARMHOLE STRAIGHT","1/2 ARMHOLE STRAIGHT","1/2 ARMHOLE STRAIGHT","1/2 ARMHOLE STRAIGHT","1/2 ARMHOLE STRAIGHT","1/2 ARMHOLE STRAIGHT","1/2 ARMHOLE STRAIGHT","1/2 ARMHOLE STRAIGHT",{"$f":"T28-0.625","v":-0.625},null,null,null,0,null,null,null,{"$f":"T28+0.75","v":0.75},null,null,null,null,null,null,null,null,0.25]
[null,"BICEP (1\" BELOW ARMHOLE)","BICEP (1\" BELOW ARMHOLE)","BICEP (1\" BELOW ARMHOLE)","BICEP (1\" BELOW ARMHOLE)","BICEP (1\" BELOW ARMHOLE)","BICEP (1\" BELOW ARMHOLE)","BICEP (1\" BELOW ARMHOLE)","BICEP (1\" BELOW ARMHOLE)","BICEP (1\" BELOW ARMHOLE)","BICEP (1\" BELOW ARMHOLE)","BICEP (1\" BELOW ARMHOLE)","BICEP (1\" BELOW ARMHOLE)","BICEP (1\" BELOW ARMHOLE)","BICEP (1\" BELOW ARMHOLE)",{"$f":"T25-0.5","v":-0.5},null,null,null,0,null,null,null,{"$f":"T25+0.5","v":0.5},null,null,null,null,null,null,null,null,0.25]
[null,"ELBOW (8 1/2\" BELOW ARMHOLE)","ELBOW (8 1/2\" BELOW ARMHOLE)","ELBOW (8 1/2\" BELOW ARMHOLE)","ELBOW (8 1/2\" BELOW ARMHOLE)","ELBOW (8 1/2\" BELOW ARMHOLE)","ELBOW (8 1/2\" BELOW ARMHOLE)","ELBOW (8 1/2\" BELOW ARMHOLE)","ELBOW (8 1/2\" BELOW ARMHOLE)","ELBOW (8 1/2\" BELOW ARMHOLE)","ELBOW (8 1/2\" BELOW ARMHOLE)","ELBOW (8 1/2\" BELOW ARMHOLE)","ELBOW (8 1/2\" BELOW ARMHOLE)","ELBOW (8 1/2\" BELOW ARMHOLE)","ELBOW (8 1/2\" BELOW ARMHOLE)",{"$f":"T30-0.375","v":-0.375},null,null,null,0,null,null,null,{"$f":"T30+0.375","v":0.375},null,null,null,null,null,null,null,null,0.25]
[null,"SHORT SLEEVE OPENING","SHORT SLEEVE OPENING","SHORT SLEEVE OPENING","SHORT SLEEVE OPENING","SHORT SLEEVE OPENING","SHORT SLEEVE OPENING","SHORT SLEEVE OPENING","SHORT SLEEVE OPENING","SHORT SLEEVE OPENING","SHORT SLEEVE OPENING","SHORT SLEEVE OPENING","SHORT SLEEVE OPENING","SHORT SLEEVE OPENING","SHORT SLEEVE OPENING",{"$f":"T31-0.5","v":-0.5},null,null,null,0,null,null,null,{"$f":"T31+0.5","v":0.5},null,null,null,null,null,null,null,null,0.25]
[null,"3/4 SLEEVE OPENING","3/4 SLEEVE OPENING","3/4 SLEEVE OPENING","3/4 SLEEVE OPENING","3/4 SLEEVE OPENING","3/4 SLEEVE OPENING","3/4 SLEEVE OPENING","3/4 SLEEVE OPENING","3/4 SLEEVE OPENING","3/4 SLEEVE OPENING","3/4 SLEEVE OPENING","3/4 SLEEVE OPENING","3/4 SLEEVE OPENING","3/4 SLEEVE OPENING",{"$f":"T32-0.375","v":-0.375},null,null,null,0,null,null,null,{"$f":"T32+0.375","v":0.375},null,null,null,null,null,null,null,null,0.25]
[null,"LONG SLEEVE OPENING","LONG SLEEVE OPENING","LONG SLEEVE OPENING","LONG SLEEVE OPENING","LONG SLEEVE OPENING","LONG SLEEVE OPENING","LONG SLEEVE OPENING","LONG SLEEVE OPENING","LONG SLEEVE OPENING","LONG SLEEVE OPENING","LONG SLEEVE OPENING","LONG SLEEVE OPENING","LONG SLEEVE OPENING","LONG SLEEVE OPENING",{"$f":"T33-0.25","v":-0.25},null,null,null,0,null,null,null,{"$f":"T33+0.25","v":0.25},null,null,null,null,null,null,null,null,"1/4"]
[null,"SLEEVE CAP HEIGHT ( FROM TOP OF SLEEVE TO UNDERARM )","SLEEVE CAP HEIGHT ( FROM TOP OF SLEEVE TO UNDERARM )","SLEEVE CAP HEIGHT ( FROM TOP OF SLEEVE TO UNDERARM )","SLEEVE CAP HEIGHT ( FROM TOP OF SLEEVE TO UNDERARM )","SLEEVE CAP HEIGHT ( FROM TOP OF SLEEVE TO UNDERARM )","SLEEVE CAP HEIGHT ( FROM TOP OF SLEEVE TO UNDERARM )","SLEEVE CAP HEIGHT ( FROM TOP OF SLEEVE TO UNDERARM )","SLEEVE CAP HEIGHT ( FROM TOP OF SLEEVE TO UNDERARM )","SLEEVE CAP HEIGHT ( FROM TOP OF SLEEVE TO UNDERARM )","SLEEVE CAP HEIGHT ( FROM TOP OF SLEEVE TO UNDERARM )","SLEEVE CAP HEIGHT ( FROM TOP OF SLEEVE TO UNDERARM )","SLEEVE CAP HEIGHT ( FROM TOP OF SLEEVE TO UNDERARM )","SLEEVE CAP HEIGHT ( FROM TOP OF SLEEVE TO UNDERARM )","SLEEVE CAP HEIGHT ( FROM TOP OF SLEEVE TO UNDERARM )",{"$f":"T34-0.25","v":-0.25},null,null,null,0,null,null,null,{"$f":"T34+0.25","v":0.25},null,null,null,null,null,null,null,null,0]
[null,"SHOULDER SLOPE ( HSP TO SHOULDER ARMHOLE SEAM )","SHOULDER SLOPE ( HSP TO SHOULDER ARMHOLE SEAM )","SHOULDER SLOPE ( HSP TO SHOULDER ARMHOLE SEAM )","SHOULDER SLOPE ( HSP TO SHOULDER ARMHOLE SEAM )","SHOULDER SLOPE ( HSP TO SHOULDER ARMHOLE SEAM )","SHOULDER SLOPE ( HSP TO SHOULDER ARMHOLE SEAM )","SHOULDER SLOPE ( HSP TO SHOULDER ARMHOLE SEAM )","SHOULDER SLOPE ( HSP TO SHOULDER ARMHOLE SEAM )","SHOULDER SLOPE ( HSP TO SHOULDER ARMHOLE SEAM )","SHOULDER SLOPE ( HSP TO SHOULDER ARMHOLE SEAM )","SHOULDER SLOPE ( HSP TO SHOULDER ARMHOLE SEAM )","SHOULDER SLOPE ( HSP TO SHOULDER ARMHOLE SEAM )","SHOULDER SLOPE ( HSP TO SHOULDER ARMHOLE SEAM )","SHOULDER SLOPE ( HSP TO SHOULDER ARMHOLE SEAM )",{"$f":"T35-0","v":0},null,null,null,0,null,null,null,{"$f":"T35+0","v":0},null,null,null,null,null,null,null,null,0]
[null,"NECK WIDTH (HSP TO HSP) ON BACK","NECK WIDTH (HSP TO HSP) ON BACK","NECK WIDTH (HSP TO HSP) ON BACK","NECK WIDTH (HSP TO HSP) ON BACK","NECK WIDTH (HSP TO HSP) ON BACK","NECK WIDTH (HSP TO HSP) ON BACK","NECK WIDTH (HSP TO HSP) ON BACK","NECK WIDTH (HSP TO HSP) ON BACK","NECK WIDTH (HSP TO HSP) ON BACK","NECK WIDTH (HSP TO HSP) ON BACK","NECK WIDTH (HSP TO HSP) ON BACK","NECK WIDTH (HSP TO HSP) ON BACK","NECK WIDTH (HSP TO HSP) ON BACK","NECK WIDTH (HSP TO HSP) ON BACK",{"$f":"T36-0.375","v":-0.375},null,null,null,0,null,null,null,{"$f":"T36+0.5","v":0.5},null,null,null,null,null,null,null,null,0.25]
[null,"FRONT NECK DROP ( FROM HSP TO CENTER FRONT NECK EDGE OR SEAM )","FRONT NECK DROP ( FROM HSP TO CENTER FRONT NECK EDGE OR SEAM )","FRONT NECK DROP ( FROM HSP TO CENTER FRONT NECK EDGE OR SEAM )","FRONT NECK DROP ( FROM HSP TO CENTER FRONT NECK EDGE OR SEAM )","FRONT NECK DROP ( FROM HSP TO CENTER FRONT NECK EDGE OR SEAM )","FRONT NECK DROP ( FROM HSP TO CENTER FRONT NECK EDGE OR SEAM )","FRONT NECK DROP ( FROM HSP TO CENTER FRONT NECK EDGE OR SEAM )","FRONT NECK DROP ( FROM HSP TO CENTER FRONT NECK EDGE OR SEAM )","FRONT NECK DROP ( FROM HSP TO CENTER FRONT NECK EDGE OR SEAM )","FRONT NECK DROP ( FROM HSP TO CENTER FRONT NECK EDGE OR SEAM )","FRONT NECK DROP ( FROM HSP TO CENTER FRONT NECK EDGE OR SEAM )","FRONT NECK DROP ( FROM HSP TO CENTER FRONT NECK EDGE OR SEAM )","FRONT NECK DROP ( FROM HSP TO CENTER FRONT NECK EDGE OR SEAM )","FRONT NECK DROP ( FROM HSP TO CENTER FRONT NECK EDGE OR SEAM )",{"$f":"T37-0.25","v":-0.25},null,null,null,0,null,null,null,{"$f":"T37+0.25","v":0.25},null,null,null,null,null,null,null,null,0.25]
[null,"BACK NECK DROP ( FROM HSP TO CENTER BACK NECK EDGE OR SEAM )","BACK NECK DROP ( FROM HSP TO CENTER BACK NECK EDGE OR SEAM )","BACK NECK DROP ( FROM HSP TO CENTER BACK NECK EDGE OR SEAM )","BACK NECK DROP ( FROM HSP TO CENTER BACK NECK EDGE OR SEAM )","BACK NECK DROP ( FROM HSP TO CENTER BACK NECK EDGE OR SEAM )","BACK NECK DROP ( FROM HSP TO CENTER BACK NECK EDGE OR SEAM )","BACK NECK DROP ( FROM HSP TO CENTER BACK NECK EDGE OR SEAM )","BACK NECK DROP ( FROM HSP TO CENTER BACK NECK EDGE OR SEAM )","BACK NECK DROP ( FROM HSP TO CENTER BACK NECK EDGE OR SEAM )","BACK NECK DROP ( FROM HSP TO CENTER BACK NECK EDGE OR SEAM )","BACK NECK DROP ( FROM HSP TO CENTER BACK NECK EDGE OR SEAM )","BACK NECK DROP ( FROM HSP TO CENTER BACK NECK EDGE OR SEAM )","BACK NECK DROP ( FROM HSP TO CENTER BACK NECK EDGE OR SEAM )","BACK NECK DROP ( FROM HSP TO CENTER BACK NECK EDGE OR SEAM )",{"$f":"T38-0","v":0},null,null,null,0,null,null,null,{"$f":"T38+0","v":0},null,null,null,null,null,null,null,null,0.25]
[null,"1/2 NECK CIRCUMFERENCE","1/2 NECK CIRCUMFERENCE","1/2 NECK CIRCUMFERENCE","1/2 NECK CIRCUMFERENCE","1/2 NECK CIRCUMFERENCE","1/2 NECK CIRCUMFERENCE","1/2 NECK CIRCUMFERENCE","1/2 NECK CIRCUMFERENCE","1/2 NECK CIRCUMFERENCE","1/2 NECK CIRCUMFERENCE","1/2 NECK CIRCUMFERENCE","1/2 NECK CIRCUMFERENCE","1/2 NECK CIRCUMFERENCE","1/2 NECK CIRCUMFERENCE",null,null,null,null,0,null,null,null,null,null,null,null,null,null,null,null,null,0.25]
[null,"COLLAR DEPTH ( AT C.B. NECK )","COLLAR DEPTH ( AT C.B. NECK )","COLLAR DEPTH ( AT C.B. NECK )","COLLAR DEPTH ( AT C.B. NECK )","COLLAR DEPTH ( AT C.B. NECK )","COLLAR DEPTH ( AT C.B. NECK )","COLLAR DEPTH ( AT C.B. NECK )","COLLAR DEPTH ( AT C.B. NECK )","COLLAR DEPTH ( AT C.B. NECK )","COLLAR DEPTH ( AT C.B. NECK )","COLLAR DEPTH ( AT C.B. NECK )","COLLAR DEPTH ( AT C.B. NECK )","COLLAR DEPTH ( AT C.B. NECK )","COLLAR DEPTH ( AT C.B. NECK )",{"$f":"T40-0","v":0},null,null,null,0,null,null,null,{"$f":"T40+0","v":0},null,null,null,null,null,null,null,null,0]
[null,"STAND DEPTH","STAND DEPTH","STAND DEPTH","STAND DEPTH","STAND DEPTH","STAND DEPTH","STAND DEPTH","STAND DEPTH","STAND DEPTH","STAND DEPTH","STAND DEPTH","STAND DEPTH","STAND DEPTH","STAND DEPTH",{"$f":"T41-0","v":0},null,null,null,0,null,null,null,{"$f":"T41+0","v":0},null,null,null,null,null,null,null,null,0]
[null,"COLLAR LENGTH","COLLAR LENGTH","COLLAR LENGTH","COLLAR LENGTH","COLLAR LENGTH","COLLAR LENGTH","COLLAR LENGTH","COLLAR LENGTH","COLLAR LENGTH","COLLAR LENGTH","COLLAR LENGTH","COLLAR LENGTH","COLLAR LENGTH","COLLAR LENGTH",null,null,null,null,0,null,null,null,null,null,null,null,null,null,null,null,null,0.25]
[null,"NECK TRIM DEPTH","NECK TRIM DEPTH","NECK TRIM DEPTH","NECK TRIM DEPTH","NECK TRIM DEPTH","NECK TRIM DEPTH","NECK TRIM DEPTH","NECK TRIM DEPTH","NECK TRIM DEPTH","NECK TRIM DEPTH","NECK TRIM DEPTH","NECK TRIM DEPTH","NECK TRIM DEPTH","NECK TRIM DEPTH",{"$f":"T43-0","v":0},null,null,null,0,null,null,null,{"$f":"T43+0","v":0},null,null,null,null,null,null,null,null,0]
[null,"CUFF DEPTH","CUFF DEPTH","CUFF DEPTH","CUFF DEPTH","CUFF DEPTH","CUFF DEPTH","CUFF DEPTH","CUFF DEPTH","CUFF DEPTH","CUFF DEPTH","CUFF DEPTH","CUFF DEPTH","CUFF DEPTH","CUFF DEPTH",{"$f":"T44-0","v":0},null,null,null,0,null,null,null,{"$f":"T44+0","v":0},null,null,null,null,null,null,null,null,0]
[null,"SLEEVE HEM DEPTH","SLEEVE HEM DEPTH","SLEEVE HEM DEPTH","SLEEVE HEM DEPTH","SLEEVE HEM DEPTH","SLEEVE HEM DEPTH","SLEEVE HEM DEPTH","SLEEVE HEM DEPTH","SLEEVE HEM DEPTH","SLEEVE HEM DEPTH","SLEEVE HEM DEPTH","SLEEVE HEM DEPTH","SLEEVE HEM DEPTH","SLEEVE HEM DEPTH",{"$f":"T45-0","v":0},null,null,null,0,null,null,null,{"$f":"T45+0","v":0},null,null,null,null,null,null,null,null,0]
[null,"BOTTOM HEM DEPTH","BOTTOM HEM DEPTH","BOTTOM HEM DEPTH","BOTTOM HEM DEPTH","BOTTOM HEM DEPTH","BOTTOM HEM DEPTH","BOTTOM HEM DEPTH","BOTTOM HEM DEPTH","BOTTOM HEM DEPTH","BOTTOM HEM DEPTH","BOTTOM HEM DEPTH","BOTTOM HEM DEPTH","BOTTOM HEM DEPTH","BOTTOM HEM DEPTH",{"$f":"T46-0","v":0},null,null,null,0,null,null,null,{"$f":"T46+0","v":0},null,null,null,null,null,null,null,null,0]
[null,"HSP TO BUST POINT","HSP TO BUST POINT","HSP TO BUST POINT","HSP TO BUST POINT","HSP TO BUST POINT","HSP TO BUST POINT","HSP TO BUST POINT","HSP TO BUST POINT","HSP TO BUST POINT","HSP TO BUST POINT","HSP TO BUST POINT","HSP TO BUST POINT","HSP TO BUST POINT","HSP TO BUST POINT",{"$f":"T47-0.25","v":-0.25},null,null,null,0,null,null,null,{"$f":"T47+0.5","v":0.5},null,null,null,null,null,null,null,null,0]
[]
[]
[]
[]
[null,"Sample Approved?"]
[null,"If sample is NOT approved, then submit 2nd Pre-Production Samples. If sample is APPROVED, then submit Production Samples."]

{"sheet":"Grade XXL - XXXL","index":19,"n_rows":53,"n_cols":40,"rows_kept":53,"cut":false,"hidden":true,"merged":[[1,16,1,22],[2,16,2,34],[3,16,3,22],[3,30,3,34],[4,16,4,22],[4,29,4,34],[5,16,5,34],[7,1,7,18],[7,19,7,22],[7,23,7,31],[8,32,9,34],[10,1,10,14],[10,15,10,16],[10,17,10,18],[10,19,10,20],[10,21,10,22],[10,23,10,24],[10,25,10,26],[10,27,10,28],[10,29,10,30],[10,32,10,34],[8,1,9,14],[8,15,9,16],[8,17,9,18],[8,19,9,20],[8,21,9,22],[8,23,9,24],[8,25,9,26],[8,27,9,28],[8,29,9,30],[11,32,11,34],[12,1,12,14],[12,15,12,16],[12,17,12,18],[12,19,12,20],[12,21,12,22],[12,23,12,24],[12,25,12,26],[12,27,12,28],[12,29,12,30],[12,32,12,34],[11,1,11,14],[11,15,11,16],[11,17,11,18],[11,19,11,20],[11,21,11,22],[11,23,11,24],[11,25,11,26],[11,27,11,28],[11,29,11,30],[13,32,13,34],[14,1,14,14],[14,15,14,16],[14,17,14,18],[14,19,14,20],[14,21,14,22],[14,23,14,24],[14,25,14,26],[14,27,14,28],[14,29,14,30],[14,32,14,34],[13,1,13,14],[13,15,13,16],[13,17,13,18],[13,19,13,20],[13,21,13,22],[13,23,13,24],[13,25,13,26],[13,27,13,28],[13,29,13,30],[15,32,15,34],[16,1,16,14],[16,15,16,16],[16,17,16,18],[16,19,16,20],[16,21,16,22],[16,23,16,24],[16,25,16,26],[16,27,16,28],[16,29,16,30],[16,32,16,34],[15,1,15,14],[15,15,15,16],[15,17,15,18],[15,19,15,20],[15,21,15,22],[15,23,15,24],[15,25,15,26],[15,27,15,28],[15,29,15,30],[17,32,17,34],[18,1,18,14],[18,15,18,16],[18,17,18,18],[18,19,18,20],[18,21,18,22],[18,23,18,24],[18,25,18,26],[18,27,18,28],[18,29,18,30],[18,32,18,34],[17,1,17,14],[17,15,17,16],[17,17,17,18],[17,19,17,20],[17,21,17,22],[17,23,17,24],[17,25,17,26],[17,27,17,28],[17,29,17,30],[19,32,19,34],[20,1,20,14],[20,15,20,16],[20,17,20,18],[20,19,20,20],[20,21,20,22],[20,23,20,24],[20,25,20,26],[20,27,20,28],[20,29,20,30],[20,32,20,34],[19,1,19,14],[19,15,19,16],[19,17,19,18],[19,19,19,20],[19,21,19,22],[19,23,19,24],[19,25,19,26],[19,27,19,28],[19,29,19,30],[21,32,21,34],[22,1,22,14],[22,15,22,16],[22,17,22,18],[22,19,22,20],[22,21,22,22],[22,23,22,24],[22,25,22,26],[22,27,22,28],[22,29,22,30],[22,32,22,34],[21,1,21,14],[21,15,21,16],[21,17,21,18],[21,19,21,20],[21,21,21,22],[21,23,21,24],[21,25,21,26],[21,27,21,28],[21,29,21,30],[23,32,23,34],[24,1,24,14],[24,15,24,16],[24,17,24,18],[24,19,24,20],[24,21,24,22],[24,23,24,24],[24,25,24,26],[24,27,24,28],[24,29,24,30],[24,32,24,34],[23,1,23,14],[23,15,23,16],[23,17,23,18],[23,19,23,20],[23,21,23,22],[23,23,23,24],[23,25,23,26],[23,27,23,28],[23,29,23,30],[25,32,25,34],[26,1,26,14],[26,15,26,16],[26,17,26,18],[26,19,26,20],[26,21,26,22],[26,23,26,24],[26,25,26,26],[26,27,26,28],[26,29,26,30],[26,32,26,34],[25,1,25,14],[25,15,25,16],[25,17,25,18],[25,19,25,20],[25,21,25,22],[25,23,25,24],[25,25,25,26],[25,27,25,28],[25,29,25,30],[27,32,27,34],[28,1,28,14],[28,15,28,16],[28,17,28,18],[28,19,28,20],[28,21,28,22],[28,23,28,24],[28,25,28,26],[28,27,28,28],[28,29,28,30],[28,32,28,34],[27,1,27,14],[27,15,27,16],[27,17,27,18],[27,19,27,20],[27,21,27,22],[27,23,27,24],[27,25,27,26],[27,27,27,28],[27,29,27,30],[29,32,29,34],[30,1,30,14],[30,15,30,16],[30,17,30,18],[30,19,30,20],[30,21,30,22],[30,23,30,24],[30,25,30,26],[30,27,30,28],[30,29,30,30],[30,32,30,34],[29,1,29,14],[29,15,29,16],[29,17,29,18],[29,19,29,20],[29,21,29,22],[29,23,29,24],[29,25,29,26],[29,27,29,28],[29,29,29,30],[31,32,31,34],[32,1,32,14],[32,15,32,16],[32,17,32,18],[32,19,32,20],[32,21,32,22],[32,23,32,24],[32,25,32,26],[32,27,32,28],[32,29,32,30],[32,32,32,34],[31,1,31,14],[31,15,31,16],[31,17,31,18],[31,19,31,20],[31,21,31,22],[31,23,31,24],[31,25,31,26],[31,27,31,28],[31,29,31,30],[33,32,33,34],[34,1,34,14],[34,15,34,16],[34,17,34,18],[34,19,34,20],[34,21,34,22],[34,23,34,24],[34,25,34,26],[34,27,34,28],[34,29,34,30],[34,32,34,34],[33,1,33,14],[33,15,33,16],[33,17,33,18],[33,19,33,20],[33,21,33,22],[33,23,33,24],[33,25,33,26],[33,27,33,28],[33,29,33,30],[35,32,35,34],[36,1,36,14],[36,15,36,16],[36,17,36,18],[36,19,36,20],[36,21,36,22],[36,23,36,24],[36,25,36,26],[36,27,36,28],[36,29,36,30],[36,32,36,34],[35,1,35,14],[35,15,35,16],[35,17,35,18],[35,19,35,20],[35,21,35,22],[35,23,35,24],[35,25,35,26],[35,27,35,28],[35,29,35,30],[37,32,37,34],[38,1,38,14],[38,15,38,16],[38,17,38,18],[38,19,38,20],[38,21,38,22],[38,23,38,24],[38,25,38,26],[38,27,38,28],[38,29,38,30],[38,32,38,34],[37,1,37,14],[37,15,37,16],[37,17,37,18],[37,19,37,20],[37,21,37,22],[37,23,37,24],[37,25,37,26],[37,27,37,28],[37,29,37,30],[39,32,39,34],[40,1,40,14],[40,15,40,16],[40,17,40,18],[40,19,40,20],[40,21,40,22],[40,23,40,24],[40,25,40,26],[40,27,40,28],[40,29,40,30],[40,32,40,34],[39,1,39,14],[39,15,39,16],[39,17,39,18],[39,19,39,20],[39,21,39,22],[39,23,39,24],[39,25,39,26],[39,27,39,28],[39,29,39,30],[41,32,41,34],[42,1,42,14],[42,15,42,16],[42,17,42,18],[42,19,42,20],[42,21,42,22],[42,23,42,24],[42,25,42,26],[42,27,42,28],[42,29,42,30],[42,32,42,34],[41,1,41,14],[41,15,41,16],[41,17,41,18],[41,19,41,20],[41,21,41,22],[41,23,41,24],[41,25,41,26],[41,27,41,28],[41,29,41,30],[43,32,43,34],[44,1,44,14],[44,15,44,16],[44,17,44,18],[44,19,44,20],[44,21,44,22],[44,23,44,24],[44,25,44,26],[44,27,44,28],[44,29,44,30],[44,32,44,34],[43,1,43,14],[43,15,43,16],[43,17,43,18],[43,19,43,20],[43,21,43,22],[43,23,43,24],[43,25,43,26],[43,27,43,28],[43,29,43,30],[45,32,45,34],[46,1,46,14],[46,15,46,16],[46,17,46,18],[46,19,46,20],[46,21,46,22],[46,23,46,24],[46,25,46,26],[46,27,46,28],[46,29,46,30],[46,32,46,34],[45,1,45,14],[45,15,45,16],[45,17,45,18],[45,19,45,20],[45,21,45,22],[45,23,45,24],[45,25,45,26],[45,27,45,28],[45,29,45,30],[47,32,47,34],[48,1,48,14],[48,15,48,16],[48,17,48,18],[48,19,48,20],[48,21,48,22],[48,23,48,24],[48,25,48,26],[48,27,48,28],[48,29,48,30],[48,32,48,34],[47,1,47,14],[47,15,47,16],[47,17,47,18],[47,19,47,20],[47,21,47,22],[47,23,47,24],[47,25,47,26],[47,27,47,28],[47,29,47,30],[50,32,50,34],[52,1,52,34],[49,25,49,26],[49,27,49,28],[49,29,49,30],[49,32,49,34],[50,1,50,14],[50,15,50,16],[50,17,50,18],[50,19,50,20],[50,21,50,22],[50,23,50,24],[49,1,49,14],[49,15,49,16],[49,17,49,18],[49,19,49,20],[49,21,49,22],[49,23,49,24],[50,25,50,26],[50,27,50,28],[50,29,50,30]]}
[]
[null,null,null,null,null,null,null,null,null,null,null,"Create Date:",null,null,null,null,{"$f":"'ORIGINAL PHOTO'!Q2:W2","v":"MARCH 15/2017"}]
[null,null,null,null,null,null,null,null,null,null,null,"Vendor Name:",null,null,null,null,{"$f":"'ORIGINAL PHOTO'!Q3:AI3","v":0}]
[null,null,null,null,null,null,null,null,null,null,null,"Vndr.Item No.:",null,null,null,null,{"$f":"'ORIGINAL PHOTO'!Q4:W4","v":0},null,null,null,null,null,null,null,null,null,"GC Item No.:",null,null,null,{"$f":"'ORIGINAL PHOTO'!AE4:AI4","v":0}]
[null,null,null,null,null,null,null,null,null,null,null,"Size Range:",null,null,null,null,{"$f":"'ORIGINAL PHOTO'!Q5:W5","v":"S-M-L-XL"},null,null,null,null,null,null,null,null,null,"Season:",null,null,{"$f":"'ORIGINAL PHOTO'!AD5:AI5","v":"Spring Summer 2018"}]
[null,null,null,null,null,null,null,null,null,null,null,"Description:",null,null,null,null,{"$f":"'ORIGINAL PHOTO'!Q6:AI6","v":"MEN'S LONG SLEEVE ZIP FRONT SCOOP HEM HOODIE WITH LINED HOOD"}]
[]
[null,"GRADE SHEET --COAT",null,null,null,null,null,null,null,null,null,null,null,null,null,null,null,null,null,"Date:",null,null,null,null,null,null,null,null,null,null,null,null,null,null,null,null,null,null,null,"L"]
[null,"(Measurements on flat / inches)",null,null,null,null,null,null,null,null,null,null,null,null,null,null,null,null,null,"XXL",null,null,null,"XXXL",null,null,null,null,null,null,null,null,"Tolerance\n+ / -\n(on flat)",null,null,null,null,null,null,"LXL"]
[null,null,null,null,null,null,null,null,null,null,null,null,null,null,null,null,null,null,null,null,null,null,null,null,null,null,null,null,null,null,null,null,null,null,null,null,null,null,null,"M"]
[null,"BACK LENGTH FROM (HIGH SHOULDER POINT)","BACK LENGTH FROM (HIGH SHOULDER POINT)","BACK LENGTH FROM (HIGH SHOULDER POINT)","BACK LENGTH FROM (HIGH SHOULDER POINT)","BACK LENGTH FROM (HIGH SHOULDER POINT)","BACK LENGTH FROM (HIGH SHOULDER POINT)","BACK LENGTH FROM (HIGH SHOULDER POINT)","BACK LENGTH FROM (HIGH SHOULDER POINT)","BACK LENGTH FROM (HIGH SHOULDER POINT)","BACK LENGTH FROM (HIGH SHOULDER POINT)","BACK LENGTH FROM (HIGH SHOULDER POINT)","BACK LENGTH FROM (HIGH SHOULDER POINT)","BACK LENGTH FROM (HIGH SHOULDER POINT)","BACK LENGTH FROM (HIGH SHOULDER POINT)",null,null,null,null,0,null,null,null,{"$f":"T11+0.5","v":0.5},null,null,null,null,null,null,null,null,0.375,null,null,null,null,null,null,"S"]
[null,"CENTER BACK LENGTH ( FROM NECK TO HEM )","CENTER BACK LENGTH ( FROM NECK TO HEM )","CENTER BACK LENGTH ( FROM NECK TO HEM )","CENTER BACK LENGTH ( FROM NECK TO HEM )","CENTER BACK LENGTH ( FROM NECK TO HEM )","CENTER BACK LENGTH ( FROM NECK TO HEM )","CENTER BACK LENGTH ( FROM NECK TO HEM )","CENTER BACK LENGTH ( FROM NECK TO HEM )","CENTER BACK LENGTH ( FROM NECK TO HEM )","CENTER BACK LENGTH ( FROM NECK TO HEM )","CENTER BACK LENGTH ( FROM NECK TO HEM )","CENTER BACK LENGTH ( FROM NECK TO HEM )","CENTER BACK LENGTH ( FROM NECK TO HEM )","CENTER BACK LENGTH ( FROM NECK TO HEM )",null,null,null,null,null,null,null,null,null,null,null,null,null,null,null,null,null,0.375,null,null,null,null,null,null,"SM"]
[null,"FRONT LENGTH FROM (HIGH SHOULDER POINT)","FRONT LENGTH FROM (HIGH SHOULDER POINT)","FRONT LENGTH FROM (HIGH SHOULDER POINT)","FRONT LENGTH FROM (HIGH SHOULDER POINT)","FRONT LENGTH FROM (HIGH SHOULDER POINT)","FRONT LENGTH FROM (HIGH SHOULDER POINT)","FRONT LENGTH FROM (HIGH SHOULDER POINT)","FRONT LENGTH FROM (HIGH SHOULDER POINT)","FRONT LENGTH FROM (HIGH SHOULDER POINT)","FRONT LENGTH FROM (HIGH SHOULDER POINT)","FRONT LENGTH FROM (HIGH SHOULDER POINT)","FRONT LENGTH FROM (HIGH SHOULDER POINT)","FRONT LENGTH FROM (HIGH SHOULDER POINT)","FRONT LENGTH FROM (HIGH SHOULDER POINT)",null,null,null,null,0,null,null,null,{"$f":"T13+0.5","v":0.5},null,null,null,null,null,null,null,null,0.375,null,null,null,null,null,null,"XL"]
[null,"FRONT LENGTH (FROM CENTRE FRONT NECK TO HEM)","FRONT LENGTH (FROM CENTRE FRONT NECK TO HEM)","FRONT LENGTH (FROM CENTRE FRONT NECK TO HEM)","FRONT LENGTH (FROM CENTRE FRONT NECK TO HEM)","FRONT LENGTH (FROM CENTRE FRONT NECK TO HEM)","FRONT LENGTH (FROM CENTRE FRONT NECK TO HEM)","FRONT LENGTH (FROM CENTRE FRONT NECK TO HEM)","FRONT LENGTH (FROM CENTRE FRONT NECK TO HEM)","FRONT LENGTH (FROM CENTRE FRONT NECK TO HEM)","FRONT LENGTH (FROM CENTRE FRONT NECK TO HEM)","FRONT LENGTH (FROM CENTRE FRONT NECK TO HEM)","FRONT LENGTH (FROM CENTRE FRONT NECK TO HEM)","FRONT LENGTH (FROM CENTRE FRONT NECK TO HEM)","FRONT LENGTH (FROM CENTRE FRONT NECK TO HEM)",null,null,null,null,null,null,null,null,null,null,null,null,null,null,null,null,null,0.375,null,null,null,null,null,null,"XXL"]
[null,"CHEST (1\" BELOW ARMHOLE)","CHEST (1\" BELOW ARMHOLE)","CHEST (1\" BELOW ARMHOLE)","CHEST (1\" BELOW ARMHOLE)","CHEST (1\" BELOW ARMHOLE)","CHEST (1\" BELOW ARMHOLE)","CHEST (1\" BELOW ARMHOLE)","CHEST (1\" BELOW ARMHOLE)","CHEST (1\" BELOW ARMHOLE)","CHEST (1\" BELOW ARMHOLE)","CHEST (1\" BELOW ARMHOLE)","CHEST (1\" BELOW ARMHOLE)","CHEST (1\" BELOW ARMHOLE)","CHEST (1\" BELOW ARMHOLE)",null,null,null,null,0,null,null,null,{"$f":"T15+2","v":2},null,null,null,null,null,null,null,null,0.375,null,null,null,null,null,null,"XXXL"]
[null,"WAIST (16 1/2\" BELOW HIGH SHOULDER POINT)","WAIST (16 1/2\" BELOW HIGH SHOULDER POINT)","WAIST (16 1/2\" BELOW HIGH SHOULDER POINT)","WAIST (16 1/2\" BELOW HIGH SHOULDER POINT)","WAIST (16 1/2\" BELOW HIGH SHOULDER POINT)","WAIST (16 1/2\" BELOW HIGH SHOULDER POINT)","WAIST (16 1/2\" BELOW HIGH SHOULDER POINT)","WAIST (16 1/2\" BELOW HIGH SHOULDER POINT)","WAIST (16 1/2\" BELOW HIGH SHOULDER POINT)","WAIST (16 1/2\" BELOW HIGH SHOULDER POINT)","WAIST (16 1/2\" BELOW HIGH SHOULDER POINT)","WAIST (16 1/2\" BELOW HIGH SHOULDER POINT)","WAIST (16 1/2\" BELOW HIGH SHOULDER POINT)","WAIST (16 1/2\" BELOW HIGH SHOULDER POINT)",null,null,null,null,0,null,null,null,{"$f":"T16+2","v":2},null,null,null,null,null,null,null,null,0.375]
[null,"TOP HIP ( 3\" BELOW WAIST )","TOP HIP ( 3\" BELOW WAIST )","TOP HIP ( 3\" BELOW WAIST )","TOP HIP ( 3\" BELOW WAIST )","TOP HIP ( 3\" BELOW WAIST )","TOP HIP ( 3\" BELOW WAIST )","TOP HIP ( 3\" BELOW WAIST )","TOP HIP ( 3\" BELOW WAIST )","TOP HIP ( 3\" BELOW WAIST )","TOP HIP ( 3\" BELOW WAIST )","TOP HIP ( 3\" BELOW WAIST )","TOP HIP ( 3\" BELOW WAIST )","TOP HIP ( 3\" BELOW WAIST )","TOP HIP ( 3\" BELOW WAIST )",null,null,null,null,null,null,null,null,null,null,null,null,null,null,null,null,null,0.375]
[null,"LOW HIP ( 8\" BELOW WAIST)","LOW HIP ( 8\" BELOW WAIST)","LOW HIP ( 8\" BELOW WAIST)","LOW HIP ( 8\" BELOW WAIST)","LOW HIP ( 8\" BELOW WAIST)","LOW HIP ( 8\" BELOW WAIST)","LOW HIP ( 8\" BELOW WAIST)","LOW HIP ( 8\" BELOW WAIST)","LOW HIP ( 8\" BELOW WAIST)","LOW HIP ( 8\" BELOW WAIST)","LOW HIP ( 8\" BELOW WAIST)","LOW HIP ( 8\" BELOW WAIST)","LOW HIP ( 8\" BELOW WAIST)","LOW HIP ( 8\" BELOW WAIST)",null,null,null,null,0,null,null,null,{"$f":"T18+2","v":2},null,null,null,null,null,null,null,null,0.375]
[null,"HEM STRAIGHT","HEM STRAIGHT","HEM STRAIGHT","HEM STRAIGHT","HEM STRAIGHT","HEM STRAIGHT","HEM STRAIGHT","HEM STRAIGHT","HEM STRAIGHT","HEM STRAIGHT","HEM STRAIGHT","HEM STRAIGHT","HEM STRAIGHT","HEM STRAIGHT",null,null,null,null,29,null,null,null,{"$f":"T19+2","v":31},null,null,null,null,null,null,null,null,0.375]
[null,"HEM CURVE (FOLLOW)","HEM CURVE (FOLLOW)","HEM CURVE (FOLLOW)","HEM CURVE (FOLLOW)","HEM CURVE (FOLLOW)","HEM CURVE (FOLLOW)","HEM CURVE (FOLLOW)","HEM CURVE (FOLLOW)","HEM CURVE (FOLLOW)","HEM CURVE (FOLLOW)","HEM CURVE (FOLLOW)","HEM CURVE (FOLLOW)","HEM CURVE (FOLLOW)","HEM CURVE (FOLLOW)",null,null,null,null,0,null,null,null,null,null,null,null,null,null,null,null,null,0.375]
[null,"ACROSS SHOULDERS ( TOTAL )","ACROSS SHOULDERS ( TOTAL )","ACROSS SHOULDERS ( TOTAL )","ACROSS SHOULDERS ( TOTAL )","ACROSS SHOULDERS ( TOTAL )","ACROSS SHOULDERS ( TOTAL )","ACROSS SHOULDERS ( TOTAL )","ACROSS SHOULDERS ( TOTAL )","ACROSS SHOULDERS ( TOTAL )","ACROSS SHOULDERS ( TOTAL )","ACROSS SHOULDERS ( TOTAL )","ACROSS SHOULDERS ( TOTAL )","ACROSS SHOULDERS ( TOTAL )","ACROSS SHOULDERS ( TOTAL )",null,null,null,null,0,null,null,null,{"$f":"T21+1","v":1},null,null,null,null,null,null,null,null,0.375]
[null,"SHOULDER LENGTH AT SEAM","SHOULDER LENGTH AT SEAM","SHOULDER LENGTH AT SEAM","SHOULDER LENGTH AT SEAM","SHOULDER LENGTH AT SEAM","SHOULDER LENGTH AT SEAM","SHOULDER LENGTH AT SEAM","SHOULDER LENGTH AT SEAM","SHOULDER LENGTH AT SEAM","SHOULDER LENGTH AT SEAM","SHOULDER LENGTH AT SEAM","SHOULDER LENGTH AT SEAM","SHOULDER LENGTH AT SEAM","SHOULDER LENGTH AT SEAM",null,null,null,null,0,null,null,null,2.25,null,null,null,null,null,null,null,null,0.375]
[null,"ACROSS FRONT (5\" BELOW HIGH SHOULDER POINT)","ACROSS FRONT (5\" BELOW HIGH SHOULDER POINT)","ACROSS FRONT (5\" BELOW HIGH SHOULDER POINT)","ACROSS FRONT (5\" BELOW HIGH SHOULDER POINT)","ACROSS FRONT (5\" BELOW HIGH SHOULDER POINT)","ACROSS FRONT (5\" BELOW HIGH SHOULDER POINT)","ACROSS FRONT (5\" BELOW HIGH SHOULDER POINT)","ACROSS FRONT (5\" BELOW HIGH SHOULDER POINT)","ACROSS FRONT (5\" BELOW HIGH SHOULDER POINT)","ACROSS FRONT (5\" BELOW HIGH SHOULDER POINT)","ACROSS FRONT (5\" BELOW HIGH SHOULDER POINT)","ACROSS FRONT (5\" BELOW HIGH SHOULDER POINT)","ACROSS FRONT (5\" BELOW HIGH SHOULDER POINT)","ACROSS FRONT (5\" BELOW HIGH SHOULDER POINT)",null,null,null,null,0,null,null,null,{"$f":"T23+1","v":1},null,null,null,null,null,null,null,null,0.375]
[null,"ACROSS BACK (5\" BELOW HIGH SHOULDER POINT)","ACROSS BACK (5\" BELOW HIGH SHOULDER POINT)","ACROSS BACK (5\" BELOW HIGH SHOULDER POINT)","ACROSS BACK (5\" BELOW HIGH SHOULDER POINT)","ACROSS BACK (5\" BELOW HIGH SHOULDER POINT)","ACROSS BACK (5\" BELOW HIGH SHOULDER POINT)","ACROSS BACK (5\" BELOW HIGH SHOULDER POINT)","ACROSS BACK (5\" BELOW HIGH SHOULDER POINT)","ACROSS BACK (5\" BELOW HIGH SHOULDER POINT)","ACROSS BACK (5\" BELOW HIGH SHOULDER POINT)","ACROSS BACK (5\" BELOW HIGH SHOULDER POINT)","ACROSS BACK (5\" BELOW HIGH SHOULDER POINT)","ACROSS BACK (5\" BELOW HIGH SHOULDER POINT)","ACROSS BACK (5\" BELOW HIGH SHOULDER POINT)",null,null,null,null,0,null,null,null,{"$f":"T24+1","v":1},null,null,null,null,null,null,null,null,0.375]
[null,"OVERARM (FROM SLEEVE CAP TO HEM)-SHORT SLEEVE","OVERARM (FROM SLEEVE CAP TO HEM)-SHORT SLEEVE","OVERARM (FROM SLEEVE CAP TO HEM)-SHORT SLEEVE","OVERARM (FROM SLEEVE CAP TO HEM)-SHORT SLEEVE","OVERARM (FROM SLEEVE CAP TO HEM)-SHORT SLEEVE","OVERARM (FROM SLEEVE CAP TO HEM)-SHORT SLEEVE","OVERARM (FROM SLEEVE CAP TO HEM)-SHORT SLEEVE","OVERARM (FROM SLEEVE CAP TO HEM)-SHORT SLEEVE","OVERARM (FROM SLEEVE CAP TO HEM)-SHORT SLEEVE","OVERARM (FROM SLEEVE CAP TO HEM)-SHORT SLEEVE","OVERARM (FROM SLEEVE CAP TO HEM)-SHORT SLEEVE","OVERARM (FROM SLEEVE CAP TO HEM)-SHORT SLEEVE","OVERARM (FROM SLEEVE CAP TO HEM)-SHORT SLEEVE","OVERARM (FROM SLEEVE CAP TO HEM)-SHORT SLEEVE",null,null,null,null,null,null,null,null,null,null,null,null,null,null,null,null,null,0.25]
[null,"OVERARM (FROM SLEEVE CAP TO HEM)- 3/4 SLEEVE","OVERARM (FROM SLEEVE CAP TO HEM)- 3/4 SLEEVE","OVERARM (FROM SLEEVE CAP TO HEM)- 3/4 SLEEVE","OVERARM (FROM SLEEVE CAP TO HEM)- 3/4 SLEEVE","OVERARM (FROM SLEEVE CAP TO HEM)- 3/4 SLEEVE","OVERARM (FROM SLEEVE CAP TO HEM)- 3/4 SLEEVE","OVERARM (FROM SLEEVE CAP TO HEM)- 3/4 SLEEVE","OVERARM (FROM SLEEVE CAP TO HEM)- 3/4 SLEEVE","OVERARM (FROM SLEEVE CAP TO HEM)- 3/4 SLEEVE","OVERARM (FROM SLEEVE CAP TO HEM)- 3/4 SLEEVE","OVERARM (FROM SLEEVE CAP TO HEM)- 3/4 SLEEVE","OVERARM (FROM SLEEVE CAP TO HEM)- 3/4 SLEEVE","OVERARM (FROM SLEEVE CAP TO HEM)- 3/4 SLEEVE","OVERARM (FROM SLEEVE CAP TO HEM)- 3/4 SLEEVE",null,null,null,null,null,null,null,null,null,null,null,null,null,null,null,null,null,0.25]
[null,"OVERARM (FROM SLEEVE CAP TO HEM)- LONG SLEEVE","OVERARM (FROM SLEEVE CAP TO HEM)- LONG SLEEVE","OVERARM (FROM SLEEVE CAP TO HEM)- LONG SLEEVE","OVERARM (FROM SLEEVE CAP TO HEM)- LONG SLEEVE","OVERARM (FROM SLEEVE CAP TO HEM)- LONG SLEEVE","OVERARM (FROM SLEEVE CAP TO HEM)- LONG SLEEVE","OVERARM (FROM SLEEVE CAP TO HEM)- LONG SLEEVE","OVERARM (FROM SLEEVE CAP TO HEM)- LONG SLEEVE","OVERARM (FROM SLEEVE CAP TO HEM)- LONG SLEEVE","OVERARM (FROM SLEEVE CAP TO HEM)- LONG SLEEVE","OVERARM (FROM SLEEVE CAP TO HEM)- LONG SLEEVE","OVERARM (FROM SLEEVE CAP TO HEM)- LONG SLEEVE","OVERARM (FROM SLEEVE CAP TO HEM)- LONG SLEEVE","OVERARM (FROM SLEEVE CAP TO HEM)- LONG SLEEVE",null,null,null,null,null,null,null,null,null,null,null,null,null,null,null,null,null,0.375]
[null,"1/2 ARMHOLE STRAIGHT","1/2 ARMHOLE STRAIGHT","1/2 ARMHOLE STRAIGHT","1/2 ARMHOLE STRAIGHT","1/2 ARMHOLE STRAIGHT","1/2 ARMHOLE STRAIGHT","1/2 ARMHOLE STRAIGHT","1/2 ARMHOLE STRAIGHT","1/2 ARMHOLE STRAIGHT","1/2 ARMHOLE STRAIGHT","1/2 ARMHOLE STRAIGHT","1/2 ARMHOLE STRAIGHT","1/2 ARMHOLE STRAIGHT","1/2 ARMHOLE STRAIGHT",null,null,null,null,0,null,null,null,{"$f":"T28+0.75","v":0.75},null,null,null,null,null,null,null,null,0.25]
[null,"BICEP (1\" BELOW ARMHOLE)","BICEP (1\" BELOW ARMHOLE)","BICEP (1\" BELOW ARMHOLE)","BICEP (1\" BELOW ARMHOLE)","BICEP (1\" BELOW ARMHOLE)","BICEP (1\" BELOW ARMHOLE)","BICEP (1\" BELOW ARMHOLE)","BICEP (1\" BELOW ARMHOLE)","BICEP (1\" BELOW ARMHOLE)","BICEP (1\" BELOW ARMHOLE)","BICEP (1\" BELOW ARMHOLE)","BICEP (1\" BELOW ARMHOLE)","BICEP (1\" BELOW ARMHOLE)","BICEP (1\" BELOW ARMHOLE)",null,null,null,null,0,null,null,null,null,null,null,null,null,null,null,null,null,0.25]
[null,"ELBOW (8 1/2\" BELOW ARMHOLE)","ELBOW (8 1/2\" BELOW ARMHOLE)","ELBOW (8 1/2\" BELOW ARMHOLE)","ELBOW (8 1/2\" BELOW ARMHOLE)","ELBOW (8 1/2\" BELOW ARMHOLE)","ELBOW (8 1/2\" BELOW ARMHOLE)","ELBOW (8 1/2\" BELOW ARMHOLE)","ELBOW (8 1/2\" BELOW ARMHOLE)","ELBOW (8 1/2\" BELOW ARMHOLE)","ELBOW (8 1/2\" BELOW ARMHOLE)","ELBOW (8 1/2\" BELOW ARMHOLE)","ELBOW (8 1/2\" BELOW ARMHOLE)","ELBOW (8 1/2\" BELOW ARMHOLE)","ELBOW (8 1/2\" BELOW ARMHOLE)",null,null,null,null,null,null,null,null,null,null,null,null,null,null,null,null,null,0.25]
[null,"SHORT SLEEVE OPENING","SHORT SLEEVE OPENING","SHORT SLEEVE OPENING","SHORT SLEEVE OPENING","SHORT SLEEVE OPENING","SHORT SLEEVE OPENING","SHORT SLEEVE OPENING","SHORT SLEEVE OPENING","SHORT SLEEVE OPENING","SHORT SLEEVE OPENING","SHORT SLEEVE OPENING","SHORT SLEEVE OPENING","SHORT SLEEVE OPENING","SHORT SLEEVE OPENING",null,null,null,null,null,null,null,null,null,null,null,null,null,null,null,null,null,0.25]
[null,"3/4 SLEEVE OPENING","3/4 SLEEVE OPENING","3/4 SLEEVE OPENING","3/4 SLEEVE OPENING","3/4 SLEEVE OPENING","3/4 SLEEVE OPENING","3/4 SLEEVE OPENING","3/4 SLEEVE OPENING","3/4 SLEEVE OPENING","3/4 SLEEVE OPENING","3/4 SLEEVE OPENING","3/4 SLEEVE OPENING","3/4 SLEEVE OPENING","3/4 SLEEVE OPENING",null,null,null,null,null,null,null,null,null,null,null,null,null,null,null,null,null,0.25]
[null,"LONG SLEEVE OPENING","LONG SLEEVE OPENING","LONG SLEEVE OPENING","LONG SLEEVE OPENING","LONG SLEEVE OPENING","LONG SLEEVE OPENING","LONG SLEEVE OPENING","LONG SLEEVE OPENING","LONG SLEEVE OPENING","LONG SLEEVE OPENING","LONG SLEEVE OPENING","LONG SLEEVE OPENING","LONG SLEEVE OPENING","LONG SLEEVE OPENING",null,null,null,null,null,null,null,null,null,null,null,null,null,null,null,null,null,"1/4"]
[null,"SLEEVE CAP HEIGHT ( FROM TOP OF SLEEVE TO UNDERARM )","SLEEVE CAP HEIGHT ( FROM TOP OF SLEEVE TO UNDERARM )","SLEEVE CAP HEIGHT ( FROM TOP OF SLEEVE TO UNDERARM )","SLEEVE CAP HEIGHT ( FROM TOP OF SLEEVE TO UNDERARM )","SLEEVE CAP HEIGHT ( FROM TOP OF SLEEVE TO UNDERARM )","SLEEVE CAP HEIGHT ( FROM TOP OF SLEEVE TO UNDERARM )","SLEEVE CAP HEIGHT ( FROM TOP OF SLEEVE TO UNDERARM )","SLEEVE CAP HEIGHT ( FROM TOP OF SLEEVE TO UNDERARM )","SLEEVE CAP HEIGHT ( FROM TOP OF SLEEVE TO UNDERARM )","SLEEVE CAP HEIGHT ( FROM TOP OF SLEEVE TO UNDERARM )","SLEEVE CAP HEIGHT ( FROM TOP OF SLEEVE TO UNDERARM )","SLEEVE CAP HEIGHT ( FROM TOP OF SLEEVE TO UNDERARM )","SLEEVE CAP HEIGHT ( FROM TOP OF SLEEVE TO UNDERARM )","SLEEVE CAP HEIGHT ( FROM TOP OF SLEEVE TO UNDERARM )",null,null,null,null,null,null,null,null,null,null,null,null,null,null,null,null,null,0]
[null,"SHOULDER SLOPE ( HSP TO SHOULDER ARMHOLE SEAM )","SHOULDER SLOPE ( HSP TO SHOULDER ARMHOLE SEAM )","SHOULDER SLOPE ( HSP TO SHOULDER ARMHOLE SEAM )","SHOULDER SLOPE ( HSP TO SHOULDER ARMHOLE SEAM )","SHOULDER SLOPE ( HSP TO SHOULDER ARMHOLE SEAM )","SHOULDER SLOPE ( HSP TO SHOULDER ARMHOLE SEAM )","SHOULDER SLOPE ( HSP TO SHOULDER ARMHOLE SEAM )","SHOULDER SLOPE ( HSP TO SHOULDER ARMHOLE SEAM )","SHOULDER SLOPE ( HSP TO SHOULDER ARMHOLE SEAM )","SHOULDER SLOPE ( HSP TO SHOULDER ARMHOLE SEAM )","SHOULDER SLOPE ( HSP TO SHOULDER ARMHOLE SEAM )","SHOULDER SLOPE ( HSP TO SHOULDER ARMHOLE SEAM )","SHOULDER SLOPE ( HSP TO SHOULDER ARMHOLE SEAM )","SHOULDER SLOPE ( HSP TO SHOULDER ARMHOLE SEAM )",null,null,null,null,null,null,null,null,null,null,null,null,null,null,null,null,null,0]
[null,"NECK WIDTH (HSP TO HSP) ON BACK","NECK WIDTH (HSP TO HSP) ON BACK","NECK WIDTH (HSP TO HSP) ON BACK","NECK WIDTH (HSP TO HSP) ON BACK","NECK WIDTH (HSP TO HSP) ON BACK","NECK WIDTH (HSP TO HSP) ON BACK","NECK WIDTH (HSP TO HSP) ON BACK","NECK WIDTH (HSP TO HSP) ON BACK","NECK WIDTH (HSP TO HSP) ON BACK","NECK WIDTH (HSP TO HSP) ON BACK","NECK WIDTH (HSP TO HSP) ON BACK","NECK WIDTH (HSP TO HSP) ON BACK","NECK WIDTH (HSP TO HSP) ON BACK","NECK WIDTH (HSP TO HSP) ON BACK",null,null,null,null,0,null,null,null,{"$f":"T36+1/2","v":0.5},null,null,null,null,null,null,null,null,0.25]
[null,"FRONT NECK DROP ( FROM HSP TO CENTER FRONT NECK EDGE OR SEAM )","FRONT NECK DROP ( FROM HSP TO CENTER FRONT NECK EDGE OR SEAM )","FRONT NECK DROP ( FROM HSP TO CENTER FRONT NECK EDGE OR SEAM )","FRONT NECK DROP ( FROM HSP TO CENTER FRONT NECK EDGE OR SEAM )","FRONT NECK DROP ( FROM HSP TO CENTER FRONT NECK EDGE OR SEAM )","FRONT NECK DROP ( FROM HSP TO CENTER FRONT NECK EDGE OR SEAM )","FRONT NECK DROP ( FROM HSP TO CENTER FRONT NECK EDGE OR SEAM )","FRONT NECK DROP ( FROM HSP TO CENTER FRONT NECK EDGE OR SEAM )","FRONT NECK DROP ( FROM HSP TO CENTER FRONT NECK EDGE OR SEAM )","FRONT NECK DROP ( FROM HSP TO CENTER FRONT NECK EDGE OR SEAM )","FRONT NECK DROP ( FROM HSP TO CENTER FRONT NECK EDGE OR SEAM )","FRONT NECK DROP ( FROM HSP TO CENTER FRONT NECK EDGE OR SEAM )","FRONT NECK DROP ( FROM HSP TO CENTER FRONT NECK EDGE OR SEAM )","FRONT NECK DROP ( FROM HSP TO CENTER FRONT NECK EDGE OR SEAM )",null,null,null,null,0,null,null,null,{"$f":"T37+0.375","v":0.375},null,null,null,null,null,null,null,null,0.25]
[null,"BACK NECK DROP ( FROM HSP TO CENTER BACK NECK EDGE OR SEAM )","BACK NECK DROP ( FROM HSP TO CENTER BACK NECK EDGE OR SEAM )","BACK NECK DROP ( FROM HSP TO CENTER BACK NECK EDGE OR SEAM )","BACK NECK DROP ( FROM HSP TO CENTER BACK NECK EDGE OR SEAM )","BACK NECK DROP ( FROM HSP TO CENTER BACK NECK EDGE OR SEAM )","BACK NECK DROP ( FROM HSP TO CENTER BACK NECK EDGE OR SEAM )","BACK NECK DROP ( FROM HSP TO CENTER BACK NECK EDGE OR SEAM )","BACK NECK DROP ( FROM HSP TO CENTER BACK NECK EDGE OR SEAM )","BACK NECK DROP ( FROM HSP TO CENTER BACK NECK EDGE OR SEAM )","BACK NECK DROP ( FROM HSP TO CENTER BACK NECK EDGE OR SEAM )","BACK NECK DROP ( FROM HSP TO CENTER BACK NECK EDGE OR SEAM )","BACK NECK DROP ( FROM HSP TO CENTER BACK NECK EDGE OR SEAM )","BACK NECK DROP ( FROM HSP TO CENTER BACK NECK EDGE OR SEAM )","BACK NECK DROP ( FROM HSP TO CENTER BACK NECK EDGE OR SEAM )",null,null,null,null,0,null,null,null,{"$f":"T38+0","v":0},null,null,null,null,null,null,null,null,0.25]
[null,"1/2 NECK CIRCUMFERENCE","1/2 NECK CIRCUMFERENCE","1/2 NECK CIRCUMFERENCE","1/2 NECK CIRCUMFERENCE","1/2 NECK CIRCUMFERENCE","1/2 NECK CIRCUMFERENCE","1/2 NECK CIRCUMFERENCE","1/2 NECK CIRCUMFERENCE","1/2 NECK CIRCUMFERENCE","1/2 NECK CIRCUMFERENCE","1/2 NECK CIRCUMFERENCE","1/2 NECK CIRCUMFERENCE","1/2 NECK CIRCUMFERENCE","1/2 NECK CIRCUMFERENCE",null,null,null,null,null,null,null,null,null,null,null,null,null,null,null,null,null,0.25]
[null,"COLLAR DEPTH ( AT C.B. NECK )","COLLAR DEPTH ( AT C.B. NECK )","COLLAR DEPTH ( AT C.B. NECK )","COLLAR DEPTH ( AT C.B. NECK )","COLLAR DEPTH ( AT C.B. NECK )","COLLAR DEPTH ( AT C.B. NECK )","COLLAR DEPTH ( AT C.B. NECK )","COLLAR DEPTH ( AT C.B. NECK )","COLLAR DEPTH ( AT C.B. NECK )","COLLAR DEPTH ( AT C.B. NECK )","COLLAR DEPTH ( AT C.B. NECK )","COLLAR DEPTH ( AT C.B. NECK )","COLLAR DEPTH ( AT C.B. NECK )","COLLAR DEPTH ( AT C.B. NECK )",null,null,null,null,null,null,null,null,null,null,null,null,null,null,null,null,null,0]
[null,"STAND DEPTH","STAND DEPTH","STAND DEPTH","STAND DEPTH","STAND DEPTH","STAND DEPTH","STAND DEPTH","STAND DEPTH","STAND DEPTH","STAND DEPTH","STAND DEPTH","STAND DEPTH","STAND DEPTH","STAND DEPTH",null,null,null,null,null,null,null,null,null,null,null,null,null,null,null,null,null,0]
[null,"COLLAR LENGTH","COLLAR LENGTH","COLLAR LENGTH","COLLAR LENGTH","COLLAR LENGTH","COLLAR LENGTH","COLLAR LENGTH","COLLAR LENGTH","COLLAR LENGTH","COLLAR LENGTH","COLLAR LENGTH","COLLAR LENGTH","COLLAR LENGTH","COLLAR LENGTH",null,null,null,null,null,null,null,null,null,null,null,null,null,null,null,null,null,0.25]
[null,"NECK TRIM DEPTH","NECK TRIM DEPTH","NECK TRIM DEPTH","NECK TRIM DEPTH","NECK TRIM DEPTH","NECK TRIM DEPTH","NECK TRIM DEPTH","NECK TRIM DEPTH","NECK TRIM DEPTH","NECK TRIM DEPTH","NECK TRIM DEPTH","NECK TRIM DEPTH","NECK TRIM DEPTH","NECK TRIM DEPTH",null,null,null,null,null,null,null,null,null,null,null,null,null,null,null,null,null,0]
[null,"CUFF DEPTH","CUFF DEPTH","CUFF DEPTH","CUFF DEPTH","CUFF DEPTH","CUFF DEPTH","CUFF DEPTH","CUFF DEPTH","CUFF DEPTH","CUFF DEPTH","CUFF DEPTH","CUFF DEPTH","CUFF DEPTH","CUFF DEPTH",null,null,null,null,null,null,null,null,null,null,null,null,null,null,null,null,null,0]
[null,"SLEEVE HEM DEPTH","SLEEVE HEM DEPTH","SLEEVE HEM DEPTH","SLEEVE HEM DEPTH","SLEEVE HEM DEPTH","SLEEVE HEM DEPTH","SLEEVE HEM DEPTH","SLEEVE HEM DEPTH","SLEEVE HEM DEPTH","SLEEVE HEM DEPTH","SLEEVE HEM DEPTH","SLEEVE HEM DEPTH","SLEEVE HEM DEPTH","SLEEVE HEM DEPTH",null,null,null,null,null,null,null,null,null,null,null,null,null,null,null,null,null,0]
[null,"BOTTOM HEM DEPTH","BOTTOM HEM DEPTH","BOTTOM HEM DEPTH","BOTTOM HEM DEPTH","BOTTOM HEM DEPTH","BOTTOM HEM DEPTH","BOTTOM HEM DEPTH","BOTTOM HEM DEPTH","BOTTOM HEM DEPTH","BOTTOM HEM DEPTH","BOTTOM HEM DEPTH","BOTTOM HEM DEPTH","BOTTOM HEM DEPTH","BOTTOM HEM DEPTH",null,null,null,null,null,null,null,null,null,null,null,null,null,null,null,null,null,0]
[null,"HSP TO BUST POINT","HSP TO BUST POINT","HSP TO BUST POINT","HSP TO BUST POINT","HSP TO BUST POINT","HSP TO BUST POINT","HSP TO BUST POINT","HSP TO BUST POINT","HSP TO BUST POINT","HSP TO BUST POINT","HSP TO BUST POINT","HSP TO BUST POINT","HSP TO BUST POINT","HSP TO BUST POINT",null,null,null,null,null,null,null,null,null,null,null,null,null,null,null,null,null,0]
[]
[]
[]
[]
[null,"Sample Approved?"]
[null,"If sample is NOT approved, then submit 2nd Pre-Production Samples. If sample is APPROVED, then submit Production Samples."]

{"sheet":"Pre-Production Sample","index":20,"n_rows":53,"n_cols":40,"rows_kept":53,"cut":false,"hidden":true,"merged":[[46,15,46,16],[46,17,46,18],[46,19,46,20],[46,21,46,22],[46,23,46,24],[46,25,46,26],[46,27,46,28],[46,29,46,30],[47,15,47,16],[47,17,47,18],[47,19,47,20],[47,21,47,22],[47,23,47,24],[47,25,47,26],[47,27,47,28],[47,29,47,30],[44,29,44,30],[45,15,45,16],[45,17,45,18],[45,19,45,20],[45,21,45,22],[45,23,45,24],[45,25,45,26],[45,27,45,28],[45,29,45,30],[39,15,39,16],[39,17,39,18],[39,19,39,20],[39,21,39,22],[39,23,39,24],[39,25,39,26],[39,27,39,28],[39,29,39,30],[40,15,40,16],[40,17,40,18],[40,19,40,20],[40,21,40,22],[40,23,40,24],[40,25,40,26],[40,27,40,28],[40,29,40,30],[37,23,37,24],[37,25,37,26],[37,27,37,28],[37,29,37,30],[38,15,38,16],[38,17,38,18],[38,19,38,20],[38,21,38,22],[38,23,38,24],[38,25,38,26],[38,27,38,28],[38,29,38,30],[34,15,34,16],[34,17,34,18],[34,19,34,20],[34,21,34,22],[34,23,34,24],[34,25,34,26],[34,27,34,28],[34,29,34,30],[35,15,35,16],[35,17,35,18],[35,19,35,20],[35,21,35,22],[35,23,35,24],[35,25,35,26],[35,27,35,28],[35,29,35,30],[32,15,32,16],[32,17,32,18],[32,19,32,20],[32,21,32,22],[32,23,32,24],[32,25,32,26],[32,27,32,28],[32,29,32,30],[33,15,33,16],[33,17,33,18],[33,19,33,20],[33,21,33,22],[33,23,33,24],[33,25,33,26],[33,27,33,28],[33,29,33,30],[30,23,30,24],[30,25,30,26],[30,27,30,28],[30,29,30,30],[31,15,31,16],[31,17,31,18],[31,19,31,20],[31,21,31,22],[31,23,31,24],[31,25,31,26],[31,27,31,28],[31,29,31,30],[27,15,27,16],[27,17,27,18],[27,19,27,20],[27,21,27,22],[27,23,27,24],[27,25,27,26],[27,27,27,28],[27,29,27,30],[28,15,28,16],[28,17,28,18],[28,19,28,20],[28,21,28,22],[28,23,28,24],[28,25,28,26],[28,27,28,28],[28,29,28,30],[25,23,25,24],[25,25,25,26],[25,27,25,28],[25,29,25,30],[26,15,26,16],[26,17,26,18],[26,19,26,20],[26,21,26,22],[26,23,26,24],[26,25,26,26],[26,27,26,28],[26,29,26,30],[22,15,22,16],[22,17,22,18],[22,19,22,20],[22,21,22,22],[22,23,22,24],[22,25,22,26],[22,27,22,28],[22,29,22,30],[23,15,23,16],[23,17,23,18],[23,19,23,20],[23,21,23,22],[23,23,23,24],[23,25,23,26],[23,27,23,28],[23,29,23,30],[20,15,20,16],[20,17,20,18],[20,19,20,20],[20,21,20,22],[20,23,20,24],[20,25,20,26],[20,27,20,28],[20,29,20,30],[21,15,21,16],[21,17,21,18],[21,19,21,20],[21,21,21,22],[21,23,21,24],[21,25,21,26],[21,27,21,28],[21,29,21,30],[18,23,18,24],[18,25,18,26],[18,27,18,28],[18,29,18,30],[19,15,19,16],[19,17,19,18],[19,19,19,20],[19,21,19,22],[19,23,19,24],[19,25,19,26],[19,27,19,28],[19,29,19,30],[15,15,15,16],[15,17,15,18],[15,19,15,20],[15,21,15,22],[15,23,15,24],[15,25,15,26],[15,27,15,28],[15,29,15,30],[16,15,16,16],[16,17,16,18],[16,19,16,20],[16,21,16,22],[16,23,16,24],[16,25,16,26],[16,27,16,28],[16,29,16,30],[13,23,13,24],[13,25,13,26],[13,27,13,28],[13,29,13,30],[14,15,14,16],[14,17,14,18],[14,19,14,20],[14,21,14,22],[14,23,14,24],[14,25,14,26],[14,27,14,28],[14,29,14,30],[10,19,10,20],[10,21,10,22],[10,23,10,24],[10,25,10,26],[10,27,10,28],[10,29,10,30],[11,15,11,16],[11,17,11,18],[11,19,11,20],[11,21,11,22],[11,23,11,24],[11,25,11,26],[11,27,11,28],[11,29,11,30],[1,16,1,22],[2,16,2,34],[3,16,3,22],[3,30,3,34],[4,16,4,22],[10,1,10,14],[10,32,10,34],[5,16,5,34],[7,1,7,18],[7,19,7,22],[7,23,7,31],[8,1,9,14],[8,32,9,34],[8,15,9,16],[8,17,9,18],[8,19,9,20],[8,23,9,24],[8,27,9,28],[8,21,9,22],[8,25,9,26],[8,29,9,30],[4,29,4,34],[10,15,10,16],[10,17,10,18],[15,1,15,14],[15,32,15,34],[16,1,16,14],[16,32,16,34],[13,1,13,14],[13,32,13,34],[14,1,14,14],[14,32,14,34],[11,1,11,14],[11,32,11,34],[12,1,12,14],[12,32,12,34],[12,15,12,16],[12,17,12,18],[12,19,12,20],[12,21,12,22],[12,23,12,24],[12,25,12,26],[12,27,12,28],[12,29,12,30],[13,15,13,16],[13,17,13,18],[13,19,13,20],[13,21,13,22],[21,1,21,14],[21,32,21,34],[22,1,22,14],[22,32,22,34],[19,1,19,14],[19,32,19,34],[20,1,20,14],[20,32,20,34],[17,1,17,14],[17,32,17,34],[18,1,18,14],[18,32,18,34],[17,15,17,16],[17,17,17,18],[17,19,17,20],[17,21,17,22],[17,23,17,24],[17,25,17,26],[17,27,17,28],[17,29,17,30],[18,15,18,16],[18,17,18,18],[18,19,18,20],[18,21,18,22],[27,1,27,14],[27,32,27,34],[28,1,28,14],[28,32,28,34],[25,1,25,14],[25,32,25,34],[26,1,26,14],[26,32,26,34],[23,1,23,14],[23,32,23,34],[24,1,24,14],[24,32,24,34],[24,15,24,16],[24,17,24,18],[24,19,24,20],[24,21,24,22],[24,23,24,24],[24,25,24,26],[24,27,24,28],[24,29,24,30],[25,15,25,16],[25,17,25,18],[25,19,25,20],[25,21,25,22],[33,1,33,14],[33,32,33,34],[34,1,34,14],[34,32,34,34],[31,1,31,14],[31,32,31,34],[32,1,32,14],[32,32,32,34],[29,1,29,14],[29,32,29,34],[30,1,30,14],[30,32,30,34],[29,15,29,16],[29,17,29,18],[29,19,29,20],[29,21,29,22],[29,23,29,24],[29,25,29,26],[29,27,29,28],[29,29,29,30],[30,15,30,16],[30,17,30,18],[30,19,30,20],[30,21,30,22],[39,32,39,34],[40,1,40,14],[40,32,40,34],[37,1,37,14],[37,32,37,34],[38,1,38,14],[38,32,38,34],[35,1,35,14],[35,32,35,34],[36,1,36,14],[36,32,36,34],[39,1,39,14],[36,15,36,16],[36,17,36,18],[36,19,36,20],[36,21,36,22],[36,23,36,24],[36,25,36,26],[36,27,36,28],[36,29,36,30],[37,15,37,16],[37,17,37,18],[37,19,37,20],[37,21,37,22],[52,1,52,34],[50,1,50,14],[50,32,50,34],[47,1,47,14],[47,32,47,34],[48,1,48,14],[48,32,48,34],[48,15,48,16],[48,17,48,18],[48,19,48,20],[48,21,48,22],[48,23,48,24],[48,25,48,26],[48,27,48,28],[48,29,48,30],[50,15,50,16],[50,17,50,18],[50,19,50,20],[50,21,50,22],[50,23,50,24],[50,25,50,26],[50,27,50,28],[50,29,50,30],[51,15,51,34],[41,1,41,14],[41,32,41,34],[42,1,42,14],[42,32,42,34],[41,15,41,16],[41,17,41,18],[41,19,41,20],[41,21,41,22],[41,23,41,24],[41,25,41,26],[41,27,41,28],[41,29,41,30],[42,15,42,16],[42,17,42,18],[42,19,42,20],[42,21,42,22],[42,23,42,24],[42,25,42,26],[42,27,42,28],[42,29,42,30],[49,1,49,34],[45,1,45,14],[45,32,45,34],[46,1,46,14],[46,32,46,34],[43,1,43,14],[43,32,43,34],[44,1,44,14],[44,32,44,34],[43,15,43,16],[43,17,43,18],[43,19,43,20],[43,21,43,22],[43,23,43,24],[43,25,43,26],[43,27,43,28],[43,29,43,30],[44,15,44,16],[44,17,44,18],[44,19,44,20],[44,21,44,22],[44,23,44,24],[44,25,44,26],[44,27,44,28]]}
[]
[null,null,null,null,null,null,null,null,null,null,null,"Create Date:",null,null,null,null,{"$f":"'ORIGINAL PHOTO'!Q2:W2","v":"MARCH 15/2017"}]
[null,null,null,null,null,null,null,null,null,null,null,"Vendor Name:",null,null,null,null,{"$f":"'ORIGINAL PHOTO'!Q3:AI3","v":0}]
[null,null,null,null,null,null,null,null,null,null,null,"Vndr.Item No.:",null,null,null,null,{"$f":"'ORIGINAL PHOTO'!Q4:W4","v":0},null,null,null,null,null,null,null,null,null,"GC Item No.:",null,null,null,{"$f":"'ORIGINAL PHOTO'!AE4:AI4","v":0}]
[null,null,null,null,null,null,null,null,null,null,null,"Size Range:",null,null,null,null,{"$f":"'ORIGINAL PHOTO'!Q5:W5","v":"S-M-L-XL"},null,null,null,null,null,null,null,null,null,"Season:",null,null,{"$f":"'ORIGINAL PHOTO'!AD5:AI5","v":"Spring Summer 2018"}]
[null,null,null,null,null,null,null,null,null,null,null,"Description:",null,null,null,null,{"$f":"'ORIGINAL PHOTO'!Q6:AI6","v":"MEN'S LONG SLEEVE ZIP FRONT SCOOP HEM HOODIE WITH LINED HOOD"}]
[]
[null,"PRE-PRODUCTION COMMENTS -- MEN'S TOP",null,null,null,null,null,null,null,null,null,null,null,null,null,null,null,null,null,"Date:",null,null,null,null,null,null,null,null,null,null,null,null,null,null,null,null,null,null,null,"L"]
[null,"(Measurements on flat / inches)",null,null,null,null,null,null,null,null,null,null,null,null,null,"S",null,null,null,"M",null,null,null,"L",null,null,null,"XL",null,null,null,null,"Tolerance\n+ / -\n(on flat)",null,null,null,null,null,null,"LXL"]
[null,null,null,null,null,null,null,null,null,null,null,null,null,null,null,null,null,null,null,null,null,null,null,null,null,null,null,null,null,null,null,null,null,null,null,null,null,null,null,"M"]
[null,"BACK LENGTH FROM (HIGH SHOULDER POINT)","BACK LENGTH FROM (HIGH SHOULDER POINT)","BACK LENGTH FROM (HIGH SHOULDER POINT)","BACK LENGTH FROM (HIGH SHOULDER POINT)","BACK LENGTH FROM (HIGH SHOULDER POINT)","BACK LENGTH FROM (HIGH SHOULDER POINT)","BACK LENGTH FROM (HIGH SHOULDER POINT)","BACK LENGTH FROM (HIGH SHOULDER POINT)","BACK LENGTH FROM (HIGH SHOULDER POINT)","BACK LENGTH FROM (HIGH SHOULDER POINT)","BACK LENGTH FROM (HIGH SHOULDER POINT)","BACK LENGTH FROM (HIGH SHOULDER POINT)","BACK LENGTH FROM (HIGH SHOULDER POINT)","BACK LENGTH FROM (HIGH SHOULDER POINT)",null,null,null,null,null,null,null,null,null,null,null,null,null,null,null,null,null,0.375,null,null,null,null,null,null,"S"]
[null,"CENTER BACK LENGTH ( FROM NECK TO HEM )","CENTER BACK LENGTH ( FROM NECK TO HEM )","CENTER BACK LENGTH ( FROM NECK TO HEM )","CENTER BACK LENGTH ( FROM NECK TO HEM )","CENTER BACK LENGTH ( FROM NECK TO HEM )","CENTER BACK LENGTH ( FROM NECK TO HEM )","CENTER BACK LENGTH ( FROM NECK TO HEM )","CENTER BACK LENGTH ( FROM NECK TO HEM )","CENTER BACK LENGTH ( FROM NECK TO HEM )","CENTER BACK LENGTH ( FROM NECK TO HEM )","CENTER BACK LENGTH ( FROM NECK TO HEM )","CENTER BACK LENGTH ( FROM NECK TO HEM )","CENTER BACK LENGTH ( FROM NECK TO HEM )","CENTER BACK LENGTH ( FROM NECK TO HEM )",null,null,null,null,null,null,null,null,null,null,null,null,null,null,null,null,null,0.375,null,null,null,null,null,null,"SM"]
[null,"FRONT LENGTH FROM (HIGH SHOULDER POINT)","FRONT LENGTH FROM (HIGH SHOULDER POINT)","FRONT LENGTH FROM (HIGH SHOULDER POINT)","FRONT LENGTH FROM (HIGH SHOULDER POINT)","FRONT LENGTH FROM (HIGH SHOULDER POINT)","FRONT LENGTH FROM (HIGH SHOULDER POINT)","FRONT LENGTH FROM (HIGH SHOULDER POINT)","FRONT LENGTH FROM (HIGH SHOULDER POINT)","FRONT LENGTH FROM (HIGH SHOULDER POINT)","FRONT LENGTH FROM (HIGH SHOULDER POINT)","FRONT LENGTH FROM (HIGH SHOULDER POINT)","FRONT LENGTH FROM (HIGH SHOULDER POINT)","FRONT LENGTH FROM (HIGH SHOULDER POINT)","FRONT LENGTH FROM (HIGH SHOULDER POINT)",null,null,null,null,null,null,null,null,null,null,null,null,null,null,null,null,null,0.375,null,null,null,null,null,null,"XL"]
[null,"FRONT LENGTH (FROM CENTRE FRONT NECK TO HEM)","FRONT LENGTH (FROM CENTRE FRONT NECK TO HEM)","FRONT LENGTH (FROM CENTRE FRONT NECK TO HEM)","FRONT LENGTH (FROM CENTRE FRONT NECK TO HEM)","FRONT LENGTH (FROM CENTRE FRONT NECK TO HEM)","FRONT LENGTH (FROM CENTRE FRONT NECK TO HEM)","FRONT LENGTH (FROM CENTRE FRONT NECK TO HEM)","FRONT LENGTH (FROM CENTRE FRONT NECK TO HEM)","FRONT LENGTH (FROM CENTRE FRONT NECK TO HEM)","FRONT LENGTH (FROM CENTRE FRONT NECK TO HEM)","FRONT LENGTH (FROM CENTRE FRONT NECK TO HEM)","FRONT LENGTH (FROM CENTRE FRONT NECK TO HEM)","FRONT LENGTH (FROM CENTRE FRONT NECK TO HEM)","FRONT LENGTH (FROM CENTRE FRONT NECK TO HEM)",null,null,null,null,null,null,null,null,null,null,null,null,null,null,null,null,null,0.375,null,null,null,null,null,null,"XXL"]
[null,"CHEST (1\" BELOW ARMHOLE)","CHEST (1\" BELOW ARMHOLE)","CHEST (1\" BELOW ARMHOLE)","CHEST (1\" BELOW ARMHOLE)","CHEST (1\" BELOW ARMHOLE)","CHEST (1\" BELOW ARMHOLE)","CHEST (1\" BELOW ARMHOLE)","CHEST (1\" BELOW ARMHOLE)","CHEST (1\" BELOW ARMHOLE)","CHEST (1\" BELOW ARMHOLE)","CHEST (1\" BELOW ARMHOLE)","CHEST (1\" BELOW ARMHOLE)","CHEST (1\" BELOW ARMHOLE)","CHEST (1\" BELOW ARMHOLE)",null,null,null,null,null,null,null,null,null,null,null,null,null,null,null,null,null,0.375,null,null,null,null,null,null,"XXXL"]
[null,"WAIST (16 1/2\" BELOW HIGH SHOULDER POINT)","WAIST (16 1/2\" BELOW HIGH SHOULDER POINT)","WAIST (16 1/2\" BELOW HIGH SHOULDER POINT)","WAIST (16 1/2\" BELOW HIGH SHOULDER POINT)","WAIST (16 1/2\" BELOW HIGH SHOULDER POINT)","WAIST (16 1/2\" BELOW HIGH SHOULDER POINT)","WAIST (16 1/2\" BELOW HIGH SHOULDER POINT)","WAIST (16 1/2\" BELOW HIGH SHOULDER POINT)","WAIST (16 1/2\" BELOW HIGH SHOULDER POINT)","WAIST (16 1/2\" BELOW HIGH SHOULDER POINT)","WAIST (16 1/2\" BELOW HIGH SHOULDER POINT)","WAIST (16 1/2\" BELOW HIGH SHOULDER POINT)","WAIST (16 1/2\" BELOW HIGH SHOULDER POINT)","WAIST (16 1/2\" BELOW HIGH SHOULDER POINT)",null,null,null,null,null,null,null,null,null,null,null,null,null,null,null,null,null,0.375]
[null,"TOP HIP ( 3\" BELOW WAIST )","TOP HIP ( 3\" BELOW WAIST )","TOP HIP ( 3\" BELOW WAIST )","TOP HIP ( 3\" BELOW WAIST )","TOP HIP ( 3\" BELOW WAIST )","TOP HIP ( 3\" BELOW WAIST )","TOP HIP ( 3\" BELOW WAIST )","TOP HIP ( 3\" BELOW WAIST )","TOP HIP ( 3\" BELOW WAIST )","TOP HIP ( 3\" BELOW WAIST )","TOP HIP ( 3\" BELOW WAIST )","TOP HIP ( 3\" BELOW WAIST )","TOP HIP ( 3\" BELOW WAIST )","TOP HIP ( 3\" BELOW WAIST )",null,null,null,null,null,null,null,null,null,null,null,null,null,null,null,null,null,0.375]
[null,"LOW HIP ( 8\" BELOW WAIST)","LOW HIP ( 8\" BELOW WAIST)","LOW HIP ( 8\" BELOW WAIST)","LOW HIP ( 8\" BELOW WAIST)","LOW HIP ( 8\" BELOW WAIST)","LOW HIP ( 8\" BELOW WAIST)","LOW HIP ( 8\" BELOW WAIST)","LOW HIP ( 8\" BELOW WAIST)","LOW HIP ( 8\" BELOW WAIST)","LOW HIP ( 8\" BELOW WAIST)","LOW HIP ( 8\" BELOW WAIST)","LOW HIP ( 8\" BELOW WAIST)","LOW HIP ( 8\" BELOW WAIST)","LOW HIP ( 8\" BELOW WAIST)",null,null,null,null,null,null,null,null,null,null,null,null,null,null,null,null,null,0.375]
[null,"HEM STRAIGHT","HEM STRAIGHT","HEM STRAIGHT","HEM STRAIGHT","HEM STRAIGHT","HEM STRAIGHT","HEM STRAIGHT","HEM STRAIGHT","HEM STRAIGHT","HEM STRAIGHT","HEM STRAIGHT","HEM STRAIGHT","HEM STRAIGHT","HEM STRAIGHT",null,null,null,null,null,null,null,null,null,null,null,null,null,null,null,null,null,0.375]
[null,"HEM CURVE (FOLLOW)","HEM CURVE (FOLLOW)","HEM CURVE (FOLLOW)","HEM CURVE (FOLLOW)","HEM CURVE (FOLLOW)","HEM CURVE (FOLLOW)","HEM CURVE (FOLLOW)","HEM CURVE (FOLLOW)","HEM CURVE (FOLLOW)","HEM CURVE (FOLLOW)","HEM CURVE (FOLLOW)","HEM CURVE (FOLLOW)","HEM CURVE (FOLLOW)","HEM CURVE (FOLLOW)",null,null,null,null,null,null,null,null,null,null,null,null,null,null,null,null,null,0.375]
[null,"ACROSS SHOULDERS ( TOTAL )","ACROSS SHOULDERS ( TOTAL )","ACROSS SHOULDERS ( TOTAL )","ACROSS SHOULDERS ( TOTAL )","ACROSS SHOULDERS ( TOTAL )","ACROSS SHOULDERS ( TOTAL )","ACROSS SHOULDERS ( TOTAL )","ACROSS SHOULDERS ( TOTAL )","ACROSS SHOULDERS ( TOTAL )","ACROSS SHOULDERS ( TOTAL )","ACROSS SHOULDERS ( TOTAL )","ACROSS SHOULDERS ( TOTAL )","ACROSS SHOULDERS ( TOTAL )","ACROSS SHOULDERS ( TOTAL )",null,null,null,null,null,null,null,null,null,null,null,null,null,null,null,null,null,0.375]
[null,"SHOULDER LENGTH AT SEAM","SHOULDER LENGTH AT SEAM","SHOULDER LENGTH AT SEAM","SHOULDER LENGTH AT SEAM","SHOULDER LENGTH AT SEAM","SHOULDER LENGTH AT SEAM","SHOULDER LENGTH AT SEAM","SHOULDER LENGTH AT SEAM","SHOULDER LENGTH AT SEAM","SHOULDER LENGTH AT SEAM","SHOULDER LENGTH AT SEAM","SHOULDER LENGTH AT SEAM","SHOULDER LENGTH AT SEAM","SHOULDER LENGTH AT SEAM",null,null,null,null,null,null,null,null,null,null,null,null,null,null,null,null,null,0.375]
[null,"ACROSS FRONT (5\" BELOW HIGH SHOULDER POINT)","ACROSS FRONT (5\" BELOW HIGH SHOULDER POINT)","ACROSS FRONT (5\" BELOW HIGH SHOULDER POINT)","ACROSS FRONT (5\" BELOW HIGH SHOULDER POINT)","ACROSS FRONT (5\" BELOW HIGH SHOULDER POINT)","ACROSS FRONT (5\" BELOW HIGH SHOULDER POINT)","ACROSS FRONT (5\" BELOW HIGH SHOULDER POINT)","ACROSS FRONT (5\" BELOW HIGH SHOULDER POINT)","ACROSS FRONT (5\" BELOW HIGH SHOULDER POINT)","ACROSS FRONT (5\" BELOW HIGH SHOULDER POINT)","ACROSS FRONT (5\" BELOW HIGH SHOULDER POINT)","ACROSS FRONT (5\" BELOW HIGH SHOULDER POINT)","ACROSS FRONT (5\" BELOW HIGH SHOULDER POINT)","ACROSS FRONT (5\" BELOW HIGH SHOULDER POINT)",null,null,null,null,null,null,null,null,null,null,null,null,null,null,null,null,null,0.375]
[null,"ACROSS BACK (5\" BELOW HIGH SHOULDER POINT)","ACROSS BACK (5\" BELOW HIGH SHOULDER POINT)","ACROSS BACK (5\" BELOW HIGH SHOULDER POINT)","ACROSS BACK (5\" BELOW HIGH SHOULDER POINT)","ACROSS BACK (5\" BELOW HIGH SHOULDER POINT)","ACROSS BACK (5\" BELOW HIGH SHOULDER POINT)","ACROSS BACK (5\" BELOW HIGH SHOULDER POINT)","ACROSS BACK (5\" BELOW HIGH SHOULDER POINT)","ACROSS BACK (5\" BELOW HIGH SHOULDER POINT)","ACROSS BACK (5\" BELOW HIGH SHOULDER POINT)","ACROSS BACK (5\" BELOW HIGH SHOULDER POINT)","ACROSS BACK (5\" BELOW HIGH SHOULDER POINT)","ACROSS BACK (5\" BELOW HIGH SHOULDER POINT)","ACROSS BACK (5\" BELOW HIGH SHOULDER POINT)",null,null,null,null,null,null,null,null,null,null,null,null,null,null,null,null,null,0.25]
[null,"OVERARM (FROM SLEEVE CAP TO HEM)-SHORT SLEEVE","OVERARM (FROM SLEEVE CAP TO HEM)-SHORT SLEEVE","OVERARM (FROM SLEEVE CAP TO HEM)-SHORT SLEEVE","OVERARM (FROM SLEEVE CAP TO HEM)-SHORT SLEEVE","OVERARM (FROM SLEEVE CAP TO HEM)-SHORT SLEEVE","OVERARM (FROM SLEEVE CAP TO HEM)-SHORT SLEEVE","OVERARM (FROM SLEEVE CAP TO HEM)-SHORT SLEEVE","OVERARM (FROM SLEEVE CAP TO HEM)-SHORT SLEEVE","OVERARM (FROM SLEEVE CAP TO HEM)-SHORT SLEEVE","OVERARM (FROM SLEEVE CAP TO HEM)-SHORT SLEEVE","OVERARM (FROM SLEEVE CAP TO HEM)-SHORT SLEEVE","OVERARM (FROM SLEEVE CAP TO HEM)-SHORT SLEEVE","OVERARM (FROM SLEEVE CAP TO HEM)-SHORT SLEEVE","OVERARM (FROM SLEEVE CAP TO HEM)-SHORT SLEEVE",null,null,null,null,null,null,null,null,null,null,null,null,null,null,null,null,null,0.25]
[null,"OVERARM (FROM SLEEVE CAP TO HEM)- 3/4 SLEEVE","OVERARM (FROM SLEEVE CAP TO HEM)- 3/4 SLEEVE","OVERARM (FROM SLEEVE CAP TO HEM)- 3/4 SLEEVE","OVERARM (FROM SLEEVE CAP TO HEM)- 3/4 SLEEVE","OVERARM (FROM SLEEVE CAP TO HEM)- 3/4 SLEEVE","OVERARM (FROM SLEEVE CAP TO HEM)- 3/4 SLEEVE","OVERARM (FROM SLEEVE CAP TO HEM)- 3/4 SLEEVE","OVERARM (FROM SLEEVE CAP TO HEM)- 3/4 SLEEVE","OVERARM (FROM SLEEVE CAP TO HEM)- 3/4 SLEEVE","OVERARM (FROM SLEEVE CAP TO HEM)- 3/4 SLEEVE","OVERARM (FROM SLEEVE CAP TO HEM)- 3/4 SLEEVE","OVERARM (FROM SLEEVE CAP TO HEM)- 3/4 SLEEVE","OVERARM (FROM SLEEVE CAP TO HEM)- 3/4 SLEEVE","OVERARM (FROM SLEEVE CAP TO HEM)- 3/4 SLEEVE",null,null,null,null,null,null,null,null,null,null,null,null,null,null,null,null,null,0.375]
[null,"OVERARM (FROM SLEEVE CAP TO HEM)- LONG SLEEVE","OVERARM (FROM SLEEVE CAP TO HEM)- LONG SLEEVE","OVERARM (FROM SLEEVE CAP TO HEM)- LONG SLEEVE","OVERARM (FROM SLEEVE CAP TO HEM)- LONG SLEEVE","OVERARM (FROM SLEEVE CAP TO HEM)- LONG SLEEVE","OVERARM (FROM SLEEVE CAP TO HEM)- LONG SLEEVE","OVERARM (FROM SLEEVE CAP TO HEM)- LONG SLEEVE","OVERARM (FROM SLEEVE CAP TO HEM)- LONG SLEEVE","OVERARM (FROM SLEEVE CAP TO HEM)- LONG SLEEVE","OVERARM (FROM SLEEVE CAP TO HEM)- LONG SLEEVE","OVERARM (FROM SLEEVE CAP TO HEM)- LONG SLEEVE","OVERARM (FROM SLEEVE CAP TO HEM)- LONG SLEEVE","OVERARM (FROM SLEEVE CAP TO HEM)- LONG SLEEVE","OVERARM (FROM SLEEVE CAP TO HEM)- LONG SLEEVE",null,null,null,null,null,null,null,null,null,null,null,null,null,null,null,null,null,0.25]
[null,"1/2 ARMHOLE STRAIGHT","1/2 ARMHOLE STRAIGHT","1/2 ARMHOLE STRAIGHT","1/2 ARMHOLE STRAIGHT","1/2 ARMHOLE STRAIGHT","1/2 ARMHOLE STRAIGHT","1/2 ARMHOLE STRAIGHT","1/2 ARMHOLE STRAIGHT","1/2 ARMHOLE STRAIGHT","1/2 ARMHOLE STRAIGHT","1/2 ARMHOLE STRAIGHT","1/2 ARMHOLE STRAIGHT","1/2 ARMHOLE STRAIGHT","1/2 ARMHOLE STRAIGHT",null,null,null,null,null,null,null,null,null,null,null,null,null,null,null,null,null,0.25]
[null,"BICEP (1\" BELOW ARMHOLE)","BICEP (1\" BELOW ARMHOLE)","BICEP (1\" BELOW ARMHOLE)","BICEP (1\" BELOW ARMHOLE)","BICEP (1\" BELOW ARMHOLE)","BICEP (1\" BELOW ARMHOLE)","BICEP (1\" BELOW ARMHOLE)","BICEP (1\" BELOW ARMHOLE)","BICEP (1\" BELOW ARMHOLE)","BICEP (1\" BELOW ARMHOLE)","BICEP (1\" BELOW ARMHOLE)","BICEP (1\" BELOW ARMHOLE)","BICEP (1\" BELOW ARMHOLE)","BICEP (1\" BELOW ARMHOLE)",null,null,null,null,null,null,null,null,null,null,null,null,null,null,null,null,null,0.25]
[null,"ELBOW (8 1/2\" BELOW ARMHOLE)","ELBOW (8 1/2\" BELOW ARMHOLE)","ELBOW (8 1/2\" BELOW ARMHOLE)","ELBOW (8 1/2\" BELOW ARMHOLE)","ELBOW (8 1/2\" BELOW ARMHOLE)","ELBOW (8 1/2\" BELOW ARMHOLE)","ELBOW (8 1/2\" BELOW ARMHOLE)","ELBOW (8 1/2\" BELOW ARMHOLE)","ELBOW (8 1/2\" BELOW ARMHOLE)","ELBOW (8 1/2\" BELOW ARMHOLE)","ELBOW (8 1/2\" BELOW ARMHOLE)","ELBOW (8 1/2\" BELOW ARMHOLE)","ELBOW (8 1/2\" BELOW ARMHOLE)","ELBOW (8 1/2\" BELOW ARMHOLE)",null,null,null,null,null,null,null,null,null,null,null,null,null,null,null,null,null,0.25]
[null,"SHORT SLEEVE OPENING","SHORT SLEEVE OPENING","SHORT SLEEVE OPENING","SHORT SLEEVE OPENING","SHORT SLEEVE OPENING","SHORT SLEEVE OPENING","SHORT SLEEVE OPENING","SHORT SLEEVE OPENING","SHORT SLEEVE OPENING","SHORT SLEEVE OPENING","SHORT SLEEVE OPENING","SHORT SLEEVE OPENING","SHORT SLEEVE OPENING","SHORT SLEEVE OPENING",null,null,null,null,null,null,null,null,null,null,null,null,null,null,null,null,null,0.25]
[null,"3/4 SLEEVE OPENING","3/4 SLEEVE OPENING","3/4 SLEEVE OPENING","3/4 SLEEVE OPENING","3/4 SLEEVE OPENING","3/4 SLEEVE OPENING","3/4 SLEEVE OPENING","3/4 SLEEVE OPENING","3/4 SLEEVE OPENING","3/4 SLEEVE OPENING","3/4 SLEEVE OPENING","3/4 SLEEVE OPENING","3/4 SLEEVE OPENING","3/4 SLEEVE OPENING",null,null,null,null,null,null,null,null,null,null,null,null,null,null,null,null,null,0.25]
[null,"LONG SLEEVE OPENING","LONG SLEEVE OPENING","LONG SLEEVE OPENING","LONG SLEEVE OPENING","LONG SLEEVE OPENING","LONG SLEEVE OPENING","LONG SLEEVE OPENING","LONG SLEEVE OPENING","LONG SLEEVE OPENING","LONG SLEEVE OPENING","LONG SLEEVE OPENING","LONG SLEEVE OPENING","LONG SLEEVE OPENING","LONG SLEEVE OPENING",null,null,null,null,null,null,null,null,null,null,null,null,null,null,null,null,null,"1/4"]
[null,"SLEEVE CAP HEIGHT ( FROM TOP OF SLEEVE TO UNDERARM )","SLEEVE CAP HEIGHT ( FROM TOP OF SLEEVE TO UNDERARM )","SLEEVE CAP HEIGHT ( FROM TOP OF SLEEVE TO UNDERARM )","SLEEVE CAP HEIGHT ( FROM TOP OF SLEEVE TO UNDERARM )","SLEEVE CAP HEIGHT ( FROM TOP OF SLEEVE TO UNDERARM )","SLEEVE CAP HEIGHT ( FROM TOP OF SLEEVE TO UNDERARM )","SLEEVE CAP HEIGHT ( FROM TOP OF SLEEVE TO UNDERARM )","SLEEVE CAP HEIGHT ( FROM TOP OF SLEEVE TO UNDERARM )","SLEEVE CAP HEIGHT ( FROM TOP OF SLEEVE TO UNDERARM )","SLEEVE CAP HEIGHT ( FROM TOP OF SLEEVE TO UNDERARM )","SLEEVE CAP HEIGHT ( FROM TOP OF SLEEVE TO UNDERARM )","SLEEVE CAP HEIGHT ( FROM TOP OF SLEEVE TO UNDERARM )","SLEEVE CAP HEIGHT ( FROM TOP OF SLEEVE TO UNDERARM )","SLEEVE CAP HEIGHT ( FROM TOP OF SLEEVE TO UNDERARM )",null,null,null,null,null,null,null,null,null,null,null,null,null,null,null,null,null,0]
[null,"SHOULDER SLOPE ( HSP TO SHOULDER ARMHOLE SEAM )","SHOULDER SLOPE ( HSP TO SHOULDER ARMHOLE SEAM )","SHOULDER SLOPE ( HSP TO SHOULDER ARMHOLE SEAM )","SHOULDER SLOPE ( HSP TO SHOULDER ARMHOLE SEAM )","SHOULDER SLOPE ( HSP TO SHOULDER ARMHOLE SEAM )","SHOULDER SLOPE ( HSP TO SHOULDER ARMHOLE SEAM )","SHOULDER SLOPE ( HSP TO SHOULDER ARMHOLE SEAM )","SHOULDER SLOPE ( HSP TO SHOULDER ARMHOLE SEAM )","SHOULDER SLOPE ( HSP TO SHOULDER ARMHOLE SEAM )","SHOULDER SLOPE ( HSP TO SHOULDER ARMHOLE SEAM )","SHOULDER SLOPE ( HSP TO SHOULDER ARMHOLE SEAM )","SHOULDER SLOPE ( HSP TO SHOULDER ARMHOLE SEAM )","SHOULDER SLOPE ( HSP TO SHOULDER ARMHOLE SEAM )","SHOULDER SLOPE ( HSP TO SHOULDER ARMHOLE SEAM )",null,null,null,null,null,null,null,null,null,null,null,null,null,null,null,null,null,0]
[null,"NECK WIDTH (HSP TO HSP) ON BACK","NECK WIDTH (HSP TO HSP) ON BACK","NECK WIDTH (HSP TO HSP) ON BACK","NECK WIDTH (HSP TO HSP) ON BACK","NECK WIDTH (HSP TO HSP) ON BACK","NECK WIDTH (HSP TO HSP) ON BACK","NECK WIDTH (HSP TO HSP) ON BACK","NECK WIDTH (HSP TO HSP) ON BACK","NECK WIDTH (HSP TO HSP) ON BACK","NECK WIDTH (HSP TO HSP) ON BACK","NECK WIDTH (HSP TO HSP) ON BACK","NECK WIDTH (HSP TO HSP) ON BACK","NECK WIDTH (HSP TO HSP) ON BACK","NECK WIDTH (HSP TO HSP) ON BACK",null,null,null,null,null,null,null,null,null,null,null,null,null,null,null,null,null,0.25]
[null,"FRONT NECK DROP ( FROM HSP TO CENTER FRONT NECK EDGE OR SEAM )","FRONT NECK DROP ( FROM HSP TO CENTER FRONT NECK EDGE OR SEAM )","FRONT NECK DROP ( FROM HSP TO CENTER FRONT NECK EDGE OR SEAM )","FRONT NECK DROP ( FROM HSP TO CENTER FRONT NECK EDGE OR SEAM )","FRONT NECK DROP ( FROM HSP TO CENTER FRONT NECK EDGE OR SEAM )","FRONT NECK DROP ( FROM HSP TO CENTER FRONT NECK EDGE OR SEAM )","FRONT NECK DROP ( FROM HSP TO CENTER FRONT NECK EDGE OR SEAM )","FRONT NECK DROP ( FROM HSP TO CENTER FRONT NECK EDGE OR SEAM )","FRONT NECK DROP ( FROM HSP TO CENTER FRONT NECK EDGE OR SEAM )","FRONT NECK DROP ( FROM HSP TO CENTER FRONT NECK EDGE OR SEAM )","FRONT NECK DROP ( FROM HSP TO CENTER FRONT NECK EDGE OR SEAM )","FRONT NECK DROP ( FROM HSP TO CENTER FRONT NECK EDGE OR SEAM )","FRONT NECK DROP ( FROM HSP TO CENTER FRONT NECK EDGE OR SEAM )","FRONT NECK DROP ( FROM HSP TO CENTER FRONT NECK EDGE OR SEAM )",null,null,null,null,null,null,null,null,null,null,null,null,null,null,null,null,null,0.25]
[null,"BACK NECK DROP ( FROM HSP TO CENTER BACK NECK EDGE OR SEAM )","BACK NECK DROP ( FROM HSP TO CENTER BACK NECK EDGE OR SEAM )","BACK NECK DROP ( FROM HSP TO CENTER BACK NECK EDGE OR SEAM )","BACK NECK DROP ( FROM HSP TO CENTER BACK NECK EDGE OR SEAM )","BACK NECK DROP ( FROM HSP TO CENTER BACK NECK EDGE OR SEAM )","BACK NECK DROP ( FROM HSP TO CENTER BACK NECK EDGE OR SEAM )","BACK NECK DROP ( FROM HSP TO CENTER BACK NECK EDGE OR SEAM )","BACK NECK DROP ( FROM HSP TO CENTER BACK NECK EDGE OR SEAM )","BACK NECK DROP ( FROM HSP TO CENTER BACK NECK EDGE OR SEAM )","BACK NECK DROP ( FROM HSP TO CENTER BACK NECK EDGE OR SEAM )","BACK NECK DROP ( FROM HSP TO CENTER BACK NECK EDGE OR SEAM )","BACK NECK DROP ( FROM HSP TO CENTER BACK NECK EDGE OR SEAM )","BACK NECK DROP ( FROM HSP TO CENTER BACK NECK EDGE OR SEAM )","BACK NECK DROP ( FROM HSP TO CENTER BACK NECK EDGE OR SEAM )",null,null,null,null,null,null,null,null,null,null,null,null,null,null,null,null,null,0.25]
[null,"1/2 NECK CIRCUMFERENCE","1/2 NECK CIRCUMFERENCE","1/2 NECK CIRCUMFERENCE","1/2 NECK CIRCUMFERENCE","1/2 NECK CIRCUMFERENCE","1/2 NECK CIRCUMFERENCE","1/2 NECK CIRCUMFERENCE","1/2 NECK CIRCUMFERENCE","1/2 NECK CIRCUMFERENCE","1/2 NECK CIRCUMFERENCE","1/2 NECK CIRCUMFERENCE","1/2 NECK CIRCUMFERENCE","1/2 NECK CIRCUMFERENCE","1/2 NECK CIRCUMFERENCE",null,null,null,null,null,null,null,null,null,null,null,null,null,null,null,null,null,0.25]
[null,"COLLAR DEPTH ( AT C.B. NECK )","COLLAR DEPTH ( AT C.B. NECK )","COLLAR DEPTH ( AT C.B. NECK )","COLLAR DEPTH ( AT C.B. NECK )","COLLAR DEPTH ( AT C.B. NECK )","COLLAR DEPTH ( AT C.B. NECK )","COLLAR DEPTH ( AT C.B. NECK )","COLLAR DEPTH ( AT C.B. NECK )","COLLAR DEPTH ( AT C.B. NECK )","COLLAR DEPTH ( AT C.B. NECK )","COLLAR DEPTH ( AT C.B. NECK )","COLLAR DEPTH ( AT C.B. NECK )","COLLAR DEPTH ( AT C.B. NECK )","COLLAR DEPTH ( AT C.B. NECK )",null,null,null,null,null,null,null,null,null,null,null,null,null,null,null,null,null,0]
[null,"STAND DEPTH","STAND DEPTH","STAND DEPTH","STAND DEPTH","STAND DEPTH","STAND DEPTH","STAND DEPTH","STAND DEPTH","STAND DEPTH","STAND DEPTH","STAND DEPTH","STAND DEPTH","STAND DEPTH","STAND DEPTH",null,null,null,null,null,null,null,null,null,null,null,null,null,null,null,null,null,0]
[null,"COLLAR LENGTH","COLLAR LENGTH","COLLAR LENGTH","COLLAR LENGTH","COLLAR LENGTH","COLLAR LENGTH","COLLAR LENGTH","COLLAR LENGTH","COLLAR LENGTH","COLLAR LENGTH","COLLAR LENGTH","COLLAR LENGTH","COLLAR LENGTH","COLLAR LENGTH",null,null,null,null,null,null,null,null,null,null,null,null,null,null,null,null,null,0.25]
[null,"NECK TRIM DEPTH","NECK TRIM DEPTH","NECK TRIM DEPTH","NECK TRIM DEPTH","NECK TRIM DEPTH","NECK TRIM DEPTH","NECK TRIM DEPTH","NECK TRIM DEPTH","NECK TRIM DEPTH","NECK TRIM DEPTH","NECK TRIM DEPTH","NECK TRIM DEPTH","NECK TRIM DEPTH","NECK TRIM DEPTH",null,null,null,null,null,null,null,null,null,null,null,null,null,null,null,null,null,0]
[null,"CUFF DEPTH","CUFF DEPTH","CUFF DEPTH","CUFF DEPTH","CUFF DEPTH","CUFF DEPTH","CUFF DEPTH","CUFF DEPTH","CUFF DEPTH","CUFF DEPTH","CUFF DEPTH","CUFF DEPTH","CUFF DEPTH","CUFF DEPTH",null,null,null,null,null,null,null,null,null,null,null,null,null,null,null,null,null,0]
[null,"SLEEVE HEM DEPTH","SLEEVE HEM DEPTH","SLEEVE HEM DEPTH","SLEEVE HEM DEPTH","SLEEVE HEM DEPTH","SLEEVE HEM DEPTH","SLEEVE HEM DEPTH","SLEEVE HEM DEPTH","SLEEVE HEM DEPTH","SLEEVE HEM DEPTH","SLEEVE HEM DEPTH","SLEEVE HEM DEPTH","SLEEVE HEM DEPTH","SLEEVE HEM DEPTH",null,null,null,null,null,null,null,null,null,null,null,null,null,null,null,null,null,0]
[null,"BOTTOM HEM DEPTH","BOTTOM HEM DEPTH","BOTTOM HEM DEPTH","BOTTOM HEM DEPTH","BOTTOM HEM DEPTH","BOTTOM HEM DEPTH","BOTTOM HEM DEPTH","BOTTOM HEM DEPTH","BOTTOM HEM DEPTH","BOTTOM HEM DEPTH","BOTTOM HEM DEPTH","BOTTOM HEM DEPTH","BOTTOM HEM DEPTH","BOTTOM HEM DEPTH",null,null,null,null,null,null,null,null,null,null,null,null,null,null,null,null,null,0]
[null,"HSP TO BUST POINT","HSP TO BUST POINT","HSP TO BUST POINT","HSP TO BUST POINT","HSP TO BUST POINT","HSP TO BUST POINT","HSP TO BUST POINT","HSP TO BUST POINT","HSP TO BUST POINT","HSP TO BUST POINT","HSP TO BUST POINT","HSP TO BUST POINT","HSP TO BUST POINT","HSP TO BUST POINT",null,null,null,null,null,null,null,null,null,null,null,null,null,null,null,null,null,0]
[]
[]
[]
[]
[null,"Sample Approved?"]
[null,"If sample is NOT approved, then submit 2nd Pre-Production Samples. If sample is APPROVED, then submit Production Samples."]

{"sheet":"PreProduction Photo Comments","index":21,"n_rows":15,"n_cols":40,"rows_kept":15,"cut":false,"hidden":true,"merged":[[5,16,5,34],[7,1,7,18],[7,19,7,22],[7,23,7,31],[1,16,1,22],[2,16,2,34],[3,16,3,22],[3,30,3,34],[4,16,4,22],[4,29,4,34]]}
[]
[null,null,null,null,null,null,null,null,null,null,null,"Create Date:",null,null,null,null,{"$f":"'ORIGINAL PHOTO'!Q2:W2","v":"MARCH 15/2017"}]
[null,null,null,null,null,null,null,null,null,null,null,"Vendor Name:",null,null,null,null,{"$f":"'ORIGINAL PHOTO'!Q3:AI3","v":0}]
[null,null,null,null,null,null,null,null,null,null,null,"Vndr.Item No.:",null,null,null,null,{"$f":"'ORIGINAL PHOTO'!Q4:W4","v":0},null,null,null,null,null,null,null,null,null,"GC Item No.:",null,null,null,{"$f":"'ORIGINAL PHOTO'!AE4:AI4","v":0}]
[null,null,null,null,null,null,null,null,null,null,null,"Size Range:",null,null,null,null,{"$f":"'ORIGINAL PHOTO'!Q5:W5","v":"S-M-L-XL"},null,null,null,null,null,null,null,null,null,"Season:",null,null,{"$f":"'ORIGINAL PHOTO'!AD5:AI5","v":"Spring Summer 2018"}]
[null,null,null,null,null,null,null,null,null,null,null,"Description:",null,null,null,null,{"$f":"'ORIGINAL PHOTO'!Q6:AI6","v":"MEN'S LONG SLEEVE ZIP FRONT SCOOP HEM HOODIE WITH LINED HOOD"}]
[]
[null,"PRE-PRODUCTION PHOTO COMMENTS-- MEN'S TOP",null,null,null,null,null,null,null,null,null,null,null,null,null,null,null,null,null,"Date:",null,null,null,null,null,null,null,null,null,null,null,null,null,null,null,null,null,null,null,"L"]
[null,null,null,null,null,null,null,null,null,null,null,null,null,null,null,null,null,null,null,null,null,null,null,null,null,null,null,null,null,null,null,null,null,null,null,null,null,null,null,"LXL"]
[null,null,null,null,null,null,null,null,null,null,null,null,null,null,null,null,null,null,null,null,null,null,null,null,null,null,null,null,null,null,null,null,null,null,null,null,null,null,null,"M"]
[null,null,null,null,null,null,null,null,null,null,null,null,null,null,null,null,null,null,null,null,null,null,null,null,null,null,null,null,null,null,null,null,null,null,null,null,null,null,null,"S"]
[null,null,null,null,null,null,null,null,null,null,null,null,null,null,null,null,null,null,null,null,null,null,null,null,null,null,null,null,null,null,null,null,null,null,null,null,null,null,null,"SM"]
[null,null,null,null,null,null,null,null,null,null,null,null,null,null,null,null,null,null,null,null,null,null,null,null,null,null,null,null,null,null,null,null,null,null,null,null,null,null,null,"XL"]
[null,null,null,null,null,null,null,null,null,null,null,null,null,null,null,null,null,null,null,null,null,null,null,null,null,null,null,null,null,null,null,null,null,null,null,null,null,null,null,"XXL"]
[null,null,null,null,null,null,null,null,null,null,null,null,null,null,null,null,null,null,null,null,null,null,null,null,null,null,null,null,null,null,null,null,null,null,null,null,null,null,null,"XXXL"]

{"sheet":"Production Comments","index":22,"n_rows":53,"n_cols":41,"rows_kept":53,"cut":false,"hidden":true,"merged":[[50,15,50,16],[50,17,50,18],[50,19,50,20],[50,21,50,22],[50,23,50,24],[50,25,50,26],[50,27,50,28],[50,29,50,30],[50,31,50,32],[49,15,49,16],[49,17,49,18],[49,19,49,20],[49,21,49,22],[49,23,49,24],[49,25,49,26],[49,27,49,28],[49,29,49,30],[49,31,49,32],[48,15,48,16],[48,17,48,18],[48,19,48,20],[48,21,48,22],[48,23,48,24],[48,25,48,26],[48,27,48,28],[48,29,48,30],[48,31,48,32],[47,15,47,16],[47,17,47,18],[47,19,47,20],[47,21,47,22],[47,23,47,24],[47,25,47,26],[47,27,47,28],[47,29,47,30],[47,31,47,32],[46,15,46,16],[46,17,46,18],[46,19,46,20],[46,21,46,22],[46,23,46,24],[46,25,46,26],[46,27,46,28],[46,29,46,30],[46,31,46,32],[45,15,45,16],[45,17,45,18],[45,19,45,20],[45,21,45,22],[45,23,45,24],[45,25,45,26],[45,27,45,28],[45,29,45,30],[45,31,45,32],[44,15,44,16],[44,17,44,18],[44,19,44,20],[44,21,44,22],[44,23,44,24],[44,25,44,26],[44,27,44,28],[44,29,44,30],[44,31,44,32],[43,15,43,16],[43,17,43,18],[43,19,43,20],[43,21,43,22],[43,23,43,24],[43,25,43,26],[43,27,43,28],[43,29,43,30],[43,31,43,32],[42,15,42,16],[42,17,42,18],[42,19,42,20],[42,21,42,22],[42,23,42,24],[42,25,42,26],[42,27,42,28],[42,29,42,30],[42,31,42,32],[41,15,41,16],[41,17,41,18],[41,19,41,20],[41,21,41,22],[41,23,41,24],[41,25,41,26],[41,27,41,28],[41,29,41,30],[41,31,41,32],[40,15,40,16],[40,17,40,18],[40,19,40,20],[40,21,40,22],[40,23,40,24],[40,25,40,26],[40,27,40,28],[40,29,40,30],[40,31,40,32],[39,15,39,16],[39,17,39,18],[39,19,39,20],[39,21,39,22],[39,23,39,24],[39,25,39,26],[39,27,39,28],[39,29,39,30],[39,31,39,32],[38,15,38,16],[38,17,38,18],[38,19,38,20],[38,21,38,22],[38,23,38,24],[38,25,38,26],[38,27,38,28],[38,29,38,30],[38,31,38,32],[36,21,36,22],[36,23,36,24],[36,25,36,26],[36,27,36,28],[36,29,36,30],[36,31,36,32],[37,15,37,16],[37,17,37,18],[37,19,37,20],[37,21,37,22],[37,23,37,24],[37,25,37,26],[37,27,37,28],[37,29,37,30],[37,31,37,32],[34,15,34,16],[34,17,34,18],[34,19,34,20],[34,21,34,22],[34,23,34,24],[34,25,34,26],[34,27,34,28],[34,29,34,30],[34,31,34,32],[33,15,33,16],[33,17,33,18],[33,19,33,20],[33,21,33,22],[33,23,33,24],[33,25,33,26],[33,27,33,28],[33,29,33,30],[33,31,33,32],[32,15,32,16],[32,17,32,18],[32,19,32,20],[32,21,32,22],[32,23,32,24],[32,25,32,26],[32,27,32,28],[32,29,32,30],[32,31,32,32],[30,21,30,22],[30,23,30,24],[30,25,30,26],[30,27,30,28],[30,29,30,30],[30,31,30,32],[31,15,31,16],[31,17,31,18],[31,19,31,20],[31,21,31,22],[31,23,31,24],[31,25,31,26],[31,27,31,28],[31,29,31,30],[31,31,31,32],[28,15,28,16],[28,17,28,18],[28,19,28,20],[28,21,28,22],[28,23,28,24],[28,25,28,26],[28,27,28,28],[28,29,28,30],[28,31,28,32],[27,15,27,16],[27,17,27,18],[27,19,27,20],[27,21,27,22],[27,23,27,24],[27,25,27,26],[27,27,27,28],[27,29,27,30],[27,31,27,32],[26,15,26,16],[26,17,26,18],[26,19,26,20],[26,21,26,22],[26,23,26,24],[26,25,26,26],[26,27,26,28],[26,29,26,30],[26,31,26,32],[24,21,24,22],[24,23,24,24],[24,25,24,26],[24,27,24,28],[24,29,24,30],[24,31,24,32],[25,15,25,16],[25,17,25,18],[25,19,25,20],[25,21,25,22],[25,23,25,24],[25,25,25,26],[25,27,25,28],[25,29,25,30],[25,31,25,32],[22,15,22,16],[22,17,22,18],[22,19,22,20],[22,21,22,22],[22,23,22,24],[22,25,22,26],[22,27,22,28],[22,29,22,30],[22,31,22,32],[21,15,21,16],[21,17,21,18],[21,19,21,20],[21,21,21,22],[21,23,21,24],[21,25,21,26],[21,27,21,28],[21,29,21,30],[21,31,21,32],[20,15,20,16],[20,17,20,18],[20,19,20,20],[20,21,20,22],[20,23,20,24],[20,25,20,26],[20,27,20,28],[20,29,20,30],[20,31,20,32],[18,21,18,22],[18,23,18,24],[18,25,18,26],[18,27,18,28],[18,29,18,30],[18,31,18,32],[19,15,19,16],[19,17,19,18],[19,19,19,20],[19,21,19,22],[19,23,19,24],[19,25,19,26],[19,27,19,28],[19,29,19,30],[19,31,19,32],[16,15,16,16],[16,17,16,18],[16,19,16,20],[16,21,16,22],[16,23,16,24],[16,25,16,26],[16,27,16,28],[16,29,16,30],[16,31,16,32],[15,15,15,16],[15,17,15,18],[15,19,15,20],[15,21,15,22],[15,23,15,24],[15,25,15,26],[15,27,15,28],[15,29,15,30],[15,31,15,32],[14,15,14,16],[14,17,14,18],[14,19,14,20],[14,21,14,22],[14,23,14,24],[14,25,14,26],[14,27,14,28],[14,29,14,30],[14,31,14,32],[12,21,12,22],[12,23,12,24],[12,25,12,26],[12,27,12,28],[12,29,12,30],[12,31,12,32],[13,15,13,16],[13,17,13,18],[13,19,13,20],[13,21,13,22],[13,23,13,24],[13,25,13,26],[13,27,13,28],[13,29,13,30],[13,31,13,32],[1,16,1,22],[2,16,2,35],[3,16,3,22],[3,30,3,35],[4,16,4,22],[8,25,9,26],[8,27,9,28],[8,29,9,30],[8,33,9,35],[4,29,4,35],[10,1,10,14],[10,33,10,35],[5,16,5,35],[7,1,7,18],[7,19,7,22],[7,23,7,32],[8,1,9,14],[8,15,9,16],[8,17,9,18],[8,23,9,24],[10,15,10,16],[10,17,10,18],[10,19,10,20],[10,21,10,22],[10,23,10,24],[10,25,10,26],[10,27,10,28],[10,29,10,30],[10,31,10,32],[14,1,14,14],[14,33,14,35],[15,1,15,14],[15,33,15,35],[16,1,16,14],[16,33,16,35],[11,1,11,14],[11,33,11,35],[12,1,12,14],[12,33,12,35],[13,1,13,14],[13,33,13,35],[11,15,11,16],[11,17,11,18],[11,19,11,20],[11,21,11,22],[11,23,11,24],[11,25,11,26],[11,27,11,28],[11,29,11,30],[11,31,11,32],[12,15,12,16],[12,17,12,18],[12,19,12,20],[20,1,20,14],[20,33,20,35],[21,1,21,14],[21,33,21,35],[22,1,22,14],[22,33,22,35],[17,1,17,14],[17,33,17,35],[18,1,18,14],[18,33,18,35],[19,1,19,14],[19,33,19,35],[17,15,17,16],[17,17,17,18],[17,19,17,20],[17,21,17,22],[17,23,17,24],[17,25,17,26],[17,27,17,28],[17,29,17,30],[17,31,17,32],[18,15,18,16],[18,17,18,18],[18,19,18,20],[26,1,26,14],[26,33,26,35],[27,1,27,14],[27,33,27,35],[28,1,28,14],[28,33,28,35],[23,1,23,14],[23,33,23,35],[24,1,24,14],[24,33,24,35],[25,1,25,14],[25,33,25,35],[23,15,23,16],[23,17,23,18],[23,19,23,20],[23,21,23,22],[23,23,23,24],[23,25,23,26],[23,27,23,28],[23,29,23,30],[23,31,23,32],[24,15,24,16],[24,17,24,18],[24,19,24,20],[32,1,32,14],[32,33,32,35],[33,1,33,14],[33,33,33,35],[34,1,34,14],[34,33,34,35],[29,1,29,14],[29,33,29,35],[30,1,30,14],[30,33,30,35],[31,1,31,14],[31,33,31,35],[29,15,29,16],[29,17,29,18],[29,19,29,20],[29,21,29,22],[29,23,29,24],[29,25,29,26],[29,27,29,28],[29,29,29,30],[29,31,29,32],[30,15,30,16],[30,17,30,18],[30,19,30,20],[38,1,38,14],[38,33,38,35],[39,1,39,14],[39,33,39,35],[40,1,40,14],[40,33,40,35],[35,1,35,14],[35,33,35,35],[36,1,36,14],[36,33,36,35],[37,1,37,14],[37,33,37,35],[35,15,35,16],[35,17,35,18],[35,19,35,20],[35,21,35,22],[35,23,35,24],[35,25,35,26],[35,27,35,28],[35,29,35,30],[35,31,35,32],[36,15,36,16],[36,17,36,18],[36,19,36,20],[50,1,50,14],[50,33,50,35],[52,1,52,35],[8,19,9,20],[8,21,9,22],[8,31,9,32],[47,1,47,14],[47,33,47,35],[48,1,48,14],[48,33,48,35],[49,1,49,14],[49,33,49,35],[44,1,44,14],[44,33,44,35],[45,1,45,14],[45,33,45,35],[46,1,46,14],[46,33,46,35],[41,1,41,14],[41,33,41,35],[42,1,42,14],[42,33,42,35],[43,1,43,14],[43,33,43,35]]}
[]
[null,null,null,null,null,null,null,null,null,null,null,"Create Date:",null,null,null,null,{"$f":"'ORIGINAL PHOTO'!Q2:W2","v":"MARCH 15/2017"}]
[null,null,null,null,null,null,null,null,null,null,null,"Vendor Name:",null,null,null,null,{"$f":"'ORIGINAL PHOTO'!Q3:AI3","v":0}]
[null,null,null,null,null,null,null,null,null,null,null,"Vndr.Item No.:",null,null,null,null,{"$f":"'ORIGINAL PHOTO'!Q4:W4","v":0},null,null,null,null,null,null,null,null,null,"GC Item No.:",null,null,null,{"$f":"'ORIGINAL PHOTO'!AE4:AI4","v":0}]
[null,null,null,null,null,null,null,null,null,null,null,"Size Range:",null,null,null,null,{"$f":"'ORIGINAL PHOTO'!Q5:W5","v":"S-M-L-XL"},null,null,null,null,null,null,null,null,null,"Season:",null,null,{"$f":"'ORIGINAL PHOTO'!AD5:AI5","v":"Spring Summer 2018"}]
[null,null,null,null,null,null,null,null,null,null,null,"Description:"]
[]
[null,"PRODUCTION COMMENTS -- MEN'S TOP",null,null,null,null,null,null,null,null,null,null,null,null,null,null,null,null,null,"Date:",null,null,null,null,null,null,null,null,null,null,null,null,null,null,null,null,null,null,null,null,"L"]
[null,"(Measurements on flat / inches)",null,null,null,null,null,null,null,null,null,null,null,null,null,"S",null,"1st\nColour",null,"2nd\nColour",null,"3rd\nColour",null,"4th\nColour",null,"5th\nColour",null,"6th\nColour",null,"7th\nColour",null,"8th\nColour",null,"Tolerance\n+ / -\n(on flat)",null,null,null,null,null,null,"LXL"]
[null,null,null,null,null,null,null,null,null,null,null,null,null,null,null,null,null,null,null,null,null,null,null,null,null,null,null,null,null,null,null,null,null,null,null,null,null,null,null,null,"M"]
[null,"BACK LENGTH FROM (HIGH SHOULDER POINT)","BACK LENGTH FROM (HIGH SHOULDER POINT)","BACK LENGTH FROM (HIGH SHOULDER POINT)","BACK LENGTH FROM (HIGH SHOULDER POINT)","BACK LENGTH FROM (HIGH SHOULDER POINT)","BACK LENGTH FROM (HIGH SHOULDER POINT)","BACK LENGTH FROM (HIGH SHOULDER POINT)","BACK LENGTH FROM (HIGH SHOULDER POINT)","BACK LENGTH FROM (HIGH SHOULDER POINT)","BACK LENGTH FROM (HIGH SHOULDER POINT)","BACK LENGTH FROM (HIGH SHOULDER POINT)","BACK LENGTH FROM (HIGH SHOULDER POINT)","BACK LENGTH FROM (HIGH SHOULDER POINT)","BACK LENGTH FROM (HIGH SHOULDER POINT)",null,null,null,null,null,null,null,null,null,null,null,null,null,null,null,null,null,null,0.375,null,null,null,null,null,null,"S"]
[null,"CENTER BACK LENGTH ( FROM NECK TO HEM )","CENTER BACK LENGTH ( FROM NECK TO HEM )","CENTER BACK LENGTH ( FROM NECK TO HEM )","CENTER BACK LENGTH ( FROM NECK TO HEM )","CENTER BACK LENGTH ( FROM NECK TO HEM )","CENTER BACK LENGTH ( FROM NECK TO HEM )","CENTER BACK LENGTH ( FROM NECK TO HEM )","CENTER BACK LENGTH ( FROM NECK TO HEM )","CENTER BACK LENGTH ( FROM NECK TO HEM )","CENTER BACK LENGTH ( FROM NECK TO HEM )","CENTER BACK LENGTH ( FROM NECK TO HEM )","CENTER BACK LENGTH ( FROM NECK TO HEM )","CENTER BACK LENGTH ( FROM NECK TO HEM )","CENTER BACK LENGTH ( FROM NECK TO HEM )",null,null,null,null,null,null,null,null,null,null,null,null,null,null,null,null,null,null,0.375,null,null,null,null,null,null,"SM"]
[null,"FRONT LENGTH FROM (HIGH SHOULDER POINT)","FRONT LENGTH FROM (HIGH SHOULDER POINT)","FRONT LENGTH FROM (HIGH SHOULDER POINT)","FRONT LENGTH FROM (HIGH SHOULDER POINT)","FRONT LENGTH FROM (HIGH SHOULDER POINT)","FRONT LENGTH FROM (HIGH SHOULDER POINT)","FRONT LENGTH FROM (HIGH SHOULDER POINT)","FRONT LENGTH FROM (HIGH SHOULDER POINT)","FRONT LENGTH FROM (HIGH SHOULDER POINT)","FRONT LENGTH FROM (HIGH SHOULDER POINT)","FRONT LENGTH FROM (HIGH SHOULDER POINT)","FRONT LENGTH FROM (HIGH SHOULDER POINT)","FRONT LENGTH FROM (HIGH SHOULDER POINT)","FRONT LENGTH FROM (HIGH SHOULDER POINT)",null,null,null,null,null,null,null,null,null,null,null,null,null,null,null,null,null,null,0.375,null,null,null,null,null,null,"XL"]
[null,"FRONT LENGTH (FROM CENTRE FRONT NECK TO HEM)","FRONT LENGTH (FROM CENTRE FRONT NECK TO HEM)","FRONT LENGTH (FROM CENTRE FRONT NECK TO HEM)","FRONT LENGTH (FROM CENTRE FRONT NECK TO HEM)","FRONT LENGTH (FROM CENTRE FRONT NECK TO HEM)","FRONT LENGTH (FROM CENTRE FRONT NECK TO HEM)","FRONT LENGTH (FROM CENTRE FRONT NECK TO HEM)","FRONT LENGTH (FROM CENTRE FRONT NECK TO HEM)","FRONT LENGTH (FROM CENTRE FRONT NECK TO HEM)","FRONT LENGTH (FROM CENTRE FRONT NECK TO HEM)","FRONT LENGTH (FROM CENTRE FRONT NECK TO HEM)","FRONT LENGTH (FROM CENTRE FRONT NECK TO HEM)","FRONT LENGTH (FROM CENTRE FRONT NECK TO HEM)","FRONT LENGTH (FROM CENTRE FRONT NECK TO HEM)",null,null,null,null,null,null,null,null,null,null,null,null,null,null,null,null,null,null,0.375,null,null,null,null,null,null,"XXL"]
[null,"CHEST (1\" BELOW ARMHOLE)","CHEST (1\" BELOW ARMHOLE)","CHEST (1\" BELOW ARMHOLE)","CHEST (1\" BELOW ARMHOLE)","CHEST (1\" BELOW ARMHOLE)","CHEST (1\" BELOW ARMHOLE)","CHEST (1\" BELOW ARMHOLE)","CHEST (1\" BELOW ARMHOLE)","CHEST (1\" BELOW ARMHOLE)","CHEST (1\" BELOW ARMHOLE)","CHEST (1\" BELOW ARMHOLE)","CHEST (1\" BELOW ARMHOLE)","CHEST (1\" BELOW ARMHOLE)","CHEST (1\" BELOW ARMHOLE)",null,null,null,null,null,null,null,null,null,null,null,null,null,null,null,null,null,null,0.375,null,null,null,null,null,null,"XXXL"]
[null,"WAIST (16 1/2\" BELOW HIGH SHOULDER POINT)","WAIST (16 1/2\" BELOW HIGH SHOULDER POINT)","WAIST (16 1/2\" BELOW HIGH SHOULDER POINT)","WAIST (16 1/2\" BELOW HIGH SHOULDER POINT)","WAIST (16 1/2\" BELOW HIGH SHOULDER POINT)","WAIST (16 1/2\" BELOW HIGH SHOULDER POINT)","WAIST (16 1/2\" BELOW HIGH SHOULDER POINT)","WAIST (16 1/2\" BELOW HIGH SHOULDER POINT)","WAIST (16 1/2\" BELOW HIGH SHOULDER POINT)","WAIST (16 1/2\" BELOW HIGH SHOULDER POINT)","WAIST (16 1/2\" BELOW HIGH SHOULDER POINT)","WAIST (16 1/2\" BELOW HIGH SHOULDER POINT)","WAIST (16 1/2\" BELOW HIGH SHOULDER POINT)","WAIST (16 1/2\" BELOW HIGH SHOULDER POINT)",null,null,null,null,null,null,null,null,null,null,null,null,null,null,null,null,null,null,0.375]
[null,"TOP HIP ( 3\" BELOW WAIST )","TOP HIP ( 3\" BELOW WAIST )","TOP HIP ( 3\" BELOW WAIST )","TOP HIP ( 3\" BELOW WAIST )","TOP HIP ( 3\" BELOW WAIST )","TOP HIP ( 3\" BELOW WAIST )","TOP HIP ( 3\" BELOW WAIST )","TOP HIP ( 3\" BELOW WAIST )","TOP HIP ( 3\" BELOW WAIST )","TOP HIP ( 3\" BELOW WAIST )","TOP HIP ( 3\" BELOW WAIST )","TOP HIP ( 3\" BELOW WAIST )","TOP HIP ( 3\" BELOW WAIST )","TOP HIP ( 3\" BELOW WAIST )",null,null,null,null,null,null,null,null,null,null,null,null,null,null,null,null,null,null,0.375]
[null,"LOW HIP ( 8\" BELOW WAIST)","LOW HIP ( 8\" BELOW WAIST)","LOW HIP ( 8\" BELOW WAIST)","LOW HIP ( 8\" BELOW WAIST)","LOW HIP ( 8\" BELOW WAIST)","LOW HIP ( 8\" BELOW WAIST)","LOW HIP ( 8\" BELOW WAIST)","LOW HIP ( 8\" BELOW WAIST)","LOW HIP ( 8\" BELOW WAIST)","LOW HIP ( 8\" BELOW WAIST)","LOW HIP ( 8\" BELOW WAIST)","LOW HIP ( 8\" BELOW WAIST)","LOW HIP ( 8\" BELOW WAIST)","LOW HIP ( 8\" BELOW WAIST)",null,null,null,null,null,null,null,null,null,null,null,null,null,null,null,null,null,null,0.375]
[null,"HEM STRAIGHT","HEM STRAIGHT","HEM STRAIGHT","HEM STRAIGHT","HEM STRAIGHT","HEM STRAIGHT","HEM STRAIGHT","HEM STRAIGHT","HEM STRAIGHT","HEM STRAIGHT","HEM STRAIGHT","HEM STRAIGHT","HEM STRAIGHT","HEM STRAIGHT",null,null,null,null,null,null,null,null,null,null,null,null,null,null,null,null,null,null,0.375]
[null,"HEM CURVE (FOLLOW)","HEM CURVE (FOLLOW)","HEM CURVE (FOLLOW)","HEM CURVE (FOLLOW)","HEM CURVE (FOLLOW)","HEM CURVE (FOLLOW)","HEM CURVE (FOLLOW)","HEM CURVE (FOLLOW)","HEM CURVE (FOLLOW)","HEM CURVE (FOLLOW)","HEM CURVE (FOLLOW)","HEM CURVE (FOLLOW)","HEM CURVE (FOLLOW)","HEM CURVE (FOLLOW)",null,null,null,null,null,null,null,null,null,null,null,null,null,null,null,null,null,null,0.375]
[null,"ACROSS SHOULDERS ( TOTAL )","ACROSS SHOULDERS ( TOTAL )","ACROSS SHOULDERS ( TOTAL )","ACROSS SHOULDERS ( TOTAL )","ACROSS SHOULDERS ( TOTAL )","ACROSS SHOULDERS ( TOTAL )","ACROSS SHOULDERS ( TOTAL )","ACROSS SHOULDERS ( TOTAL )","ACROSS SHOULDERS ( TOTAL )","ACROSS SHOULDERS ( TOTAL )","ACROSS SHOULDERS ( TOTAL )","ACROSS SHOULDERS ( TOTAL )","ACROSS SHOULDERS ( TOTAL )","ACROSS SHOULDERS ( TOTAL )",null,null,null,null,null,null,null,null,null,null,null,null,null,null,null,null,null,null,0.375]
[null,"SHOULDER LENGTH AT SEAM","SHOULDER LENGTH AT SEAM","SHOULDER LENGTH AT SEAM","SHOULDER LENGTH AT SEAM","SHOULDER LENGTH AT SEAM","SHOULDER LENGTH AT SEAM","SHOULDER LENGTH AT SEAM","SHOULDER LENGTH AT SEAM","SHOULDER LENGTH AT SEAM","SHOULDER LENGTH AT SEAM","SHOULDER LENGTH AT SEAM","SHOULDER LENGTH AT SEAM","SHOULDER LENGTH AT SEAM","SHOULDER LENGTH AT SEAM",null,null,null,null,null,null,null,null,null,null,null,null,null,null,null,null,null,null,0.375]
[null,"ACROSS FRONT (5\" BELOW HIGH SHOULDER POINT)","ACROSS FRONT (5\" BELOW HIGH SHOULDER POINT)","ACROSS FRONT (5\" BELOW HIGH SHOULDER POINT)","ACROSS FRONT (5\" BELOW HIGH SHOULDER POINT)","ACROSS FRONT (5\" BELOW HIGH SHOULDER POINT)","ACROSS FRONT (5\" BELOW HIGH SHOULDER POINT)","ACROSS FRONT (5\" BELOW HIGH SHOULDER POINT)","ACROSS FRONT (5\" BELOW HIGH SHOULDER POINT)","ACROSS FRONT (5\" BELOW HIGH SHOULDER POINT)","ACROSS FRONT (5\" BELOW HIGH SHOULDER POINT)","ACROSS FRONT (5\" BELOW HIGH SHOULDER POINT)","ACROSS FRONT (5\" BELOW HIGH SHOULDER POINT)","ACROSS FRONT (5\" BELOW HIGH SHOULDER POINT)","ACROSS FRONT (5\" BELOW HIGH SHOULDER POINT)",null,null,null,null,null,null,null,null,null,null,null,null,null,null,null,null,null,null,0.375]
[null,"ACROSS BACK (5\" BELOW HIGH SHOULDER POINT)","ACROSS BACK (5\" BELOW HIGH SHOULDER POINT)","ACROSS BACK (5\" BELOW HIGH SHOULDER POINT)","ACROSS BACK (5\" BELOW HIGH SHOULDER POINT)","ACROSS BACK (5\" BELOW HIGH SHOULDER POINT)","ACROSS BACK (5\" BELOW HIGH SHOULDER POINT)","ACROSS BACK (5\" BELOW HIGH SHOULDER POINT)","ACROSS BACK (5\" BELOW HIGH SHOULDER POINT)","ACROSS BACK (5\" BELOW HIGH SHOULDER POINT)","ACROSS BACK (5\" BELOW HIGH SHOULDER POINT)","ACROSS BACK (5\" BELOW HIGH SHOULDER POINT)","ACROSS BACK (5\" BELOW HIGH SHOULDER POINT)","ACROSS BACK (5\" BELOW HIGH SHOULDER POINT)","ACROSS BACK (5\" BELOW HIGH SHOULDER POINT)",null,null,null,null,null,null,null,null,null,null,null,null,null,null,null,null,null,null,0.25]
[null,"OVERARM (FROM SLEEVE CAP TO HEM)-SHORT SLEEVE","OVERARM (FROM SLEEVE CAP TO HEM)-SHORT SLEEVE","OVERARM (FROM SLEEVE CAP TO HEM)-SHORT SLEEVE","OVERARM (FROM SLEEVE CAP TO HEM)-SHORT SLEEVE","OVERARM (FROM SLEEVE CAP TO HEM)-SHORT SLEEVE","OVERARM (FROM SLEEVE CAP TO HEM)-SHORT SLEEVE","OVERARM (FROM SLEEVE CAP TO HEM)-SHORT SLEEVE","OVERARM (FROM SLEEVE CAP TO HEM)-SHORT SLEEVE","OVERARM (FROM SLEEVE CAP TO HEM)-SHORT SLEEVE","OVERARM (FROM SLEEVE CAP TO HEM)-SHORT SLEEVE","OVERARM (FROM SLEEVE CAP TO HEM)-SHORT SLEEVE","OVERARM (FROM SLEEVE CAP TO HEM)-SHORT SLEEVE","OVERARM (FROM SLEEVE CAP TO HEM)-SHORT SLEEVE","OVERARM (FROM SLEEVE CAP TO HEM)-SHORT SLEEVE",null,null,null,null,null,null,null,null,null,null,null,null,null,null,null,null,null,null,0.25]
[null,"OVERARM (FROM SLEEVE CAP TO HEM)- 3/4 SLEEVE","OVERARM (FROM SLEEVE CAP TO HEM)- 3/4 SLEEVE","OVERARM (FROM SLEEVE CAP TO HEM)- 3/4 SLEEVE","OVERARM (FROM SLEEVE CAP TO HEM)- 3/4 SLEEVE","OVERARM (FROM SLEEVE CAP TO HEM)- 3/4 SLEEVE","OVERARM (FROM SLEEVE CAP TO HEM)- 3/4 SLEEVE","OVERARM (FROM SLEEVE CAP TO HEM)- 3/4 SLEEVE","OVERARM (FROM SLEEVE CAP TO HEM)- 3/4 SLEEVE","OVERARM (FROM SLEEVE CAP TO HEM)- 3/4 SLEEVE","OVERARM (FROM SLEEVE CAP TO HEM)- 3/4 SLEEVE","OVERARM (FROM SLEEVE CAP TO HEM)- 3/4 SLEEVE","OVERARM (FROM SLEEVE CAP TO HEM)- 3/4 SLEEVE","OVERARM (FROM SLEEVE CAP TO HEM)- 3/4 SLEEVE","OVERARM (FROM SLEEVE CAP TO HEM)- 3/4 SLEEVE",null,null,null,null,null,null,null,null,null,null,null,null,null,null,null,null,null,null,0.375]
[null,"OVERARM (FROM SLEEVE CAP TO HEM)- LONG SLEEVE","OVERARM (FROM SLEEVE CAP TO HEM)- LONG SLEEVE","OVERARM (FROM SLEEVE CAP TO HEM)- LONG SLEEVE","OVERARM (FROM SLEEVE CAP TO HEM)- LONG SLEEVE","OVERARM (FROM SLEEVE CAP TO HEM)- LONG SLEEVE","OVERARM (FROM SLEEVE CAP TO HEM)- LONG SLEEVE","OVERARM (FROM SLEEVE CAP TO HEM)- LONG SLEEVE","OVERARM (FROM SLEEVE CAP TO HEM)- LONG SLEEVE","OVERARM (FROM SLEEVE CAP TO HEM)- LONG SLEEVE","OVERARM (FROM SLEEVE CAP TO HEM)- LONG SLEEVE","OVERARM (FROM SLEEVE CAP TO HEM)- LONG SLEEVE","OVERARM (FROM SLEEVE CAP TO HEM)- LONG SLEEVE","OVERARM (FROM SLEEVE CAP TO HEM)- LONG SLEEVE","OVERARM (FROM SLEEVE CAP TO HEM)- LONG SLEEVE",null,null,null,null,null,null,null,null,null,null,null,null,null,null,null,null,null,null,0.25]
[null,"1/2 ARMHOLE STRAIGHT","1/2 ARMHOLE STRAIGHT","1/2 ARMHOLE STRAIGHT","1/2 ARMHOLE STRAIGHT","1/2 ARMHOLE STRAIGHT","1/2 ARMHOLE STRAIGHT","1/2 ARMHOLE STRAIGHT","1/2 ARMHOLE STRAIGHT","1/2 ARMHOLE STRAIGHT","1/2 ARMHOLE STRAIGHT","1/2 ARMHOLE STRAIGHT","1/2 ARMHOLE STRAIGHT","1/2 ARMHOLE STRAIGHT","1/2 ARMHOLE STRAIGHT",null,null,null,null,null,null,null,null,null,null,null,null,null,null,null,null,null,null,0.25]
[null,"BICEP (1\" BELOW ARMHOLE)","BICEP (1\" BELOW ARMHOLE)","BICEP (1\" BELOW ARMHOLE)","BICEP (1\" BELOW ARMHOLE)","BICEP (1\" BELOW ARMHOLE)","BICEP (1\" BELOW ARMHOLE)","BICEP (1\" BELOW ARMHOLE)","BICEP (1\" BELOW ARMHOLE)","BICEP (1\" BELOW ARMHOLE)","BICEP (1\" BELOW ARMHOLE)","BICEP (1\" BELOW ARMHOLE)","BICEP (1\" BELOW ARMHOLE)","BICEP (1\" BELOW ARMHOLE)","BICEP (1\" BELOW ARMHOLE)",null,null,null,null,null,null,null,null,null,null,null,null,null,null,null,null,null,null,0.25]
[null,"ELBOW (8 1/2\" BELOW ARMHOLE)","ELBOW (8 1/2\" BELOW ARMHOLE)","ELBOW (8 1/2\" BELOW ARMHOLE)","ELBOW (8 1/2\" BELOW ARMHOLE)","ELBOW (8 1/2\" BELOW ARMHOLE)","ELBOW (8 1/2\" BELOW ARMHOLE)","ELBOW (8 1/2\" BELOW ARMHOLE)","ELBOW (8 1/2\" BELOW ARMHOLE)","ELBOW (8 1/2\" BELOW ARMHOLE)","ELBOW (8 1/2\" BELOW ARMHOLE)","ELBOW (8 1/2\" BELOW ARMHOLE)","ELBOW (8 1/2\" BELOW ARMHOLE)","ELBOW (8 1/2\" BELOW ARMHOLE)","ELBOW (8 1/2\" BELOW ARMHOLE)",null,null,null,null,null,null,null,null,null,null,null,null,null,null,null,null,null,null,0.25]
[null,"SHORT SLEEVE OPENING","SHORT SLEEVE OPENING","SHORT SLEEVE OPENING","SHORT SLEEVE OPENING","SHORT SLEEVE OPENING","SHORT SLEEVE OPENING","SHORT SLEEVE OPENING","SHORT SLEEVE OPENING","SHORT SLEEVE OPENING","SHORT SLEEVE OPENING","SHORT SLEEVE OPENING","SHORT SLEEVE OPENING","SHORT SLEEVE OPENING","SHORT SLEEVE OPENING",null,null,null,null,null,null,null,null,null,null,null,null,null,null,null,null,null,null,0.25]
[null,"3/4 SLEEVE OPENING","3/4 SLEEVE OPENING","3/4 SLEEVE OPENING","3/4 SLEEVE OPENING","3/4 SLEEVE OPENING","3/4 SLEEVE OPENING","3/4 SLEEVE OPENING","3/4 SLEEVE OPENING","3/4 SLEEVE OPENING","3/4 SLEEVE OPENING","3/4 SLEEVE OPENING","3/4 SLEEVE OPENING","3/4 SLEEVE OPENING","3/4 SLEEVE OPENING",null,null,null,null,null,null,null,null,null,null,null,null,null,null,null,null,null,null,0.25]
[null,"LONG SLEEVE OPENING","LONG SLEEVE OPENING","LONG SLEEVE OPENING","LONG SLEEVE OPENING","LONG SLEEVE OPENING","LONG SLEEVE OPENING","LONG SLEEVE OPENING","LONG SLEEVE OPENING","LONG SLEEVE OPENING","LONG SLEEVE OPENING","LONG SLEEVE OPENING","LONG SLEEVE OPENING","LONG SLEEVE OPENING","LONG SLEEVE OPENING",null,null,null,null,null,null,null,null,null,null,null,null,null,null,null,null,null,null,"1/4"]
[null,"SLEEVE CAP HEIGHT ( FROM TOP OF SLEEVE TO UNDERARM )","SLEEVE CAP HEIGHT ( FROM TOP OF SLEEVE TO UNDERARM )","SLEEVE CAP HEIGHT ( FROM TOP OF SLEEVE TO UNDERARM )","SLEEVE CAP HEIGHT ( FROM TOP OF SLEEVE TO UNDERARM )","SLEEVE CAP HEIGHT ( FROM TOP OF SLEEVE TO UNDERARM )","SLEEVE CAP HEIGHT ( FROM TOP OF SLEEVE TO UNDERARM )","SLEEVE CAP HEIGHT ( FROM TOP OF SLEEVE TO UNDERARM )","SLEEVE CAP HEIGHT ( FROM TOP OF SLEEVE TO UNDERARM )","SLEEVE CAP HEIGHT ( FROM TOP OF SLEEVE TO UNDERARM )","SLEEVE CAP HEIGHT ( FROM TOP OF SLEEVE TO UNDERARM )","SLEEVE CAP HEIGHT ( FROM TOP OF SLEEVE TO UNDERARM )","SLEEVE CAP HEIGHT ( FROM TOP OF SLEEVE TO UNDERARM )","SLEEVE CAP HEIGHT ( FROM TOP OF SLEEVE TO UNDERARM )","SLEEVE CAP HEIGHT ( FROM TOP OF SLEEVE TO UNDERARM )",null,null,null,null,null,null,null,null,null,null,null,null,null,null,null,null,null,null,0]
[null,"SHOULDER SLOPE ( HSP TO SHOULDER ARMHOLE SEAM )","SHOULDER SLOPE ( HSP TO SHOULDER ARMHOLE SEAM )","SHOULDER SLOPE ( HSP TO SHOULDER ARMHOLE SEAM )","SHOULDER SLOPE ( HSP TO SHOULDER ARMHOLE SEAM )","SHOULDER SLOPE ( HSP TO SHOULDER ARMHOLE SEAM )","SHOULDER SLOPE ( HSP TO SHOULDER ARMHOLE SEAM )","SHOULDER SLOPE ( HSP TO SHOULDER ARMHOLE SEAM )","SHOULDER SLOPE ( HSP TO SHOULDER ARMHOLE SEAM )","SHOULDER SLOPE ( HSP TO SHOULDER ARMHOLE SEAM )","SHOULDER SLOPE ( HSP TO SHOULDER ARMHOLE SEAM )","SHOULDER SLOPE ( HSP TO SHOULDER ARMHOLE SEAM )","SHOULDER SLOPE ( HSP TO SHOULDER ARMHOLE SEAM )","SHOULDER SLOPE ( HSP TO SHOULDER ARMHOLE SEAM )","SHOULDER SLOPE ( HSP TO SHOULDER ARMHOLE SEAM )",null,null,null,null,null,null,null,null,null,null,null,null,null,null,null,null,null,null,0]
[null,"NECK WIDTH (HSP TO HSP) ON BACK","NECK WIDTH (HSP TO HSP) ON BACK","NECK WIDTH (HSP TO HSP) ON BACK","NECK WIDTH (HSP TO HSP) ON BACK","NECK WIDTH (HSP TO HSP) ON BACK","NECK WIDTH (HSP TO HSP) ON BACK","NECK WIDTH (HSP TO HSP) ON BACK","NECK WIDTH (HSP TO HSP) ON BACK","NECK WIDTH (HSP TO HSP) ON BACK","NECK WIDTH (HSP TO HSP) ON BACK","NECK WIDTH (HSP TO HSP) ON BACK","NECK WIDTH (HSP TO HSP) ON BACK","NECK WIDTH (HSP TO HSP) ON BACK","NECK WIDTH (HSP TO HSP) ON BACK",null,null,null,null,null,null,null,null,null,null,null,null,null,null,null,null,null,null,0.25]
[null,"FRONT NECK DROP ( FROM HSP TO CENTER FRONT NECK EDGE OR SEAM )","FRONT NECK DROP ( FROM HSP TO CENTER FRONT NECK EDGE OR SEAM )","FRONT NECK DROP ( FROM HSP TO CENTER FRONT NECK EDGE OR SEAM )","FRONT NECK DROP ( FROM HSP TO CENTER FRONT NECK EDGE OR SEAM )","FRONT NECK DROP ( FROM HSP TO CENTER FRONT NECK EDGE OR SEAM )","FRONT NECK DROP ( FROM HSP TO CENTER FRONT NECK EDGE OR SEAM )","FRONT NECK DROP ( FROM HSP TO CENTER FRONT NECK EDGE OR SEAM )","FRONT NECK DROP ( FROM HSP TO CENTER FRONT NECK EDGE OR SEAM )","FRONT NECK DROP ( FROM HSP TO CENTER FRONT NECK EDGE OR SEAM )","FRONT NECK DROP ( FROM HSP TO CENTER FRONT NECK EDGE OR SEAM )","FRONT NECK DROP ( FROM HSP TO CENTER FRONT NECK EDGE OR SEAM )","FRONT NECK DROP ( FROM HSP TO CENTER FRONT NECK EDGE OR SEAM )","FRONT NECK DROP ( FROM HSP TO CENTER FRONT NECK EDGE OR SEAM )","FRONT NECK DROP ( FROM HSP TO CENTER FRONT NECK EDGE OR SEAM )",null,null,null,null,null,null,null,null,null,null,null,null,null,null,null,null,null,null,0.25]
[null,"BACK NECK DROP ( FROM HSP TO CENTER BACK NECK EDGE OR SEAM )","BACK NECK DROP ( FROM HSP TO CENTER BACK NECK EDGE OR SEAM )","BACK NECK DROP ( FROM HSP TO CENTER BACK NECK EDGE OR SEAM )","BACK NECK DROP ( FROM HSP TO CENTER BACK NECK EDGE OR SEAM )","BACK NECK DROP ( FROM HSP TO CENTER BACK NECK EDGE OR SEAM )","BACK NECK DROP ( FROM HSP TO CENTER BACK NECK EDGE OR SEAM )","BACK NECK DROP ( FROM HSP TO CENTER BACK NECK EDGE OR SEAM )","BACK NECK DROP ( FROM HSP TO CENTER BACK NECK EDGE OR SEAM )","BACK NECK DROP ( FROM HSP TO CENTER BACK NECK EDGE OR SEAM )","BACK NECK DROP ( FROM HSP TO CENTER BACK NECK EDGE OR SEAM )","BACK NECK DROP ( FROM HSP TO CENTER BACK NECK EDGE OR SEAM )","BACK NECK DROP ( FROM HSP TO CENTER BACK NECK EDGE OR SEAM )","BACK NECK DROP ( FROM HSP TO CENTER BACK NECK EDGE OR SEAM )","BACK NECK DROP ( FROM HSP TO CENTER BACK NECK EDGE OR SEAM )",null,null,null,null,null,null,null,null,null,null,null,null,null,null,null,null,null,null,0.25]
[null,"1/2 NECK CIRCUMFERENCE","1/2 NECK CIRCUMFERENCE","1/2 NECK CIRCUMFERENCE","1/2 NECK CIRCUMFERENCE","1/2 NECK CIRCUMFERENCE","1/2 NECK CIRCUMFERENCE","1/2 NECK CIRCUMFERENCE","1/2 NECK CIRCUMFERENCE","1/2 NECK CIRCUMFERENCE","1/2 NECK CIRCUMFERENCE","1/2 NECK CIRCUMFERENCE","1/2 NECK CIRCUMFERENCE","1/2 NECK CIRCUMFERENCE","1/2 NECK CIRCUMFERENCE",null,null,null,null,null,null,null,null,null,null,null,null,null,null,null,null,null,null,0.25]
[null,"COLLAR DEPTH ( AT C.B. NECK )","COLLAR DEPTH ( AT C.B. NECK )","COLLAR DEPTH ( AT C.B. NECK )","COLLAR DEPTH ( AT C.B. NECK )","COLLAR DEPTH ( AT C.B. NECK )","COLLAR DEPTH ( AT C.B. NECK )","COLLAR DEPTH ( AT C.B. NECK )","COLLAR DEPTH ( AT C.B. NECK )","COLLAR DEPTH ( AT C.B. NECK )","COLLAR DEPTH ( AT C.B. NECK )","COLLAR DEPTH ( AT C.B. NECK )","COLLAR DEPTH ( AT C.B. NECK )","COLLAR DEPTH ( AT C.B. NECK )","COLLAR DEPTH ( AT C.B. NECK )",null,null,null,null,null,null,null,null,null,null,null,null,null,null,null,null,null,null,0]
[null,"STAND DEPTH","STAND DEPTH","STAND DEPTH","STAND DEPTH","STAND DEPTH","STAND DEPTH","STAND DEPTH","STAND DEPTH","STAND DEPTH","STAND DEPTH","STAND DEPTH","STAND DEPTH","STAND DEPTH","STAND DEPTH",null,null,null,null,null,null,null,null,null,null,null,null,null,null,null,null,null,null,0]
[null,"COLLAR LENGTH","COLLAR LENGTH","COLLAR LENGTH","COLLAR LENGTH","COLLAR LENGTH","COLLAR LENGTH","COLLAR LENGTH","COLLAR LENGTH","COLLAR LENGTH","COLLAR LENGTH","COLLAR LENGTH","COLLAR LENGTH","COLLAR LENGTH","COLLAR LENGTH",null,null,null,null,null,null,null,null,null,null,null,null,null,null,null,null,null,null,0.25]
[null,"NECK TRIM DEPTH","NECK TRIM DEPTH","NECK TRIM DEPTH","NECK TRIM DEPTH","NECK TRIM DEPTH","NECK TRIM DEPTH","NECK TRIM DEPTH","NECK TRIM DEPTH","NECK TRIM DEPTH","NECK TRIM DEPTH","NECK TRIM DEPTH","NECK TRIM DEPTH","NECK TRIM DEPTH","NECK TRIM DEPTH",null,null,null,null,null,null,null,null,null,null,null,null,null,null,null,null,null,null,0]
[null,"CUFF DEPTH","CUFF DEPTH","CUFF DEPTH","CUFF DEPTH","CUFF DEPTH","CUFF DEPTH","CUFF DEPTH","CUFF DEPTH","CUFF DEPTH","CUFF DEPTH","CUFF DEPTH","CUFF DEPTH","CUFF DEPTH","CUFF DEPTH",null,null,null,null,null,null,null,null,null,null,null,null,null,null,null,null,null,null,0]
[null,"SLEEVE HEM DEPTH","SLEEVE HEM DEPTH","SLEEVE HEM DEPTH","SLEEVE HEM DEPTH","SLEEVE HEM DEPTH","SLEEVE HEM DEPTH","SLEEVE HEM DEPTH","SLEEVE HEM DEPTH","SLEEVE HEM DEPTH","SLEEVE HEM DEPTH","SLEEVE HEM DEPTH","SLEEVE HEM DEPTH","SLEEVE HEM DEPTH","SLEEVE HEM DEPTH",null,null,null,null,null,null,null,null,null,null,null,null,null,null,null,null,null,null,0]
[null,"BOTTOM HEM DEPTH","BOTTOM HEM DEPTH","BOTTOM HEM DEPTH","BOTTOM HEM DEPTH","BOTTOM HEM DEPTH","BOTTOM HEM DEPTH","BOTTOM HEM DEPTH","BOTTOM HEM DEPTH","BOTTOM HEM DEPTH","BOTTOM HEM DEPTH","BOTTOM HEM DEPTH","BOTTOM HEM DEPTH","BOTTOM HEM DEPTH","BOTTOM HEM DEPTH",null,null,null,null,null,null,null,null,null,null,null,null,null,null,null,null,null,null,0]
[null,"HSP TO BUST POINT","HSP TO BUST POINT","HSP TO BUST POINT","HSP TO BUST POINT","HSP TO BUST POINT","HSP TO BUST POINT","HSP TO BUST POINT","HSP TO BUST POINT","HSP TO BUST POINT","HSP TO BUST POINT","HSP TO BUST POINT","HSP TO BUST POINT","HSP TO BUST POINT","HSP TO BUST POINT",null,null,null,null,null,null,null,null,null,null,null,null,null,null,null,null,null,null,0]
[]
[]
[]
[]
[null,"Production Samples"]
[null,"Approved ?"]

{"sheet":"Production Photo Comment","index":23,"n_rows":15,"n_cols":40,"rows_kept":15,"cut":false,"hidden":true,"merged":[[5,16,5,34],[7,1,7,18],[7,19,7,22],[7,23,7,31],[1,16,1,22],[2,16,2,34],[3,16,3,22],[3,30,3,34],[4,16,4,22],[4,29,4,34]]}
[]
[null,null,null,null,null,null,null,null,null,null,null,"Create Date:",null,null,null,null,{"$f":"'ORIGINAL PHOTO'!Q2:W2","v":"MARCH 15/2017"}]
[null,null,null,null,null,null,null,null,null,null,null,"Vendor Name:",null,null,null,null,{"$f":"'ORIGINAL PHOTO'!Q3:AI3","v":0}]
[null,null,null,null,null,null,null,null,null,null,null,"Vndr.Item No.:",null,null,null,null,{"$f":"'ORIGINAL PHOTO'!Q4:W4","v":0},null,null,null,null,null,null,null,null,null,"GC Item No.:",null,null,null,{"$f":"'ORIGINAL PHOTO'!AE4:AI4","v":0}]
[null,null,null,null,null,null,null,null,null,null,null,"Size Range:",null,null,null,null,{"$f":"'ORIGINAL PHOTO'!Q5:W5","v":"S-M-L-XL"},null,null,null,null,null,null,null,null,null,"Season:",null,null,{"$f":"'ORIGINAL PHOTO'!AD5:AI5","v":"Spring Summer 2018"}]
[null,null,null,null,null,null,null,null,null,null,null,"Description:",null,null,null,null,{"$f":"'ORIGINAL PHOTO'!Q6:AI6","v":"MEN'S LONG SLEEVE ZIP FRONT SCOOP HEM HOODIE WITH LINED HOOD"}]
[]
[null,"PRODUCTION PHOTO COMMENTS-- MEN'S TOP",null,null,null,null,null,null,null,null,null,null,null,null,null,null,null,null,null,"Date:",null,null,null,null,null,null,null,null,null,null,null,null,null,null,null,null,null,null,null,"L"]
[null,null,null,null,null,null,null,null,null,null,null,null,null,null,null,null,null,null,null,null,null,null,null,null,null,null,null,null,null,null,null,null,null,null,null,null,null,null,null,"LXL"]
[null,null,null,null,null,null,null,null,null,null,null,null,null,null,null,null,null,null,null,null,null,null,null,null,null,null,null,null,null,null,null,null,null,null,null,null,null,null,null,"M"]
[null,null,null,null,null,null,null,null,null,null,null,null,null,null,null,null,null,null,null,null,null,null,null,null,null,null,null,null,null,null,null,null,null,null,null,null,null,null,null,"S"]
[null,null,null,null,null,null,null,null,null,null,null,null,null,null,null,null,null,null,null,null,null,null,null,null,null,null,null,null,null,null,null,null,null,null,null,null,null,null,null,"SM"]
[null,null,null,null,null,null,null,null,null,null,null,null,null,null,null,null,null,null,null,null,null,null,null,null,null,null,null,null,null,null,null,null,null,null,null,null,null,null,null,"XL"]
[null,null,null,null,null,null,null,null,null,null,null,null,null,null,null,null,null,null,null,null,null,null,null,null,null,null,null,null,null,null,null,null,null,null,null,null,null,null,null,"XXL"]
[null,null,null,null,null,null,null,null,null,null,null,null,null,null,null,null,null,null,null,null,null,null,null,null,null,null,null,null,null,null,null,null,null,null,null,null,null,null,null,"XXXL"]